Workbook

Sheet Auswertung
AK1: Platz 1 | AL1: =VERKETTEN_P1(Z5:Z131,CHAR(10)) -> Schneeflocke.jpg von Nadja Cassim | AN1: Platz 2 | AO1: =VERKETTEN_P1(AA5:AA131,CHAR(10)) -> Aufzug.jpg von Andreas Toltz Huch.jpg von Andreas Toltz | AQ1: Platz 3 | AR1: =VERKETTEN_P1(AB5:AB131,CHAR(10)) -> 
AK2: Bestes Bild | AN2: Bestes Bild | AQ2: Bestes Bild
AK3: Platz 1 | AL3: =VERKETTEN_P1('Statistik nach Autor(in)'!E6:'Statistik nach Autor(in)'!E35,CHAR(10)) -> Nadja Cassim | AN3: Platz 2 | AO3: =VERKETTEN_P1('Statistik nach Autor(in)'!F6:'Statistik nach Autor(in)'!F35,CHAR(10)) -> Andreas Toltz | AQ3: Platz 3 | AR3: =VERKETTEN_P1('Statistik nach Autor(in)'!G6:'Statistik nach Autor(in)'!G35,CHAR(10)) -> Gerhard Rieß
A4: Bildname | B4: Juror 1 | C4: Juror 2 | D4: Juror 3 | E4: Juror 4 | F4: Juror 5 | G4: Juror 6 | H4: Juror 7 | I4: Juror 8 | J4: Juror 9 | K4: Juror 10 | L4: Juror 11 | M4: Juror 12 | N4: Juror 13 | O4: Juror 14 | P4: Juror 15 | Q4: Juror 16 | R4: Juror 17 | S4: Juror 18 | T4: Juror 19 | U4: Juror 20 | V4: Punkte | W4: Schnitt | X4: Platz | Y4: Autor(in) | Z4: Platz 1 | AA4: Platz 2 | AB4: Platz 3 | AC4: Platz 4 | AD4: Platz 5 | AE4: Platz 6 | AF4: Platz 7 | AG4: Platz 8 | AH4: Platz 9 | AI4: Platz 10 | AK4: Bester Fotograf | AN4: Bester Fotograf | AQ4: Bester Fotograf
A5: Schneeflocke.jpg | B5: 8 | C5: 8 | D5: 9 | E5: 8 | V5: =IF(Tabelle_Auswertung[[#This Row],[Bildname]]<>"",SUM(Tabelle_Auswertung[[#This Row],[Juror 1]:[Juror 20]])," - ") -> 33 | W5: =IF(Tabelle_Auswertung[[#This Row],[Bildname]]<>"",IF(Tabelle_Auswertung[[#This Row],[Punkte]]>0,AVERAGE(Tabelle_Auswertung[[#This Row],[Juror 1]:[Juror 20]])," - ")," - ") -> 8.25 | X5: =IF(Tabelle_Auswertung[[#This Row],[Bildname]]<>"",IF(Tabelle_Auswertung[[#This Row],[Punkte]]>0,RANK(Tabelle_Auswertung[[#This Row],[Punkte]],[Punkte],0)," - ")," - ") -> 1 | Y5: Nadja Cassim | Z5: =IF(Tabelle_Auswertung[[#This Row],[Platz]]=1,CONCATENATE(Tabelle_Auswertung[[#This Row],[Bildname]]," von ",Tabelle_Auswertung[[#This Row],[Autor(in)]]),"") -> Schneeflocke.jpg von Nadja Cassim | AA5: =IF(Tabelle_Auswertung[[#This Row],[Platz]]=2,CONCATENATE(Tabelle_Auswertung[[#This Row],[Bildname]]," von ",Tabelle_Auswertung[[#This Row],[Autor(in)]]),"") ->  | AB5: =IF(Tabelle_Auswertung[[#This Row],[Platz]]=3,CONCATENATE(Tabelle_Auswertung[[#This Row],[Bildname]]," von ",Tabelle_Auswertung[[#This Row],[Autor(in)]]),"") ->  | AC5: =IF(Tabelle_Auswertung[[#This Row],[Platz]]=4,CONCATENATE(Tabelle_Auswertung[[#This Row],[Bildname]]," von ",Tabelle_Auswertung[[#This Row],[Autor(in)]]),"") ->  | AD5: =IF(Tabelle_Auswertung[[#This Row],[Platz]]=5,CONCATENATE(Tabelle_Auswertung[[#This Row],[Bildname]]," von ",Tabelle_Auswertung[[#This Row],[Autor(in)]]),"") ->  | AE5: =IF(Tabelle_Auswertung[[#This Row],[Platz]]=6,CONCATENATE(Tabelle_Auswertung[[#This Row],[Bildname]]," von ",Tabelle_Auswertung[[#This Row],[Autor(in)]]),"") ->  | AF5: =IF(Tabelle_Auswertung[[#This Row],[Platz]]=7,CONCATENATE(Tabelle_Auswertung[[#This Row],[Bildname]]," von ",Tabelle_Auswertung[[#This Row],[Autor(in)]]),"") ->  | AG5: =IF(Tabelle_Auswertung[[#This Row],[Platz]]=8,CONCATENATE(Tabelle_Auswertung[[#This Row],[Bildname]]," von ",Tabelle_Auswertung[[#This Row],[Autor(in)]]),"") ->  | AH5: =IF(Tabelle_Auswertung[[#This Row],[Platz]]=9,CONCATENATE(Tabelle_Auswertung[[#This Row],[Bildname]]," von ",Tabelle_Auswertung[[#This Row],[Autor(in)]]),"") ->  | AI5: =IF(Tabelle_Auswertung[[#This Row],[Platz]]=10,CONCATENATE(Tabelle_Auswertung[[#This Row],[Bildname]]," von ",Tabelle_Auswertung[[#This Row],[Autor(in)]]),"") -> 
A6: Aufzug.jpg | B6: 7 | C6: 9 | D6: 8 | E6: 8 | V6: =IF(Tabelle_Auswertung[[#This Row],[Bildname]]<>"",SUM(Tabelle_Auswertung[[#This Row],[Juror 1]:[Juror 20]])," - ") -> 32 | W6: =IF(Tabelle_Auswertung[[#This Row],[Bildname]]<>"",IF(Tabelle_Auswertung[[#This Row],[Punkte]]>0,AVERAGE(Tabelle_Auswertung[[#This Row],[Juror 1]:[Juror 20]])," - ")," - ") -> 8.00 | X6: =IF(Tabelle_Auswertung[[#This Row],[Bildname]]<>"",IF(Tabelle_Auswertung[[#This Row],[Punkte]]>0,RANK(Tabelle_Auswertung[[#This Row],[Punkte]],[Punkte],0)," - ")," - ") -> 2 | Y6: Andreas Toltz | Z6: =IF(Tabelle_Auswertung[[#This Row],[Platz]]=1,CONCATENATE(Tabelle_Auswertung[[#This Row],[Bildname]]," von ",Tabelle_Auswertung[[#This Row],[Autor(in)]]),"") ->  | AA6: =IF(Tabelle_Auswertung[[#This Row],[Platz]]=2,CONCATENATE(Tabelle_Auswertung[[#This Row],[Bildname]]," von ",Tabelle_Auswertung[[#This Row],[Autor(in)]]),"") -> Aufzug.jpg von Andreas Toltz | AB6: =IF(Tabelle_Auswertung[[#This Row],[Platz]]=3,CONCATENATE(Tabelle_Auswertung[[#This Row],[Bildname]]," von ",Tabelle_Auswertung[[#This Row],[Autor(in)]]),"") ->  | AC6: =IF(Tabelle_Auswertung[[#This Row],[Platz]]=4,CONCATENATE(Tabelle_Auswertung[[#This Row],[Bildname]]," von ",Tabelle_Auswertung[[#This Row],[Autor(in)]]),"") ->  | AD6: =IF(Tabelle_Auswertung[[#This Row],[Platz]]=5,CONCATENATE(Tabelle_Auswertung[[#This Row],[Bildname]]," von ",Tabelle_Auswertung[[#This Row],[Autor(in)]]),"") ->  | AE6: =IF(Tabelle_Auswertung[[#This Row],[Platz]]=6,CONCATENATE(Tabelle_Auswertung[[#This Row],[Bildname]]," von ",Tabelle_Auswertung[[#This Row],[Autor(in)]]),"") ->  | AF6: =IF(Tabelle_Auswertung[[#This Row],[Platz]]=7,CONCATENATE(Tabelle_Auswertung[[#This Row],[Bildname]]," von ",Tabelle_Auswertung[[#This Row],[Autor(in)]]),"") ->  | AG6: =IF(Tabelle_Auswertung[[#This Row],[Platz]]=8,CONCATENATE(Tabelle_Auswertung[[#This Row],[Bildname]]," von ",Tabelle_Auswertung[[#This Row],[Autor(in)]]),"") ->  | AH6: =IF(Tabelle_Auswertung[[#This Row],[Platz]]=9,CONCATENATE(Tabelle_Auswertung[[#This Row],[Bildname]]," von ",Tabelle_Auswertung[[#This Row],[Autor(in)]]),"") ->  | AI6: =IF(Tabelle_Auswertung[[#This Row],[Platz]]=10,CONCATENATE(Tabelle_Auswertung[[#This Row],[Bildname]]," von ",Tabelle_Auswertung[[#This Row],[Autor(in)]]),"") ->  | AK6: Fotoclub Weidenbach
A7: Huch.jpg | B7: 8 | C7: 9 | D7: 6 | E7: 9 | V7: =IF(Tabelle_Auswertung[[#This Row],[Bildname]]<>"",SUM(Tabelle_Auswertung[[#This Row],[Juror 1]:[Juror 20]])," - ") -> 32 | W7: =IF(Tabelle_Auswertung[[#This Row],[Bildname]]<>"",IF(Tabelle_Auswertung[[#This Row],[Punkte]]>0,AVERAGE(Tabelle_Auswertung[[#This Row],[Juror 1]:[Juror 20]])," - ")," - ") -> 8.00 | X7: =IF(Tabelle_Auswertung[[#This Row],[Bildname]]<>"",IF(Tabelle_Auswertung[[#This Row],[Punkte]]>0,RANK(Tabelle_Auswertung[[#This Row],[Punkte]],[Punkte],0)," - ")," - ") -> 2 | Y7: Andreas Toltz | Z7: =IF(Tabelle_Auswertung[[#This Row],[Platz]]=1,CONCATENATE(Tabelle_Auswertung[[#This Row],[Bildname]]," von ",Tabelle_Auswertung[[#This Row],[Autor(in)]]),"") ->  | AA7: =IF(Tabelle_Auswertung[[#This Row],[Platz]]=2,CONCATENATE(Tabelle_Auswertung[[#This Row],[Bildname]]," von ",Tabelle_Auswertung[[#This Row],[Autor(in)]]),"") -> Huch.jpg von Andreas Toltz | AB7: =IF(Tabelle_Auswertung[[#This Row],[Platz]]=3,CONCATENATE(Tabelle_Auswertung[[#This Row],[Bildname]]," von ",Tabelle_Auswertung[[#This Row],[Autor(in)]]),"") ->  | AC7: =IF(Tabelle_Auswertung[[#This Row],[Platz]]=4,CONCATENATE(Tabelle_Auswertung[[#This Row],[Bildname]]," von ",Tabelle_Auswertung[[#This Row],[Autor(in)]]),"") ->  | AD7: =IF(Tabelle_Auswertung[[#This Row],[Platz]]=5,CONCATENATE(Tabelle_Auswertung[[#This Row],[Bildname]]," von ",Tabelle_Auswertung[[#This Row],[Autor(in)]]),"") ->  | AE7: =IF(Tabelle_Auswertung[[#This Row],[Platz]]=6,CONCATENATE(Tabelle_Auswertung[[#This Row],[Bildname]]," von ",Tabelle_Auswertung[[#This Row],[Autor(in)]]),"") ->  | AF7: =IF(Tabelle_Auswertung[[#This Row],[Platz]]=7,CONCATENATE(Tabelle_Auswertung[[#This Row],[Bildname]]," von ",Tabelle_Auswertung[[#This Row],[Autor(in)]]),"") ->  | AG7: =IF(Tabelle_Auswertung[[#This Row],[Platz]]=8,CONCATENATE(Tabelle_Auswertung[[#This Row],[Bildname]]," von ",Tabelle_Auswertung[[#This Row],[Autor(in)]]),"") ->  | AH7: =IF(Tabelle_Auswertung[[#This Row],[Platz]]=9,CONCATENATE(Tabelle_Auswertung[[#This Row],[Bildname]]," von ",Tabelle_Auswertung[[#This Row],[Autor(in)]]),"") ->  | AI7: =IF(Tabelle_Auswertung[[#This Row],[Platz]]=10,CONCATENATE(Tabelle_Auswertung[[#This Row],[Bildname]]," von ",Tabelle_Auswertung[[#This Row],[Autor(in)]]),"") -> 
A8: Hallo.jpg | B8: 8 | C8: 7 | D8: 8 | E8: 7 | V8: =IF(Tabelle_Auswertung[[#This Row],[Bildname]]<>"",SUM(Tabelle_Auswertung[[#This Row],[Juror 1]:[Juror 20]])," - ") -> 30 | W8: =IF(Tabelle_Auswertung[[#This Row],[Bildname]]<>"",IF(Tabelle_Auswertung[[#This Row],[Punkte]]>0,AVERAGE(Tabelle_Auswertung[[#This Row],[Juror 1]:[Juror 20]])," - ")," - ") -> 7.50 | X8: =IF(Tabelle_Auswertung[[#This Row],[Bildname]]<>"",IF(Tabelle_Auswertung[[#This Row],[Punkte]]>0,RANK(Tabelle_Auswertung[[#This Row],[Punkte]],[Punkte],0)," - ")," - ") -> 4 | Y8: Nadja Cassim | Z8: =IF(Tabelle_Auswertung[[#This Row],[Platz]]=1,CONCATENATE(Tabelle_Auswertung[[#This Row],[Bildname]]," von ",Tabelle_Auswertung[[#This Row],[Autor(in)]]),"") ->  | AA8: =IF(Tabelle_Auswertung[[#This Row],[Platz]]=2,CONCATENATE(Tabelle_Auswertung[[#This Row],[Bildname]]," von ",Tabelle_Auswertung[[#This Row],[Autor(in)]]),"") ->  | AB8: =IF(Tabelle_Auswertung[[#This Row],[Platz]]=3,CONCATENATE(Tabelle_Auswertung[[#This Row],[Bildname]]," von ",Tabelle_Auswertung[[#This Row],[Autor(in)]]),"") ->  | AC8: =IF(Tabelle_Auswertung[[#This Row],[Platz]]=4,CONCATENATE(Tabelle_Auswertung[[#This Row],[Bildname]]," von ",Tabelle_Auswertung[[#This Row],[Autor(in)]]),"") -> Hallo.jpg von Nadja Cassim | AD8: =IF(Tabelle_Auswertung[[#This Row],[Platz]]=5,CONCATENATE(Tabelle_Auswertung[[#This Row],[Bildname]]," von ",Tabelle_Auswertung[[#This Row],[Autor(in)]]),"") ->  | AE8: =IF(Tabelle_Auswertung[[#This Row],[Platz]]=6,CONCATENATE(Tabelle_Auswertung[[#This Row],[Bildname]]," von ",Tabelle_Auswertung[[#This Row],[Autor(in)]]),"") ->  | AF8: =IF(Tabelle_Auswertung[[#This Row],[Platz]]=7,CONCATENATE(Tabelle_Auswertung[[#This Row],[Bildname]]," von ",Tabelle_Auswertung[[#This Row],[Autor(in)]]),"") ->  | AG8: =IF(Tabelle_Auswertung[[#This Row],[Platz]]=8,CONCATENATE(Tabelle_Auswertung[[#This Row],[Bildname]]," von ",Tabelle_Auswertung[[#This Row],[Autor(in)]]),"") ->  | AH8: =IF(Tabelle_Auswertung[[#This Row],[Platz]]=9,CONCATENATE(Tabelle_Auswertung[[#This Row],[Bildname]]," von ",Tabelle_Auswertung[[#This Row],[Autor(in)]]),"") ->  | AI8: =IF(Tabelle_Auswertung[[#This Row],[Platz]]=10,CONCATENATE(Tabelle_Auswertung[[#This Row],[Bildname]]," von ",Tabelle_Auswertung[[#This Row],[Autor(in)]]),"") -> 
A9: Jongleurin.jpg | B9: 7 | C9: 9 | D9: 7 | E9: 7 | V9: =IF(Tabelle_Auswertung[[#This Row],[Bildname]]<>"",SUM(Tabelle_Auswertung[[#This Row],[Juror 1]:[Juror 20]])," - ") -> 30 | W9: =IF(Tabelle_Auswertung[[#This Row],[Bildname]]<>"",IF(Tabelle_Auswertung[[#This Row],[Punkte]]>0,AVERAGE(Tabelle_Auswertung[[#This Row],[Juror 1]:[Juror 20]])," - ")," - ") -> 7.50 | X9: =IF(Tabelle_Auswertung[[#This Row],[Bildname]]<>"",IF(Tabelle_Auswertung[[#This Row],[Punkte]]>0,RANK(Tabelle_Auswertung[[#This Row],[Punkte]],[Punkte],0)," - ")," - ") -> 4 | Y9: Gert Häberlein | Z9: =IF(Tabelle_Auswertung[[#This Row],[Platz]]=1,CONCATENATE(Tabelle_Auswertung[[#This Row],[Bildname]]," von ",Tabelle_Auswertung[[#This Row],[Autor(in)]]),"") ->  | AA9: =IF(Tabelle_Auswertung[[#This Row],[Platz]]=2,CONCATENATE(Tabelle_Auswertung[[#This Row],[Bildname]]," von ",Tabelle_Auswertung[[#This Row],[Autor(in)]]),"") ->  | AB9: =IF(Tabelle_Auswertung[[#This Row],[Platz]]=3,CONCATENATE(Tabelle_Auswertung[[#This Row],[Bildname]]," von ",Tabelle_Auswertung[[#This Row],[Autor(in)]]),"") ->  | AC9: =IF(Tabelle_Auswertung[[#This Row],[Platz]]=4,CONCATENATE(Tabelle_Auswertung[[#This Row],[Bildname]]," von ",Tabelle_Auswertung[[#This Row],[Autor(in)]]),"") -> Jongleurin.jpg von Gert Häberlein | AD9: =IF(Tabelle_Auswertung[[#This Row],[Platz]]=5,CONCATENATE(Tabelle_Auswertung[[#This Row],[Bildname]]," von ",Tabelle_Auswertung[[#This Row],[Autor(in)]]),"") ->  | AE9: =IF(Tabelle_Auswertung[[#This Row],[Platz]]=6,CONCATENATE(Tabelle_Auswertung[[#This Row],[Bildname]]," von ",Tabelle_Auswertung[[#This Row],[Autor(in)]]),"") ->  | AF9: =IF(Tabelle_Auswertung[[#This Row],[Platz]]=7,CONCATENATE(Tabelle_Auswertung[[#This Row],[Bildname]]," von ",Tabelle_Auswertung[[#This Row],[Autor(in)]]),"") ->  | AG9: =IF(Tabelle_Auswertung[[#This Row],[Platz]]=8,CONCATENATE(Tabelle_Auswertung[[#This Row],[Bildname]]," von ",Tabelle_Auswertung[[#This Row],[Autor(in)]]),"") ->  | AH9: =IF(Tabelle_Auswertung[[#This Row],[Platz]]=9,CONCATENATE(Tabelle_Auswertung[[#This Row],[Bildname]]," von ",Tabelle_Auswertung[[#This Row],[Autor(in)]]),"") ->  | AI9: =IF(Tabelle_Auswertung[[#This Row],[Platz]]=10,CONCATENATE(Tabelle_Auswertung[[#This Row],[Bildname]]," von ",Tabelle_Auswertung[[#This Row],[Autor(in)]]),"") -> 
A10: Larven.JPG | B10: 7 | C10: 8 | D10: 8 | E10: 7 | V10: =IF(Tabelle_Auswertung[[#This Row],[Bildname]]<>"",SUM(Tabelle_Auswertung[[#This Row],[Juror 1]:[Juror 20]])," - ") -> 30 | W10: =IF(Tabelle_Auswertung[[#This Row],[Bildname]]<>"",IF(Tabelle_Auswertung[[#This Row],[Punkte]]>0,AVERAGE(Tabelle_Auswertung[[#This Row],[Juror 1]:[Juror 20]])," - ")," - ") -> 7.50 | X10: =IF(Tabelle_Auswertung[[#This Row],[Bildname]]<>"",IF(Tabelle_Auswertung[[#This Row],[Punkte]]>0,RANK(Tabelle_Auswertung[[#This Row],[Punkte]],[Punkte],0)," - ")," - ") -> 4 | Y10: Nadja Cassim | Z10: =IF(Tabelle_Auswertung[[#This Row],[Platz]]=1,CONCATENATE(Tabelle_Auswertung[[#This Row],[Bildname]]," von ",Tabelle_Auswertung[[#This Row],[Autor(in)]]),"") ->  | AA10: =IF(Tabelle_Auswertung[[#This Row],[Platz]]=2,CONCATENATE(Tabelle_Auswertung[[#This Row],[Bildname]]," von ",Tabelle_Auswertung[[#This Row],[Autor(in)]]),"") ->  | AB10: =IF(Tabelle_Auswertung[[#This Row],[Platz]]=3,CONCATENATE(Tabelle_Auswertung[[#This Row],[Bildname]]," von ",Tabelle_Auswertung[[#This Row],[Autor(in)]]),"") ->  | AC10: =IF(Tabelle_Auswertung[[#This Row],[Platz]]=4,CONCATENATE(Tabelle_Auswertung[[#This Row],[Bildname]]," von ",Tabelle_Auswertung[[#This Row],[Autor(in)]]),"") -> Larven.JPG von Nadja Cassim | AD10: =IF(Tabelle_Auswertung[[#This Row],[Platz]]=5,CONCATENATE(Tabelle_Auswertung[[#This Row],[Bildname]]," von ",Tabelle_Auswertung[[#This Row],[Autor(in)]]),"") ->  | AE10: =IF(Tabelle_Auswertung[[#This Row],[Platz]]=6,CONCATENATE(Tabelle_Auswertung[[#This Row],[Bildname]]," von ",Tabelle_Auswertung[[#This Row],[Autor(in)]]),"") ->  | AF10: =IF(Tabelle_Auswertung[[#This Row],[Platz]]=7,CONCATENATE(Tabelle_Auswertung[[#This Row],[Bildname]]," von ",Tabelle_Auswertung[[#This Row],[Autor(in)]]),"") ->  | AG10: =IF(Tabelle_Auswertung[[#This Row],[Platz]]=8,CONCATENATE(Tabelle_Auswertung[[#This Row],[Bildname]]," von ",Tabelle_Auswertung[[#This Row],[Autor(in)]]),"") ->  | AH10: =IF(Tabelle_Auswertung[[#This Row],[Platz]]=9,CONCATENATE(Tabelle_Auswertung[[#This Row],[Bildname]]," von ",Tabelle_Auswertung[[#This Row],[Autor(in)]]),"") ->  | AI10: =IF(Tabelle_Auswertung[[#This Row],[Platz]]=10,CONCATENATE(Tabelle_Auswertung[[#This Row],[Bildname]]," von ",Tabelle_Auswertung[[#This Row],[Autor(in)]]),"") -> 
A11: TowerBridgePano.jpg | B11: 7 | C11: 8 | D11: 8 | E11: 7 | V11: =IF(Tabelle_Auswertung[[#This Row],[Bildname]]<>"",SUM(Tabelle_Auswertung[[#This Row],[Juror 1]:[Juror 20]])," - ") -> 30 | W11: =IF(Tabelle_Auswertung[[#This Row],[Bildname]]<>"",IF(Tabelle_Auswertung[[#This Row],[Punkte]]>0,AVERAGE(Tabelle_Auswertung[[#This Row],[Juror 1]:[Juror 20]])," - ")," - ") -> 7.50 | X11: =IF(Tabelle_Auswertung[[#This Row],[Bildname]]<>"",IF(Tabelle_Auswertung[[#This Row],[Punkte]]>0,RANK(Tabelle_Auswertung[[#This Row],[Punkte]],[Punkte],0)," - ")," - ") -> 4 | Y11: Andreas Toltz | Z11: =IF(Tabelle_Auswertung[[#This Row],[Platz]]=1,CONCATENATE(Tabelle_Auswertung[[#This Row],[Bildname]]," von ",Tabelle_Auswertung[[#This Row],[Autor(in)]]),"") ->  | AA11: =IF(Tabelle_Auswertung[[#This Row],[Platz]]=2,CONCATENATE(Tabelle_Auswertung[[#This Row],[Bildname]]," von ",Tabelle_Auswertung[[#This Row],[Autor(in)]]),"") ->  | AB11: =IF(Tabelle_Auswertung[[#This Row],[Platz]]=3,CONCATENATE(Tabelle_Auswertung[[#This Row],[Bildname]]," von ",Tabelle_Auswertung[[#This Row],[Autor(in)]]),"") ->  | AC11: =IF(Tabelle_Auswertung[[#This Row],[Platz]]=4,CONCATENATE(Tabelle_Auswertung[[#This Row],[Bildname]]," von ",Tabelle_Auswertung[[#This Row],[Autor(in)]]),"") -> TowerBridgePano.jpg von Andreas Toltz | AD11: =IF(Tabelle_Auswertung[[#This Row],[Platz]]=5,CONCATENATE(Tabelle_Auswertung[[#This Row],[Bildname]]," von ",Tabelle_Auswertung[[#This Row],[Autor(in)]]),"") ->  | AE11: =IF(Tabelle_Auswertung[[#This Row],[Platz]]=6,CONCATENATE(Tabelle_Auswertung[[#This Row],[Bildname]]," von ",Tabelle_Auswertung[[#This Row],[Autor(in)]]),"") ->  | AF11: =IF(Tabelle_Auswertung[[#This Row],[Platz]]=7,CONCATENATE(Tabelle_Auswertung[[#This Row],[Bildname]]," von ",Tabelle_Auswertung[[#This Row],[Autor(in)]]),"") ->  | AG11: =IF(Tabelle_Auswertung[[#This Row],[Platz]]=8,CONCATENATE(Tabelle_Auswertung[[#This Row],[Bildname]]," von ",Tabelle_Auswertung[[#This Row],[Autor(in)]]),"") ->  | AH11: =IF(Tabelle_Auswertung[[#This Row],[Platz]]=9,CONCATENATE(Tabelle_Auswertung[[#This Row],[Bildname]]," von ",Tabelle_Auswertung[[#This Row],[Autor(in)]]),"") ->  | AI11: =IF(Tabelle_Auswertung[[#This Row],[Platz]]=10,CONCATENATE(Tabelle_Auswertung[[#This Row],[Bildname]]," von ",Tabelle_Auswertung[[#This Row],[Autor(in)]]),"") -> 
A12: Big Belly.jpg | B12: 6 | C12: 7 | D12: 9 | E12: 7 | V12: =IF(Tabelle_Auswertung[[#This Row],[Bildname]]<>"",SUM(Tabelle_Auswertung[[#This Row],[Juror 1]:[Juror 20]])," - ") -> 29 | W12: =IF(Tabelle_Auswertung[[#This Row],[Bildname]]<>"",IF(Tabelle_Auswertung[[#This Row],[Punkte]]>0,AVERAGE(Tabelle_Auswertung[[#This Row],[Juror 1]:[Juror 20]])," - ")," - ") -> 7.25 | X12: =IF(Tabelle_Auswertung[[#This Row],[Bildname]]<>"",IF(Tabelle_Auswertung[[#This Row],[Punkte]]>0,RANK(Tabelle_Auswertung[[#This Row],[Punkte]],[Punkte],0)," - ")," - ") -> 8 | Y12: Jan Grünler | Z12: =IF(Tabelle_Auswertung[[#This Row],[Platz]]=1,CONCATENATE(Tabelle_Auswertung[[#This Row],[Bildname]]," von ",Tabelle_Auswertung[[#This Row],[Autor(in)]]),"") ->  | AA12: =IF(Tabelle_Auswertung[[#This Row],[Platz]]=2,CONCATENATE(Tabelle_Auswertung[[#This Row],[Bildname]]," von ",Tabelle_Auswertung[[#This Row],[Autor(in)]]),"") ->  | AB12: =IF(Tabelle_Auswertung[[#This Row],[Platz]]=3,CONCATENATE(Tabelle_Auswertung[[#This Row],[Bildname]]," von ",Tabelle_Auswertung[[#This Row],[Autor(in)]]),"") ->  | AC12: =IF(Tabelle_Auswertung[[#This Row],[Platz]]=4,CONCATENATE(Tabelle_Auswertung[[#This Row],[Bildname]]," von ",Tabelle_Auswertung[[#This Row],[Autor(in)]]),"") ->  | AD12: =IF(Tabelle_Auswertung[[#This Row],[Platz]]=5,CONCATENATE(Tabelle_Auswertung[[#This Row],[Bildname]]," von ",Tabelle_Auswertung[[#This Row],[Autor(in)]]),"") ->  | AE12: =IF(Tabelle_Auswertung[[#This Row],[Platz]]=6,CONCATENATE(Tabelle_Auswertung[[#This Row],[Bildname]]," von ",Tabelle_Auswertung[[#This Row],[Autor(in)]]),"") ->  | AF12: =IF(Tabelle_Auswertung[[#This Row],[Platz]]=7,CONCATENATE(Tabelle_Auswertung[[#This Row],[Bildname]]," von ",Tabelle_Auswertung[[#This Row],[Autor(in)]]),"") ->  | AG12: =IF(Tabelle_Auswertung[[#This Row],[Platz]]=8,CONCATENATE(Tabelle_Auswertung[[#This Row],[Bildname]]," von ",Tabelle_Auswertung[[#This Row],[Autor(in)]]),"") -> Big Belly.jpg von Jan Grünler | AH12: =IF(Tabelle_Auswertung[[#This Row],[Platz]]=9,CONCATENATE(Tabelle_Auswertung[[#This Row],[Bildname]]," von ",Tabelle_Auswertung[[#This Row],[Autor(in)]]),"") ->  | AI12: =IF(Tabelle_Auswertung[[#This Row],[Platz]]=10,CONCATENATE(Tabelle_Auswertung[[#This Row],[Bildname]]," von ",Tabelle_Auswertung[[#This Row],[Autor(in)]]),"") -> 
A13: Hunger.JPG | B13: 7 | C13: 8 | D13: 7 | E13: 7 | V13: =IF(Tabelle_Auswertung[[#This Row],[Bildname]]<>"",SUM(Tabelle_Auswertung[[#This Row],[Juror 1]:[Juror 20]])," - ") -> 29 | W13: =IF(Tabelle_Auswertung[[#This Row],[Bildname]]<>"",IF(Tabelle_Auswertung[[#This Row],[Punkte]]>0,AVERAGE(Tabelle_Auswertung[[#This Row],[Juror 1]:[Juror 20]])," - ")," - ") -> 7.25 | X13: =IF(Tabelle_Auswertung[[#This Row],[Bildname]]<>"",IF(Tabelle_Auswertung[[#This Row],[Punkte]]>0,RANK(Tabelle_Auswertung[[#This Row],[Punkte]],[Punkte],0)," - ")," - ") -> 8 | Y13: Nadja Cassim | Z13: =IF(Tabelle_Auswertung[[#This Row],[Platz]]=1,CONCATENATE(Tabelle_Auswertung[[#This Row],[Bildname]]," von ",Tabelle_Auswertung[[#This Row],[Autor(in)]]),"") ->  | AA13: =IF(Tabelle_Auswertung[[#This Row],[Platz]]=2,CONCATENATE(Tabelle_Auswertung[[#This Row],[Bildname]]," von ",Tabelle_Auswertung[[#This Row],[Autor(in)]]),"") ->  | AB13: =IF(Tabelle_Auswertung[[#This Row],[Platz]]=3,CONCATENATE(Tabelle_Auswertung[[#This Row],[Bildname]]," von ",Tabelle_Auswertung[[#This Row],[Autor(in)]]),"") ->  | AC13: =IF(Tabelle_Auswertung[[#This Row],[Platz]]=4,CONCATENATE(Tabelle_Auswertung[[#This Row],[Bildname]]," von ",Tabelle_Auswertung[[#This Row],[Autor(in)]]),"") ->  | AD13: =IF(Tabelle_Auswertung[[#This Row],[Platz]]=5,CONCATENATE(Tabelle_Auswertung[[#This Row],[Bildname]]," von ",Tabelle_Auswertung[[#This Row],[Autor(in)]]),"") ->  | AE13: =IF(Tabelle_Auswertung[[#This Row],[Platz]]=6,CONCATENATE(Tabelle_Auswertung[[#This Row],[Bildname]]," von ",Tabelle_Auswertung[[#This Row],[Autor(in)]]),"") ->  | AF13: =IF(Tabelle_Auswertung[[#This Row],[Platz]]=7,CONCATENATE(Tabelle_Auswertung[[#This Row],[Bildname]]," von ",Tabelle_Auswertung[[#This Row],[Autor(in)]]),"") ->  | AG13: =IF(Tabelle_Auswertung[[#This Row],[Platz]]=8,CONCATENATE(Tabelle_Auswertung[[#This Row],[Bildname]]," von ",Tabelle_Auswertung[[#This Row],[Autor(in)]]),"") -> Hunger.JPG von Nadja Cassim | AH13: =IF(Tabelle_Auswertung[[#This Row],[Platz]]=9,CONCATENATE(Tabelle_Auswertung[[#This Row],[Bildname]]," von ",Tabelle_Auswertung[[#This Row],[Autor(in)]]),"") ->  | AI13: =IF(Tabelle_Auswertung[[#This Row],[Platz]]=10,CONCATENATE(Tabelle_Auswertung[[#This Row],[Bildname]]," von ",Tabelle_Auswertung[[#This Row],[Autor(in)]]),"") -> 
A14: Motorradartist.jpg | B14: 7 | C14: 8 | D14: 6 | E14: 7 | V14: =IF(Tabelle_Auswertung[[#This Row],[Bildname]]<>"",SUM(Tabelle_Auswertung[[#This Row],[Juror 1]:[Juror 20]])," - ") -> 28 | W14: =IF(Tabelle_Auswertung[[#This Row],[Bildname]]<>"",IF(Tabelle_Auswertung[[#This Row],[Punkte]]>0,AVERAGE(Tabelle_Auswertung[[#This Row],[Juror 1]:[Juror 20]])," - ")," - ") -> 7.00 | X14: =IF(Tabelle_Auswertung[[#This Row],[Bildname]]<>"",IF(Tabelle_Auswertung[[#This Row],[Punkte]]>0,RANK(Tabelle_Auswertung[[#This Row],[Punkte]],[Punkte],0)," - ")," - ") -> 10 | Y14: Gert Häberlein | Z14: =IF(Tabelle_Auswertung[[#This Row],[Platz]]=1,CONCATENATE(Tabelle_Auswertung[[#This Row],[Bildname]]," von ",Tabelle_Auswertung[[#This Row],[Autor(in)]]),"") ->  | AA14: =IF(Tabelle_Auswertung[[#This Row],[Platz]]=2,CONCATENATE(Tabelle_Auswertung[[#This Row],[Bildname]]," von ",Tabelle_Auswertung[[#This Row],[Autor(in)]]),"") ->  | AB14: =IF(Tabelle_Auswertung[[#This Row],[Platz]]=3,CONCATENATE(Tabelle_Auswertung[[#This Row],[Bildname]]," von ",Tabelle_Auswertung[[#This Row],[Autor(in)]]),"") ->  | AC14: =IF(Tabelle_Auswertung[[#This Row],[Platz]]=4,CONCATENATE(Tabelle_Auswertung[[#This Row],[Bildname]]," von ",Tabelle_Auswertung[[#This Row],[Autor(in)]]),"") ->  | AD14: =IF(Tabelle_Auswertung[[#This Row],[Platz]]=5,CONCATENATE(Tabelle_Auswertung[[#This Row],[Bildname]]," von ",Tabelle_Auswertung[[#This Row],[Autor(in)]]),"") ->  | AE14: =IF(Tabelle_Auswertung[[#This Row],[Platz]]=6,CONCATENATE(Tabelle_Auswertung[[#This Row],[Bildname]]," von ",Tabelle_Auswertung[[#This Row],[Autor(in)]]),"") ->  | AF14: =IF(Tabelle_Auswertung[[#This Row],[Platz]]=7,CONCATENATE(Tabelle_Auswertung[[#This Row],[Bildname]]," von ",Tabelle_Auswertung[[#This Row],[Autor(in)]]),"") ->  | AG14: =IF(Tabelle_Auswertung[[#This Row],[Platz]]=8,CONCATENATE(Tabelle_Auswertung[[#This Row],[Bildname]]," von ",Tabelle_Auswertung[[#This Row],[Autor(in)]]),"") ->  | AH14: =IF(Tabelle_Auswertung[[#This Row],[Platz]]=9,CONCATENATE(Tabelle_Auswertung[[#This Row],[Bildname]]," von ",Tabelle_Auswertung[[#This Row],[Autor(in)]]),"") ->  | AI14: =IF(Tabelle_Auswertung[[#This Row],[Platz]]=10,CONCATENATE(Tabelle_Auswertung[[#This Row],[Bildname]]," von ",Tabelle_Auswertung[[#This Row],[Autor(in)]]),"") -> Motorradartist.jpg von Gert Häberlein
A15: Seifenblase.jpg | B15: 6 | C15: 8 | D15: 7 | E15: 7 | V15: =IF(Tabelle_Auswertung[[#This Row],[Bildname]]<>"",SUM(Tabelle_Auswertung[[#This Row],[Juror 1]:[Juror 20]])," - ") -> 28 | W15: =IF(Tabelle_Auswertung[[#This Row],[Bildname]]<>"",IF(Tabelle_Auswertung[[#This Row],[Punkte]]>0,AVERAGE(Tabelle_Auswertung[[#This Row],[Juror 1]:[Juror 20]])," - ")," - ") -> 7.00 | X15: =IF(Tabelle_Auswertung[[#This Row],[Bildname]]<>"",IF(Tabelle_Auswertung[[#This Row],[Punkte]]>0,RANK(Tabelle_Auswertung[[#This Row],[Punkte]],[Punkte],0)," - ")," - ") -> 10 | Y15: Nadja Cassim | Z15: =IF(Tabelle_Auswertung[[#This Row],[Platz]]=1,CONCATENATE(Tabelle_Auswertung[[#This Row],[Bildname]]," von ",Tabelle_Auswertung[[#This Row],[Autor(in)]]),"") ->  | AA15: =IF(Tabelle_Auswertung[[#This Row],[Platz]]=2,CONCATENATE(Tabelle_Auswertung[[#This Row],[Bildname]]," von ",Tabelle_Auswertung[[#This Row],[Autor(in)]]),"") ->  | AB15: =IF(Tabelle_Auswertung[[#This Row],[Platz]]=3,CONCATENATE(Tabelle_Auswertung[[#This Row],[Bildname]]," von ",Tabelle_Auswertung[[#This Row],[Autor(in)]]),"") ->  | AC15: =IF(Tabelle_Auswertung[[#This Row],[Platz]]=4,CONCATENATE(Tabelle_Auswertung[[#This Row],[Bildname]]," von ",Tabelle_Auswertung[[#This Row],[Autor(in)]]),"") ->  | AD15: =IF(Tabelle_Auswertung[[#This Row],[Platz]]=5,CONCATENATE(Tabelle_Auswertung[[#This Row],[Bildname]]," von ",Tabelle_Auswertung[[#This Row],[Autor(in)]]),"") ->  | AE15: =IF(Tabelle_Auswertung[[#This Row],[Platz]]=6,CONCATENATE(Tabelle_Auswertung[[#This Row],[Bildname]]," von ",Tabelle_Auswertung[[#This Row],[Autor(in)]]),"") ->  | AF15: =IF(Tabelle_Auswertung[[#This Row],[Platz]]=7,CONCATENATE(Tabelle_Auswertung[[#This Row],[Bildname]]," von ",Tabelle_Auswertung[[#This Row],[Autor(in)]]),"") ->  | AG15: =IF(Tabelle_Auswertung[[#This Row],[Platz]]=8,CONCATENATE(Tabelle_Auswertung[[#This Row],[Bildname]]," von ",Tabelle_Auswertung[[#This Row],[Autor(in)]]),"") ->  | AH15: =IF(Tabelle_Auswertung[[#This Row],[Platz]]=9,CONCATENATE(Tabelle_Auswertung[[#This Row],[Bildname]]," von ",Tabelle_Auswertung[[#This Row],[Autor(in)]]),"") ->  | AI15: =IF(Tabelle_Auswertung[[#This Row],[Platz]]=10,CONCATENATE(Tabelle_Auswertung[[#This Row],[Bildname]]," von ",Tabelle_Auswertung[[#This Row],[Autor(in)]]),"") -> Seifenblase.jpg von Nadja Cassim
A16: Stefanie.jpg | B16: 7 | C16: 8 | D16: 6 | E16: 7 | V16: =IF(Tabelle_Auswertung[[#This Row],[Bildname]]<>"",SUM(Tabelle_Auswertung[[#This Row],[Juror 1]:[Juror 20]])," - ") -> 28 | W16: =IF(Tabelle_Auswertung[[#This Row],[Bildname]]<>"",IF(Tabelle_Auswertung[[#This Row],[Punkte]]>0,AVERAGE(Tabelle_Auswertung[[#This Row],[Juror 1]:[Juror 20]])," - ")," - ") -> 7.00 | X16: =IF(Tabelle_Auswertung[[#This Row],[Bildname]]<>"",IF(Tabelle_Auswertung[[#This Row],[Punkte]]>0,RANK(Tabelle_Auswertung[[#This Row],[Punkte]],[Punkte],0)," - ")," - ") -> 10 | Y16: Gerhard Rieß | Z16: =IF(Tabelle_Auswertung[[#This Row],[Platz]]=1,CONCATENATE(Tabelle_Auswertung[[#This Row],[Bildname]]," von ",Tabelle_Auswertung[[#This Row],[Autor(in)]]),"") ->  | AA16: =IF(Tabelle_Auswertung[[#This Row],[Platz]]=2,CONCATENATE(Tabelle_Auswertung[[#This Row],[Bildname]]," von ",Tabelle_Auswertung[[#This Row],[Autor(in)]]),"") ->  | AB16: =IF(Tabelle_Auswertung[[#This Row],[Platz]]=3,CONCATENATE(Tabelle_Auswertung[[#This Row],[Bildname]]," von ",Tabelle_Auswertung[[#This Row],[Autor(in)]]),"") ->  | AC16: =IF(Tabelle_Auswertung[[#This Row],[Platz]]=4,CONCATENATE(Tabelle_Auswertung[[#This Row],[Bildname]]," von ",Tabelle_Auswertung[[#This Row],[Autor(in)]]),"") ->  | AD16: =IF(Tabelle_Auswertung[[#This Row],[Platz]]=5,CONCATENATE(Tabelle_Auswertung[[#This Row],[Bildname]]," von ",Tabelle_Auswertung[[#This Row],[Autor(in)]]),"") ->  | AE16: =IF(Tabelle_Auswertung[[#This Row],[Platz]]=6,CONCATENATE(Tabelle_Auswertung[[#This Row],[Bildname]]," von ",Tabelle_Auswertung[[#This Row],[Autor(in)]]),"") ->  | AF16: =IF(Tabelle_Auswertung[[#This Row],[Platz]]=7,CONCATENATE(Tabelle_Auswertung[[#This Row],[Bildname]]," von ",Tabelle_Auswertung[[#This Row],[Autor(in)]]),"") ->  | AG16: =IF(Tabelle_Auswertung[[#This Row],[Platz]]=8,CONCATENATE(Tabelle_Auswertung[[#This Row],[Bildname]]," von ",Tabelle_Auswertung[[#This Row],[Autor(in)]]),"") ->  | AH16: =IF(Tabelle_Auswertung[[#This Row],[Platz]]=9,CONCATENATE(Tabelle_Auswertung[[#This Row],[Bildname]]," von ",Tabelle_Auswertung[[#This Row],[Autor(in)]]),"") ->  | AI16: =IF(Tabelle_Auswertung[[#This Row],[Platz]]=10,CONCATENATE(Tabelle_Auswertung[[#This Row],[Bildname]]," von ",Tabelle_Auswertung[[#This Row],[Autor(in)]]),"") -> Stefanie.jpg von Gerhard Rieß
A17: Dancing House.jpg | B17: 7 | C17: 7 | D17: 6 | E17: 7 | V17: =IF(Tabelle_Auswertung[[#This Row],[Bildname]]<>"",SUM(Tabelle_Auswertung[[#This Row],[Juror 1]:[Juror 20]])," - ") -> 27 | W17: =IF(Tabelle_Auswertung[[#This Row],[Bildname]]<>"",IF(Tabelle_Auswertung[[#This Row],[Punkte]]>0,AVERAGE(Tabelle_Auswertung[[#This Row],[Juror 1]:[Juror 20]])," - ")," - ") -> 6.75 | X17: =IF(Tabelle_Auswertung[[#This Row],[Bildname]]<>"",IF(Tabelle_Auswertung[[#This Row],[Punkte]]>0,RANK(Tabelle_Auswertung[[#This Row],[Punkte]],[Punkte],0)," - ")," - ") -> 13 | Y17: Andreas Toltz | Z17: =IF(Tabelle_Auswertung[[#This Row],[Platz]]=1,CONCATENATE(Tabelle_Auswertung[[#This Row],[Bildname]]," von ",Tabelle_Auswertung[[#This Row],[Autor(in)]]),"") ->  | AA17: =IF(Tabelle_Auswertung[[#This Row],[Platz]]=2,CONCATENATE(Tabelle_Auswertung[[#This Row],[Bildname]]," von ",Tabelle_Auswertung[[#This Row],[Autor(in)]]),"") ->  | AB17: =IF(Tabelle_Auswertung[[#This Row],[Platz]]=3,CONCATENATE(Tabelle_Auswertung[[#This Row],[Bildname]]," von ",Tabelle_Auswertung[[#This Row],[Autor(in)]]),"") ->  | AC17: =IF(Tabelle_Auswertung[[#This Row],[Platz]]=4,CONCATENATE(Tabelle_Auswertung[[#This Row],[Bildname]]," von ",Tabelle_Auswertung[[#This Row],[Autor(in)]]),"") ->  | AD17: =IF(Tabelle_Auswertung[[#This Row],[Platz]]=5,CONCATENATE(Tabelle_Auswertung[[#This Row],[Bildname]]," von ",Tabelle_Auswertung[[#This Row],[Autor(in)]]),"") ->  | AE17: =IF(Tabelle_Auswertung[[#This Row],[Platz]]=6,CONCATENATE(Tabelle_Auswertung[[#This Row],[Bildname]]," von ",Tabelle_Auswertung[[#This Row],[Autor(in)]]),"") ->  | AF17: =IF(Tabelle_Auswertung[[#This Row],[Platz]]=7,CONCATENATE(Tabelle_Auswertung[[#This Row],[Bildname]]," von ",Tabelle_Auswertung[[#This Row],[Autor(in)]]),"") ->  | AG17: =IF(Tabelle_Auswertung[[#This Row],[Platz]]=8,CONCATENATE(Tabelle_Auswertung[[#This Row],[Bildname]]," von ",Tabelle_Auswertung[[#This Row],[Autor(in)]]),"") ->  | AH17: =IF(Tabelle_Auswertung[[#This Row],[Platz]]=9,CONCATENATE(Tabelle_Auswertung[[#This Row],[Bildname]]," von ",Tabelle_Auswertung[[#This Row],[Autor(in)]]),"") ->  | AI17: =IF(Tabelle_Auswertung[[#This Row],[Platz]]=10,CONCATENATE(Tabelle_Auswertung[[#This Row],[Bildname]]," von ",Tabelle_Auswertung[[#This Row],[Autor(in)]]),"") -> 
A18: streetpainting.jpg | B18: 8 | C18: 7 | D18: 6 | E18: 6 | V18: =IF(Tabelle_Auswertung[[#This Row],[Bildname]]<>"",SUM(Tabelle_Auswertung[[#This Row],[Juror 1]:[Juror 20]])," - ") -> 27 | W18: =IF(Tabelle_Auswertung[[#This Row],[Bildname]]<>"",IF(Tabelle_Auswertung[[#This Row],[Punkte]]>0,AVERAGE(Tabelle_Auswertung[[#This Row],[Juror 1]:[Juror 20]])," - ")," - ") -> 6.75 | X18: =IF(Tabelle_Auswertung[[#This Row],[Bildname]]<>"",IF(Tabelle_Auswertung[[#This Row],[Punkte]]>0,RANK(Tabelle_Auswertung[[#This Row],[Punkte]],[Punkte],0)," - ")," - ") -> 13 | Y18: Gerhard Rieß | Z18: =IF(Tabelle_Auswertung[[#This Row],[Platz]]=1,CONCATENATE(Tabelle_Auswertung[[#This Row],[Bildname]]," von ",Tabelle_Auswertung[[#This Row],[Autor(in)]]),"") ->  | AA18: =IF(Tabelle_Auswertung[[#This Row],[Platz]]=2,CONCATENATE(Tabelle_Auswertung[[#This Row],[Bildname]]," von ",Tabelle_Auswertung[[#This Row],[Autor(in)]]),"") ->  | AB18: =IF(Tabelle_Auswertung[[#This Row],[Platz]]=3,CONCATENATE(Tabelle_Auswertung[[#This Row],[Bildname]]," von ",Tabelle_Auswertung[[#This Row],[Autor(in)]]),"") ->  | AC18: =IF(Tabelle_Auswertung[[#This Row],[Platz]]=4,CONCATENATE(Tabelle_Auswertung[[#This Row],[Bildname]]," von ",Tabelle_Auswertung[[#This Row],[Autor(in)]]),"") ->  | AD18: =IF(Tabelle_Auswertung[[#This Row],[Platz]]=5,CONCATENATE(Tabelle_Auswertung[[#This Row],[Bildname]]," von ",Tabelle_Auswertung[[#This Row],[Autor(in)]]),"") ->  | AE18: =IF(Tabelle_Auswertung[[#This Row],[Platz]]=6,CONCATENATE(Tabelle_Auswertung[[#This Row],[Bildname]]," von ",Tabelle_Auswertung[[#This Row],[Autor(in)]]),"") ->  | AF18: =IF(Tabelle_Auswertung[[#This Row],[Platz]]=7,CONCATENATE(Tabelle_Auswertung[[#This Row],[Bildname]]," von ",Tabelle_Auswertung[[#This Row],[Autor(in)]]),"") ->  | AG18: =IF(Tabelle_Auswertung[[#This Row],[Platz]]=8,CONCATENATE(Tabelle_Auswertung[[#This Row],[Bildname]]," von ",Tabelle_Auswertung[[#This Row],[Autor(in)]]),"") ->  | AH18: =IF(Tabelle_Auswertung[[#This Row],[Platz]]=9,CONCATENATE(Tabelle_Auswertung[[#This Row],[Bildname]]," von ",Tabelle_Auswertung[[#This Row],[Autor(in)]]),"") ->  | AI18: =IF(Tabelle_Auswertung[[#This Row],[Platz]]=10,CONCATENATE(Tabelle_Auswertung[[#This Row],[Bildname]]," von ",Tabelle_Auswertung[[#This Row],[Autor(in)]]),"") -> 
A19: Birdie's Hideaway.jpg | B19: 6 | C19: 9 | D19: 5 | E19: 6 | V19: =IF(Tabelle_Auswertung[[#This Row],[Bildname]]<>"",SUM(Tabelle_Auswertung[[#This Row],[Juror 1]:[Juror 20]])," - ") -> 26 | W19: =IF(Tabelle_Auswertung[[#This Row],[Bildname]]<>"",IF(Tabelle_Auswertung[[#This Row],[Punkte]]>0,AVERAGE(Tabelle_Auswertung[[#This Row],[Juror 1]:[Juror 20]])," - ")," - ") -> 6.50 | X19: =IF(Tabelle_Auswertung[[#This Row],[Bildname]]<>"",IF(Tabelle_Auswertung[[#This Row],[Punkte]]>0,RANK(Tabelle_Auswertung[[#This Row],[Punkte]],[Punkte],0)," - ")," - ") -> 15 | Y19: Jan Grünler | Z19: =IF(Tabelle_Auswertung[[#This Row],[Platz]]=1,CONCATENATE(Tabelle_Auswertung[[#This Row],[Bildname]]," von ",Tabelle_Auswertung[[#This Row],[Autor(in)]]),"") ->  | AA19: =IF(Tabelle_Auswertung[[#This Row],[Platz]]=2,CONCATENATE(Tabelle_Auswertung[[#This Row],[Bildname]]," von ",Tabelle_Auswertung[[#This Row],[Autor(in)]]),"") ->  | AB19: =IF(Tabelle_Auswertung[[#This Row],[Platz]]=3,CONCATENATE(Tabelle_Auswertung[[#This Row],[Bildname]]," von ",Tabelle_Auswertung[[#This Row],[Autor(in)]]),"") ->  | AC19: =IF(Tabelle_Auswertung[[#This Row],[Platz]]=4,CONCATENATE(Tabelle_Auswertung[[#This Row],[Bildname]]," von ",Tabelle_Auswertung[[#This Row],[Autor(in)]]),"") ->  | AD19: =IF(Tabelle_Auswertung[[#This Row],[Platz]]=5,CONCATENATE(Tabelle_Auswertung[[#This Row],[Bildname]]," von ",Tabelle_Auswertung[[#This Row],[Autor(in)]]),"") ->  | AE19: =IF(Tabelle_Auswertung[[#This Row],[Platz]]=6,CONCATENATE(Tabelle_Auswertung[[#This Row],[Bildname]]," von ",Tabelle_Auswertung[[#This Row],[Autor(in)]]),"") ->  | AF19: =IF(Tabelle_Auswertung[[#This Row],[Platz]]=7,CONCATENATE(Tabelle_Auswertung[[#This Row],[Bildname]]," von ",Tabelle_Auswertung[[#This Row],[Autor(in)]]),"") ->  | AG19: =IF(Tabelle_Auswertung[[#This Row],[Platz]]=8,CONCATENATE(Tabelle_Auswertung[[#This Row],[Bildname]]," von ",Tabelle_Auswertung[[#This Row],[Autor(in)]]),"") ->  | AH19: =IF(Tabelle_Auswertung[[#This Row],[Platz]]=9,CONCATENATE(Tabelle_Auswertung[[#This Row],[Bildname]]," von ",Tabelle_Auswertung[[#This Row],[Autor(in)]]),"") ->  | AI19: =IF(Tabelle_Auswertung[[#This Row],[Platz]]=10,CONCATENATE(Tabelle_Auswertung[[#This Row],[Bildname]]," von ",Tabelle_Auswertung[[#This Row],[Autor(in)]]),"") -> 
A20: Ina in love.jpg | B20: 7 | C20: 7 | D20: 6 | E20: 6 | V20: =IF(Tabelle_Auswertung[[#This Row],[Bildname]]<>"",SUM(Tabelle_Auswertung[[#This Row],[Juror 1]:[Juror 20]])," - ") -> 26 | W20: =IF(Tabelle_Auswertung[[#This Row],[Bildname]]<>"",IF(Tabelle_Auswertung[[#This Row],[Punkte]]>0,AVERAGE(Tabelle_Auswertung[[#This Row],[Juror 1]:[Juror 20]])," - ")," - ") -> 6.50 | X20: =IF(Tabelle_Auswertung[[#This Row],[Bildname]]<>"",IF(Tabelle_Auswertung[[#This Row],[Punkte]]>0,RANK(Tabelle_Auswertung[[#This Row],[Punkte]],[Punkte],0)," - ")," - ") -> 15 | Y20: Gerhard Rieß | Z20: =IF(Tabelle_Auswertung[[#This Row],[Platz]]=1,CONCATENATE(Tabelle_Auswertung[[#This Row],[Bildname]]," von ",Tabelle_Auswertung[[#This Row],[Autor(in)]]),"") ->  | AA20: =IF(Tabelle_Auswertung[[#This Row],[Platz]]=2,CONCATENATE(Tabelle_Auswertung[[#This Row],[Bildname]]," von ",Tabelle_Auswertung[[#This Row],[Autor(in)]]),"") ->  | AB20: =IF(Tabelle_Auswertung[[#This Row],[Platz]]=3,CONCATENATE(Tabelle_Auswertung[[#This Row],[Bildname]]," von ",Tabelle_Auswertung[[#This Row],[Autor(in)]]),"") ->  | AC20: =IF(Tabelle_Auswertung[[#This Row],[Platz]]=4,CONCATENATE(Tabelle_Auswertung[[#This Row],[Bildname]]," von ",Tabelle_Auswertung[[#This Row],[Autor(in)]]),"") ->  | AD20: =IF(Tabelle_Auswertung[[#This Row],[Platz]]=5,CONCATENATE(Tabelle_Auswertung[[#This Row],[Bildname]]," von ",Tabelle_Auswertung[[#This Row],[Autor(in)]]),"") ->  | AE20: =IF(Tabelle_Auswertung[[#This Row],[Platz]]=6,CONCATENATE(Tabelle_Auswertung[[#This Row],[Bildname]]," von ",Tabelle_Auswertung[[#This Row],[Autor(in)]]),"") ->  | AF20: =IF(Tabelle_Auswertung[[#This Row],[Platz]]=7,CONCATENATE(Tabelle_Auswertung[[#This Row],[Bildname]]," von ",Tabelle_Auswertung[[#This Row],[Autor(in)]]),"") ->  | AG20: =IF(Tabelle_Auswertung[[#This Row],[Platz]]=8,CONCATENATE(Tabelle_Auswertung[[#This Row],[Bildname]]," von ",Tabelle_Auswertung[[#This Row],[Autor(in)]]),"") ->  | AH20: =IF(Tabelle_Auswertung[[#This Row],[Platz]]=9,CONCATENATE(Tabelle_Auswertung[[#This Row],[Bildname]]," von ",Tabelle_Auswertung[[#This Row],[Autor(in)]]),"") ->  | AI20: =IF(Tabelle_Auswertung[[#This Row],[Platz]]=10,CONCATENATE(Tabelle_Auswertung[[#This Row],[Bildname]]," von ",Tabelle_Auswertung[[#This Row],[Autor(in)]]),"") -> 
A21: unschuldig.JPG | B21: 6 | C21: 8 | D21: 5 | E21: 7 | V21: =IF(Tabelle_Auswertung[[#This Row],[Bildname]]<>"",SUM(Tabelle_Auswertung[[#This Row],[Juror 1]:[Juror 20]])," - ") -> 26 | W21: =IF(Tabelle_Auswertung[[#This Row],[Bildname]]<>"",IF(Tabelle_Auswertung[[#This Row],[Punkte]]>0,AVERAGE(Tabelle_Auswertung[[#This Row],[Juror 1]:[Juror 20]])," - ")," - ") -> 6.50 | X21: =IF(Tabelle_Auswertung[[#This Row],[Bildname]]<>"",IF(Tabelle_Auswertung[[#This Row],[Punkte]]>0,RANK(Tabelle_Auswertung[[#This Row],[Punkte]],[Punkte],0)," - ")," - ") -> 15 | Y21: Susanne Deinhardt | Z21: =IF(Tabelle_Auswertung[[#This Row],[Platz]]=1,CONCATENATE(Tabelle_Auswertung[[#This Row],[Bildname]]," von ",Tabelle_Auswertung[[#This Row],[Autor(in)]]),"") ->  | AA21: =IF(Tabelle_Auswertung[[#This Row],[Platz]]=2,CONCATENATE(Tabelle_Auswertung[[#This Row],[Bildname]]," von ",Tabelle_Auswertung[[#This Row],[Autor(in)]]),"") ->  | AB21: =IF(Tabelle_Auswertung[[#This Row],[Platz]]=3,CONCATENATE(Tabelle_Auswertung[[#This Row],[Bildname]]," von ",Tabelle_Auswertung[[#This Row],[Autor(in)]]),"") ->  | AC21: =IF(Tabelle_Auswertung[[#This Row],[Platz]]=4,CONCATENATE(Tabelle_Auswertung[[#This Row],[Bildname]]," von ",Tabelle_Auswertung[[#This Row],[Autor(in)]]),"") ->  | AD21: =IF(Tabelle_Auswertung[[#This Row],[Platz]]=5,CONCATENATE(Tabelle_Auswertung[[#This Row],[Bildname]]," von ",Tabelle_Auswertung[[#This Row],[Autor(in)]]),"") ->  | AE21: =IF(Tabelle_Auswertung[[#This Row],[Platz]]=6,CONCATENATE(Tabelle_Auswertung[[#This Row],[Bildname]]," von ",Tabelle_Auswertung[[#This Row],[Autor(in)]]),"") ->  | AF21: =IF(Tabelle_Auswertung[[#This Row],[Platz]]=7,CONCATENATE(Tabelle_Auswertung[[#This Row],[Bildname]]," von ",Tabelle_Auswertung[[#This Row],[Autor(in)]]),"") ->  | AG21: =IF(Tabelle_Auswertung[[#This Row],[Platz]]=8,CONCATENATE(Tabelle_Auswertung[[#This Row],[Bildname]]," von ",Tabelle_Auswertung[[#This Row],[Autor(in)]]),"") ->  | AH21: =IF(Tabelle_Auswertung[[#This Row],[Platz]]=9,CONCATENATE(Tabelle_Auswertung[[#This Row],[Bildname]]," von ",Tabelle_Auswertung[[#This Row],[Autor(in)]]),"") ->  | AI21: =IF(Tabelle_Auswertung[[#This Row],[Platz]]=10,CONCATENATE(Tabelle_Auswertung[[#This Row],[Bildname]]," von ",Tabelle_Auswertung[[#This Row],[Autor(in)]]),"") -> 
A22: why.jpg | B22: 6 | C22: 6 | D22: 8 | E22: 6 | V22: =IF(Tabelle_Auswertung[[#This Row],[Bildname]]<>"",SUM(Tabelle_Auswertung[[#This Row],[Juror 1]:[Juror 20]])," - ") -> 26 | W22: =IF(Tabelle_Auswertung[[#This Row],[Bildname]]<>"",IF(Tabelle_Auswertung[[#This Row],[Punkte]]>0,AVERAGE(Tabelle_Auswertung[[#This Row],[Juror 1]:[Juror 20]])," - ")," - ") -> 6.5 | X22: =IF(Tabelle_Auswertung[[#This Row],[Bildname]]<>"",IF(Tabelle_Auswertung[[#This Row],[Punkte]]>0,RANK(Tabelle_Auswertung[[#This Row],[Punkte]],[Punkte],0)," - ")," - ") -> 15 | Y22: Andreas Toltz | Z22: =IF(Tabelle_Auswertung[[#This Row],[Platz]]=1,CONCATENATE(Tabelle_Auswertung[[#This Row],[Bildname]]," von ",Tabelle_Auswertung[[#This Row],[Autor(in)]]),"") ->  | AA22: =IF(Tabelle_Auswertung[[#This Row],[Platz]]=2,CONCATENATE(Tabelle_Auswertung[[#This Row],[Bildname]]," von ",Tabelle_Auswertung[[#This Row],[Autor(in)]]),"") ->  | AB22: =IF(Tabelle_Auswertung[[#This Row],[Platz]]=3,CONCATENATE(Tabelle_Auswertung[[#This Row],[Bildname]]," von ",Tabelle_Auswertung[[#This Row],[Autor(in)]]),"") ->  | AC22: =IF(Tabelle_Auswertung[[#This Row],[Platz]]=4,CONCATENATE(Tabelle_Auswertung[[#This Row],[Bildname]]," von ",Tabelle_Auswertung[[#This Row],[Autor(in)]]),"") ->  | AD22: =IF(Tabelle_Auswertung[[#This Row],[Platz]]=5,CONCATENATE(Tabelle_Auswertung[[#This Row],[Bildname]]," von ",Tabelle_Auswertung[[#This Row],[Autor(in)]]),"") ->  | AE22: =IF(Tabelle_Auswertung[[#This Row],[Platz]]=6,CONCATENATE(Tabelle_Auswertung[[#This Row],[Bildname]]," von ",Tabelle_Auswertung[[#This Row],[Autor(in)]]),"") ->  | AF22: =IF(Tabelle_Auswertung[[#This Row],[Platz]]=7,CONCATENATE(Tabelle_Auswertung[[#This Row],[Bildname]]," von ",Tabelle_Auswertung[[#This Row],[Autor(in)]]),"") ->  | AG22: =IF(Tabelle_Auswertung[[#This Row],[Platz]]=8,CONCATENATE(Tabelle_Auswertung[[#This Row],[Bildname]]," von ",Tabelle_Auswertung[[#This Row],[Autor(in)]]),"") ->  | AH22: =IF(Tabelle_Auswertung[[#This Row],[Platz]]=9,CONCATENATE(Tabelle_Auswertung[[#This Row],[Bildname]]," von ",Tabelle_Auswertung[[#This Row],[Autor(in)]]),"") ->  | AI22: =IF(Tabelle_Auswertung[[#This Row],[Platz]]=10,CONCATENATE(Tabelle_Auswertung[[#This Row],[Bildname]]," von ",Tabelle_Auswertung[[#This Row],[Autor(in)]]),"") -> 
A23: Doll Mummy.jpg | B23: 7 | C23: 7 | D23: 4 | E23: 7 | V23: =IF(Tabelle_Auswertung[[#This Row],[Bildname]]<>"",SUM(Tabelle_Auswertung[[#This Row],[Juror 1]:[Juror 20]])," - ") -> 25 | W23: =IF(Tabelle_Auswertung[[#This Row],[Bildname]]<>"",IF(Tabelle_Auswertung[[#This Row],[Punkte]]>0,AVERAGE(Tabelle_Auswertung[[#This Row],[Juror 1]:[Juror 20]])," - ")," - ") -> 6.25 | X23: =IF(Tabelle_Auswertung[[#This Row],[Bildname]]<>"",IF(Tabelle_Auswertung[[#This Row],[Punkte]]>0,RANK(Tabelle_Auswertung[[#This Row],[Punkte]],[Punkte],0)," - ")," - ") -> 19 | Y23: Jan Grünler | Z23: =IF(Tabelle_Auswertung[[#This Row],[Platz]]=1,CONCATENATE(Tabelle_Auswertung[[#This Row],[Bildname]]," von ",Tabelle_Auswertung[[#This Row],[Autor(in)]]),"") ->  | AA23: =IF(Tabelle_Auswertung[[#This Row],[Platz]]=2,CONCATENATE(Tabelle_Auswertung[[#This Row],[Bildname]]," von ",Tabelle_Auswertung[[#This Row],[Autor(in)]]),"") ->  | AB23: =IF(Tabelle_Auswertung[[#This Row],[Platz]]=3,CONCATENATE(Tabelle_Auswertung[[#This Row],[Bildname]]," von ",Tabelle_Auswertung[[#This Row],[Autor(in)]]),"") ->  | AC23: =IF(Tabelle_Auswertung[[#This Row],[Platz]]=4,CONCATENATE(Tabelle_Auswertung[[#This Row],[Bildname]]," von ",Tabelle_Auswertung[[#This Row],[Autor(in)]]),"") ->  | AD23: =IF(Tabelle_Auswertung[[#This Row],[Platz]]=5,CONCATENATE(Tabelle_Auswertung[[#This Row],[Bildname]]," von ",Tabelle_Auswertung[[#This Row],[Autor(in)]]),"") ->  | AE23: =IF(Tabelle_Auswertung[[#This Row],[Platz]]=6,CONCATENATE(Tabelle_Auswertung[[#This Row],[Bildname]]," von ",Tabelle_Auswertung[[#This Row],[Autor(in)]]),"") ->  | AF23: =IF(Tabelle_Auswertung[[#This Row],[Platz]]=7,CONCATENATE(Tabelle_Auswertung[[#This Row],[Bildname]]," von ",Tabelle_Auswertung[[#This Row],[Autor(in)]]),"") ->  | AG23: =IF(Tabelle_Auswertung[[#This Row],[Platz]]=8,CONCATENATE(Tabelle_Auswertung[[#This Row],[Bildname]]," von ",Tabelle_Auswertung[[#This Row],[Autor(in)]]),"") ->  | AH23: =IF(Tabelle_Auswertung[[#This Row],[Platz]]=9,CONCATENATE(Tabelle_Auswertung[[#This Row],[Bildname]]," von ",Tabelle_Auswertung[[#This Row],[Autor(in)]]),"") ->  | AI23: =IF(Tabelle_Auswertung[[#This Row],[Platz]]=10,CONCATENATE(Tabelle_Auswertung[[#This Row],[Bildname]]," von ",Tabelle_Auswertung[[#This Row],[Autor(in)]]),"") -> 
A24: Geometrie.JPG | B24: 6 | C24: 8 | D24: 5 | E24: 6 | V24: =IF(Tabelle_Auswertung[[#This Row],[Bildname]]<>"",SUM(Tabelle_Auswertung[[#This Row],[Juror 1]:[Juror 20]])," - ") -> 25 | W24: =IF(Tabelle_Auswertung[[#This Row],[Bildname]]<>"",IF(Tabelle_Auswertung[[#This Row],[Punkte]]>0,AVERAGE(Tabelle_Auswertung[[#This Row],[Juror 1]:[Juror 20]])," - ")," - ") -> 6.25 | X24: =IF(Tabelle_Auswertung[[#This Row],[Bildname]]<>"",IF(Tabelle_Auswertung[[#This Row],[Punkte]]>0,RANK(Tabelle_Auswertung[[#This Row],[Punkte]],[Punkte],0)," - ")," - ") -> 19 | Y24: Albrecht Flierl | Z24: =IF(Tabelle_Auswertung[[#This Row],[Platz]]=1,CONCATENATE(Tabelle_Auswertung[[#This Row],[Bildname]]," von ",Tabelle_Auswertung[[#This Row],[Autor(in)]]),"") ->  | AA24: =IF(Tabelle_Auswertung[[#This Row],[Platz]]=2,CONCATENATE(Tabelle_Auswertung[[#This Row],[Bildname]]," von ",Tabelle_Auswertung[[#This Row],[Autor(in)]]),"") ->  | AB24: =IF(Tabelle_Auswertung[[#This Row],[Platz]]=3,CONCATENATE(Tabelle_Auswertung[[#This Row],[Bildname]]," von ",Tabelle_Auswertung[[#This Row],[Autor(in)]]),"") ->  | AC24: =IF(Tabelle_Auswertung[[#This Row],[Platz]]=4,CONCATENATE(Tabelle_Auswertung[[#This Row],[Bildname]]," von ",Tabelle_Auswertung[[#This Row],[Autor(in)]]),"") ->  | AD24: =IF(Tabelle_Auswertung[[#This Row],[Platz]]=5,CONCATENATE(Tabelle_Auswertung[[#This Row],[Bildname]]," von ",Tabelle_Auswertung[[#This Row],[Autor(in)]]),"") ->  | AE24: =IF(Tabelle_Auswertung[[#This Row],[Platz]]=6,CONCATENATE(Tabelle_Auswertung[[#This Row],[Bildname]]," von ",Tabelle_Auswertung[[#This Row],[Autor(in)]]),"") ->  | AF24: =IF(Tabelle_Auswertung[[#This Row],[Platz]]=7,CONCATENATE(Tabelle_Auswertung[[#This Row],[Bildname]]," von ",Tabelle_Auswertung[[#This Row],[Autor(in)]]),"") ->  | AG24: =IF(Tabelle_Auswertung[[#This Row],[Platz]]=8,CONCATENATE(Tabelle_Auswertung[[#This Row],[Bildname]]," von ",Tabelle_Auswertung[[#This Row],[Autor(in)]]),"") ->  | AH24: =IF(Tabelle_Auswertung[[#This Row],[Platz]]=9,CONCATENATE(Tabelle_Auswertung[[#This Row],[Bildname]]," von ",Tabelle_Auswertung[[#This Row],[Autor(in)]]),"") ->  | AI24: =IF(Tabelle_Auswertung[[#This Row],[Platz]]=10,CONCATENATE(Tabelle_Auswertung[[#This Row],[Bildname]]," von ",Tabelle_Auswertung[[#This Row],[Autor(in)]]),"") -> 
A25: Glaskunst.JPG | B25: 6 | C25: 7 | D25: 6 | E25: 6 | V25: =IF(Tabelle_Auswertung[[#This Row],[Bildname]]<>"",SUM(Tabelle_Auswertung[[#This Row],[Juror 1]:[Juror 20]])," - ") -> 25 | W25: =IF(Tabelle_Auswertung[[#This Row],[Bildname]]<>"",IF(Tabelle_Auswertung[[#This Row],[Punkte]]>0,AVERAGE(Tabelle_Auswertung[[#This Row],[Juror 1]:[Juror 20]])," - ")," - ") -> 6.25 | X25: =IF(Tabelle_Auswertung[[#This Row],[Bildname]]<>"",IF(Tabelle_Auswertung[[#This Row],[Punkte]]>0,RANK(Tabelle_Auswertung[[#This Row],[Punkte]],[Punkte],0)," - ")," - ") -> 19 | Y25: Claudia Dommel | Z25: =IF(Tabelle_Auswertung[[#This Row],[Platz]]=1,CONCATENATE(Tabelle_Auswertung[[#This Row],[Bildname]]," von ",Tabelle_Auswertung[[#This Row],[Autor(in)]]),"") ->  | AA25: =IF(Tabelle_Auswertung[[#This Row],[Platz]]=2,CONCATENATE(Tabelle_Auswertung[[#This Row],[Bildname]]," von ",Tabelle_Auswertung[[#This Row],[Autor(in)]]),"") ->  | AB25: =IF(Tabelle_Auswertung[[#This Row],[Platz]]=3,CONCATENATE(Tabelle_Auswertung[[#This Row],[Bildname]]," von ",Tabelle_Auswertung[[#This Row],[Autor(in)]]),"") ->  | AC25: =IF(Tabelle_Auswertung[[#This Row],[Platz]]=4,CONCATENATE(Tabelle_Auswertung[[#This Row],[Bildname]]," von ",Tabelle_Auswertung[[#This Row],[Autor(in)]]),"") ->  | AD25: =IF(Tabelle_Auswertung[[#This Row],[Platz]]=5,CONCATENATE(Tabelle_Auswertung[[#This Row],[Bildname]]," von ",Tabelle_Auswertung[[#This Row],[Autor(in)]]),"") ->  | AE25: =IF(Tabelle_Auswertung[[#This Row],[Platz]]=6,CONCATENATE(Tabelle_Auswertung[[#This Row],[Bildname]]," von ",Tabelle_Auswertung[[#This Row],[Autor(in)]]),"") ->  | AF25: =IF(Tabelle_Auswertung[[#This Row],[Platz]]=7,CONCATENATE(Tabelle_Auswertung[[#This Row],[Bildname]]," von ",Tabelle_Auswertung[[#This Row],[Autor(in)]]),"") ->  | AG25: =IF(Tabelle_Auswertung[[#This Row],[Platz]]=8,CONCATENATE(Tabelle_Auswertung[[#This Row],[Bildname]]," von ",Tabelle_Auswertung[[#This Row],[Autor(in)]]),"") ->  | AH25: =IF(Tabelle_Auswertung[[#This Row],[Platz]]=9,CONCATENATE(Tabelle_Auswertung[[#This Row],[Bildname]]," von ",Tabelle_Auswertung[[#This Row],[Autor(in)]]),"") ->  | AI25: =IF(Tabelle_Auswertung[[#This Row],[Platz]]=10,CONCATENATE(Tabelle_Auswertung[[#This Row],[Bildname]]," von ",Tabelle_Auswertung[[#This Row],[Autor(in)]]),"") -> 
A26: Liebherr.jpg | B26: 6 | C26: 6 | D26: 7 | E26: 6 | V26: =IF(Tabelle_Auswertung[[#This Row],[Bildname]]<>"",SUM(Tabelle_Auswertung[[#This Row],[Juror 1]:[Juror 20]])," - ") -> 25 | W26: =IF(Tabelle_Auswertung[[#This Row],[Bildname]]<>"",IF(Tabelle_Auswertung[[#This Row],[Punkte]]>0,AVERAGE(Tabelle_Auswertung[[#This Row],[Juror 1]:[Juror 20]])," - ")," - ") -> 6.25 | X26: =IF(Tabelle_Auswertung[[#This Row],[Bildname]]<>"",IF(Tabelle_Auswertung[[#This Row],[Punkte]]>0,RANK(Tabelle_Auswertung[[#This Row],[Punkte]],[Punkte],0)," - ")," - ") -> 19 | Y26: Chris Finsterer | Z26: =IF(Tabelle_Auswertung[[#This Row],[Platz]]=1,CONCATENATE(Tabelle_Auswertung[[#This Row],[Bildname]]," von ",Tabelle_Auswertung[[#This Row],[Autor(in)]]),"") ->  | AA26: =IF(Tabelle_Auswertung[[#This Row],[Platz]]=2,CONCATENATE(Tabelle_Auswertung[[#This Row],[Bildname]]," von ",Tabelle_Auswertung[[#This Row],[Autor(in)]]),"") ->  | AB26: =IF(Tabelle_Auswertung[[#This Row],[Platz]]=3,CONCATENATE(Tabelle_Auswertung[[#This Row],[Bildname]]," von ",Tabelle_Auswertung[[#This Row],[Autor(in)]]),"") ->  | AC26: =IF(Tabelle_Auswertung[[#This Row],[Platz]]=4,CONCATENATE(Tabelle_Auswertung[[#This Row],[Bildname]]," von ",Tabelle_Auswertung[[#This Row],[Autor(in)]]),"") ->  | AD26: =IF(Tabelle_Auswertung[[#This Row],[Platz]]=5,CONCATENATE(Tabelle_Auswertung[[#This Row],[Bildname]]," von ",Tabelle_Auswertung[[#This Row],[Autor(in)]]),"") ->  | AE26: =IF(Tabelle_Auswertung[[#This Row],[Platz]]=6,CONCATENATE(Tabelle_Auswertung[[#This Row],[Bildname]]," von ",Tabelle_Auswertung[[#This Row],[Autor(in)]]),"") ->  | AF26: =IF(Tabelle_Auswertung[[#This Row],[Platz]]=7,CONCATENATE(Tabelle_Auswertung[[#This Row],[Bildname]]," von ",Tabelle_Auswertung[[#This Row],[Autor(in)]]),"") ->  | AG26: =IF(Tabelle_Auswertung[[#This Row],[Platz]]=8,CONCATENATE(Tabelle_Auswertung[[#This Row],[Bildname]]," von ",Tabelle_Auswertung[[#This Row],[Autor(in)]]),"") ->  | AH26: =IF(Tabelle_Auswertung[[#This Row],[Platz]]=9,CONCATENATE(Tabelle_Auswertung[[#This Row],[Bildname]]," von ",Tabelle_Auswertung[[#This Row],[Autor(in)]]),"") ->  | AI26: =IF(Tabelle_Auswertung[[#This Row],[Platz]]=10,CONCATENATE(Tabelle_Auswertung[[#This Row],[Bildname]]," von ",Tabelle_Auswertung[[#This Row],[Autor(in)]]),"") -> 
A27: redhead.jpg | B27: 7 | C27: 7 | D27: 4 | E27: 7 | V27: =IF(Tabelle_Auswertung[[#This Row],[Bildname]]<>"",SUM(Tabelle_Auswertung[[#This Row],[Juror 1]:[Juror 20]])," - ") -> 25 | W27: =IF(Tabelle_Auswertung[[#This Row],[Bildname]]<>"",IF(Tabelle_Auswertung[[#This Row],[Punkte]]>0,AVERAGE(Tabelle_Auswertung[[#This Row],[Juror 1]:[Juror 20]])," - ")," - ") -> 6.25 | X27: =IF(Tabelle_Auswertung[[#This Row],[Bildname]]<>"",IF(Tabelle_Auswertung[[#This Row],[Punkte]]>0,RANK(Tabelle_Auswertung[[#This Row],[Punkte]],[Punkte],0)," - ")," - ") -> 19 | Y27: Gerhard Rieß | Z27: =IF(Tabelle_Auswertung[[#This Row],[Platz]]=1,CONCATENATE(Tabelle_Auswertung[[#This Row],[Bildname]]," von ",Tabelle_Auswertung[[#This Row],[Autor(in)]]),"") ->  | AA27: =IF(Tabelle_Auswertung[[#This Row],[Platz]]=2,CONCATENATE(Tabelle_Auswertung[[#This Row],[Bildname]]," von ",Tabelle_Auswertung[[#This Row],[Autor(in)]]),"") ->  | AB27: =IF(Tabelle_Auswertung[[#This Row],[Platz]]=3,CONCATENATE(Tabelle_Auswertung[[#This Row],[Bildname]]," von ",Tabelle_Auswertung[[#This Row],[Autor(in)]]),"") ->  | AC27: =IF(Tabelle_Auswertung[[#This Row],[Platz]]=4,CONCATENATE(Tabelle_Auswertung[[#This Row],[Bildname]]," von ",Tabelle_Auswertung[[#This Row],[Autor(in)]]),"") ->  | AD27: =IF(Tabelle_Auswertung[[#This Row],[Platz]]=5,CONCATENATE(Tabelle_Auswertung[[#This Row],[Bildname]]," von ",Tabelle_Auswertung[[#This Row],[Autor(in)]]),"") ->  | AE27: =IF(Tabelle_Auswertung[[#This Row],[Platz]]=6,CONCATENATE(Tabelle_Auswertung[[#This Row],[Bildname]]," von ",Tabelle_Auswertung[[#This Row],[Autor(in)]]),"") ->  | AF27: =IF(Tabelle_Auswertung[[#This Row],[Platz]]=7,CONCATENATE(Tabelle_Auswertung[[#This Row],[Bildname]]," von ",Tabelle_Auswertung[[#This Row],[Autor(in)]]),"") ->  | AG27: =IF(Tabelle_Auswertung[[#This Row],[Platz]]=8,CONCATENATE(Tabelle_Auswertung[[#This Row],[Bildname]]," von ",Tabelle_Auswertung[[#This Row],[Autor(in)]]),"") ->  | AH27: =IF(Tabelle_Auswertung[[#This Row],[Platz]]=9,CONCATENATE(Tabelle_Auswertung[[#This Row],[Bildname]]," von ",Tabelle_Auswertung[[#This Row],[Autor(in)]]),"") ->  | AI27: =IF(Tabelle_Auswertung[[#This Row],[Platz]]=10,CONCATENATE(Tabelle_Auswertung[[#This Row],[Bildname]]," von ",Tabelle_Auswertung[[#This Row],[Autor(in)]]),"") -> 
A28: Riesenrad.JPG | B28: 7 | C28: 6 | D28: 6 | E28: 6 | V28: =IF(Tabelle_Auswertung[[#This Row],[Bildname]]<>"",SUM(Tabelle_Auswertung[[#This Row],[Juror 1]:[Juror 20]])," - ") -> 25 | W28: =IF(Tabelle_Auswertung[[#This Row],[Bildname]]<>"",IF(Tabelle_Auswertung[[#This Row],[Punkte]]>0,AVERAGE(Tabelle_Auswertung[[#This Row],[Juror 1]:[Juror 20]])," - ")," - ") -> 6.25 | X28: =IF(Tabelle_Auswertung[[#This Row],[Bildname]]<>"",IF(Tabelle_Auswertung[[#This Row],[Punkte]]>0,RANK(Tabelle_Auswertung[[#This Row],[Punkte]],[Punkte],0)," - ")," - ") -> 19 | Y28: Claudia Dommel | Z28: =IF(Tabelle_Auswertung[[#This Row],[Platz]]=1,CONCATENATE(Tabelle_Auswertung[[#This Row],[Bildname]]," von ",Tabelle_Auswertung[[#This Row],[Autor(in)]]),"") ->  | AA28: =IF(Tabelle_Auswertung[[#This Row],[Platz]]=2,CONCATENATE(Tabelle_Auswertung[[#This Row],[Bildname]]," von ",Tabelle_Auswertung[[#This Row],[Autor(in)]]),"") ->  | AB28: =IF(Tabelle_Auswertung[[#This Row],[Platz]]=3,CONCATENATE(Tabelle_Auswertung[[#This Row],[Bildname]]," von ",Tabelle_Auswertung[[#This Row],[Autor(in)]]),"") ->  | AC28: =IF(Tabelle_Auswertung[[#This Row],[Platz]]=4,CONCATENATE(Tabelle_Auswertung[[#This Row],[Bildname]]," von ",Tabelle_Auswertung[[#This Row],[Autor(in)]]),"") ->  | AD28: =IF(Tabelle_Auswertung[[#This Row],[Platz]]=5,CONCATENATE(Tabelle_Auswertung[[#This Row],[Bildname]]," von ",Tabelle_Auswertung[[#This Row],[Autor(in)]]),"") ->  | AE28: =IF(Tabelle_Auswertung[[#This Row],[Platz]]=6,CONCATENATE(Tabelle_Auswertung[[#This Row],[Bildname]]," von ",Tabelle_Auswertung[[#This Row],[Autor(in)]]),"") ->  | AF28: =IF(Tabelle_Auswertung[[#This Row],[Platz]]=7,CONCATENATE(Tabelle_Auswertung[[#This Row],[Bildname]]," von ",Tabelle_Auswertung[[#This Row],[Autor(in)]]),"") ->  | AG28: =IF(Tabelle_Auswertung[[#This Row],[Platz]]=8,CONCATENATE(Tabelle_Auswertung[[#This Row],[Bildname]]," von ",Tabelle_Auswertung[[#This Row],[Autor(in)]]),"") ->  | AH28: =IF(Tabelle_Auswertung[[#This Row],[Platz]]=9,CONCATENATE(Tabelle_Auswertung[[#This Row],[Bildname]]," von ",Tabelle_Auswertung[[#This Row],[Autor(in)]]),"") ->  | AI28: =IF(Tabelle_Auswertung[[#This Row],[Platz]]=10,CONCATENATE(Tabelle_Auswertung[[#This Row],[Bildname]]," von ",Tabelle_Auswertung[[#This Row],[Autor(in)]]),"") -> 
A29: Schlaf.jpg | B29: 8 | C29: 6 | D29: 6 | E29: 5 | V29: =IF(Tabelle_Auswertung[[#This Row],[Bildname]]<>"",SUM(Tabelle_Auswertung[[#This Row],[Juror 1]:[Juror 20]])," - ") -> 25 | W29: =IF(Tabelle_Auswertung[[#This Row],[Bildname]]<>"",IF(Tabelle_Auswertung[[#This Row],[Punkte]]>0,AVERAGE(Tabelle_Auswertung[[#This Row],[Juror 1]:[Juror 20]])," - ")," - ") -> 6.25 | X29: =IF(Tabelle_Auswertung[[#This Row],[Bildname]]<>"",IF(Tabelle_Auswertung[[#This Row],[Punkte]]>0,RANK(Tabelle_Auswertung[[#This Row],[Punkte]],[Punkte],0)," - ")," - ") -> 19 | Y29: Chris Finsterer | Z29: =IF(Tabelle_Auswertung[[#This Row],[Platz]]=1,CONCATENATE(Tabelle_Auswertung[[#This Row],[Bildname]]," von ",Tabelle_Auswertung[[#This Row],[Autor(in)]]),"") ->  | AA29: =IF(Tabelle_Auswertung[[#This Row],[Platz]]=2,CONCATENATE(Tabelle_Auswertung[[#This Row],[Bildname]]," von ",Tabelle_Auswertung[[#This Row],[Autor(in)]]),"") ->  | AB29: =IF(Tabelle_Auswertung[[#This Row],[Platz]]=3,CONCATENATE(Tabelle_Auswertung[[#This Row],[Bildname]]," von ",Tabelle_Auswertung[[#This Row],[Autor(in)]]),"") ->  | AC29: =IF(Tabelle_Auswertung[[#This Row],[Platz]]=4,CONCATENATE(Tabelle_Auswertung[[#This Row],[Bildname]]," von ",Tabelle_Auswertung[[#This Row],[Autor(in)]]),"") ->  | AD29: =IF(Tabelle_Auswertung[[#This Row],[Platz]]=5,CONCATENATE(Tabelle_Auswertung[[#This Row],[Bildname]]," von ",Tabelle_Auswertung[[#This Row],[Autor(in)]]),"") ->  | AE29: =IF(Tabelle_Auswertung[[#This Row],[Platz]]=6,CONCATENATE(Tabelle_Auswertung[[#This Row],[Bildname]]," von ",Tabelle_Auswertung[[#This Row],[Autor(in)]]),"") ->  | AF29: =IF(Tabelle_Auswertung[[#This Row],[Platz]]=7,CONCATENATE(Tabelle_Auswertung[[#This Row],[Bildname]]," von ",Tabelle_Auswertung[[#This Row],[Autor(in)]]),"") ->  | AG29: =IF(Tabelle_Auswertung[[#This Row],[Platz]]=8,CONCATENATE(Tabelle_Auswertung[[#This Row],[Bildname]]," von ",Tabelle_Auswertung[[#This Row],[Autor(in)]]),"") ->  | AH29: =IF(Tabelle_Auswertung[[#This Row],[Platz]]=9,CONCATENATE(Tabelle_Auswertung[[#This Row],[Bildname]]," von ",Tabelle_Auswertung[[#This Row],[Autor(in)]]),"") ->  | AI29: =IF(Tabelle_Auswertung[[#This Row],[Platz]]=10,CONCATENATE(Tabelle_Auswertung[[#This Row],[Bildname]]," von ",Tabelle_Auswertung[[#This Row],[Autor(in)]]),"") -> 
A30: Spiegelbild.JPG | B30: 6 | C30: 8 | D30: 5 | E30: 6 | V30: =IF(Tabelle_Auswertung[[#This Row],[Bildname]]<>"",SUM(Tabelle_Auswertung[[#This Row],[Juror 1]:[Juror 20]])," - ") -> 25 | W30: =IF(Tabelle_Auswertung[[#This Row],[Bildname]]<>"",IF(Tabelle_Auswertung[[#This Row],[Punkte]]>0,AVERAGE(Tabelle_Auswertung[[#This Row],[Juror 1]:[Juror 20]])," - ")," - ") -> 6.25 | X30: =IF(Tabelle_Auswertung[[#This Row],[Bildname]]<>"",IF(Tabelle_Auswertung[[#This Row],[Punkte]]>0,RANK(Tabelle_Auswertung[[#This Row],[Punkte]],[Punkte],0)," - ")," - ") -> 19 | Y30: Claudia Dommel | Z30: =IF(Tabelle_Auswertung[[#This Row],[Platz]]=1,CONCATENATE(Tabelle_Auswertung[[#This Row],[Bildname]]," von ",Tabelle_Auswertung[[#This Row],[Autor(in)]]),"") ->  | AA30: =IF(Tabelle_Auswertung[[#This Row],[Platz]]=2,CONCATENATE(Tabelle_Auswertung[[#This Row],[Bildname]]," von ",Tabelle_Auswertung[[#This Row],[Autor(in)]]),"") ->  | AB30: =IF(Tabelle_Auswertung[[#This Row],[Platz]]=3,CONCATENATE(Tabelle_Auswertung[[#This Row],[Bildname]]," von ",Tabelle_Auswertung[[#This Row],[Autor(in)]]),"") ->  | AC30: =IF(Tabelle_Auswertung[[#This Row],[Platz]]=4,CONCATENATE(Tabelle_Auswertung[[#This Row],[Bildname]]," von ",Tabelle_Auswertung[[#This Row],[Autor(in)]]),"") ->  | AD30: =IF(Tabelle_Auswertung[[#This Row],[Platz]]=5,CONCATENATE(Tabelle_Auswertung[[#This Row],[Bildname]]," von ",Tabelle_Auswertung[[#This Row],[Autor(in)]]),"") ->  | AE30: =IF(Tabelle_Auswertung[[#This Row],[Platz]]=6,CONCATENATE(Tabelle_Auswertung[[#This Row],[Bildname]]," von ",Tabelle_Auswertung[[#This Row],[Autor(in)]]),"") ->  | AF30: =IF(Tabelle_Auswertung[[#This Row],[Platz]]=7,CONCATENATE(Tabelle_Auswertung[[#This Row],[Bildname]]," von ",Tabelle_Auswertung[[#This Row],[Autor(in)]]),"") ->  | AG30: =IF(Tabelle_Auswertung[[#This Row],[Platz]]=8,CONCATENATE(Tabelle_Auswertung[[#This Row],[Bildname]]," von ",Tabelle_Auswertung[[#This Row],[Autor(in)]]),"") ->  | AH30: =IF(Tabelle_Auswertung[[#This Row],[Platz]]=9,CONCATENATE(Tabelle_Auswertung[[#This Row],[Bildname]]," von ",Tabelle_Auswertung[[#This Row],[Autor(in)]]),"") ->  | AI30: =IF(Tabelle_Auswertung[[#This Row],[Platz]]=10,CONCATENATE(Tabelle_Auswertung[[#This Row],[Bildname]]," von ",Tabelle_Auswertung[[#This Row],[Autor(in)]]),"") -> 
A31: unter_Strom.jpg | B31: 7 | C31: 8 | D31: 4 | E31: 6 | V31: =IF(Tabelle_Auswertung[[#This Row],[Bildname]]<>"",SUM(Tabelle_Auswertung[[#This Row],[Juror 1]:[Juror 20]])," - ") -> 25 | W31: =IF(Tabelle_Auswertung[[#This Row],[Bildname]]<>"",IF(Tabelle_Auswertung[[#This Row],[Punkte]]>0,AVERAGE(Tabelle_Auswertung[[#This Row],[Juror 1]:[Juror 20]])," - ")," - ") -> 6.25 | X31: =IF(Tabelle_Auswertung[[#This Row],[Bildname]]<>"",IF(Tabelle_Auswertung[[#This Row],[Punkte]]>0,RANK(Tabelle_Auswertung[[#This Row],[Punkte]],[Punkte],0)," - ")," - ") -> 19 | Y31: Chris Finsterer | Z31: =IF(Tabelle_Auswertung[[#This Row],[Platz]]=1,CONCATENATE(Tabelle_Auswertung[[#This Row],[Bildname]]," von ",Tabelle_Auswertung[[#This Row],[Autor(in)]]),"") ->  | AA31: =IF(Tabelle_Auswertung[[#This Row],[Platz]]=2,CONCATENATE(Tabelle_Auswertung[[#This Row],[Bildname]]," von ",Tabelle_Auswertung[[#This Row],[Autor(in)]]),"") ->  | AB31: =IF(Tabelle_Auswertung[[#This Row],[Platz]]=3,CONCATENATE(Tabelle_Auswertung[[#This Row],[Bildname]]," von ",Tabelle_Auswertung[[#This Row],[Autor(in)]]),"") ->  | AC31: =IF(Tabelle_Auswertung[[#This Row],[Platz]]=4,CONCATENATE(Tabelle_Auswertung[[#This Row],[Bildname]]," von ",Tabelle_Auswertung[[#This Row],[Autor(in)]]),"") ->  | AD31: =IF(Tabelle_Auswertung[[#This Row],[Platz]]=5,CONCATENATE(Tabelle_Auswertung[[#This Row],[Bildname]]," von ",Tabelle_Auswertung[[#This Row],[Autor(in)]]),"") ->  | AE31: =IF(Tabelle_Auswertung[[#This Row],[Platz]]=6,CONCATENATE(Tabelle_Auswertung[[#This Row],[Bildname]]," von ",Tabelle_Auswertung[[#This Row],[Autor(in)]]),"") ->  | AF31: =IF(Tabelle_Auswertung[[#This Row],[Platz]]=7,CONCATENATE(Tabelle_Auswertung[[#This Row],[Bildname]]," von ",Tabelle_Auswertung[[#This Row],[Autor(in)]]),"") ->  | AG31: =IF(Tabelle_Auswertung[[#This Row],[Platz]]=8,CONCATENATE(Tabelle_Auswertung[[#This Row],[Bildname]]," von ",Tabelle_Auswertung[[#This Row],[Autor(in)]]),"") ->  | AH31: =IF(Tabelle_Auswertung[[#This Row],[Platz]]=9,CONCATENATE(Tabelle_Auswertung[[#This Row],[Bildname]]," von ",Tabelle_Auswertung[[#This Row],[Autor(in)]]),"") ->  | AI31: =IF(Tabelle_Auswertung[[#This Row],[Platz]]=10,CONCATENATE(Tabelle_Auswertung[[#This Row],[Bildname]]," von ",Tabelle_Auswertung[[#This Row],[Autor(in)]]),"") -> 
A32: Wasserweide.jpg | B32: 7 | C32: 7 | D32: 4 | E32: 7 | V32: =IF(Tabelle_Auswertung[[#This Row],[Bildname]]<>"",SUM(Tabelle_Auswertung[[#This Row],[Juror 1]:[Juror 20]])," - ") -> 25 | W32: =IF(Tabelle_Auswertung[[#This Row],[Bildname]]<>"",IF(Tabelle_Auswertung[[#This Row],[Punkte]]>0,AVERAGE(Tabelle_Auswertung[[#This Row],[Juror 1]:[Juror 20]])," - ")," - ") -> 6.25 | X32: =IF(Tabelle_Auswertung[[#This Row],[Bildname]]<>"",IF(Tabelle_Auswertung[[#This Row],[Punkte]]>0,RANK(Tabelle_Auswertung[[#This Row],[Punkte]],[Punkte],0)," - ")," - ") -> 19 | Y32: Chris Finsterer | Z32: =IF(Tabelle_Auswertung[[#This Row],[Platz]]=1,CONCATENATE(Tabelle_Auswertung[[#This Row],[Bildname]]," von ",Tabelle_Auswertung[[#This Row],[Autor(in)]]),"") ->  | AA32: =IF(Tabelle_Auswertung[[#This Row],[Platz]]=2,CONCATENATE(Tabelle_Auswertung[[#This Row],[Bildname]]," von ",Tabelle_Auswertung[[#This Row],[Autor(in)]]),"") ->  | AB32: =IF(Tabelle_Auswertung[[#This Row],[Platz]]=3,CONCATENATE(Tabelle_Auswertung[[#This Row],[Bildname]]," von ",Tabelle_Auswertung[[#This Row],[Autor(in)]]),"") ->  | AC32: =IF(Tabelle_Auswertung[[#This Row],[Platz]]=4,CONCATENATE(Tabelle_Auswertung[[#This Row],[Bildname]]," von ",Tabelle_Auswertung[[#This Row],[Autor(in)]]),"") ->  | AD32: =IF(Tabelle_Auswertung[[#This Row],[Platz]]=5,CONCATENATE(Tabelle_Auswertung[[#This Row],[Bildname]]," von ",Tabelle_Auswertung[[#This Row],[Autor(in)]]),"") ->  | AE32: =IF(Tabelle_Auswertung[[#This Row],[Platz]]=6,CONCATENATE(Tabelle_Auswertung[[#This Row],[Bildname]]," von ",Tabelle_Auswertung[[#This Row],[Autor(in)]]),"") ->  | AF32: =IF(Tabelle_Auswertung[[#This Row],[Platz]]=7,CONCATENATE(Tabelle_Auswertung[[#This Row],[Bildname]]," von ",Tabelle_Auswertung[[#This Row],[Autor(in)]]),"") ->  | AG32: =IF(Tabelle_Auswertung[[#This Row],[Platz]]=8,CONCATENATE(Tabelle_Auswertung[[#This Row],[Bildname]]," von ",Tabelle_Auswertung[[#This Row],[Autor(in)]]),"") ->  | AH32: =IF(Tabelle_Auswertung[[#This Row],[Platz]]=9,CONCATENATE(Tabelle_Auswertung[[#This Row],[Bildname]]," von ",Tabelle_Auswertung[[#This Row],[Autor(in)]]),"") ->  | AI32: =IF(Tabelle_Auswertung[[#This Row],[Platz]]=10,CONCATENATE(Tabelle_Auswertung[[#This Row],[Bildname]]," von ",Tabelle_Auswertung[[#This Row],[Autor(in)]]),"") -> 
A33: Big Ben 01.jpg | B33: 6 | C33: 6 | D33: 6 | E33: 5 | V33: =IF(Tabelle_Auswertung[[#This Row],[Bildname]]<>"",SUM(Tabelle_Auswertung[[#This Row],[Juror 1]:[Juror 20]])," - ") -> 23 | W33: =IF(Tabelle_Auswertung[[#This Row],[Bildname]]<>"",IF(Tabelle_Auswertung[[#This Row],[Punkte]]>0,AVERAGE(Tabelle_Auswertung[[#This Row],[Juror 1]:[Juror 20]])," - ")," - ") -> 5.75 | X33: =IF(Tabelle_Auswertung[[#This Row],[Bildname]]<>"",IF(Tabelle_Auswertung[[#This Row],[Punkte]]>0,RANK(Tabelle_Auswertung[[#This Row],[Punkte]],[Punkte],0)," - ")," - ") -> 29 | Y33: Andreas Toltz | Z33: =IF(Tabelle_Auswertung[[#This Row],[Platz]]=1,CONCATENATE(Tabelle_Auswertung[[#This Row],[Bildname]]," von ",Tabelle_Auswertung[[#This Row],[Autor(in)]]),"") ->  | AA33: =IF(Tabelle_Auswertung[[#This Row],[Platz]]=2,CONCATENATE(Tabelle_Auswertung[[#This Row],[Bildname]]," von ",Tabelle_Auswertung[[#This Row],[Autor(in)]]),"") ->  | AB33: =IF(Tabelle_Auswertung[[#This Row],[Platz]]=3,CONCATENATE(Tabelle_Auswertung[[#This Row],[Bildname]]," von ",Tabelle_Auswertung[[#This Row],[Autor(in)]]),"") ->  | AC33: =IF(Tabelle_Auswertung[[#This Row],[Platz]]=4,CONCATENATE(Tabelle_Auswertung[[#This Row],[Bildname]]," von ",Tabelle_Auswertung[[#This Row],[Autor(in)]]),"") ->  | AD33: =IF(Tabelle_Auswertung[[#This Row],[Platz]]=5,CONCATENATE(Tabelle_Auswertung[[#This Row],[Bildname]]," von ",Tabelle_Auswertung[[#This Row],[Autor(in)]]),"") ->  | AE33: =IF(Tabelle_Auswertung[[#This Row],[Platz]]=6,CONCATENATE(Tabelle_Auswertung[[#This Row],[Bildname]]," von ",Tabelle_Auswertung[[#This Row],[Autor(in)]]),"") ->  | AF33: =IF(Tabelle_Auswertung[[#This Row],[Platz]]=7,CONCATENATE(Tabelle_Auswertung[[#This Row],[Bildname]]," von ",Tabelle_Auswertung[[#This Row],[Autor(in)]]),"") ->  | AG33: =IF(Tabelle_Auswertung[[#This Row],[Platz]]=8,CONCATENATE(Tabelle_Auswertung[[#This Row],[Bildname]]," von ",Tabelle_Auswertung[[#This Row],[Autor(in)]]),"") ->  | AH33: =IF(Tabelle_Auswertung[[#This Row],[Platz]]=9,CONCATENATE(Tabelle_Auswertung[[#This Row],[Bildname]]," von ",Tabelle_Auswertung[[#This Row],[Autor(in)]]),"") ->  | AI33: =IF(Tabelle_Auswertung[[#This Row],[Platz]]=10,CONCATENATE(Tabelle_Auswertung[[#This Row],[Bildname]]," von ",Tabelle_Auswertung[[#This Row],[Autor(in)]]),"") -> 
A34: magic forest.JPG | B34: 7 | C34: 5 | D34: 4 | E34: 7 | V34: =IF(Tabelle_Auswertung[[#This Row],[Bildname]]<>"",SUM(Tabelle_Auswertung[[#This Row],[Juror 1]:[Juror 20]])," - ") -> 23 | W34: =IF(Tabelle_Auswertung[[#This Row],[Bildname]]<>"",IF(Tabelle_Auswertung[[#This Row],[Punkte]]>0,AVERAGE(Tabelle_Auswertung[[#This Row],[Juror 1]:[Juror 20]])," - ")," - ") -> 5.75 | X34: =IF(Tabelle_Auswertung[[#This Row],[Bildname]]<>"",IF(Tabelle_Auswertung[[#This Row],[Punkte]]>0,RANK(Tabelle_Auswertung[[#This Row],[Punkte]],[Punkte],0)," - ")," - ") -> 29 | Y34: Susanne Deinhardt | Z34: =IF(Tabelle_Auswertung[[#This Row],[Platz]]=1,CONCATENATE(Tabelle_Auswertung[[#This Row],[Bildname]]," von ",Tabelle_Auswertung[[#This Row],[Autor(in)]]),"") ->  | AA34: =IF(Tabelle_Auswertung[[#This Row],[Platz]]=2,CONCATENATE(Tabelle_Auswertung[[#This Row],[Bildname]]," von ",Tabelle_Auswertung[[#This Row],[Autor(in)]]),"") ->  | AB34: =IF(Tabelle_Auswertung[[#This Row],[Platz]]=3,CONCATENATE(Tabelle_Auswertung[[#This Row],[Bildname]]," von ",Tabelle_Auswertung[[#This Row],[Autor(in)]]),"") ->  | AC34: =IF(Tabelle_Auswertung[[#This Row],[Platz]]=4,CONCATENATE(Tabelle_Auswertung[[#This Row],[Bildname]]," von ",Tabelle_Auswertung[[#This Row],[Autor(in)]]),"") ->  | AD34: =IF(Tabelle_Auswertung[[#This Row],[Platz]]=5,CONCATENATE(Tabelle_Auswertung[[#This Row],[Bildname]]," von ",Tabelle_Auswertung[[#This Row],[Autor(in)]]),"") ->  | AE34: =IF(Tabelle_Auswertung[[#This Row],[Platz]]=6,CONCATENATE(Tabelle_Auswertung[[#This Row],[Bildname]]," von ",Tabelle_Auswertung[[#This Row],[Autor(in)]]),"") ->  | AF34: =IF(Tabelle_Auswertung[[#This Row],[Platz]]=7,CONCATENATE(Tabelle_Auswertung[[#This Row],[Bildname]]," von ",Tabelle_Auswertung[[#This Row],[Autor(in)]]),"") ->  | AG34: =IF(Tabelle_Auswertung[[#This Row],[Platz]]=8,CONCATENATE(Tabelle_Auswertung[[#This Row],[Bildname]]," von ",Tabelle_Auswertung[[#This Row],[Autor(in)]]),"") ->  | AH34: =IF(Tabelle_Auswertung[[#This Row],[Platz]]=9,CONCATENATE(Tabelle_Auswertung[[#This Row],[Bildname]]," von ",Tabelle_Auswertung[[#This Row],[Autor(in)]]),"") ->  | AI34: =IF(Tabelle_Auswertung[[#This Row],[Platz]]=10,CONCATENATE(Tabelle_Auswertung[[#This Row],[Bildname]]," von ",Tabelle_Auswertung[[#This Row],[Autor(in)]]),"") -> 
A35: Sunrise.jpg | B35: 5 | C35: 8 | D35: 5 | E35: 5 | V35: =IF(Tabelle_Auswertung[[#This Row],[Bildname]]<>"",SUM(Tabelle_Auswertung[[#This Row],[Juror 1]:[Juror 20]])," - ") -> 23 | W35: =IF(Tabelle_Auswertung[[#This Row],[Bildname]]<>"",IF(Tabelle_Auswertung[[#This Row],[Punkte]]>0,AVERAGE(Tabelle_Auswertung[[#This Row],[Juror 1]:[Juror 20]])," - ")," - ") -> 5.75 | X35: =IF(Tabelle_Auswertung[[#This Row],[Bildname]]<>"",IF(Tabelle_Auswertung[[#This Row],[Punkte]]>0,RANK(Tabelle_Auswertung[[#This Row],[Punkte]],[Punkte],0)," - ")," - ") -> 29 | Y35: Jan Grünler | Z35: =IF(Tabelle_Auswertung[[#This Row],[Platz]]=1,CONCATENATE(Tabelle_Auswertung[[#This Row],[Bildname]]," von ",Tabelle_Auswertung[[#This Row],[Autor(in)]]),"") ->  | AA35: =IF(Tabelle_Auswertung[[#This Row],[Platz]]=2,CONCATENATE(Tabelle_Auswertung[[#This Row],[Bildname]]," von ",Tabelle_Auswertung[[#This Row],[Autor(in)]]),"") ->  | AB35: =IF(Tabelle_Auswertung[[#This Row],[Platz]]=3,CONCATENATE(Tabelle_Auswertung[[#This Row],[Bildname]]," von ",Tabelle_Auswertung[[#This Row],[Autor(in)]]),"") ->  | AC35: =IF(Tabelle_Auswertung[[#This Row],[Platz]]=4,CONCATENATE(Tabelle_Auswertung[[#This Row],[Bildname]]," von ",Tabelle_Auswertung[[#This Row],[Autor(in)]]),"") ->  | AD35: =IF(Tabelle_Auswertung[[#This Row],[Platz]]=5,CONCATENATE(Tabelle_Auswertung[[#This Row],[Bildname]]," von ",Tabelle_Auswertung[[#This Row],[Autor(in)]]),"") ->  | AE35: =IF(Tabelle_Auswertung[[#This Row],[Platz]]=6,CONCATENATE(Tabelle_Auswertung[[#This Row],[Bildname]]," von ",Tabelle_Auswertung[[#This Row],[Autor(in)]]),"") ->  | AF35: =IF(Tabelle_Auswertung[[#This Row],[Platz]]=7,CONCATENATE(Tabelle_Auswertung[[#This Row],[Bildname]]," von ",Tabelle_Auswertung[[#This Row],[Autor(in)]]),"") ->  | AG35: =IF(Tabelle_Auswertung[[#This Row],[Platz]]=8,CONCATENATE(Tabelle_Auswertung[[#This Row],[Bildname]]," von ",Tabelle_Auswertung[[#This Row],[Autor(in)]]),"") ->  | AH35: =IF(Tabelle_Auswertung[[#This Row],[Platz]]=9,CONCATENATE(Tabelle_Auswertung[[#This Row],[Bildname]]," von ",Tabelle_Auswertung[[#This Row],[Autor(in)]]),"") ->  | AI35: =IF(Tabelle_Auswertung[[#This Row],[Platz]]=10,CONCATENATE(Tabelle_Auswertung[[#This Row],[Bildname]]," von ",Tabelle_Auswertung[[#This Row],[Autor(in)]]),"") -> 
A36: Holzmänner.jpg | B36: 6 | C36: 5 | D36: 5 | E36: 6 | V36: =IF(Tabelle_Auswertung[[#This Row],[Bildname]]<>"",SUM(Tabelle_Auswertung[[#This Row],[Juror 1]:[Juror 20]])," - ") -> 22 | W36: =IF(Tabelle_Auswertung[[#This Row],[Bildname]]<>"",IF(Tabelle_Auswertung[[#This Row],[Punkte]]>0,AVERAGE(Tabelle_Auswertung[[#This Row],[Juror 1]:[Juror 20]])," - ")," - ") -> 5.50 | X36: =IF(Tabelle_Auswertung[[#This Row],[Bildname]]<>"",IF(Tabelle_Auswertung[[#This Row],[Punkte]]>0,RANK(Tabelle_Auswertung[[#This Row],[Punkte]],[Punkte],0)," - ")," - ") -> 32 | Y36: Gert Häberlein | Z36: =IF(Tabelle_Auswertung[[#This Row],[Platz]]=1,CONCATENATE(Tabelle_Auswertung[[#This Row],[Bildname]]," von ",Tabelle_Auswertung[[#This Row],[Autor(in)]]),"") ->  | AA36: =IF(Tabelle_Auswertung[[#This Row],[Platz]]=2,CONCATENATE(Tabelle_Auswertung[[#This Row],[Bildname]]," von ",Tabelle_Auswertung[[#This Row],[Autor(in)]]),"") ->  | AB36: =IF(Tabelle_Auswertung[[#This Row],[Platz]]=3,CONCATENATE(Tabelle_Auswertung[[#This Row],[Bildname]]," von ",Tabelle_Auswertung[[#This Row],[Autor(in)]]),"") ->  | AC36: =IF(Tabelle_Auswertung[[#This Row],[Platz]]=4,CONCATENATE(Tabelle_Auswertung[[#This Row],[Bildname]]," von ",Tabelle_Auswertung[[#This Row],[Autor(in)]]),"") ->  | AD36: =IF(Tabelle_Auswertung[[#This Row],[Platz]]=5,CONCATENATE(Tabelle_Auswertung[[#This Row],[Bildname]]," von ",Tabelle_Auswertung[[#This Row],[Autor(in)]]),"") ->  | AE36: =IF(Tabelle_Auswertung[[#This Row],[Platz]]=6,CONCATENATE(Tabelle_Auswertung[[#This Row],[Bildname]]," von ",Tabelle_Auswertung[[#This Row],[Autor(in)]]),"") ->  | AF36: =IF(Tabelle_Auswertung[[#This Row],[Platz]]=7,CONCATENATE(Tabelle_Auswertung[[#This Row],[Bildname]]," von ",Tabelle_Auswertung[[#This Row],[Autor(in)]]),"") ->  | AG36: =IF(Tabelle_Auswertung[[#This Row],[Platz]]=8,CONCATENATE(Tabelle_Auswertung[[#This Row],[Bildname]]," von ",Tabelle_Auswertung[[#This Row],[Autor(in)]]),"") ->  | AH36: =IF(Tabelle_Auswertung[[#This Row],[Platz]]=9,CONCATENATE(Tabelle_Auswertung[[#This Row],[Bildname]]," von ",Tabelle_Auswertung[[#This Row],[Autor(in)]]),"") ->  | AI36: =IF(Tabelle_Auswertung[[#This Row],[Platz]]=10,CONCATENATE(Tabelle_Auswertung[[#This Row],[Bildname]]," von ",Tabelle_Auswertung[[#This Row],[Autor(in)]]),"") -> 
A37: Ziegelei.jpg | B37: 6 | C37: 5 | D37: 5 | E37: 6 | V37: =IF(Tabelle_Auswertung[[#This Row],[Bildname]]<>"",SUM(Tabelle_Auswertung[[#This Row],[Juror 1]:[Juror 20]])," - ") -> 22 | W37: =IF(Tabelle_Auswertung[[#This Row],[Bildname]]<>"",IF(Tabelle_Auswertung[[#This Row],[Punkte]]>0,AVERAGE(Tabelle_Auswertung[[#This Row],[Juror 1]:[Juror 20]])," - ")," - ") -> 5.5 | X37: =IF(Tabelle_Auswertung[[#This Row],[Bildname]]<>"",IF(Tabelle_Auswertung[[#This Row],[Punkte]]>0,RANK(Tabelle_Auswertung[[#This Row],[Punkte]],[Punkte],0)," - ")," - ") -> 32 | Y37: Gert Häberlein | Z37: =IF(Tabelle_Auswertung[[#This Row],[Platz]]=1,CONCATENATE(Tabelle_Auswertung[[#This Row],[Bildname]]," von ",Tabelle_Auswertung[[#This Row],[Autor(in)]]),"") ->  | AA37: =IF(Tabelle_Auswertung[[#This Row],[Platz]]=2,CONCATENATE(Tabelle_Auswertung[[#This Row],[Bildname]]," von ",Tabelle_Auswertung[[#This Row],[Autor(in)]]),"") ->  | AB37: =IF(Tabelle_Auswertung[[#This Row],[Platz]]=3,CONCATENATE(Tabelle_Auswertung[[#This Row],[Bildname]]," von ",Tabelle_Auswertung[[#This Row],[Autor(in)]]),"") ->  | AC37: =IF(Tabelle_Auswertung[[#This Row],[Platz]]=4,CONCATENATE(Tabelle_Auswertung[[#This Row],[Bildname]]," von ",Tabelle_Auswertung[[#This Row],[Autor(in)]]),"") ->  | AD37: =IF(Tabelle_Auswertung[[#This Row],[Platz]]=5,CONCATENATE(Tabelle_Auswertung[[#This Row],[Bildname]]," von ",Tabelle_Auswertung[[#This Row],[Autor(in)]]),"") ->  | AE37: =IF(Tabelle_Auswertung[[#This Row],[Platz]]=6,CONCATENATE(Tabelle_Auswertung[[#This Row],[Bildname]]," von ",Tabelle_Auswertung[[#This Row],[Autor(in)]]),"") ->  | AF37: =IF(Tabelle_Auswertung[[#This Row],[Platz]]=7,CONCATENATE(Tabelle_Auswertung[[#This Row],[Bildname]]," von ",Tabelle_Auswertung[[#This Row],[Autor(in)]]),"") ->  | AG37: =IF(Tabelle_Auswertung[[#This Row],[Platz]]=8,CONCATENATE(Tabelle_Auswertung[[#This Row],[Bildname]]," von ",Tabelle_Auswertung[[#This Row],[Autor(in)]]),"") ->  | AH37: =IF(Tabelle_Auswertung[[#This Row],[Platz]]=9,CONCATENATE(Tabelle_Auswertung[[#This Row],[Bildname]]," von ",Tabelle_Auswertung[[#This Row],[Autor(in)]]),"") ->  | AI37: =IF(Tabelle_Auswertung[[#This Row],[Platz]]=10,CONCATENATE(Tabelle_Auswertung[[#This Row],[Bildname]]," von ",Tabelle_Auswertung[[#This Row],[Autor(in)]]),"") -> 
A38: Schnaken.jpg | B38: 6 | C38: 6 | D38: 3 | E38: 6 | V38: =IF(Tabelle_Auswertung[[#This Row],[Bildname]]<>"",SUM(Tabelle_Auswertung[[#This Row],[Juror 1]:[Juror 20]])," - ") -> 21 | W38: =IF(Tabelle_Auswertung[[#This Row],[Bildname]]<>"",IF(Tabelle_Auswertung[[#This Row],[Punkte]]>0,AVERAGE(Tabelle_Auswertung[[#This Row],[Juror 1]:[Juror 20]])," - ")," - ") -> 5.25 | X38: =IF(Tabelle_Auswertung[[#This Row],[Bildname]]<>"",IF(Tabelle_Auswertung[[#This Row],[Punkte]]>0,RANK(Tabelle_Auswertung[[#This Row],[Punkte]],[Punkte],0)," - ")," - ") -> 34 | Y38: Nadja Cassim | Z38: =IF(Tabelle_Auswertung[[#This Row],[Platz]]=1,CONCATENATE(Tabelle_Auswertung[[#This Row],[Bildname]]," von ",Tabelle_Auswertung[[#This Row],[Autor(in)]]),"") ->  | AA38: =IF(Tabelle_Auswertung[[#This Row],[Platz]]=2,CONCATENATE(Tabelle_Auswertung[[#This Row],[Bildname]]," von ",Tabelle_Auswertung[[#This Row],[Autor(in)]]),"") ->  | AB38: =IF(Tabelle_Auswertung[[#This Row],[Platz]]=3,CONCATENATE(Tabelle_Auswertung[[#This Row],[Bildname]]," von ",Tabelle_Auswertung[[#This Row],[Autor(in)]]),"") ->  | AC38: =IF(Tabelle_Auswertung[[#This Row],[Platz]]=4,CONCATENATE(Tabelle_Auswertung[[#This Row],[Bildname]]," von ",Tabelle_Auswertung[[#This Row],[Autor(in)]]),"") ->  | AD38: =IF(Tabelle_Auswertung[[#This Row],[Platz]]=5,CONCATENATE(Tabelle_Auswertung[[#This Row],[Bildname]]," von ",Tabelle_Auswertung[[#This Row],[Autor(in)]]),"") ->  | AE38: =IF(Tabelle_Auswertung[[#This Row],[Platz]]=6,CONCATENATE(Tabelle_Auswertung[[#This Row],[Bildname]]," von ",Tabelle_Auswertung[[#This Row],[Autor(in)]]),"") ->  | AF38: =IF(Tabelle_Auswertung[[#This Row],[Platz]]=7,CONCATENATE(Tabelle_Auswertung[[#This Row],[Bildname]]," von ",Tabelle_Auswertung[[#This Row],[Autor(in)]]),"") ->  | AG38: =IF(Tabelle_Auswertung[[#This Row],[Platz]]=8,CONCATENATE(Tabelle_Auswertung[[#This Row],[Bildname]]," von ",Tabelle_Auswertung[[#This Row],[Autor(in)]]),"") ->  | AH38: =IF(Tabelle_Auswertung[[#This Row],[Platz]]=9,CONCATENATE(Tabelle_Auswertung[[#This Row],[Bildname]]," von ",Tabelle_Auswertung[[#This Row],[Autor(in)]]),"") ->  | AI38: =IF(Tabelle_Auswertung[[#This Row],[Platz]]=10,CONCATENATE(Tabelle_Auswertung[[#This Row],[Bildname]]," von ",Tabelle_Auswertung[[#This Row],[Autor(in)]]),"") -> 
A39: Treppe nach nirgendwo.jpg | B39: 5 | C39: 6 | D39: 4 | E39: 6 | V39: =IF(Tabelle_Auswertung[[#This Row],[Bildname]]<>"",SUM(Tabelle_Auswertung[[#This Row],[Juror 1]:[Juror 20]])," - ") -> 21 | W39: =IF(Tabelle_Auswertung[[#This Row],[Bildname]]<>"",IF(Tabelle_Auswertung[[#This Row],[Punkte]]>0,AVERAGE(Tabelle_Auswertung[[#This Row],[Juror 1]:[Juror 20]])," - ")," - ") -> 5.25 | X39: =IF(Tabelle_Auswertung[[#This Row],[Bildname]]<>"",IF(Tabelle_Auswertung[[#This Row],[Punkte]]>0,RANK(Tabelle_Auswertung[[#This Row],[Punkte]],[Punkte],0)," - ")," - ") -> 34 | Y39: Gert Häberlein | Z39: =IF(Tabelle_Auswertung[[#This Row],[Platz]]=1,CONCATENATE(Tabelle_Auswertung[[#This Row],[Bildname]]," von ",Tabelle_Auswertung[[#This Row],[Autor(in)]]),"") ->  | AA39: =IF(Tabelle_Auswertung[[#This Row],[Platz]]=2,CONCATENATE(Tabelle_Auswertung[[#This Row],[Bildname]]," von ",Tabelle_Auswertung[[#This Row],[Autor(in)]]),"") ->  | AB39: =IF(Tabelle_Auswertung[[#This Row],[Platz]]=3,CONCATENATE(Tabelle_Auswertung[[#This Row],[Bildname]]," von ",Tabelle_Auswertung[[#This Row],[Autor(in)]]),"") ->  | AC39: =IF(Tabelle_Auswertung[[#This Row],[Platz]]=4,CONCATENATE(Tabelle_Auswertung[[#This Row],[Bildname]]," von ",Tabelle_Auswertung[[#This Row],[Autor(in)]]),"") ->  | AD39: =IF(Tabelle_Auswertung[[#This Row],[Platz]]=5,CONCATENATE(Tabelle_Auswertung[[#This Row],[Bildname]]," von ",Tabelle_Auswertung[[#This Row],[Autor(in)]]),"") ->  | AE39: =IF(Tabelle_Auswertung[[#This Row],[Platz]]=6,CONCATENATE(Tabelle_Auswertung[[#This Row],[Bildname]]," von ",Tabelle_Auswertung[[#This Row],[Autor(in)]]),"") ->  | AF39: =IF(Tabelle_Auswertung[[#This Row],[Platz]]=7,CONCATENATE(Tabelle_Auswertung[[#This Row],[Bildname]]," von ",Tabelle_Auswertung[[#This Row],[Autor(in)]]),"") ->  | AG39: =IF(Tabelle_Auswertung[[#This Row],[Platz]]=8,CONCATENATE(Tabelle_Auswertung[[#This Row],[Bildname]]," von ",Tabelle_Auswertung[[#This Row],[Autor(in)]]),"") ->  | AH39: =IF(Tabelle_Auswertung[[#This Row],[Platz]]=9,CONCATENATE(Tabelle_Auswertung[[#This Row],[Bildname]]," von ",Tabelle_Auswertung[[#This Row],[Autor(in)]]),"") ->  | AI39: =IF(Tabelle_Auswertung[[#This Row],[Platz]]=10,CONCATENATE(Tabelle_Auswertung[[#This Row],[Bildname]]," von ",Tabelle_Auswertung[[#This Row],[Autor(in)]]),"") -> 
A40: Trikolore .jpg | B40: 5 | C40: 5 | D40: 6 | E40: 5 | V40: =IF(Tabelle_Auswertung[[#This Row],[Bildname]]<>"",SUM(Tabelle_Auswertung[[#This Row],[Juror 1]:[Juror 20]])," - ") -> 21 | W40: =IF(Tabelle_Auswertung[[#This Row],[Bildname]]<>"",IF(Tabelle_Auswertung[[#This Row],[Punkte]]>0,AVERAGE(Tabelle_Auswertung[[#This Row],[Juror 1]:[Juror 20]])," - ")," - ") -> 5.25 | X40: =IF(Tabelle_Auswertung[[#This Row],[Bildname]]<>"",IF(Tabelle_Auswertung[[#This Row],[Punkte]]>0,RANK(Tabelle_Auswertung[[#This Row],[Punkte]],[Punkte],0)," - ")," - ") -> 34 | Y40: Jan Grünler | Z40: =IF(Tabelle_Auswertung[[#This Row],[Platz]]=1,CONCATENATE(Tabelle_Auswertung[[#This Row],[Bildname]]," von ",Tabelle_Auswertung[[#This Row],[Autor(in)]]),"") ->  | AA40: =IF(Tabelle_Auswertung[[#This Row],[Platz]]=2,CONCATENATE(Tabelle_Auswertung[[#This Row],[Bildname]]," von ",Tabelle_Auswertung[[#This Row],[Autor(in)]]),"") ->  | AB40: =IF(Tabelle_Auswertung[[#This Row],[Platz]]=3,CONCATENATE(Tabelle_Auswertung[[#This Row],[Bildname]]," von ",Tabelle_Auswertung[[#This Row],[Autor(in)]]),"") ->  | AC40: =IF(Tabelle_Auswertung[[#This Row],[Platz]]=4,CONCATENATE(Tabelle_Auswertung[[#This Row],[Bildname]]," von ",Tabelle_Auswertung[[#This Row],[Autor(in)]]),"") ->  | AD40: =IF(Tabelle_Auswertung[[#This Row],[Platz]]=5,CONCATENATE(Tabelle_Auswertung[[#This Row],[Bildname]]," von ",Tabelle_Auswertung[[#This Row],[Autor(in)]]),"") ->  | AE40: =IF(Tabelle_Auswertung[[#This Row],[Platz]]=6,CONCATENATE(Tabelle_Auswertung[[#This Row],[Bildname]]," von ",Tabelle_Auswertung[[#This Row],[Autor(in)]]),"") ->  | AF40: =IF(Tabelle_Auswertung[[#This Row],[Platz]]=7,CONCATENATE(Tabelle_Auswertung[[#This Row],[Bildname]]," von ",Tabelle_Auswertung[[#This Row],[Autor(in)]]),"") ->  | AG40: =IF(Tabelle_Auswertung[[#This Row],[Platz]]=8,CONCATENATE(Tabelle_Auswertung[[#This Row],[Bildname]]," von ",Tabelle_Auswertung[[#This Row],[Autor(in)]]),"") ->  | AH40: =IF(Tabelle_Auswertung[[#This Row],[Platz]]=9,CONCATENATE(Tabelle_Auswertung[[#This Row],[Bildname]]," von ",Tabelle_Auswertung[[#This Row],[Autor(in)]]),"") ->  | AI40: =IF(Tabelle_Auswertung[[#This Row],[Platz]]=10,CONCATENATE(Tabelle_Auswertung[[#This Row],[Bildname]]," von ",Tabelle_Auswertung[[#This Row],[Autor(in)]]),"") -> 
A41: Brunnerweiher.JPG | B41: 5 | C41: 5 | D41: 4 | E41: 6 | V41: =IF(Tabelle_Auswertung[[#This Row],[Bildname]]<>"",SUM(Tabelle_Auswertung[[#This Row],[Juror 1]:[Juror 20]])," - ") -> 20 | W41: =IF(Tabelle_Auswertung[[#This Row],[Bildname]]<>"",IF(Tabelle_Auswertung[[#This Row],[Punkte]]>0,AVERAGE(Tabelle_Auswertung[[#This Row],[Juror 1]:[Juror 20]])," - ")," - ") -> 5.00 | X41: =IF(Tabelle_Auswertung[[#This Row],[Bildname]]<>"",IF(Tabelle_Auswertung[[#This Row],[Punkte]]>0,RANK(Tabelle_Auswertung[[#This Row],[Punkte]],[Punkte],0)," - ")," - ") -> 37 | Y41: Susanne Deinhardt | Z41: =IF(Tabelle_Auswertung[[#This Row],[Platz]]=1,CONCATENATE(Tabelle_Auswertung[[#This Row],[Bildname]]," von ",Tabelle_Auswertung[[#This Row],[Autor(in)]]),"") ->  | AA41: =IF(Tabelle_Auswertung[[#This Row],[Platz]]=2,CONCATENATE(Tabelle_Auswertung[[#This Row],[Bildname]]," von ",Tabelle_Auswertung[[#This Row],[Autor(in)]]),"") ->  | AB41: =IF(Tabelle_Auswertung[[#This Row],[Platz]]=3,CONCATENATE(Tabelle_Auswertung[[#This Row],[Bildname]]," von ",Tabelle_Auswertung[[#This Row],[Autor(in)]]),"") ->  | AC41: =IF(Tabelle_Auswertung[[#This Row],[Platz]]=4,CONCATENATE(Tabelle_Auswertung[[#This Row],[Bildname]]," von ",Tabelle_Auswertung[[#This Row],[Autor(in)]]),"") ->  | AD41: =IF(Tabelle_Auswertung[[#This Row],[Platz]]=5,CONCATENATE(Tabelle_Auswertung[[#This Row],[Bildname]]," von ",Tabelle_Auswertung[[#This Row],[Autor(in)]]),"") ->  | AE41: =IF(Tabelle_Auswertung[[#This Row],[Platz]]=6,CONCATENATE(Tabelle_Auswertung[[#This Row],[Bildname]]," von ",Tabelle_Auswertung[[#This Row],[Autor(in)]]),"") ->  | AF41: =IF(Tabelle_Auswertung[[#This Row],[Platz]]=7,CONCATENATE(Tabelle_Auswertung[[#This Row],[Bildname]]," von ",Tabelle_Auswertung[[#This Row],[Autor(in)]]),"") ->  | AG41: =IF(Tabelle_Auswertung[[#This Row],[Platz]]=8,CONCATENATE(Tabelle_Auswertung[[#This Row],[Bildname]]," von ",Tabelle_Auswertung[[#This Row],[Autor(in)]]),"") ->  | AH41: =IF(Tabelle_Auswertung[[#This Row],[Platz]]=9,CONCATENATE(Tabelle_Auswertung[[#This Row],[Bildname]]," von ",Tabelle_Auswertung[[#This Row],[Autor(in)]]),"") ->  | AI41: =IF(Tabelle_Auswertung[[#This Row],[Platz]]=10,CONCATENATE(Tabelle_Auswertung[[#This Row],[Bildname]]," von ",Tabelle_Auswertung[[#This Row],[Autor(in)]]),"") -> 
A42: early bird.JPG | B42: 5 | C42: 5 | D42: 5 | E42: 5 | V42: =IF(Tabelle_Auswertung[[#This Row],[Bildname]]<>"",SUM(Tabelle_Auswertung[[#This Row],[Juror 1]:[Juror 20]])," - ") -> 20 | W42: =IF(Tabelle_Auswertung[[#This Row],[Bildname]]<>"",IF(Tabelle_Auswertung[[#This Row],[Punkte]]>0,AVERAGE(Tabelle_Auswertung[[#This Row],[Juror 1]:[Juror 20]])," - ")," - ") -> 5.00 | X42: =IF(Tabelle_Auswertung[[#This Row],[Bildname]]<>"",IF(Tabelle_Auswertung[[#This Row],[Punkte]]>0,RANK(Tabelle_Auswertung[[#This Row],[Punkte]],[Punkte],0)," - ")," - ") -> 37 | Y42: Susanne Deinhardt | Z42: =IF(Tabelle_Auswertung[[#This Row],[Platz]]=1,CONCATENATE(Tabelle_Auswertung[[#This Row],[Bildname]]," von ",Tabelle_Auswertung[[#This Row],[Autor(in)]]),"") ->  | AA42: =IF(Tabelle_Auswertung[[#This Row],[Platz]]=2,CONCATENATE(Tabelle_Auswertung[[#This Row],[Bildname]]," von ",Tabelle_Auswertung[[#This Row],[Autor(in)]]),"") ->  | AB42: =IF(Tabelle_Auswertung[[#This Row],[Platz]]=3,CONCATENATE(Tabelle_Auswertung[[#This Row],[Bildname]]," von ",Tabelle_Auswertung[[#This Row],[Autor(in)]]),"") ->  | AC42: =IF(Tabelle_Auswertung[[#This Row],[Platz]]=4,CONCATENATE(Tabelle_Auswertung[[#This Row],[Bildname]]," von ",Tabelle_Auswertung[[#This Row],[Autor(in)]]),"") ->  | AD42: =IF(Tabelle_Auswertung[[#This Row],[Platz]]=5,CONCATENATE(Tabelle_Auswertung[[#This Row],[Bildname]]," von ",Tabelle_Auswertung[[#This Row],[Autor(in)]]),"") ->  | AE42: =IF(Tabelle_Auswertung[[#This Row],[Platz]]=6,CONCATENATE(Tabelle_Auswertung[[#This Row],[Bildname]]," von ",Tabelle_Auswertung[[#This Row],[Autor(in)]]),"") ->  | AF42: =IF(Tabelle_Auswertung[[#This Row],[Platz]]=7,CONCATENATE(Tabelle_Auswertung[[#This Row],[Bildname]]," von ",Tabelle_Auswertung[[#This Row],[Autor(in)]]),"") ->  | AG42: =IF(Tabelle_Auswertung[[#This Row],[Platz]]=8,CONCATENATE(Tabelle_Auswertung[[#This Row],[Bildname]]," von ",Tabelle_Auswertung[[#This Row],[Autor(in)]]),"") ->  | AH42: =IF(Tabelle_Auswertung[[#This Row],[Platz]]=9,CONCATENATE(Tabelle_Auswertung[[#This Row],[Bildname]]," von ",Tabelle_Auswertung[[#This Row],[Autor(in)]]),"") ->  | AI42: =IF(Tabelle_Auswertung[[#This Row],[Platz]]=10,CONCATENATE(Tabelle_Auswertung[[#This Row],[Bildname]]," von ",Tabelle_Auswertung[[#This Row],[Autor(in)]]),"") -> 
A43: Frühling.JPG | B43: 5 | C43: 5 | D43: 5 | E43: 5 | V43: =IF(Tabelle_Auswertung[[#This Row],[Bildname]]<>"",SUM(Tabelle_Auswertung[[#This Row],[Juror 1]:[Juror 20]])," - ") -> 20 | W43: =IF(Tabelle_Auswertung[[#This Row],[Bildname]]<>"",IF(Tabelle_Auswertung[[#This Row],[Punkte]]>0,AVERAGE(Tabelle_Auswertung[[#This Row],[Juror 1]:[Juror 20]])," - ")," - ") -> 5.00 | X43: =IF(Tabelle_Auswertung[[#This Row],[Bildname]]<>"",IF(Tabelle_Auswertung[[#This Row],[Punkte]]>0,RANK(Tabelle_Auswertung[[#This Row],[Punkte]],[Punkte],0)," - ")," - ") -> 37 | Y43: Claudia Dommel | Z43: =IF(Tabelle_Auswertung[[#This Row],[Platz]]=1,CONCATENATE(Tabelle_Auswertung[[#This Row],[Bildname]]," von ",Tabelle_Auswertung[[#This Row],[Autor(in)]]),"") ->  | AA43: =IF(Tabelle_Auswertung[[#This Row],[Platz]]=2,CONCATENATE(Tabelle_Auswertung[[#This Row],[Bildname]]," von ",Tabelle_Auswertung[[#This Row],[Autor(in)]]),"") ->  | AB43: =IF(Tabelle_Auswertung[[#This Row],[Platz]]=3,CONCATENATE(Tabelle_Auswertung[[#This Row],[Bildname]]," von ",Tabelle_Auswertung[[#This Row],[Autor(in)]]),"") ->  | AC43: =IF(Tabelle_Auswertung[[#This Row],[Platz]]=4,CONCATENATE(Tabelle_Auswertung[[#This Row],[Bildname]]," von ",Tabelle_Auswertung[[#This Row],[Autor(in)]]),"") ->  | AD43: =IF(Tabelle_Auswertung[[#This Row],[Platz]]=5,CONCATENATE(Tabelle_Auswertung[[#This Row],[Bildname]]," von ",Tabelle_Auswertung[[#This Row],[Autor(in)]]),"") ->  | AE43: =IF(Tabelle_Auswertung[[#This Row],[Platz]]=6,CONCATENATE(Tabelle_Auswertung[[#This Row],[Bildname]]," von ",Tabelle_Auswertung[[#This Row],[Autor(in)]]),"") ->  | AF43: =IF(Tabelle_Auswertung[[#This Row],[Platz]]=7,CONCATENATE(Tabelle_Auswertung[[#This Row],[Bildname]]," von ",Tabelle_Auswertung[[#This Row],[Autor(in)]]),"") ->  | AG43: =IF(Tabelle_Auswertung[[#This Row],[Platz]]=8,CONCATENATE(Tabelle_Auswertung[[#This Row],[Bildname]]," von ",Tabelle_Auswertung[[#This Row],[Autor(in)]]),"") ->  | AH43: =IF(Tabelle_Auswertung[[#This Row],[Platz]]=9,CONCATENATE(Tabelle_Auswertung[[#This Row],[Bildname]]," von ",Tabelle_Auswertung[[#This Row],[Autor(in)]]),"") ->  | AI43: =IF(Tabelle_Auswertung[[#This Row],[Platz]]=10,CONCATENATE(Tabelle_Auswertung[[#This Row],[Bildname]]," von ",Tabelle_Auswertung[[#This Row],[Autor(in)]]),"") -> 
A44: Hortus.jpg | B44: 6 | C44: 4 | D44: 4 | E44: 6 | V44: =IF(Tabelle_Auswertung[[#This Row],[Bildname]]<>"",SUM(Tabelle_Auswertung[[#This Row],[Juror 1]:[Juror 20]])," - ") -> 20 | W44: =IF(Tabelle_Auswertung[[#This Row],[Bildname]]<>"",IF(Tabelle_Auswertung[[#This Row],[Punkte]]>0,AVERAGE(Tabelle_Auswertung[[#This Row],[Juror 1]:[Juror 20]])," - ")," - ") -> 5.00 | X44: =IF(Tabelle_Auswertung[[#This Row],[Bildname]]<>"",IF(Tabelle_Auswertung[[#This Row],[Punkte]]>0,RANK(Tabelle_Auswertung[[#This Row],[Punkte]],[Punkte],0)," - ")," - ") -> 37 | Y44: Gerhard Rieß | Z44: =IF(Tabelle_Auswertung[[#This Row],[Platz]]=1,CONCATENATE(Tabelle_Auswertung[[#This Row],[Bildname]]," von ",Tabelle_Auswertung[[#This Row],[Autor(in)]]),"") ->  | AA44: =IF(Tabelle_Auswertung[[#This Row],[Platz]]=2,CONCATENATE(Tabelle_Auswertung[[#This Row],[Bildname]]," von ",Tabelle_Auswertung[[#This Row],[Autor(in)]]),"") ->  | AB44: =IF(Tabelle_Auswertung[[#This Row],[Platz]]=3,CONCATENATE(Tabelle_Auswertung[[#This Row],[Bildname]]," von ",Tabelle_Auswertung[[#This Row],[Autor(in)]]),"") ->  | AC44: =IF(Tabelle_Auswertung[[#This Row],[Platz]]=4,CONCATENATE(Tabelle_Auswertung[[#This Row],[Bildname]]," von ",Tabelle_Auswertung[[#This Row],[Autor(in)]]),"") ->  | AD44: =IF(Tabelle_Auswertung[[#This Row],[Platz]]=5,CONCATENATE(Tabelle_Auswertung[[#This Row],[Bildname]]," von ",Tabelle_Auswertung[[#This Row],[Autor(in)]]),"") ->  | AE44: =IF(Tabelle_Auswertung[[#This Row],[Platz]]=6,CONCATENATE(Tabelle_Auswertung[[#This Row],[Bildname]]," von ",Tabelle_Auswertung[[#This Row],[Autor(in)]]),"") ->  | AF44: =IF(Tabelle_Auswertung[[#This Row],[Platz]]=7,CONCATENATE(Tabelle_Auswertung[[#This Row],[Bildname]]," von ",Tabelle_Auswertung[[#This Row],[Autor(in)]]),"") ->  | AG44: =IF(Tabelle_Auswertung[[#This Row],[Platz]]=8,CONCATENATE(Tabelle_Auswertung[[#This Row],[Bildname]]," von ",Tabelle_Auswertung[[#This Row],[Autor(in)]]),"") ->  | AH44: =IF(Tabelle_Auswertung[[#This Row],[Platz]]=9,CONCATENATE(Tabelle_Auswertung[[#This Row],[Bildname]]," von ",Tabelle_Auswertung[[#This Row],[Autor(in)]]),"") ->  | AI44: =IF(Tabelle_Auswertung[[#This Row],[Platz]]=10,CONCATENATE(Tabelle_Auswertung[[#This Row],[Bildname]]," von ",Tabelle_Auswertung[[#This Row],[Autor(in)]]),"") -> 
A45: Kerzenschein.JPG | B45: 5 | C45: 4 | D45: 6 | E45: 5 | V45: =IF(Tabelle_Auswertung[[#This Row],[Bildname]]<>"",SUM(Tabelle_Auswertung[[#This Row],[Juror 1]:[Juror 20]])," - ") -> 20 | W45: =IF(Tabelle_Auswertung[[#This Row],[Bildname]]<>"",IF(Tabelle_Auswertung[[#This Row],[Punkte]]>0,AVERAGE(Tabelle_Auswertung[[#This Row],[Juror 1]:[Juror 20]])," - ")," - ") -> 5.00 | X45: =IF(Tabelle_Auswertung[[#This Row],[Bildname]]<>"",IF(Tabelle_Auswertung[[#This Row],[Punkte]]>0,RANK(Tabelle_Auswertung[[#This Row],[Punkte]],[Punkte],0)," - ")," - ") -> 37 | Y45: Claudia Dommel | Z45: =IF(Tabelle_Auswertung[[#This Row],[Platz]]=1,CONCATENATE(Tabelle_Auswertung[[#This Row],[Bildname]]," von ",Tabelle_Auswertung[[#This Row],[Autor(in)]]),"") ->  | AA45: =IF(Tabelle_Auswertung[[#This Row],[Platz]]=2,CONCATENATE(Tabelle_Auswertung[[#This Row],[Bildname]]," von ",Tabelle_Auswertung[[#This Row],[Autor(in)]]),"") ->  | AB45: =IF(Tabelle_Auswertung[[#This Row],[Platz]]=3,CONCATENATE(Tabelle_Auswertung[[#This Row],[Bildname]]," von ",Tabelle_Auswertung[[#This Row],[Autor(in)]]),"") ->  | AC45: =IF(Tabelle_Auswertung[[#This Row],[Platz]]=4,CONCATENATE(Tabelle_Auswertung[[#This Row],[Bildname]]," von ",Tabelle_Auswertung[[#This Row],[Autor(in)]]),"") ->  | AD45: =IF(Tabelle_Auswertung[[#This Row],[Platz]]=5,CONCATENATE(Tabelle_Auswertung[[#This Row],[Bildname]]," von ",Tabelle_Auswertung[[#This Row],[Autor(in)]]),"") ->  | AE45: =IF(Tabelle_Auswertung[[#This Row],[Platz]]=6,CONCATENATE(Tabelle_Auswertung[[#This Row],[Bildname]]," von ",Tabelle_Auswertung[[#This Row],[Autor(in)]]),"") ->  | AF45: =IF(Tabelle_Auswertung[[#This Row],[Platz]]=7,CONCATENATE(Tabelle_Auswertung[[#This Row],[Bildname]]," von ",Tabelle_Auswertung[[#This Row],[Autor(in)]]),"") ->  | AG45: =IF(Tabelle_Auswertung[[#This Row],[Platz]]=8,CONCATENATE(Tabelle_Auswertung[[#This Row],[Bildname]]," von ",Tabelle_Auswertung[[#This Row],[Autor(in)]]),"") ->  | AH45: =IF(Tabelle_Auswertung[[#This Row],[Platz]]=9,CONCATENATE(Tabelle_Auswertung[[#This Row],[Bildname]]," von ",Tabelle_Auswertung[[#This Row],[Autor(in)]]),"") ->  | AI45: =IF(Tabelle_Auswertung[[#This Row],[Platz]]=10,CONCATENATE(Tabelle_Auswertung[[#This Row],[Bildname]]," von ",Tabelle_Auswertung[[#This Row],[Autor(in)]]),"") -> 
A46: Mondscheinwanderung.JPG | B46: 6 | C46: 5 | D46: 3 | E46: 6 | V46: =IF(Tabelle_Auswertung[[#This Row],[Bildname]]<>"",SUM(Tabelle_Auswertung[[#This Row],[Juror 1]:[Juror 20]])," - ") -> 20 | W46: =IF(Tabelle_Auswertung[[#This Row],[Bildname]]<>"",IF(Tabelle_Auswertung[[#This Row],[Punkte]]>0,AVERAGE(Tabelle_Auswertung[[#This Row],[Juror 1]:[Juror 20]])," - ")," - ") -> 5.00 | X46: =IF(Tabelle_Auswertung[[#This Row],[Bildname]]<>"",IF(Tabelle_Auswertung[[#This Row],[Punkte]]>0,RANK(Tabelle_Auswertung[[#This Row],[Punkte]],[Punkte],0)," - ")," - ") -> 37 | Y46: Albrecht Flierl | Z46: =IF(Tabelle_Auswertung[[#This Row],[Platz]]=1,CONCATENATE(Tabelle_Auswertung[[#This Row],[Bildname]]," von ",Tabelle_Auswertung[[#This Row],[Autor(in)]]),"") ->  | AA46: =IF(Tabelle_Auswertung[[#This Row],[Platz]]=2,CONCATENATE(Tabelle_Auswertung[[#This Row],[Bildname]]," von ",Tabelle_Auswertung[[#This Row],[Autor(in)]]),"") ->  | AB46: =IF(Tabelle_Auswertung[[#This Row],[Platz]]=3,CONCATENATE(Tabelle_Auswertung[[#This Row],[Bildname]]," von ",Tabelle_Auswertung[[#This Row],[Autor(in)]]),"") ->  | AC46: =IF(Tabelle_Auswertung[[#This Row],[Platz]]=4,CONCATENATE(Tabelle_Auswertung[[#This Row],[Bildname]]," von ",Tabelle_Auswertung[[#This Row],[Autor(in)]]),"") ->  | AD46: =IF(Tabelle_Auswertung[[#This Row],[Platz]]=5,CONCATENATE(Tabelle_Auswertung[[#This Row],[Bildname]]," von ",Tabelle_Auswertung[[#This Row],[Autor(in)]]),"") ->  | AE46: =IF(Tabelle_Auswertung[[#This Row],[Platz]]=6,CONCATENATE(Tabelle_Auswertung[[#This Row],[Bildname]]," von ",Tabelle_Auswertung[[#This Row],[Autor(in)]]),"") ->  | AF46: =IF(Tabelle_Auswertung[[#This Row],[Platz]]=7,CONCATENATE(Tabelle_Auswertung[[#This Row],[Bildname]]," von ",Tabelle_Auswertung[[#This Row],[Autor(in)]]),"") ->  | AG46: =IF(Tabelle_Auswertung[[#This Row],[Platz]]=8,CONCATENATE(Tabelle_Auswertung[[#This Row],[Bildname]]," von ",Tabelle_Auswertung[[#This Row],[Autor(in)]]),"") ->  | AH46: =IF(Tabelle_Auswertung[[#This Row],[Platz]]=9,CONCATENATE(Tabelle_Auswertung[[#This Row],[Bildname]]," von ",Tabelle_Auswertung[[#This Row],[Autor(in)]]),"") ->  | AI46: =IF(Tabelle_Auswertung[[#This Row],[Platz]]=10,CONCATENATE(Tabelle_Auswertung[[#This Row],[Bildname]]," von ",Tabelle_Auswertung[[#This Row],[Autor(in)]]),"") -> 
A47: Wien.jpg | B47: 5 | C47: 4 | D47: 6 | E47: 5 | V47: =IF(Tabelle_Auswertung[[#This Row],[Bildname]]<>"",SUM(Tabelle_Auswertung[[#This Row],[Juror 1]:[Juror 20]])," - ") -> 20 | W47: =IF(Tabelle_Auswertung[[#This Row],[Bildname]]<>"",IF(Tabelle_Auswertung[[#This Row],[Punkte]]>0,AVERAGE(Tabelle_Auswertung[[#This Row],[Juror 1]:[Juror 20]])," - ")," - ") -> 5 | X47: =IF(Tabelle_Auswertung[[#This Row],[Bildname]]<>"",IF(Tabelle_Auswertung[[#This Row],[Punkte]]>0,RANK(Tabelle_Auswertung[[#This Row],[Punkte]],[Punkte],0)," - ")," - ") -> 37 | Y47: Chris Finsterer | Z47: =IF(Tabelle_Auswertung[[#This Row],[Platz]]=1,CONCATENATE(Tabelle_Auswertung[[#This Row],[Bildname]]," von ",Tabelle_Auswertung[[#This Row],[Autor(in)]]),"") ->  | AA47: =IF(Tabelle_Auswertung[[#This Row],[Platz]]=2,CONCATENATE(Tabelle_Auswertung[[#This Row],[Bildname]]," von ",Tabelle_Auswertung[[#This Row],[Autor(in)]]),"") ->  | AB47: =IF(Tabelle_Auswertung[[#This Row],[Platz]]=3,CONCATENATE(Tabelle_Auswertung[[#This Row],[Bildname]]," von ",Tabelle_Auswertung[[#This Row],[Autor(in)]]),"") ->  | AC47: =IF(Tabelle_Auswertung[[#This Row],[Platz]]=4,CONCATENATE(Tabelle_Auswertung[[#This Row],[Bildname]]," von ",Tabelle_Auswertung[[#This Row],[Autor(in)]]),"") ->  | AD47: =IF(Tabelle_Auswertung[[#This Row],[Platz]]=5,CONCATENATE(Tabelle_Auswertung[[#This Row],[Bildname]]," von ",Tabelle_Auswertung[[#This Row],[Autor(in)]]),"") ->  | AE47: =IF(Tabelle_Auswertung[[#This Row],[Platz]]=6,CONCATENATE(Tabelle_Auswertung[[#This Row],[Bildname]]," von ",Tabelle_Auswertung[[#This Row],[Autor(in)]]),"") ->  | AF47: =IF(Tabelle_Auswertung[[#This Row],[Platz]]=7,CONCATENATE(Tabelle_Auswertung[[#This Row],[Bildname]]," von ",Tabelle_Auswertung[[#This Row],[Autor(in)]]),"") ->  | AG47: =IF(Tabelle_Auswertung[[#This Row],[Platz]]=8,CONCATENATE(Tabelle_Auswertung[[#This Row],[Bildname]]," von ",Tabelle_Auswertung[[#This Row],[Autor(in)]]),"") ->  | AH47: =IF(Tabelle_Auswertung[[#This Row],[Platz]]=9,CONCATENATE(Tabelle_Auswertung[[#This Row],[Bildname]]," von ",Tabelle_Auswertung[[#This Row],[Autor(in)]]),"") ->  | AI47: =IF(Tabelle_Auswertung[[#This Row],[Platz]]=10,CONCATENATE(Tabelle_Auswertung[[#This Row],[Bildname]]," von ",Tabelle_Auswertung[[#This Row],[Autor(in)]]),"") -> 
A48: Dickkopf.JPG | B48: 5 | C48: 5 | D48: 4 | E48: 5 | V48: =IF(Tabelle_Auswertung[[#This Row],[Bildname]]<>"",SUM(Tabelle_Auswertung[[#This Row],[Juror 1]:[Juror 20]])," - ") -> 19 | W48: =IF(Tabelle_Auswertung[[#This Row],[Bildname]]<>"",IF(Tabelle_Auswertung[[#This Row],[Punkte]]>0,AVERAGE(Tabelle_Auswertung[[#This Row],[Juror 1]:[Juror 20]])," - ")," - ") -> 4.75 | X48: =IF(Tabelle_Auswertung[[#This Row],[Bildname]]<>"",IF(Tabelle_Auswertung[[#This Row],[Punkte]]>0,RANK(Tabelle_Auswertung[[#This Row],[Punkte]],[Punkte],0)," - ")," - ") -> 44 | Y48: Susanne Deinhardt | Z48: =IF(Tabelle_Auswertung[[#This Row],[Platz]]=1,CONCATENATE(Tabelle_Auswertung[[#This Row],[Bildname]]," von ",Tabelle_Auswertung[[#This Row],[Autor(in)]]),"") ->  | AA48: =IF(Tabelle_Auswertung[[#This Row],[Platz]]=2,CONCATENATE(Tabelle_Auswertung[[#This Row],[Bildname]]," von ",Tabelle_Auswertung[[#This Row],[Autor(in)]]),"") ->  | AB48: =IF(Tabelle_Auswertung[[#This Row],[Platz]]=3,CONCATENATE(Tabelle_Auswertung[[#This Row],[Bildname]]," von ",Tabelle_Auswertung[[#This Row],[Autor(in)]]),"") ->  | AC48: =IF(Tabelle_Auswertung[[#This Row],[Platz]]=4,CONCATENATE(Tabelle_Auswertung[[#This Row],[Bildname]]," von ",Tabelle_Auswertung[[#This Row],[Autor(in)]]),"") ->  | AD48: =IF(Tabelle_Auswertung[[#This Row],[Platz]]=5,CONCATENATE(Tabelle_Auswertung[[#This Row],[Bildname]]," von ",Tabelle_Auswertung[[#This Row],[Autor(in)]]),"") ->  | AE48: =IF(Tabelle_Auswertung[[#This Row],[Platz]]=6,CONCATENATE(Tabelle_Auswertung[[#This Row],[Bildname]]," von ",Tabelle_Auswertung[[#This Row],[Autor(in)]]),"") ->  | AF48: =IF(Tabelle_Auswertung[[#This Row],[Platz]]=7,CONCATENATE(Tabelle_Auswertung[[#This Row],[Bildname]]," von ",Tabelle_Auswertung[[#This Row],[Autor(in)]]),"") ->  | AG48: =IF(Tabelle_Auswertung[[#This Row],[Platz]]=8,CONCATENATE(Tabelle_Auswertung[[#This Row],[Bildname]]," von ",Tabelle_Auswertung[[#This Row],[Autor(in)]]),"") ->  | AH48: =IF(Tabelle_Auswertung[[#This Row],[Platz]]=9,CONCATENATE(Tabelle_Auswertung[[#This Row],[Bildname]]," von ",Tabelle_Auswertung[[#This Row],[Autor(in)]]),"") ->  | AI48: =IF(Tabelle_Auswertung[[#This Row],[Platz]]=10,CONCATENATE(Tabelle_Auswertung[[#This Row],[Bildname]]," von ",Tabelle_Auswertung[[#This Row],[Autor(in)]]),"") -> 
A49: modern architecture.jpg | B49: 6 | C49: 4 | D49: 3 | E49: 6 | V49: =IF(Tabelle_Auswertung[[#This Row],[Bildname]]<>"",SUM(Tabelle_Auswertung[[#This Row],[Juror 1]:[Juror 20]])," - ") -> 19 | W49: =IF(Tabelle_Auswertung[[#This Row],[Bildname]]<>"",IF(Tabelle_Auswertung[[#This Row],[Punkte]]>0,AVERAGE(Tabelle_Auswertung[[#This Row],[Juror 1]:[Juror 20]])," - ")," - ") -> 4.75 | X49: =IF(Tabelle_Auswertung[[#This Row],[Bildname]]<>"",IF(Tabelle_Auswertung[[#This Row],[Punkte]]>0,RANK(Tabelle_Auswertung[[#This Row],[Punkte]],[Punkte],0)," - ")," - ") -> 44 | Y49: Gerhard Rieß | Z49: =IF(Tabelle_Auswertung[[#This Row],[Platz]]=1,CONCATENATE(Tabelle_Auswertung[[#This Row],[Bildname]]," von ",Tabelle_Auswertung[[#This Row],[Autor(in)]]),"") ->  | AA49: =IF(Tabelle_Auswertung[[#This Row],[Platz]]=2,CONCATENATE(Tabelle_Auswertung[[#This Row],[Bildname]]," von ",Tabelle_Auswertung[[#This Row],[Autor(in)]]),"") ->  | AB49: =IF(Tabelle_Auswertung[[#This Row],[Platz]]=3,CONCATENATE(Tabelle_Auswertung[[#This Row],[Bildname]]," von ",Tabelle_Auswertung[[#This Row],[Autor(in)]]),"") ->  | AC49: =IF(Tabelle_Auswertung[[#This Row],[Platz]]=4,CONCATENATE(Tabelle_Auswertung[[#This Row],[Bildname]]," von ",Tabelle_Auswertung[[#This Row],[Autor(in)]]),"") ->  | AD49: =IF(Tabelle_Auswertung[[#This Row],[Platz]]=5,CONCATENATE(Tabelle_Auswertung[[#This Row],[Bildname]]," von ",Tabelle_Auswertung[[#This Row],[Autor(in)]]),"") ->  | AE49: =IF(Tabelle_Auswertung[[#This Row],[Platz]]=6,CONCATENATE(Tabelle_Auswertung[[#This Row],[Bildname]]," von ",Tabelle_Auswertung[[#This Row],[Autor(in)]]),"") ->  | AF49: =IF(Tabelle_Auswertung[[#This Row],[Platz]]=7,CONCATENATE(Tabelle_Auswertung[[#This Row],[Bildname]]," von ",Tabelle_Auswertung[[#This Row],[Autor(in)]]),"") ->  | AG49: =IF(Tabelle_Auswertung[[#This Row],[Platz]]=8,CONCATENATE(Tabelle_Auswertung[[#This Row],[Bildname]]," von ",Tabelle_Auswertung[[#This Row],[Autor(in)]]),"") ->  | AH49: =IF(Tabelle_Auswertung[[#This Row],[Platz]]=9,CONCATENATE(Tabelle_Auswertung[[#This Row],[Bildname]]," von ",Tabelle_Auswertung[[#This Row],[Autor(in)]]),"") ->  | AI49: =IF(Tabelle_Auswertung[[#This Row],[Platz]]=10,CONCATENATE(Tabelle_Auswertung[[#This Row],[Bildname]]," von ",Tabelle_Auswertung[[#This Row],[Autor(in)]]),"") -> 
A50: Zebrastreifen.jpg | B50: 5 | C50: 5 | D50: 4 | E50: 5 | V50: =IF(Tabelle_Auswertung[[#This Row],[Bildname]]<>"",SUM(Tabelle_Auswertung[[#This Row],[Juror 1]:[Juror 20]])," - ") -> 19 | W50: =IF(Tabelle_Auswertung[[#This Row],[Bildname]]<>"",IF(Tabelle_Auswertung[[#This Row],[Punkte]]>0,AVERAGE(Tabelle_Auswertung[[#This Row],[Juror 1]:[Juror 20]])," - ")," - ") -> 4.75 | X50: =IF(Tabelle_Auswertung[[#This Row],[Bildname]]<>"",IF(Tabelle_Auswertung[[#This Row],[Punkte]]>0,RANK(Tabelle_Auswertung[[#This Row],[Punkte]],[Punkte],0)," - ")," - ") -> 44 | Y50: Jan Grünler | Z50: =IF(Tabelle_Auswertung[[#This Row],[Platz]]=1,CONCATENATE(Tabelle_Auswertung[[#This Row],[Bildname]]," von ",Tabelle_Auswertung[[#This Row],[Autor(in)]]),"") ->  | AA50: =IF(Tabelle_Auswertung[[#This Row],[Platz]]=2,CONCATENATE(Tabelle_Auswertung[[#This Row],[Bildname]]," von ",Tabelle_Auswertung[[#This Row],[Autor(in)]]),"") ->  | AB50: =IF(Tabelle_Auswertung[[#This Row],[Platz]]=3,CONCATENATE(Tabelle_Auswertung[[#This Row],[Bildname]]," von ",Tabelle_Auswertung[[#This Row],[Autor(in)]]),"") ->  | AC50: =IF(Tabelle_Auswertung[[#This Row],[Platz]]=4,CONCATENATE(Tabelle_Auswertung[[#This Row],[Bildname]]," von ",Tabelle_Auswertung[[#This Row],[Autor(in)]]),"") ->  | AD50: =IF(Tabelle_Auswertung[[#This Row],[Platz]]=5,CONCATENATE(Tabelle_Auswertung[[#This Row],[Bildname]]," von ",Tabelle_Auswertung[[#This Row],[Autor(in)]]),"") ->  | AE50: =IF(Tabelle_Auswertung[[#This Row],[Platz]]=6,CONCATENATE(Tabelle_Auswertung[[#This Row],[Bildname]]," von ",Tabelle_Auswertung[[#This Row],[Autor(in)]]),"") ->  | AF50: =IF(Tabelle_Auswertung[[#This Row],[Platz]]=7,CONCATENATE(Tabelle_Auswertung[[#This Row],[Bildname]]," von ",Tabelle_Auswertung[[#This Row],[Autor(in)]]),"") ->  | AG50: =IF(Tabelle_Auswertung[[#This Row],[Platz]]=8,CONCATENATE(Tabelle_Auswertung[[#This Row],[Bildname]]," von ",Tabelle_Auswertung[[#This Row],[Autor(in)]]),"") ->  | AH50: =IF(Tabelle_Auswertung[[#This Row],[Platz]]=9,CONCATENATE(Tabelle_Auswertung[[#This Row],[Bildname]]," von ",Tabelle_Auswertung[[#This Row],[Autor(in)]]),"") ->  | AI50: =IF(Tabelle_Auswertung[[#This Row],[Platz]]=10,CONCATENATE(Tabelle_Auswertung[[#This Row],[Bildname]]," von ",Tabelle_Auswertung[[#This Row],[Autor(in)]]),"") -> 
A51: Altmuehltal.JPG | B51: 5 | C51: 4 | D51: 4 | E51: 5 | V51: =IF(Tabelle_Auswertung[[#This Row],[Bildname]]<>"",SUM(Tabelle_Auswertung[[#This Row],[Juror 1]:[Juror 20]])," - ") -> 18 | W51: =IF(Tabelle_Auswertung[[#This Row],[Bildname]]<>"",IF(Tabelle_Auswertung[[#This Row],[Punkte]]>0,AVERAGE(Tabelle_Auswertung[[#This Row],[Juror 1]:[Juror 20]])," - ")," - ") -> 4.50 | X51: =IF(Tabelle_Auswertung[[#This Row],[Bildname]]<>"",IF(Tabelle_Auswertung[[#This Row],[Punkte]]>0,RANK(Tabelle_Auswertung[[#This Row],[Punkte]],[Punkte],0)," - ")," - ") -> 47 | Y51: Albrecht Flierl | Z51: =IF(Tabelle_Auswertung[[#This Row],[Platz]]=1,CONCATENATE(Tabelle_Auswertung[[#This Row],[Bildname]]," von ",Tabelle_Auswertung[[#This Row],[Autor(in)]]),"") ->  | AA51: =IF(Tabelle_Auswertung[[#This Row],[Platz]]=2,CONCATENATE(Tabelle_Auswertung[[#This Row],[Bildname]]," von ",Tabelle_Auswertung[[#This Row],[Autor(in)]]),"") ->  | AB51: =IF(Tabelle_Auswertung[[#This Row],[Platz]]=3,CONCATENATE(Tabelle_Auswertung[[#This Row],[Bildname]]," von ",Tabelle_Auswertung[[#This Row],[Autor(in)]]),"") ->  | AC51: =IF(Tabelle_Auswertung[[#This Row],[Platz]]=4,CONCATENATE(Tabelle_Auswertung[[#This Row],[Bildname]]," von ",Tabelle_Auswertung[[#This Row],[Autor(in)]]),"") ->  | AD51: =IF(Tabelle_Auswertung[[#This Row],[Platz]]=5,CONCATENATE(Tabelle_Auswertung[[#This Row],[Bildname]]," von ",Tabelle_Auswertung[[#This Row],[Autor(in)]]),"") ->  | AE51: =IF(Tabelle_Auswertung[[#This Row],[Platz]]=6,CONCATENATE(Tabelle_Auswertung[[#This Row],[Bildname]]," von ",Tabelle_Auswertung[[#This Row],[Autor(in)]]),"") ->  | AF51: =IF(Tabelle_Auswertung[[#This Row],[Platz]]=7,CONCATENATE(Tabelle_Auswertung[[#This Row],[Bildname]]," von ",Tabelle_Auswertung[[#This Row],[Autor(in)]]),"") ->  | AG51: =IF(Tabelle_Auswertung[[#This Row],[Platz]]=8,CONCATENATE(Tabelle_Auswertung[[#This Row],[Bildname]]," von ",Tabelle_Auswertung[[#This Row],[Autor(in)]]),"") ->  | AH51: =IF(Tabelle_Auswertung[[#This Row],[Platz]]=9,CONCATENATE(Tabelle_Auswertung[[#This Row],[Bildname]]," von ",Tabelle_Auswertung[[#This Row],[Autor(in)]]),"") ->  | AI51: =IF(Tabelle_Auswertung[[#This Row],[Platz]]=10,CONCATENATE(Tabelle_Auswertung[[#This Row],[Bildname]]," von ",Tabelle_Auswertung[[#This Row],[Autor(in)]]),"") -> 
A52: Gemalte Raritäten.JPG | B52: 5 | C52: 4 | D52: 4 | E52: 5 | V52: =IF(Tabelle_Auswertung[[#This Row],[Bildname]]<>"",SUM(Tabelle_Auswertung[[#This Row],[Juror 1]:[Juror 20]])," - ") -> 18 | W52: =IF(Tabelle_Auswertung[[#This Row],[Bildname]]<>"",IF(Tabelle_Auswertung[[#This Row],[Punkte]]>0,AVERAGE(Tabelle_Auswertung[[#This Row],[Juror 1]:[Juror 20]])," - ")," - ") -> 4.50 | X52: =IF(Tabelle_Auswertung[[#This Row],[Bildname]]<>"",IF(Tabelle_Auswertung[[#This Row],[Punkte]]>0,RANK(Tabelle_Auswertung[[#This Row],[Punkte]],[Punkte],0)," - ")," - ") -> 47 | Y52: Claudia Dommel | Z52: =IF(Tabelle_Auswertung[[#This Row],[Platz]]=1,CONCATENATE(Tabelle_Auswertung[[#This Row],[Bildname]]," von ",Tabelle_Auswertung[[#This Row],[Autor(in)]]),"") ->  | AA52: =IF(Tabelle_Auswertung[[#This Row],[Platz]]=2,CONCATENATE(Tabelle_Auswertung[[#This Row],[Bildname]]," von ",Tabelle_Auswertung[[#This Row],[Autor(in)]]),"") ->  | AB52: =IF(Tabelle_Auswertung[[#This Row],[Platz]]=3,CONCATENATE(Tabelle_Auswertung[[#This Row],[Bildname]]," von ",Tabelle_Auswertung[[#This Row],[Autor(in)]]),"") ->  | AC52: =IF(Tabelle_Auswertung[[#This Row],[Platz]]=4,CONCATENATE(Tabelle_Auswertung[[#This Row],[Bildname]]," von ",Tabelle_Auswertung[[#This Row],[Autor(in)]]),"") ->  | AD52: =IF(Tabelle_Auswertung[[#This Row],[Platz]]=5,CONCATENATE(Tabelle_Auswertung[[#This Row],[Bildname]]," von ",Tabelle_Auswertung[[#This Row],[Autor(in)]]),"") ->  | AE52: =IF(Tabelle_Auswertung[[#This Row],[Platz]]=6,CONCATENATE(Tabelle_Auswertung[[#This Row],[Bildname]]," von ",Tabelle_Auswertung[[#This Row],[Autor(in)]]),"") ->  | AF52: =IF(Tabelle_Auswertung[[#This Row],[Platz]]=7,CONCATENATE(Tabelle_Auswertung[[#This Row],[Bildname]]," von ",Tabelle_Auswertung[[#This Row],[Autor(in)]]),"") ->  | AG52: =IF(Tabelle_Auswertung[[#This Row],[Platz]]=8,CONCATENATE(Tabelle_Auswertung[[#This Row],[Bildname]]," von ",Tabelle_Auswertung[[#This Row],[Autor(in)]]),"") ->  | AH52: =IF(Tabelle_Auswertung[[#This Row],[Platz]]=9,CONCATENATE(Tabelle_Auswertung[[#This Row],[Bildname]]," von ",Tabelle_Auswertung[[#This Row],[Autor(in)]]),"") ->  | AI52: =IF(Tabelle_Auswertung[[#This Row],[Platz]]=10,CONCATENATE(Tabelle_Auswertung[[#This Row],[Bildname]]," von ",Tabelle_Auswertung[[#This Row],[Autor(in)]]),"") -> 
A53: Gipfelsturm.JPG | B53: 5 | C53: 4 | D53: 3 | E53: 5 | V53: =IF(Tabelle_Auswertung[[#This Row],[Bildname]]<>"",SUM(Tabelle_Auswertung[[#This Row],[Juror 1]:[Juror 20]])," - ") -> 17 | W53: =IF(Tabelle_Auswertung[[#This Row],[Bildname]]<>"",IF(Tabelle_Auswertung[[#This Row],[Punkte]]>0,AVERAGE(Tabelle_Auswertung[[#This Row],[Juror 1]:[Juror 20]])," - ")," - ") -> 4.25 | X53: =IF(Tabelle_Auswertung[[#This Row],[Bildname]]<>"",IF(Tabelle_Auswertung[[#This Row],[Punkte]]>0,RANK(Tabelle_Auswertung[[#This Row],[Punkte]],[Punkte],0)," - ")," - ") -> 49 | Y53: Albrecht Flierl | Z53: =IF(Tabelle_Auswertung[[#This Row],[Platz]]=1,CONCATENATE(Tabelle_Auswertung[[#This Row],[Bildname]]," von ",Tabelle_Auswertung[[#This Row],[Autor(in)]]),"") ->  | AA53: =IF(Tabelle_Auswertung[[#This Row],[Platz]]=2,CONCATENATE(Tabelle_Auswertung[[#This Row],[Bildname]]," von ",Tabelle_Auswertung[[#This Row],[Autor(in)]]),"") ->  | AB53: =IF(Tabelle_Auswertung[[#This Row],[Platz]]=3,CONCATENATE(Tabelle_Auswertung[[#This Row],[Bildname]]," von ",Tabelle_Auswertung[[#This Row],[Autor(in)]]),"") ->  | AC53: =IF(Tabelle_Auswertung[[#This Row],[Platz]]=4,CONCATENATE(Tabelle_Auswertung[[#This Row],[Bildname]]," von ",Tabelle_Auswertung[[#This Row],[Autor(in)]]),"") ->  | AD53: =IF(Tabelle_Auswertung[[#This Row],[Platz]]=5,CONCATENATE(Tabelle_Auswertung[[#This Row],[Bildname]]," von ",Tabelle_Auswertung[[#This Row],[Autor(in)]]),"") ->  | AE53: =IF(Tabelle_Auswertung[[#This Row],[Platz]]=6,CONCATENATE(Tabelle_Auswertung[[#This Row],[Bildname]]," von ",Tabelle_Auswertung[[#This Row],[Autor(in)]]),"") ->  | AF53: =IF(Tabelle_Auswertung[[#This Row],[Platz]]=7,CONCATENATE(Tabelle_Auswertung[[#This Row],[Bildname]]," von ",Tabelle_Auswertung[[#This Row],[Autor(in)]]),"") ->  | AG53: =IF(Tabelle_Auswertung[[#This Row],[Platz]]=8,CONCATENATE(Tabelle_Auswertung[[#This Row],[Bildname]]," von ",Tabelle_Auswertung[[#This Row],[Autor(in)]]),"") ->  | AH53: =IF(Tabelle_Auswertung[[#This Row],[Platz]]=9,CONCATENATE(Tabelle_Auswertung[[#This Row],[Bildname]]," von ",Tabelle_Auswertung[[#This Row],[Autor(in)]]),"") ->  | AI53: =IF(Tabelle_Auswertung[[#This Row],[Platz]]=10,CONCATENATE(Tabelle_Auswertung[[#This Row],[Bildname]]," von ",Tabelle_Auswertung[[#This Row],[Autor(in)]]),"") -> 
A54: Himmelswurzeln.jpg | B54: 4 | C54: 4 | D54: 3 | E54: 6 | V54: =IF(Tabelle_Auswertung[[#This Row],[Bildname]]<>"",SUM(Tabelle_Auswertung[[#This Row],[Juror 1]:[Juror 20]])," - ") -> 17 | W54: =IF(Tabelle_Auswertung[[#This Row],[Bildname]]<>"",IF(Tabelle_Auswertung[[#This Row],[Punkte]]>0,AVERAGE(Tabelle_Auswertung[[#This Row],[Juror 1]:[Juror 20]])," - ")," - ") -> 4.25 | X54: =IF(Tabelle_Auswertung[[#This Row],[Bildname]]<>"",IF(Tabelle_Auswertung[[#This Row],[Punkte]]>0,RANK(Tabelle_Auswertung[[#This Row],[Punkte]],[Punkte],0)," - ")," - ") -> 49 | Y54: Gert Häberlein | Z54: =IF(Tabelle_Auswertung[[#This Row],[Platz]]=1,CONCATENATE(Tabelle_Auswertung[[#This Row],[Bildname]]," von ",Tabelle_Auswertung[[#This Row],[Autor(in)]]),"") ->  | AA54: =IF(Tabelle_Auswertung[[#This Row],[Platz]]=2,CONCATENATE(Tabelle_Auswertung[[#This Row],[Bildname]]," von ",Tabelle_Auswertung[[#This Row],[Autor(in)]]),"") ->  | AB54: =IF(Tabelle_Auswertung[[#This Row],[Platz]]=3,CONCATENATE(Tabelle_Auswertung[[#This Row],[Bildname]]," von ",Tabelle_Auswertung[[#This Row],[Autor(in)]]),"") ->  | AC54: =IF(Tabelle_Auswertung[[#This Row],[Platz]]=4,CONCATENATE(Tabelle_Auswertung[[#This Row],[Bildname]]," von ",Tabelle_Auswertung[[#This Row],[Autor(in)]]),"") ->  | AD54: =IF(Tabelle_Auswertung[[#This Row],[Platz]]=5,CONCATENATE(Tabelle_Auswertung[[#This Row],[Bildname]]," von ",Tabelle_Auswertung[[#This Row],[Autor(in)]]),"") ->  | AE54: =IF(Tabelle_Auswertung[[#This Row],[Platz]]=6,CONCATENATE(Tabelle_Auswertung[[#This Row],[Bildname]]," von ",Tabelle_Auswertung[[#This Row],[Autor(in)]]),"") ->  | AF54: =IF(Tabelle_Auswertung[[#This Row],[Platz]]=7,CONCATENATE(Tabelle_Auswertung[[#This Row],[Bildname]]," von ",Tabelle_Auswertung[[#This Row],[Autor(in)]]),"") ->  | AG54: =IF(Tabelle_Auswertung[[#This Row],[Platz]]=8,CONCATENATE(Tabelle_Auswertung[[#This Row],[Bildname]]," von ",Tabelle_Auswertung[[#This Row],[Autor(in)]]),"") ->  | AH54: =IF(Tabelle_Auswertung[[#This Row],[Platz]]=9,CONCATENATE(Tabelle_Auswertung[[#This Row],[Bildname]]," von ",Tabelle_Auswertung[[#This Row],[Autor(in)]]),"") ->  | AI54: =IF(Tabelle_Auswertung[[#This Row],[Platz]]=10,CONCATENATE(Tabelle_Auswertung[[#This Row],[Bildname]]," von ",Tabelle_Auswertung[[#This Row],[Autor(in)]]),"") -> 
A55: Schneeglöckchen.JPG | B55: 4 | C55: 4 | D55: 5 | E55: 4 | V55: =IF(Tabelle_Auswertung[[#This Row],[Bildname]]<>"",SUM(Tabelle_Auswertung[[#This Row],[Juror 1]:[Juror 20]])," - ") -> 17 | W55: =IF(Tabelle_Auswertung[[#This Row],[Bildname]]<>"",IF(Tabelle_Auswertung[[#This Row],[Punkte]]>0,AVERAGE(Tabelle_Auswertung[[#This Row],[Juror 1]:[Juror 20]])," - ")," - ") -> 4.25 | X55: =IF(Tabelle_Auswertung[[#This Row],[Bildname]]<>"",IF(Tabelle_Auswertung[[#This Row],[Punkte]]>0,RANK(Tabelle_Auswertung[[#This Row],[Punkte]],[Punkte],0)," - ")," - ") -> 49 | Y55: Susanne Deinhardt | Z55: =IF(Tabelle_Auswertung[[#This Row],[Platz]]=1,CONCATENATE(Tabelle_Auswertung[[#This Row],[Bildname]]," von ",Tabelle_Auswertung[[#This Row],[Autor(in)]]),"") ->  | AA55: =IF(Tabelle_Auswertung[[#This Row],[Platz]]=2,CONCATENATE(Tabelle_Auswertung[[#This Row],[Bildname]]," von ",Tabelle_Auswertung[[#This Row],[Autor(in)]]),"") ->  | AB55: =IF(Tabelle_Auswertung[[#This Row],[Platz]]=3,CONCATENATE(Tabelle_Auswertung[[#This Row],[Bildname]]," von ",Tabelle_Auswertung[[#This Row],[Autor(in)]]),"") ->  | AC55: =IF(Tabelle_Auswertung[[#This Row],[Platz]]=4,CONCATENATE(Tabelle_Auswertung[[#This Row],[Bildname]]," von ",Tabelle_Auswertung[[#This Row],[Autor(in)]]),"") ->  | AD55: =IF(Tabelle_Auswertung[[#This Row],[Platz]]=5,CONCATENATE(Tabelle_Auswertung[[#This Row],[Bildname]]," von ",Tabelle_Auswertung[[#This Row],[Autor(in)]]),"") ->  | AE55: =IF(Tabelle_Auswertung[[#This Row],[Platz]]=6,CONCATENATE(Tabelle_Auswertung[[#This Row],[Bildname]]," von ",Tabelle_Auswertung[[#This Row],[Autor(in)]]),"") ->  | AF55: =IF(Tabelle_Auswertung[[#This Row],[Platz]]=7,CONCATENATE(Tabelle_Auswertung[[#This Row],[Bildname]]," von ",Tabelle_Auswertung[[#This Row],[Autor(in)]]),"") ->  | AG55: =IF(Tabelle_Auswertung[[#This Row],[Platz]]=8,CONCATENATE(Tabelle_Auswertung[[#This Row],[Bildname]]," von ",Tabelle_Auswertung[[#This Row],[Autor(in)]]),"") ->  | AH55: =IF(Tabelle_Auswertung[[#This Row],[Platz]]=9,CONCATENATE(Tabelle_Auswertung[[#This Row],[Bildname]]," von ",Tabelle_Auswertung[[#This Row],[Autor(in)]]),"") ->  | AI55: =IF(Tabelle_Auswertung[[#This Row],[Platz]]=10,CONCATENATE(Tabelle_Auswertung[[#This Row],[Bildname]]," von ",Tabelle_Auswertung[[#This Row],[Autor(in)]]),"") -> 
A56: Vitaminstoss.JPG | B56: 4 | C56: 4 | D56: 4 | E56: 5 | V56: =IF(Tabelle_Auswertung[[#This Row],[Bildname]]<>"",SUM(Tabelle_Auswertung[[#This Row],[Juror 1]:[Juror 20]])," - ") -> 17 | W56: =IF(Tabelle_Auswertung[[#This Row],[Bildname]]<>"",IF(Tabelle_Auswertung[[#This Row],[Punkte]]>0,AVERAGE(Tabelle_Auswertung[[#This Row],[Juror 1]:[Juror 20]])," - ")," - ") -> 4.25 | X56: =IF(Tabelle_Auswertung[[#This Row],[Bildname]]<>"",IF(Tabelle_Auswertung[[#This Row],[Punkte]]>0,RANK(Tabelle_Auswertung[[#This Row],[Punkte]],[Punkte],0)," - ")," - ") -> 49 | Y56: Albrecht Flierl | Z56: =IF(Tabelle_Auswertung[[#This Row],[Platz]]=1,CONCATENATE(Tabelle_Auswertung[[#This Row],[Bildname]]," von ",Tabelle_Auswertung[[#This Row],[Autor(in)]]),"") ->  | AA56: =IF(Tabelle_Auswertung[[#This Row],[Platz]]=2,CONCATENATE(Tabelle_Auswertung[[#This Row],[Bildname]]," von ",Tabelle_Auswertung[[#This Row],[Autor(in)]]),"") ->  | AB56: =IF(Tabelle_Auswertung[[#This Row],[Platz]]=3,CONCATENATE(Tabelle_Auswertung[[#This Row],[Bildname]]," von ",Tabelle_Auswertung[[#This Row],[Autor(in)]]),"") ->  | AC56: =IF(Tabelle_Auswertung[[#This Row],[Platz]]=4,CONCATENATE(Tabelle_Auswertung[[#This Row],[Bildname]]," von ",Tabelle_Auswertung[[#This Row],[Autor(in)]]),"") ->  | AD56: =IF(Tabelle_Auswertung[[#This Row],[Platz]]=5,CONCATENATE(Tabelle_Auswertung[[#This Row],[Bildname]]," von ",Tabelle_Auswertung[[#This Row],[Autor(in)]]),"") ->  | AE56: =IF(Tabelle_Auswertung[[#This Row],[Platz]]=6,CONCATENATE(Tabelle_Auswertung[[#This Row],[Bildname]]," von ",Tabelle_Auswertung[[#This Row],[Autor(in)]]),"") ->  | AF56: =IF(Tabelle_Auswertung[[#This Row],[Platz]]=7,CONCATENATE(Tabelle_Auswertung[[#This Row],[Bildname]]," von ",Tabelle_Auswertung[[#This Row],[Autor(in)]]),"") ->  | AG56: =IF(Tabelle_Auswertung[[#This Row],[Platz]]=8,CONCATENATE(Tabelle_Auswertung[[#This Row],[Bildname]]," von ",Tabelle_Auswertung[[#This Row],[Autor(in)]]),"") ->  | AH56: =IF(Tabelle_Auswertung[[#This Row],[Platz]]=9,CONCATENATE(Tabelle_Auswertung[[#This Row],[Bildname]]," von ",Tabelle_Auswertung[[#This Row],[Autor(in)]]),"") ->  | AI56: =IF(Tabelle_Auswertung[[#This Row],[Platz]]=10,CONCATENATE(Tabelle_Auswertung[[#This Row],[Bildname]]," von ",Tabelle_Auswertung[[#This Row],[Autor(in)]]),"") -> 
A57: Dreamscape.jpg | B57: 4 | C57: 4 | D57: 4 | E57: 4 | V57: =IF(Tabelle_Auswertung[[#This Row],[Bildname]]<>"",SUM(Tabelle_Auswertung[[#This Row],[Juror 1]:[Juror 20]])," - ") -> 16 | W57: =IF(Tabelle_Auswertung[[#This Row],[Bildname]]<>"",IF(Tabelle_Auswertung[[#This Row],[Punkte]]>0,AVERAGE(Tabelle_Auswertung[[#This Row],[Juror 1]:[Juror 20]])," - ")," - ") -> 4.00 | X57: =IF(Tabelle_Auswertung[[#This Row],[Bildname]]<>"",IF(Tabelle_Auswertung[[#This Row],[Punkte]]>0,RANK(Tabelle_Auswertung[[#This Row],[Punkte]],[Punkte],0)," - ")," - ") -> 53 | Y57: Chris Finsterer | Z57: =IF(Tabelle_Auswertung[[#This Row],[Platz]]=1,CONCATENATE(Tabelle_Auswertung[[#This Row],[Bildname]]," von ",Tabelle_Auswertung[[#This Row],[Autor(in)]]),"") ->  | AA57: =IF(Tabelle_Auswertung[[#This Row],[Platz]]=2,CONCATENATE(Tabelle_Auswertung[[#This Row],[Bildname]]," von ",Tabelle_Auswertung[[#This Row],[Autor(in)]]),"") ->  | AB57: =IF(Tabelle_Auswertung[[#This Row],[Platz]]=3,CONCATENATE(Tabelle_Auswertung[[#This Row],[Bildname]]," von ",Tabelle_Auswertung[[#This Row],[Autor(in)]]),"") ->  | AC57: =IF(Tabelle_Auswertung[[#This Row],[Platz]]=4,CONCATENATE(Tabelle_Auswertung[[#This Row],[Bildname]]," von ",Tabelle_Auswertung[[#This Row],[Autor(in)]]),"") ->  | AD57: =IF(Tabelle_Auswertung[[#This Row],[Platz]]=5,CONCATENATE(Tabelle_Auswertung[[#This Row],[Bildname]]," von ",Tabelle_Auswertung[[#This Row],[Autor(in)]]),"") ->  | AE57: =IF(Tabelle_Auswertung[[#This Row],[Platz]]=6,CONCATENATE(Tabelle_Auswertung[[#This Row],[Bildname]]," von ",Tabelle_Auswertung[[#This Row],[Autor(in)]]),"") ->  | AF57: =IF(Tabelle_Auswertung[[#This Row],[Platz]]=7,CONCATENATE(Tabelle_Auswertung[[#This Row],[Bildname]]," von ",Tabelle_Auswertung[[#This Row],[Autor(in)]]),"") ->  | AG57: =IF(Tabelle_Auswertung[[#This Row],[Platz]]=8,CONCATENATE(Tabelle_Auswertung[[#This Row],[Bildname]]," von ",Tabelle_Auswertung[[#This Row],[Autor(in)]]),"") ->  | AH57: =IF(Tabelle_Auswertung[[#This Row],[Platz]]=9,CONCATENATE(Tabelle_Auswertung[[#This Row],[Bildname]]," von ",Tabelle_Auswertung[[#This Row],[Autor(in)]]),"") ->  | AI57: =IF(Tabelle_Auswertung[[#This Row],[Platz]]=10,CONCATENATE(Tabelle_Auswertung[[#This Row],[Bildname]]," von ",Tabelle_Auswertung[[#This Row],[Autor(in)]]),"") -> 
A58: Winterbaum.JPG | B58: 4 | C58: 4 | D58: 4 | E58: 4 | V58: =IF(Tabelle_Auswertung[[#This Row],[Bildname]]<>"",SUM(Tabelle_Auswertung[[#This Row],[Juror 1]:[Juror 20]])," - ") -> 16 | W58: =IF(Tabelle_Auswertung[[#This Row],[Bildname]]<>"",IF(Tabelle_Auswertung[[#This Row],[Punkte]]>0,AVERAGE(Tabelle_Auswertung[[#This Row],[Juror 1]:[Juror 20]])," - ")," - ") -> 4 | X58: =IF(Tabelle_Auswertung[[#This Row],[Bildname]]<>"",IF(Tabelle_Auswertung[[#This Row],[Punkte]]>0,RANK(Tabelle_Auswertung[[#This Row],[Punkte]],[Punkte],0)," - ")," - ") -> 53 | Y58: Albrecht Flierl | Z58: =IF(Tabelle_Auswertung[[#This Row],[Platz]]=1,CONCATENATE(Tabelle_Auswertung[[#This Row],[Bildname]]," von ",Tabelle_Auswertung[[#This Row],[Autor(in)]]),"") ->  | AA58: =IF(Tabelle_Auswertung[[#This Row],[Platz]]=2,CONCATENATE(Tabelle_Auswertung[[#This Row],[Bildname]]," von ",Tabelle_Auswertung[[#This Row],[Autor(in)]]),"") ->  | AB58: =IF(Tabelle_Auswertung[[#This Row],[Platz]]=3,CONCATENATE(Tabelle_Auswertung[[#This Row],[Bildname]]," von ",Tabelle_Auswertung[[#This Row],[Autor(in)]]),"") ->  | AC58: =IF(Tabelle_Auswertung[[#This Row],[Platz]]=4,CONCATENATE(Tabelle_Auswertung[[#This Row],[Bildname]]," von ",Tabelle_Auswertung[[#This Row],[Autor(in)]]),"") ->  | AD58: =IF(Tabelle_Auswertung[[#This Row],[Platz]]=5,CONCATENATE(Tabelle_Auswertung[[#This Row],[Bildname]]," von ",Tabelle_Auswertung[[#This Row],[Autor(in)]]),"") ->  | AE58: =IF(Tabelle_Auswertung[[#This Row],[Platz]]=6,CONCATENATE(Tabelle_Auswertung[[#This Row],[Bildname]]," von ",Tabelle_Auswertung[[#This Row],[Autor(in)]]),"") ->  | AF58: =IF(Tabelle_Auswertung[[#This Row],[Platz]]=7,CONCATENATE(Tabelle_Auswertung[[#This Row],[Bildname]]," von ",Tabelle_Auswertung[[#This Row],[Autor(in)]]),"") ->  | AG58: =IF(Tabelle_Auswertung[[#This Row],[Platz]]=8,CONCATENATE(Tabelle_Auswertung[[#This Row],[Bildname]]," von ",Tabelle_Auswertung[[#This Row],[Autor(in)]]),"") ->  | AH58: =IF(Tabelle_Auswertung[[#This Row],[Platz]]=9,CONCATENATE(Tabelle_Auswertung[[#This Row],[Bildname]]," von ",Tabelle_Auswertung[[#This Row],[Autor(in)]]),"") ->  | AI58: =IF(Tabelle_Auswertung[[#This Row],[Platz]]=10,CONCATENATE(Tabelle_Auswertung[[#This Row],[Bildname]]," von ",Tabelle_Auswertung[[#This Row],[Autor(in)]]),"") -> 
V59: =IF(Tabelle_Auswertung[[#This Row],[Bildname]]<>"",SUM(Tabelle_Auswertung[[#This Row],[Juror 1]:[Juror 20]])," - ") -> - | W59: =IF(Tabelle_Auswertung[[#This Row],[Bildname]]<>"",IF(Tabelle_Auswertung[[#This Row],[Punkte]]>0,AVERAGE(Tabelle_Auswertung[[#This Row],[Juror 1]:[Juror 20]])," - ")," - ") -> - | X59: =IF(Tabelle_Auswertung[[#This Row],[Bildname]]<>"",IF(Tabelle_Auswertung[[#This Row],[Punkte]]>0,RANK(Tabelle_Auswertung[[#This Row],[Punkte]],[Punkte],0)," - ")," - ") -> - | Y59: - - - | Z59: =IF(Tabelle_Auswertung[[#This Row],[Platz]]=1,CONCATENATE(Tabelle_Auswertung[[#This Row],[Bildname]]," von ",Tabelle_Auswertung[[#This Row],[Autor(in)]]),"") ->  | AA59: =IF(Tabelle_Auswertung[[#This Row],[Platz]]=2,CONCATENATE(Tabelle_Auswertung[[#This Row],[Bildname]]," von ",Tabelle_Auswertung[[#This Row],[Autor(in)]]),"") ->  | AB59: =IF(Tabelle_Auswertung[[#This Row],[Platz]]=3,CONCATENATE(Tabelle_Auswertung[[#This Row],[Bildname]]," von ",Tabelle_Auswertung[[#This Row],[Autor(in)]]),"") ->  | AC59: =IF(Tabelle_Auswertung[[#This Row],[Platz]]=4,CONCATENATE(Tabelle_Auswertung[[#This Row],[Bildname]]," von ",Tabelle_Auswertung[[#This Row],[Autor(in)]]),"") ->  | AD59: =IF(Tabelle_Auswertung[[#This Row],[Platz]]=5,CONCATENATE(Tabelle_Auswertung[[#This Row],[Bildname]]," von ",Tabelle_Auswertung[[#This Row],[Autor(in)]]),"") ->  | AE59: =IF(Tabelle_Auswertung[[#This Row],[Platz]]=6,CONCATENATE(Tabelle_Auswertung[[#This Row],[Bildname]]," von ",Tabelle_Auswertung[[#This Row],[Autor(in)]]),"") ->  | AF59: =IF(Tabelle_Auswertung[[#This Row],[Platz]]=7,CONCATENATE(Tabelle_Auswertung[[#This Row],[Bildname]]," von ",Tabelle_Auswertung[[#This Row],[Autor(in)]]),"") ->  | AG59: =IF(Tabelle_Auswertung[[#This Row],[Platz]]=8,CONCATENATE(Tabelle_Auswertung[[#This Row],[Bildname]]," von ",Tabelle_Auswertung[[#This Row],[Autor(in)]]),"") ->  | AH59: =IF(Tabelle_Auswertung[[#This Row],[Platz]]=9,CONCATENATE(Tabelle_Auswertung[[#This Row],[Bildname]]," von ",Tabelle_Auswertung[[#This Row],[Autor(in)]]),"") ->  | AI59: =IF(Tabelle_Auswertung[[#This Row],[Platz]]=10,CONCATENATE(Tabelle_Auswertung[[#This Row],[Bildname]]," von ",Tabelle_Auswertung[[#This Row],[Autor(in)]]),"") -> 
V60: =IF(Tabelle_Auswertung[[#This Row],[Bildname]]<>"",SUM(Tabelle_Auswertung[[#This Row],[Juror 1]:[Juror 20]])," - ") -> - | W60: =IF(Tabelle_Auswertung[[#This Row],[Bildname]]<>"",IF(Tabelle_Auswertung[[#This Row],[Punkte]]>0,AVERAGE(Tabelle_Auswertung[[#This Row],[Juror 1]:[Juror 20]])," - ")," - ") -> - | X60: =IF(Tabelle_Auswertung[[#This Row],[Bildname]]<>"",IF(Tabelle_Auswertung[[#This Row],[Punkte]]>0,RANK(Tabelle_Auswertung[[#This Row],[Punkte]],[Punkte],0)," - ")," - ") -> - | Y60: - - - | Z60: =IF(Tabelle_Auswertung[[#This Row],[Platz]]=1,CONCATENATE(Tabelle_Auswertung[[#This Row],[Bildname]]," von ",Tabelle_Auswertung[[#This Row],[Autor(in)]]),"") ->  | AA60: =IF(Tabelle_Auswertung[[#This Row],[Platz]]=2,CONCATENATE(Tabelle_Auswertung[[#This Row],[Bildname]]," von ",Tabelle_Auswertung[[#This Row],[Autor(in)]]),"") ->  | AB60: =IF(Tabelle_Auswertung[[#This Row],[Platz]]=3,CONCATENATE(Tabelle_Auswertung[[#This Row],[Bildname]]," von ",Tabelle_Auswertung[[#This Row],[Autor(in)]]),"") ->  | AC60: =IF(Tabelle_Auswertung[[#This Row],[Platz]]=4,CONCATENATE(Tabelle_Auswertung[[#This Row],[Bildname]]," von ",Tabelle_Auswertung[[#This Row],[Autor(in)]]),"") ->  | AD60: =IF(Tabelle_Auswertung[[#This Row],[Platz]]=5,CONCATENATE(Tabelle_Auswertung[[#This Row],[Bildname]]," von ",Tabelle_Auswertung[[#This Row],[Autor(in)]]),"") ->  | AE60: =IF(Tabelle_Auswertung[[#This Row],[Platz]]=6,CONCATENATE(Tabelle_Auswertung[[#This Row],[Bildname]]," von ",Tabelle_Auswertung[[#This Row],[Autor(in)]]),"") ->  | AF60: =IF(Tabelle_Auswertung[[#This Row],[Platz]]=7,CONCATENATE(Tabelle_Auswertung[[#This Row],[Bildname]]," von ",Tabelle_Auswertung[[#This Row],[Autor(in)]]),"") ->  | AG60: =IF(Tabelle_Auswertung[[#This Row],[Platz]]=8,CONCATENATE(Tabelle_Auswertung[[#This Row],[Bildname]]," von ",Tabelle_Auswertung[[#This Row],[Autor(in)]]),"") ->  | AH60: =IF(Tabelle_Auswertung[[#This Row],[Platz]]=9,CONCATENATE(Tabelle_Auswertung[[#This Row],[Bildname]]," von ",Tabelle_Auswertung[[#This Row],[Autor(in)]]),"") ->  | AI60: =IF(Tabelle_Auswertung[[#This Row],[Platz]]=10,CONCATENATE(Tabelle_Auswertung[[#This Row],[Bildname]]," von ",Tabelle_Auswertung[[#This Row],[Autor(in)]]),"") -> 
V61: =IF(Tabelle_Auswertung[[#This Row],[Bildname]]<>"",SUM(Tabelle_Auswertung[[#This Row],[Juror 1]:[Juror 20]])," - ") -> - | W61: =IF(Tabelle_Auswertung[[#This Row],[Bildname]]<>"",IF(Tabelle_Auswertung[[#This Row],[Punkte]]>0,AVERAGE(Tabelle_Auswertung[[#This Row],[Juror 1]:[Juror 20]])," - ")," - ") -> - | X61: =IF(Tabelle_Auswertung[[#This Row],[Bildname]]<>"",IF(Tabelle_Auswertung[[#This Row],[Punkte]]>0,RANK(Tabelle_Auswertung[[#This Row],[Punkte]],[Punkte],0)," - ")," - ") -> - | Y61: - - - | Z61: =IF(Tabelle_Auswertung[[#This Row],[Platz]]=1,CONCATENATE(Tabelle_Auswertung[[#This Row],[Bildname]]," von ",Tabelle_Auswertung[[#This Row],[Autor(in)]]),"") ->  | AA61: =IF(Tabelle_Auswertung[[#This Row],[Platz]]=2,CONCATENATE(Tabelle_Auswertung[[#This Row],[Bildname]]," von ",Tabelle_Auswertung[[#This Row],[Autor(in)]]),"") ->  | AB61: =IF(Tabelle_Auswertung[[#This Row],[Platz]]=3,CONCATENATE(Tabelle_Auswertung[[#This Row],[Bildname]]," von ",Tabelle_Auswertung[[#This Row],[Autor(in)]]),"") ->  | AC61: =IF(Tabelle_Auswertung[[#This Row],[Platz]]=4,CONCATENATE(Tabelle_Auswertung[[#This Row],[Bildname]]," von ",Tabelle_Auswertung[[#This Row],[Autor(in)]]),"") ->  | AD61: =IF(Tabelle_Auswertung[[#This Row],[Platz]]=5,CONCATENATE(Tabelle_Auswertung[[#This Row],[Bildname]]," von ",Tabelle_Auswertung[[#This Row],[Autor(in)]]),"") ->  | AE61: =IF(Tabelle_Auswertung[[#This Row],[Platz]]=6,CONCATENATE(Tabelle_Auswertung[[#This Row],[Bildname]]," von ",Tabelle_Auswertung[[#This Row],[Autor(in)]]),"") ->  | AF61: =IF(Tabelle_Auswertung[[#This Row],[Platz]]=7,CONCATENATE(Tabelle_Auswertung[[#This Row],[Bildname]]," von ",Tabelle_Auswertung[[#This Row],[Autor(in)]]),"") ->  | AG61: =IF(Tabelle_Auswertung[[#This Row],[Platz]]=8,CONCATENATE(Tabelle_Auswertung[[#This Row],[Bildname]]," von ",Tabelle_Auswertung[[#This Row],[Autor(in)]]),"") ->  | AH61: =IF(Tabelle_Auswertung[[#This Row],[Platz]]=9,CONCATENATE(Tabelle_Auswertung[[#This Row],[Bildname]]," von ",Tabelle_Auswertung[[#This Row],[Autor(in)]]),"") ->  | AI61: =IF(Tabelle_Auswertung[[#This Row],[Platz]]=10,CONCATENATE(Tabelle_Auswertung[[#This Row],[Bildname]]," von ",Tabelle_Auswertung[[#This Row],[Autor(in)]]),"") -> 
V62: =IF(Tabelle_Auswertung[[#This Row],[Bildname]]<>"",SUM(Tabelle_Auswertung[[#This Row],[Juror 1]:[Juror 20]])," - ") -> - | W62: =IF(Tabelle_Auswertung[[#This Row],[Bildname]]<>"",IF(Tabelle_Auswertung[[#This Row],[Punkte]]>0,AVERAGE(Tabelle_Auswertung[[#This Row],[Juror 1]:[Juror 20]])," - ")," - ") -> - | X62: =IF(Tabelle_Auswertung[[#This Row],[Bildname]]<>"",IF(Tabelle_Auswertung[[#This Row],[Punkte]]>0,RANK(Tabelle_Auswertung[[#This Row],[Punkte]],[Punkte],0)," - ")," - ") -> - | Y62: - - - | Z62: =IF(Tabelle_Auswertung[[#This Row],[Platz]]=1,CONCATENATE(Tabelle_Auswertung[[#This Row],[Bildname]]," von ",Tabelle_Auswertung[[#This Row],[Autor(in)]]),"") ->  | AA62: =IF(Tabelle_Auswertung[[#This Row],[Platz]]=2,CONCATENATE(Tabelle_Auswertung[[#This Row],[Bildname]]," von ",Tabelle_Auswertung[[#This Row],[Autor(in)]]),"") ->  | AB62: =IF(Tabelle_Auswertung[[#This Row],[Platz]]=3,CONCATENATE(Tabelle_Auswertung[[#This Row],[Bildname]]," von ",Tabelle_Auswertung[[#This Row],[Autor(in)]]),"") ->  | AC62: =IF(Tabelle_Auswertung[[#This Row],[Platz]]=4,CONCATENATE(Tabelle_Auswertung[[#This Row],[Bildname]]," von ",Tabelle_Auswertung[[#This Row],[Autor(in)]]),"") ->  | AD62: =IF(Tabelle_Auswertung[[#This Row],[Platz]]=5,CONCATENATE(Tabelle_Auswertung[[#This Row],[Bildname]]," von ",Tabelle_Auswertung[[#This Row],[Autor(in)]]),"") ->  | AE62: =IF(Tabelle_Auswertung[[#This Row],[Platz]]=6,CONCATENATE(Tabelle_Auswertung[[#This Row],[Bildname]]," von ",Tabelle_Auswertung[[#This Row],[Autor(in)]]),"") ->  | AF62: =IF(Tabelle_Auswertung[[#This Row],[Platz]]=7,CONCATENATE(Tabelle_Auswertung[[#This Row],[Bildname]]," von ",Tabelle_Auswertung[[#This Row],[Autor(in)]]),"") ->  | AG62: =IF(Tabelle_Auswertung[[#This Row],[Platz]]=8,CONCATENATE(Tabelle_Auswertung[[#This Row],[Bildname]]," von ",Tabelle_Auswertung[[#This Row],[Autor(in)]]),"") ->  | AH62: =IF(Tabelle_Auswertung[[#This Row],[Platz]]=9,CONCATENATE(Tabelle_Auswertung[[#This Row],[Bildname]]," von ",Tabelle_Auswertung[[#This Row],[Autor(in)]]),"") ->  | AI62: =IF(Tabelle_Auswertung[[#This Row],[Platz]]=10,CONCATENATE(Tabelle_Auswertung[[#This Row],[Bildname]]," von ",Tabelle_Auswertung[[#This Row],[Autor(in)]]),"") -> 
V63: =IF(Tabelle_Auswertung[[#This Row],[Bildname]]<>"",SUM(Tabelle_Auswertung[[#This Row],[Juror 1]:[Juror 20]])," - ") -> - | W63: =IF(Tabelle_Auswertung[[#This Row],[Bildname]]<>"",IF(Tabelle_Auswertung[[#This Row],[Punkte]]>0,AVERAGE(Tabelle_Auswertung[[#This Row],[Juror 1]:[Juror 20]])," - ")," - ") -> - | X63: =IF(Tabelle_Auswertung[[#This Row],[Bildname]]<>"",IF(Tabelle_Auswertung[[#This Row],[Punkte]]>0,RANK(Tabelle_Auswertung[[#This Row],[Punkte]],[Punkte],0)," - ")," - ") -> - | Y63: - - - | Z63: =IF(Tabelle_Auswertung[[#This Row],[Platz]]=1,CONCATENATE(Tabelle_Auswertung[[#This Row],[Bildname]]," von ",Tabelle_Auswertung[[#This Row],[Autor(in)]]),"") ->  | AA63: =IF(Tabelle_Auswertung[[#This Row],[Platz]]=2,CONCATENATE(Tabelle_Auswertung[[#This Row],[Bildname]]," von ",Tabelle_Auswertung[[#This Row],[Autor(in)]]),"") ->  | AB63: =IF(Tabelle_Auswertung[[#This Row],[Platz]]=3,CONCATENATE(Tabelle_Auswertung[[#This Row],[Bildname]]," von ",Tabelle_Auswertung[[#This Row],[Autor(in)]]),"") ->  | AC63: =IF(Tabelle_Auswertung[[#This Row],[Platz]]=4,CONCATENATE(Tabelle_Auswertung[[#This Row],[Bildname]]," von ",Tabelle_Auswertung[[#This Row],[Autor(in)]]),"") ->  | AD63: =IF(Tabelle_Auswertung[[#This Row],[Platz]]=5,CONCATENATE(Tabelle_Auswertung[[#This Row],[Bildname]]," von ",Tabelle_Auswertung[[#This Row],[Autor(in)]]),"") ->  | AE63: =IF(Tabelle_Auswertung[[#This Row],[Platz]]=6,CONCATENATE(Tabelle_Auswertung[[#This Row],[Bildname]]," von ",Tabelle_Auswertung[[#This Row],[Autor(in)]]),"") ->  | AF63: =IF(Tabelle_Auswertung[[#This Row],[Platz]]=7,CONCATENATE(Tabelle_Auswertung[[#This Row],[Bildname]]," von ",Tabelle_Auswertung[[#This Row],[Autor(in)]]),"") ->  | AG63: =IF(Tabelle_Auswertung[[#This Row],[Platz]]=8,CONCATENATE(Tabelle_Auswertung[[#This Row],[Bildname]]," von ",Tabelle_Auswertung[[#This Row],[Autor(in)]]),"") ->  | AH63: =IF(Tabelle_Auswertung[[#This Row],[Platz]]=9,CONCATENATE(Tabelle_Auswertung[[#This Row],[Bildname]]," von ",Tabelle_Auswertung[[#This Row],[Autor(in)]]),"") ->  | AI63: =IF(Tabelle_Auswertung[[#This Row],[Platz]]=10,CONCATENATE(Tabelle_Auswertung[[#This Row],[Bildname]]," von ",Tabelle_Auswertung[[#This Row],[Autor(in)]]),"") -> 
V64: =IF(Tabelle_Auswertung[[#This Row],[Bildname]]<>"",SUM(Tabelle_Auswertung[[#This Row],[Juror 1]:[Juror 20]])," - ") -> - | W64: =IF(Tabelle_Auswertung[[#This Row],[Bildname]]<>"",IF(Tabelle_Auswertung[[#This Row],[Punkte]]>0,AVERAGE(Tabelle_Auswertung[[#This Row],[Juror 1]:[Juror 20]])," - ")," - ") -> - | X64: =IF(Tabelle_Auswertung[[#This Row],[Bildname]]<>"",IF(Tabelle_Auswertung[[#This Row],[Punkte]]>0,RANK(Tabelle_Auswertung[[#This Row],[Punkte]],[Punkte],0)," - ")," - ") -> - | Y64: - - - | Z64: =IF(Tabelle_Auswertung[[#This Row],[Platz]]=1,CONCATENATE(Tabelle_Auswertung[[#This Row],[Bildname]]," von ",Tabelle_Auswertung[[#This Row],[Autor(in)]]),"") ->  | AA64: =IF(Tabelle_Auswertung[[#This Row],[Platz]]=2,CONCATENATE(Tabelle_Auswertung[[#This Row],[Bildname]]," von ",Tabelle_Auswertung[[#This Row],[Autor(in)]]),"") ->  | AB64: =IF(Tabelle_Auswertung[[#This Row],[Platz]]=3,CONCATENATE(Tabelle_Auswertung[[#This Row],[Bildname]]," von ",Tabelle_Auswertung[[#This Row],[Autor(in)]]),"") ->  | AC64: =IF(Tabelle_Auswertung[[#This Row],[Platz]]=4,CONCATENATE(Tabelle_Auswertung[[#This Row],[Bildname]]," von ",Tabelle_Auswertung[[#This Row],[Autor(in)]]),"") ->  | AD64: =IF(Tabelle_Auswertung[[#This Row],[Platz]]=5,CONCATENATE(Tabelle_Auswertung[[#This Row],[Bildname]]," von ",Tabelle_Auswertung[[#This Row],[Autor(in)]]),"") ->  | AE64: =IF(Tabelle_Auswertung[[#This Row],[Platz]]=6,CONCATENATE(Tabelle_Auswertung[[#This Row],[Bildname]]," von ",Tabelle_Auswertung[[#This Row],[Autor(in)]]),"") ->  | AF64: =IF(Tabelle_Auswertung[[#This Row],[Platz]]=7,CONCATENATE(Tabelle_Auswertung[[#This Row],[Bildname]]," von ",Tabelle_Auswertung[[#This Row],[Autor(in)]]),"") ->  | AG64: =IF(Tabelle_Auswertung[[#This Row],[Platz]]=8,CONCATENATE(Tabelle_Auswertung[[#This Row],[Bildname]]," von ",Tabelle_Auswertung[[#This Row],[Autor(in)]]),"") ->  | AH64: =IF(Tabelle_Auswertung[[#This Row],[Platz]]=9,CONCATENATE(Tabelle_Auswertung[[#This Row],[Bildname]]," von ",Tabelle_Auswertung[[#This Row],[Autor(in)]]),"") ->  | AI64: =IF(Tabelle_Auswertung[[#This Row],[Platz]]=10,CONCATENATE(Tabelle_Auswertung[[#This Row],[Bildname]]," von ",Tabelle_Auswertung[[#This Row],[Autor(in)]]),"") -> 
V65: =IF(Tabelle_Auswertung[[#This Row],[Bildname]]<>"",SUM(Tabelle_Auswertung[[#This Row],[Juror 1]:[Juror 20]])," - ") -> - | W65: =IF(Tabelle_Auswertung[[#This Row],[Bildname]]<>"",IF(Tabelle_Auswertung[[#This Row],[Punkte]]>0,AVERAGE(Tabelle_Auswertung[[#This Row],[Juror 1]:[Juror 20]])," - ")," - ") -> - | X65: =IF(Tabelle_Auswertung[[#This Row],[Bildname]]<>"",IF(Tabelle_Auswertung[[#This Row],[Punkte]]>0,RANK(Tabelle_Auswertung[[#This Row],[Punkte]],[Punkte],0)," - ")," - ") -> - | Y65: - - - | Z65: =IF(Tabelle_Auswertung[[#This Row],[Platz]]=1,CONCATENATE(Tabelle_Auswertung[[#This Row],[Bildname]]," von ",Tabelle_Auswertung[[#This Row],[Autor(in)]]),"") ->  | AA65: =IF(Tabelle_Auswertung[[#This Row],[Platz]]=2,CONCATENATE(Tabelle_Auswertung[[#This Row],[Bildname]]," von ",Tabelle_Auswertung[[#This Row],[Autor(in)]]),"") ->  | AB65: =IF(Tabelle_Auswertung[[#This Row],[Platz]]=3,CONCATENATE(Tabelle_Auswertung[[#This Row],[Bildname]]," von ",Tabelle_Auswertung[[#This Row],[Autor(in)]]),"") ->  | AC65: =IF(Tabelle_Auswertung[[#This Row],[Platz]]=4,CONCATENATE(Tabelle_Auswertung[[#This Row],[Bildname]]," von ",Tabelle_Auswertung[[#This Row],[Autor(in)]]),"") ->  | AD65: =IF(Tabelle_Auswertung[[#This Row],[Platz]]=5,CONCATENATE(Tabelle_Auswertung[[#This Row],[Bildname]]," von ",Tabelle_Auswertung[[#This Row],[Autor(in)]]),"") ->  | AE65: =IF(Tabelle_Auswertung[[#This Row],[Platz]]=6,CONCATENATE(Tabelle_Auswertung[[#This Row],[Bildname]]," von ",Tabelle_Auswertung[[#This Row],[Autor(in)]]),"") ->  | AF65: =IF(Tabelle_Auswertung[[#This Row],[Platz]]=7,CONCATENATE(Tabelle_Auswertung[[#This Row],[Bildname]]," von ",Tabelle_Auswertung[[#This Row],[Autor(in)]]),"") ->  | AG65: =IF(Tabelle_Auswertung[[#This Row],[Platz]]=8,CONCATENATE(Tabelle_Auswertung[[#This Row],[Bildname]]," von ",Tabelle_Auswertung[[#This Row],[Autor(in)]]),"") ->  | AH65: =IF(Tabelle_Auswertung[[#This Row],[Platz]]=9,CONCATENATE(Tabelle_Auswertung[[#This Row],[Bildname]]," von ",Tabelle_Auswertung[[#This Row],[Autor(in)]]),"") ->  | AI65: =IF(Tabelle_Auswertung[[#This Row],[Platz]]=10,CONCATENATE(Tabelle_Auswertung[[#This Row],[Bildname]]," von ",Tabelle_Auswertung[[#This Row],[Autor(in)]]),"") -> 
V66: =IF(Tabelle_Auswertung[[#This Row],[Bildname]]<>"",SUM(Tabelle_Auswertung[[#This Row],[Juror 1]:[Juror 20]])," - ") -> - | W66: =IF(Tabelle_Auswertung[[#This Row],[Bildname]]<>"",IF(Tabelle_Auswertung[[#This Row],[Punkte]]>0,AVERAGE(Tabelle_Auswertung[[#This Row],[Juror 1]:[Juror 20]])," - ")," - ") -> - | X66: =IF(Tabelle_Auswertung[[#This Row],[Bildname]]<>"",IF(Tabelle_Auswertung[[#This Row],[Punkte]]>0,RANK(Tabelle_Auswertung[[#This Row],[Punkte]],[Punkte],0)," - ")," - ") -> - | Y66: - - - | Z66: =IF(Tabelle_Auswertung[[#This Row],[Platz]]=1,CONCATENATE(Tabelle_Auswertung[[#This Row],[Bildname]]," von ",Tabelle_Auswertung[[#This Row],[Autor(in)]]),"") ->  | AA66: =IF(Tabelle_Auswertung[[#This Row],[Platz]]=2,CONCATENATE(Tabelle_Auswertung[[#This Row],[Bildname]]," von ",Tabelle_Auswertung[[#This Row],[Autor(in)]]),"") ->  | AB66: =IF(Tabelle_Auswertung[[#This Row],[Platz]]=3,CONCATENATE(Tabelle_Auswertung[[#This Row],[Bildname]]," von ",Tabelle_Auswertung[[#This Row],[Autor(in)]]),"") ->  | AC66: =IF(Tabelle_Auswertung[[#This Row],[Platz]]=4,CONCATENATE(Tabelle_Auswertung[[#This Row],[Bildname]]," von ",Tabelle_Auswertung[[#This Row],[Autor(in)]]),"") ->  | AD66: =IF(Tabelle_Auswertung[[#This Row],[Platz]]=5,CONCATENATE(Tabelle_Auswertung[[#This Row],[Bildname]]," von ",Tabelle_Auswertung[[#This Row],[Autor(in)]]),"") ->  | AE66: =IF(Tabelle_Auswertung[[#This Row],[Platz]]=6,CONCATENATE(Tabelle_Auswertung[[#This Row],[Bildname]]," von ",Tabelle_Auswertung[[#This Row],[Autor(in)]]),"") ->  | AF66: =IF(Tabelle_Auswertung[[#This Row],[Platz]]=7,CONCATENATE(Tabelle_Auswertung[[#This Row],[Bildname]]," von ",Tabelle_Auswertung[[#This Row],[Autor(in)]]),"") ->  | AG66: =IF(Tabelle_Auswertung[[#This Row],[Platz]]=8,CONCATENATE(Tabelle_Auswertung[[#This Row],[Bildname]]," von ",Tabelle_Auswertung[[#This Row],[Autor(in)]]),"") ->  | AH66: =IF(Tabelle_Auswertung[[#This Row],[Platz]]=9,CONCATENATE(Tabelle_Auswertung[[#This Row],[Bildname]]," von ",Tabelle_Auswertung[[#This Row],[Autor(in)]]),"") ->  | AI66: =IF(Tabelle_Auswertung[[#This Row],[Platz]]=10,CONCATENATE(Tabelle_Auswertung[[#This Row],[Bildname]]," von ",Tabelle_Auswertung[[#This Row],[Autor(in)]]),"") -> 
V67: =IF(Tabelle_Auswertung[[#This Row],[Bildname]]<>"",SUM(Tabelle_Auswertung[[#This Row],[Juror 1]:[Juror 20]])," - ") -> - | W67: =IF(Tabelle_Auswertung[[#This Row],[Bildname]]<>"",IF(Tabelle_Auswertung[[#This Row],[Punkte]]>0,AVERAGE(Tabelle_Auswertung[[#This Row],[Juror 1]:[Juror 20]])," - ")," - ") -> - | X67: =IF(Tabelle_Auswertung[[#This Row],[Bildname]]<>"",IF(Tabelle_Auswertung[[#This Row],[Punkte]]>0,RANK(Tabelle_Auswertung[[#This Row],[Punkte]],[Punkte],0)," - ")," - ") -> - | Y67: - - - | Z67: =IF(Tabelle_Auswertung[[#This Row],[Platz]]=1,CONCATENATE(Tabelle_Auswertung[[#This Row],[Bildname]]," von ",Tabelle_Auswertung[[#This Row],[Autor(in)]]),"") ->  | AA67: =IF(Tabelle_Auswertung[[#This Row],[Platz]]=2,CONCATENATE(Tabelle_Auswertung[[#This Row],[Bildname]]," von ",Tabelle_Auswertung[[#This Row],[Autor(in)]]),"") ->  | AB67: =IF(Tabelle_Auswertung[[#This Row],[Platz]]=3,CONCATENATE(Tabelle_Auswertung[[#This Row],[Bildname]]," von ",Tabelle_Auswertung[[#This Row],[Autor(in)]]),"") ->  | AC67: =IF(Tabelle_Auswertung[[#This Row],[Platz]]=4,CONCATENATE(Tabelle_Auswertung[[#This Row],[Bildname]]," von ",Tabelle_Auswertung[[#This Row],[Autor(in)]]),"") ->  | AD67: =IF(Tabelle_Auswertung[[#This Row],[Platz]]=5,CONCATENATE(Tabelle_Auswertung[[#This Row],[Bildname]]," von ",Tabelle_Auswertung[[#This Row],[Autor(in)]]),"") ->  | AE67: =IF(Tabelle_Auswertung[[#This Row],[Platz]]=6,CONCATENATE(Tabelle_Auswertung[[#This Row],[Bildname]]," von ",Tabelle_Auswertung[[#This Row],[Autor(in)]]),"") ->  | AF67: =IF(Tabelle_Auswertung[[#This Row],[Platz]]=7,CONCATENATE(Tabelle_Auswertung[[#This Row],[Bildname]]," von ",Tabelle_Auswertung[[#This Row],[Autor(in)]]),"") ->  | AG67: =IF(Tabelle_Auswertung[[#This Row],[Platz]]=8,CONCATENATE(Tabelle_Auswertung[[#This Row],[Bildname]]," von ",Tabelle_Auswertung[[#This Row],[Autor(in)]]),"") ->  | AH67: =IF(Tabelle_Auswertung[[#This Row],[Platz]]=9,CONCATENATE(Tabelle_Auswertung[[#This Row],[Bildname]]," von ",Tabelle_Auswertung[[#This Row],[Autor(in)]]),"") ->  | AI67: =IF(Tabelle_Auswertung[[#This Row],[Platz]]=10,CONCATENATE(Tabelle_Auswertung[[#This Row],[Bildname]]," von ",Tabelle_Auswertung[[#This Row],[Autor(in)]]),"") -> 
V68: =IF(Tabelle_Auswertung[[#This Row],[Bildname]]<>"",SUM(Tabelle_Auswertung[[#This Row],[Juror 1]:[Juror 20]])," - ") -> - | W68: =IF(Tabelle_Auswertung[[#This Row],[Bildname]]<>"",IF(Tabelle_Auswertung[[#This Row],[Punkte]]>0,AVERAGE(Tabelle_Auswertung[[#This Row],[Juror 1]:[Juror 20]])," - ")," - ") -> - | X68: =IF(Tabelle_Auswertung[[#This Row],[Bildname]]<>"",IF(Tabelle_Auswertung[[#This Row],[Punkte]]>0,RANK(Tabelle_Auswertung[[#This Row],[Punkte]],[Punkte],0)," - ")," - ") -> - | Y68: - - - | Z68: =IF(Tabelle_Auswertung[[#This Row],[Platz]]=1,CONCATENATE(Tabelle_Auswertung[[#This Row],[Bildname]]," von ",Tabelle_Auswertung[[#This Row],[Autor(in)]]),"") ->  | AA68: =IF(Tabelle_Auswertung[[#This Row],[Platz]]=2,CONCATENATE(Tabelle_Auswertung[[#This Row],[Bildname]]," von ",Tabelle_Auswertung[[#This Row],[Autor(in)]]),"") ->  | AB68: =IF(Tabelle_Auswertung[[#This Row],[Platz]]=3,CONCATENATE(Tabelle_Auswertung[[#This Row],[Bildname]]," von ",Tabelle_Auswertung[[#This Row],[Autor(in)]]),"") ->  | AC68: =IF(Tabelle_Auswertung[[#This Row],[Platz]]=4,CONCATENATE(Tabelle_Auswertung[[#This Row],[Bildname]]," von ",Tabelle_Auswertung[[#This Row],[Autor(in)]]),"") ->  | AD68: =IF(Tabelle_Auswertung[[#This Row],[Platz]]=5,CONCATENATE(Tabelle_Auswertung[[#This Row],[Bildname]]," von ",Tabelle_Auswertung[[#This Row],[Autor(in)]]),"") ->  | AE68: =IF(Tabelle_Auswertung[[#This Row],[Platz]]=6,CONCATENATE(Tabelle_Auswertung[[#This Row],[Bildname]]," von ",Tabelle_Auswertung[[#This Row],[Autor(in)]]),"") ->  | AF68: =IF(Tabelle_Auswertung[[#This Row],[Platz]]=7,CONCATENATE(Tabelle_Auswertung[[#This Row],[Bildname]]," von ",Tabelle_Auswertung[[#This Row],[Autor(in)]]),"") ->  | AG68: =IF(Tabelle_Auswertung[[#This Row],[Platz]]=8,CONCATENATE(Tabelle_Auswertung[[#This Row],[Bildname]]," von ",Tabelle_Auswertung[[#This Row],[Autor(in)]]),"") ->  | AH68: =IF(Tabelle_Auswertung[[#This Row],[Platz]]=9,CONCATENATE(Tabelle_Auswertung[[#This Row],[Bildname]]," von ",Tabelle_Auswertung[[#This Row],[Autor(in)]]),"") ->  | AI68: =IF(Tabelle_Auswertung[[#This Row],[Platz]]=10,CONCATENATE(Tabelle_Auswertung[[#This Row],[Bildname]]," von ",Tabelle_Auswertung[[#This Row],[Autor(in)]]),"") -> 
V69: =IF(Tabelle_Auswertung[[#This Row],[Bildname]]<>"",SUM(Tabelle_Auswertung[[#This Row],[Juror 1]:[Juror 20]])," - ") -> - | W69: =IF(Tabelle_Auswertung[[#This Row],[Bildname]]<>"",IF(Tabelle_Auswertung[[#This Row],[Punkte]]>0,AVERAGE(Tabelle_Auswertung[[#This Row],[Juror 1]:[Juror 20]])," - ")," - ") -> - | X69: =IF(Tabelle_Auswertung[[#This Row],[Bildname]]<>"",IF(Tabelle_Auswertung[[#This Row],[Punkte]]>0,RANK(Tabelle_Auswertung[[#This Row],[Punkte]],[Punkte],0)," - ")," - ") -> - | Y69: - - - | Z69: =IF(Tabelle_Auswertung[[#This Row],[Platz]]=1,CONCATENATE(Tabelle_Auswertung[[#This Row],[Bildname]]," von ",Tabelle_Auswertung[[#This Row],[Autor(in)]]),"") ->  | AA69: =IF(Tabelle_Auswertung[[#This Row],[Platz]]=2,CONCATENATE(Tabelle_Auswertung[[#This Row],[Bildname]]," von ",Tabelle_Auswertung[[#This Row],[Autor(in)]]),"") ->  | AB69: =IF(Tabelle_Auswertung[[#This Row],[Platz]]=3,CONCATENATE(Tabelle_Auswertung[[#This Row],[Bildname]]," von ",Tabelle_Auswertung[[#This Row],[Autor(in)]]),"") ->  | AC69: =IF(Tabelle_Auswertung[[#This Row],[Platz]]=4,CONCATENATE(Tabelle_Auswertung[[#This Row],[Bildname]]," von ",Tabelle_Auswertung[[#This Row],[Autor(in)]]),"") ->  | AD69: =IF(Tabelle_Auswertung[[#This Row],[Platz]]=5,CONCATENATE(Tabelle_Auswertung[[#This Row],[Bildname]]," von ",Tabelle_Auswertung[[#This Row],[Autor(in)]]),"") ->  | AE69: =IF(Tabelle_Auswertung[[#This Row],[Platz]]=6,CONCATENATE(Tabelle_Auswertung[[#This Row],[Bildname]]," von ",Tabelle_Auswertung[[#This Row],[Autor(in)]]),"") ->  | AF69: =IF(Tabelle_Auswertung[[#This Row],[Platz]]=7,CONCATENATE(Tabelle_Auswertung[[#This Row],[Bildname]]," von ",Tabelle_Auswertung[[#This Row],[Autor(in)]]),"") ->  | AG69: =IF(Tabelle_Auswertung[[#This Row],[Platz]]=8,CONCATENATE(Tabelle_Auswertung[[#This Row],[Bildname]]," von ",Tabelle_Auswertung[[#This Row],[Autor(in)]]),"") ->  | AH69: =IF(Tabelle_Auswertung[[#This Row],[Platz]]=9,CONCATENATE(Tabelle_Auswertung[[#This Row],[Bildname]]," von ",Tabelle_Auswertung[[#This Row],[Autor(in)]]),"") ->  | AI69: =IF(Tabelle_Auswertung[[#This Row],[Platz]]=10,CONCATENATE(Tabelle_Auswertung[[#This Row],[Bildname]]," von ",Tabelle_Auswertung[[#This Row],[Autor(in)]]),"") -> 
V70: =IF(Tabelle_Auswertung[[#This Row],[Bildname]]<>"",SUM(Tabelle_Auswertung[[#This Row],[Juror 1]:[Juror 20]])," - ") -> - | W70: =IF(Tabelle_Auswertung[[#This Row],[Bildname]]<>"",IF(Tabelle_Auswertung[[#This Row],[Punkte]]>0,AVERAGE(Tabelle_Auswertung[[#This Row],[Juror 1]:[Juror 20]])," - ")," - ") -> - | X70: =IF(Tabelle_Auswertung[[#This Row],[Bildname]]<>"",IF(Tabelle_Auswertung[[#This Row],[Punkte]]>0,RANK(Tabelle_Auswertung[[#This Row],[Punkte]],[Punkte],0)," - ")," - ") -> - | Y70: - - - | Z70: =IF(Tabelle_Auswertung[[#This Row],[Platz]]=1,CONCATENATE(Tabelle_Auswertung[[#This Row],[Bildname]]," von ",Tabelle_Auswertung[[#This Row],[Autor(in)]]),"") ->  | AA70: =IF(Tabelle_Auswertung[[#This Row],[Platz]]=2,CONCATENATE(Tabelle_Auswertung[[#This Row],[Bildname]]," von ",Tabelle_Auswertung[[#This Row],[Autor(in)]]),"") ->  | AB70: =IF(Tabelle_Auswertung[[#This Row],[Platz]]=3,CONCATENATE(Tabelle_Auswertung[[#This Row],[Bildname]]," von ",Tabelle_Auswertung[[#This Row],[Autor(in)]]),"") ->  | AC70: =IF(Tabelle_Auswertung[[#This Row],[Platz]]=4,CONCATENATE(Tabelle_Auswertung[[#This Row],[Bildname]]," von ",Tabelle_Auswertung[[#This Row],[Autor(in)]]),"") ->  | AD70: =IF(Tabelle_Auswertung[[#This Row],[Platz]]=5,CONCATENATE(Tabelle_Auswertung[[#This Row],[Bildname]]," von ",Tabelle_Auswertung[[#This Row],[Autor(in)]]),"") ->  | AE70: =IF(Tabelle_Auswertung[[#This Row],[Platz]]=6,CONCATENATE(Tabelle_Auswertung[[#This Row],[Bildname]]," von ",Tabelle_Auswertung[[#This Row],[Autor(in)]]),"") ->  | AF70: =IF(Tabelle_Auswertung[[#This Row],[Platz]]=7,CONCATENATE(Tabelle_Auswertung[[#This Row],[Bildname]]," von ",Tabelle_Auswertung[[#This Row],[Autor(in)]]),"") ->  | AG70: =IF(Tabelle_Auswertung[[#This Row],[Platz]]=8,CONCATENATE(Tabelle_Auswertung[[#This Row],[Bildname]]," von ",Tabelle_Auswertung[[#This Row],[Autor(in)]]),"") ->  | AH70: =IF(Tabelle_Auswertung[[#This Row],[Platz]]=9,CONCATENATE(Tabelle_Auswertung[[#This Row],[Bildname]]," von ",Tabelle_Auswertung[[#This Row],[Autor(in)]]),"") ->  | AI70: =IF(Tabelle_Auswertung[[#This Row],[Platz]]=10,CONCATENATE(Tabelle_Auswertung[[#This Row],[Bildname]]," von ",Tabelle_Auswertung[[#This Row],[Autor(in)]]),"") -> 
V71: =IF(Tabelle_Auswertung[[#This Row],[Bildname]]<>"",SUM(Tabelle_Auswertung[[#This Row],[Juror 1]:[Juror 20]])," - ") -> - | W71: =IF(Tabelle_Auswertung[[#This Row],[Bildname]]<>"",IF(Tabelle_Auswertung[[#This Row],[Punkte]]>0,AVERAGE(Tabelle_Auswertung[[#This Row],[Juror 1]:[Juror 20]])," - ")," - ") -> - | X71: =IF(Tabelle_Auswertung[[#This Row],[Bildname]]<>"",IF(Tabelle_Auswertung[[#This Row],[Punkte]]>0,RANK(Tabelle_Auswertung[[#This Row],[Punkte]],[Punkte],0)," - ")," - ") -> - | Y71: - - - | Z71: =IF(Tabelle_Auswertung[[#This Row],[Platz]]=1,CONCATENATE(Tabelle_Auswertung[[#This Row],[Bildname]]," von ",Tabelle_Auswertung[[#This Row],[Autor(in)]]),"") ->  | AA71: =IF(Tabelle_Auswertung[[#This Row],[Platz]]=2,CONCATENATE(Tabelle_Auswertung[[#This Row],[Bildname]]," von ",Tabelle_Auswertung[[#This Row],[Autor(in)]]),"") ->  | AB71: =IF(Tabelle_Auswertung[[#This Row],[Platz]]=3,CONCATENATE(Tabelle_Auswertung[[#This Row],[Bildname]]," von ",Tabelle_Auswertung[[#This Row],[Autor(in)]]),"") ->  | AC71: =IF(Tabelle_Auswertung[[#This Row],[Platz]]=4,CONCATENATE(Tabelle_Auswertung[[#This Row],[Bildname]]," von ",Tabelle_Auswertung[[#This Row],[Autor(in)]]),"") ->  | AD71: =IF(Tabelle_Auswertung[[#This Row],[Platz]]=5,CONCATENATE(Tabelle_Auswertung[[#This Row],[Bildname]]," von ",Tabelle_Auswertung[[#This Row],[Autor(in)]]),"") ->  | AE71: =IF(Tabelle_Auswertung[[#This Row],[Platz]]=6,CONCATENATE(Tabelle_Auswertung[[#This Row],[Bildname]]," von ",Tabelle_Auswertung[[#This Row],[Autor(in)]]),"") ->  | AF71: =IF(Tabelle_Auswertung[[#This Row],[Platz]]=7,CONCATENATE(Tabelle_Auswertung[[#This Row],[Bildname]]," von ",Tabelle_Auswertung[[#This Row],[Autor(in)]]),"") ->  | AG71: =IF(Tabelle_Auswertung[[#This Row],[Platz]]=8,CONCATENATE(Tabelle_Auswertung[[#This Row],[Bildname]]," von ",Tabelle_Auswertung[[#This Row],[Autor(in)]]),"") ->  | AH71: =IF(Tabelle_Auswertung[[#This Row],[Platz]]=9,CONCATENATE(Tabelle_Auswertung[[#This Row],[Bildname]]," von ",Tabelle_Auswertung[[#This Row],[Autor(in)]]),"") ->  | AI71: =IF(Tabelle_Auswertung[[#This Row],[Platz]]=10,CONCATENATE(Tabelle_Auswertung[[#This Row],[Bildname]]," von ",Tabelle_Auswertung[[#This Row],[Autor(in)]]),"") -> 
V72: =IF(Tabelle_Auswertung[[#This Row],[Bildname]]<>"",SUM(Tabelle_Auswertung[[#This Row],[Juror 1]:[Juror 20]])," - ") -> - | W72: =IF(Tabelle_Auswertung[[#This Row],[Bildname]]<>"",IF(Tabelle_Auswertung[[#This Row],[Punkte]]>0,AVERAGE(Tabelle_Auswertung[[#This Row],[Juror 1]:[Juror 20]])," - ")," - ") -> - | X72: =IF(Tabelle_Auswertung[[#This Row],[Bildname]]<>"",IF(Tabelle_Auswertung[[#This Row],[Punkte]]>0,RANK(Tabelle_Auswertung[[#This Row],[Punkte]],[Punkte],0)," - ")," - ") -> - | Y72: - - - | Z72: =IF(Tabelle_Auswertung[[#This Row],[Platz]]=1,CONCATENATE(Tabelle_Auswertung[[#This Row],[Bildname]]," von ",Tabelle_Auswertung[[#This Row],[Autor(in)]]),"") ->  | AA72: =IF(Tabelle_Auswertung[[#This Row],[Platz]]=2,CONCATENATE(Tabelle_Auswertung[[#This Row],[Bildname]]," von ",Tabelle_Auswertung[[#This Row],[Autor(in)]]),"") ->  | AB72: =IF(Tabelle_Auswertung[[#This Row],[Platz]]=3,CONCATENATE(Tabelle_Auswertung[[#This Row],[Bildname]]," von ",Tabelle_Auswertung[[#This Row],[Autor(in)]]),"") ->  | AC72: =IF(Tabelle_Auswertung[[#This Row],[Platz]]=4,CONCATENATE(Tabelle_Auswertung[[#This Row],[Bildname]]," von ",Tabelle_Auswertung[[#This Row],[Autor(in)]]),"") ->  | AD72: =IF(Tabelle_Auswertung[[#This Row],[Platz]]=5,CONCATENATE(Tabelle_Auswertung[[#This Row],[Bildname]]," von ",Tabelle_Auswertung[[#This Row],[Autor(in)]]),"") ->  | AE72: =IF(Tabelle_Auswertung[[#This Row],[Platz]]=6,CONCATENATE(Tabelle_Auswertung[[#This Row],[Bildname]]," von ",Tabelle_Auswertung[[#This Row],[Autor(in)]]),"") ->  | AF72: =IF(Tabelle_Auswertung[[#This Row],[Platz]]=7,CONCATENATE(Tabelle_Auswertung[[#This Row],[Bildname]]," von ",Tabelle_Auswertung[[#This Row],[Autor(in)]]),"") ->  | AG72: =IF(Tabelle_Auswertung[[#This Row],[Platz]]=8,CONCATENATE(Tabelle_Auswertung[[#This Row],[Bildname]]," von ",Tabelle_Auswertung[[#This Row],[Autor(in)]]),"") ->  | AH72: =IF(Tabelle_Auswertung[[#This Row],[Platz]]=9,CONCATENATE(Tabelle_Auswertung[[#This Row],[Bildname]]," von ",Tabelle_Auswertung[[#This Row],[Autor(in)]]),"") ->  | AI72: =IF(Tabelle_Auswertung[[#This Row],[Platz]]=10,CONCATENATE(Tabelle_Auswertung[[#This Row],[Bildname]]," von ",Tabelle_Auswertung[[#This Row],[Autor(in)]]),"") -> 
V73: =IF(Tabelle_Auswertung[[#This Row],[Bildname]]<>"",SUM(Tabelle_Auswertung[[#This Row],[Juror 1]:[Juror 20]])," - ") -> - | W73: =IF(Tabelle_Auswertung[[#This Row],[Bildname]]<>"",IF(Tabelle_Auswertung[[#This Row],[Punkte]]>0,AVERAGE(Tabelle_Auswertung[[#This Row],[Juror 1]:[Juror 20]])," - ")," - ") -> - | X73: =IF(Tabelle_Auswertung[[#This Row],[Bildname]]<>"",IF(Tabelle_Auswertung[[#This Row],[Punkte]]>0,RANK(Tabelle_Auswertung[[#This Row],[Punkte]],[Punkte],0)," - ")," - ") -> - | Y73: - - - | Z73: =IF(Tabelle_Auswertung[[#This Row],[Platz]]=1,CONCATENATE(Tabelle_Auswertung[[#This Row],[Bildname]]," von ",Tabelle_Auswertung[[#This Row],[Autor(in)]]),"") ->  | AA73: =IF(Tabelle_Auswertung[[#This Row],[Platz]]=2,CONCATENATE(Tabelle_Auswertung[[#This Row],[Bildname]]," von ",Tabelle_Auswertung[[#This Row],[Autor(in)]]),"") ->  | AB73: =IF(Tabelle_Auswertung[[#This Row],[Platz]]=3,CONCATENATE(Tabelle_Auswertung[[#This Row],[Bildname]]," von ",Tabelle_Auswertung[[#This Row],[Autor(in)]]),"") ->  | AC73: =IF(Tabelle_Auswertung[[#This Row],[Platz]]=4,CONCATENATE(Tabelle_Auswertung[[#This Row],[Bildname]]," von ",Tabelle_Auswertung[[#This Row],[Autor(in)]]),"") ->  | AD73: =IF(Tabelle_Auswertung[[#This Row],[Platz]]=5,CONCATENATE(Tabelle_Auswertung[[#This Row],[Bildname]]," von ",Tabelle_Auswertung[[#This Row],[Autor(in)]]),"") ->  | AE73: =IF(Tabelle_Auswertung[[#This Row],[Platz]]=6,CONCATENATE(Tabelle_Auswertung[[#This Row],[Bildname]]," von ",Tabelle_Auswertung[[#This Row],[Autor(in)]]),"") ->  | AF73: =IF(Tabelle_Auswertung[[#This Row],[Platz]]=7,CONCATENATE(Tabelle_Auswertung[[#This Row],[Bildname]]," von ",Tabelle_Auswertung[[#This Row],[Autor(in)]]),"") ->  | AG73: =IF(Tabelle_Auswertung[[#This Row],[Platz]]=8,CONCATENATE(Tabelle_Auswertung[[#This Row],[Bildname]]," von ",Tabelle_Auswertung[[#This Row],[Autor(in)]]),"") ->  | AH73: =IF(Tabelle_Auswertung[[#This Row],[Platz]]=9,CONCATENATE(Tabelle_Auswertung[[#This Row],[Bildname]]," von ",Tabelle_Auswertung[[#This Row],[Autor(in)]]),"") ->  | AI73: =IF(Tabelle_Auswertung[[#This Row],[Platz]]=10,CONCATENATE(Tabelle_Auswertung[[#This Row],[Bildname]]," von ",Tabelle_Auswertung[[#This Row],[Autor(in)]]),"") -> 
V74: =IF(Tabelle_Auswertung[[#This Row],[Bildname]]<>"",SUM(Tabelle_Auswertung[[#This Row],[Juror 1]:[Juror 20]])," - ") -> - | W74: =IF(Tabelle_Auswertung[[#This Row],[Bildname]]<>"",IF(Tabelle_Auswertung[[#This Row],[Punkte]]>0,AVERAGE(Tabelle_Auswertung[[#This Row],[Juror 1]:[Juror 20]])," - ")," - ") -> - | X74: =IF(Tabelle_Auswertung[[#This Row],[Bildname]]<>"",IF(Tabelle_Auswertung[[#This Row],[Punkte]]>0,RANK(Tabelle_Auswertung[[#This Row],[Punkte]],[Punkte],0)," - ")," - ") -> - | Y74: - - - | Z74: =IF(Tabelle_Auswertung[[#This Row],[Platz]]=1,CONCATENATE(Tabelle_Auswertung[[#This Row],[Bildname]]," von ",Tabelle_Auswertung[[#This Row],[Autor(in)]]),"") ->  | AA74: =IF(Tabelle_Auswertung[[#This Row],[Platz]]=2,CONCATENATE(Tabelle_Auswertung[[#This Row],[Bildname]]," von ",Tabelle_Auswertung[[#This Row],[Autor(in)]]),"") ->  | AB74: =IF(Tabelle_Auswertung[[#This Row],[Platz]]=3,CONCATENATE(Tabelle_Auswertung[[#This Row],[Bildname]]," von ",Tabelle_Auswertung[[#This Row],[Autor(in)]]),"") ->  | AC74: =IF(Tabelle_Auswertung[[#This Row],[Platz]]=4,CONCATENATE(Tabelle_Auswertung[[#This Row],[Bildname]]," von ",Tabelle_Auswertung[[#This Row],[Autor(in)]]),"") ->  | AD74: =IF(Tabelle_Auswertung[[#This Row],[Platz]]=5,CONCATENATE(Tabelle_Auswertung[[#This Row],[Bildname]]," von ",Tabelle_Auswertung[[#This Row],[Autor(in)]]),"") ->  | AE74: =IF(Tabelle_Auswertung[[#This Row],[Platz]]=6,CONCATENATE(Tabelle_Auswertung[[#This Row],[Bildname]]," von ",Tabelle_Auswertung[[#This Row],[Autor(in)]]),"") ->  | AF74: =IF(Tabelle_Auswertung[[#This Row],[Platz]]=7,CONCATENATE(Tabelle_Auswertung[[#This Row],[Bildname]]," von ",Tabelle_Auswertung[[#This Row],[Autor(in)]]),"") ->  | AG74: =IF(Tabelle_Auswertung[[#This Row],[Platz]]=8,CONCATENATE(Tabelle_Auswertung[[#This Row],[Bildname]]," von ",Tabelle_Auswertung[[#This Row],[Autor(in)]]),"") ->  | AH74: =IF(Tabelle_Auswertung[[#This Row],[Platz]]=9,CONCATENATE(Tabelle_Auswertung[[#This Row],[Bildname]]," von ",Tabelle_Auswertung[[#This Row],[Autor(in)]]),"") ->  | AI74: =IF(Tabelle_Auswertung[[#This Row],[Platz]]=10,CONCATENATE(Tabelle_Auswertung[[#This Row],[Bildname]]," von ",Tabelle_Auswertung[[#This Row],[Autor(in)]]),"") -> 
V75: =IF(Tabelle_Auswertung[[#This Row],[Bildname]]<>"",SUM(Tabelle_Auswertung[[#This Row],[Juror 1]:[Juror 20]])," - ") -> - | W75: =IF(Tabelle_Auswertung[[#This Row],[Bildname]]<>"",IF(Tabelle_Auswertung[[#This Row],[Punkte]]>0,AVERAGE(Tabelle_Auswertung[[#This Row],[Juror 1]:[Juror 20]])," - ")," - ") -> - | X75: =IF(Tabelle_Auswertung[[#This Row],[Bildname]]<>"",IF(Tabelle_Auswertung[[#This Row],[Punkte]]>0,RANK(Tabelle_Auswertung[[#This Row],[Punkte]],[Punkte],0)," - ")," - ") -> - | Y75: - - - | Z75: =IF(Tabelle_Auswertung[[#This Row],[Platz]]=1,CONCATENATE(Tabelle_Auswertung[[#This Row],[Bildname]]," von ",Tabelle_Auswertung[[#This Row],[Autor(in)]]),"") ->  | AA75: =IF(Tabelle_Auswertung[[#This Row],[Platz]]=2,CONCATENATE(Tabelle_Auswertung[[#This Row],[Bildname]]," von ",Tabelle_Auswertung[[#This Row],[Autor(in)]]),"") ->  | AB75: =IF(Tabelle_Auswertung[[#This Row],[Platz]]=3,CONCATENATE(Tabelle_Auswertung[[#This Row],[Bildname]]," von ",Tabelle_Auswertung[[#This Row],[Autor(in)]]),"") ->  | AC75: =IF(Tabelle_Auswertung[[#This Row],[Platz]]=4,CONCATENATE(Tabelle_Auswertung[[#This Row],[Bildname]]," von ",Tabelle_Auswertung[[#This Row],[Autor(in)]]),"") ->  | AD75: =IF(Tabelle_Auswertung[[#This Row],[Platz]]=5,CONCATENATE(Tabelle_Auswertung[[#This Row],[Bildname]]," von ",Tabelle_Auswertung[[#This Row],[Autor(in)]]),"") ->  | AE75: =IF(Tabelle_Auswertung[[#This Row],[Platz]]=6,CONCATENATE(Tabelle_Auswertung[[#This Row],[Bildname]]," von ",Tabelle_Auswertung[[#This Row],[Autor(in)]]),"") ->  | AF75: =IF(Tabelle_Auswertung[[#This Row],[Platz]]=7,CONCATENATE(Tabelle_Auswertung[[#This Row],[Bildname]]," von ",Tabelle_Auswertung[[#This Row],[Autor(in)]]),"") ->  | AG75: =IF(Tabelle_Auswertung[[#This Row],[Platz]]=8,CONCATENATE(Tabelle_Auswertung[[#This Row],[Bildname]]," von ",Tabelle_Auswertung[[#This Row],[Autor(in)]]),"") ->  | AH75: =IF(Tabelle_Auswertung[[#This Row],[Platz]]=9,CONCATENATE(Tabelle_Auswertung[[#This Row],[Bildname]]," von ",Tabelle_Auswertung[[#This Row],[Autor(in)]]),"") ->  | AI75: =IF(Tabelle_Auswertung[[#This Row],[Platz]]=10,CONCATENATE(Tabelle_Auswertung[[#This Row],[Bildname]]," von ",Tabelle_Auswertung[[#This Row],[Autor(in)]]),"") -> 
V76: =IF(Tabelle_Auswertung[[#This Row],[Bildname]]<>"",SUM(Tabelle_Auswertung[[#This Row],[Juror 1]:[Juror 20]])," - ") -> - | W76: =IF(Tabelle_Auswertung[[#This Row],[Bildname]]<>"",IF(Tabelle_Auswertung[[#This Row],[Punkte]]>0,AVERAGE(Tabelle_Auswertung[[#This Row],[Juror 1]:[Juror 20]])," - ")," - ") -> - | X76: =IF(Tabelle_Auswertung[[#This Row],[Bildname]]<>"",IF(Tabelle_Auswertung[[#This Row],[Punkte]]>0,RANK(Tabelle_Auswertung[[#This Row],[Punkte]],[Punkte],0)," - ")," - ") -> - | Y76: - - - | Z76: =IF(Tabelle_Auswertung[[#This Row],[Platz]]=1,CONCATENATE(Tabelle_Auswertung[[#This Row],[Bildname]]," von ",Tabelle_Auswertung[[#This Row],[Autor(in)]]),"") ->  | AA76: =IF(Tabelle_Auswertung[[#This Row],[Platz]]=2,CONCATENATE(Tabelle_Auswertung[[#This Row],[Bildname]]," von ",Tabelle_Auswertung[[#This Row],[Autor(in)]]),"") ->  | AB76: =IF(Tabelle_Auswertung[[#This Row],[Platz]]=3,CONCATENATE(Tabelle_Auswertung[[#This Row],[Bildname]]," von ",Tabelle_Auswertung[[#This Row],[Autor(in)]]),"") ->  | AC76: =IF(Tabelle_Auswertung[[#This Row],[Platz]]=4,CONCATENATE(Tabelle_Auswertung[[#This Row],[Bildname]]," von ",Tabelle_Auswertung[[#This Row],[Autor(in)]]),"") ->  | AD76: =IF(Tabelle_Auswertung[[#This Row],[Platz]]=5,CONCATENATE(Tabelle_Auswertung[[#This Row],[Bildname]]," von ",Tabelle_Auswertung[[#This Row],[Autor(in)]]),"") ->  | AE76: =IF(Tabelle_Auswertung[[#This Row],[Platz]]=6,CONCATENATE(Tabelle_Auswertung[[#This Row],[Bildname]]," von ",Tabelle_Auswertung[[#This Row],[Autor(in)]]),"") ->  | AF76: =IF(Tabelle_Auswertung[[#This Row],[Platz]]=7,CONCATENATE(Tabelle_Auswertung[[#This Row],[Bildname]]," von ",Tabelle_Auswertung[[#This Row],[Autor(in)]]),"") ->  | AG76: =IF(Tabelle_Auswertung[[#This Row],[Platz]]=8,CONCATENATE(Tabelle_Auswertung[[#This Row],[Bildname]]," von ",Tabelle_Auswertung[[#This Row],[Autor(in)]]),"") ->  | AH76: =IF(Tabelle_Auswertung[[#This Row],[Platz]]=9,CONCATENATE(Tabelle_Auswertung[[#This Row],[Bildname]]," von ",Tabelle_Auswertung[[#This Row],[Autor(in)]]),"") ->  | AI76: =IF(Tabelle_Auswertung[[#This Row],[Platz]]=10,CONCATENATE(Tabelle_Auswertung[[#This Row],[Bildname]]," von ",Tabelle_Auswertung[[#This Row],[Autor(in)]]),"") -> 
V77: =IF(Tabelle_Auswertung[[#This Row],[Bildname]]<>"",SUM(Tabelle_Auswertung[[#This Row],[Juror 1]:[Juror 20]])," - ") -> - | W77: =IF(Tabelle_Auswertung[[#This Row],[Bildname]]<>"",IF(Tabelle_Auswertung[[#This Row],[Punkte]]>0,AVERAGE(Tabelle_Auswertung[[#This Row],[Juror 1]:[Juror 20]])," - ")," - ") -> - | X77: =IF(Tabelle_Auswertung[[#This Row],[Bildname]]<>"",IF(Tabelle_Auswertung[[#This Row],[Punkte]]>0,RANK(Tabelle_Auswertung[[#This Row],[Punkte]],[Punkte],0)," - ")," - ") -> - | Y77: - - - | Z77: =IF(Tabelle_Auswertung[[#This Row],[Platz]]=1,CONCATENATE(Tabelle_Auswertung[[#This Row],[Bildname]]," von ",Tabelle_Auswertung[[#This Row],[Autor(in)]]),"") ->  | AA77: =IF(Tabelle_Auswertung[[#This Row],[Platz]]=2,CONCATENATE(Tabelle_Auswertung[[#This Row],[Bildname]]," von ",Tabelle_Auswertung[[#This Row],[Autor(in)]]),"") ->  | AB77: =IF(Tabelle_Auswertung[[#This Row],[Platz]]=3,CONCATENATE(Tabelle_Auswertung[[#This Row],[Bildname]]," von ",Tabelle_Auswertung[[#This Row],[Autor(in)]]),"") ->  | AC77: =IF(Tabelle_Auswertung[[#This Row],[Platz]]=4,CONCATENATE(Tabelle_Auswertung[[#This Row],[Bildname]]," von ",Tabelle_Auswertung[[#This Row],[Autor(in)]]),"") ->  | AD77: =IF(Tabelle_Auswertung[[#This Row],[Platz]]=5,CONCATENATE(Tabelle_Auswertung[[#This Row],[Bildname]]," von ",Tabelle_Auswertung[[#This Row],[Autor(in)]]),"") ->  | AE77: =IF(Tabelle_Auswertung[[#This Row],[Platz]]=6,CONCATENATE(Tabelle_Auswertung[[#This Row],[Bildname]]," von ",Tabelle_Auswertung[[#This Row],[Autor(in)]]),"") ->  | AF77: =IF(Tabelle_Auswertung[[#This Row],[Platz]]=7,CONCATENATE(Tabelle_Auswertung[[#This Row],[Bildname]]," von ",Tabelle_Auswertung[[#This Row],[Autor(in)]]),"") ->  | AG77: =IF(Tabelle_Auswertung[[#This Row],[Platz]]=8,CONCATENATE(Tabelle_Auswertung[[#This Row],[Bildname]]," von ",Tabelle_Auswertung[[#This Row],[Autor(in)]]),"") ->  | AH77: =IF(Tabelle_Auswertung[[#This Row],[Platz]]=9,CONCATENATE(Tabelle_Auswertung[[#This Row],[Bildname]]," von ",Tabelle_Auswertung[[#This Row],[Autor(in)]]),"") ->  | AI77: =IF(Tabelle_Auswertung[[#This Row],[Platz]]=10,CONCATENATE(Tabelle_Auswertung[[#This Row],[Bildname]]," von ",Tabelle_Auswertung[[#This Row],[Autor(in)]]),"") -> 
V78: =IF(Tabelle_Auswertung[[#This Row],[Bildname]]<>"",SUM(Tabelle_Auswertung[[#This Row],[Juror 1]:[Juror 20]])," - ") -> - | W78: =IF(Tabelle_Auswertung[[#This Row],[Bildname]]<>"",IF(Tabelle_Auswertung[[#This Row],[Punkte]]>0,AVERAGE(Tabelle_Auswertung[[#This Row],[Juror 1]:[Juror 20]])," - ")," - ") -> - | X78: =IF(Tabelle_Auswertung[[#This Row],[Bildname]]<>"",IF(Tabelle_Auswertung[[#This Row],[Punkte]]>0,RANK(Tabelle_Auswertung[[#This Row],[Punkte]],[Punkte],0)," - ")," - ") -> - | Y78: - - - | Z78: =IF(Tabelle_Auswertung[[#This Row],[Platz]]=1,CONCATENATE(Tabelle_Auswertung[[#This Row],[Bildname]]," von ",Tabelle_Auswertung[[#This Row],[Autor(in)]]),"") ->  | AA78: =IF(Tabelle_Auswertung[[#This Row],[Platz]]=2,CONCATENATE(Tabelle_Auswertung[[#This Row],[Bildname]]," von ",Tabelle_Auswertung[[#This Row],[Autor(in)]]),"") ->  | AB78: =IF(Tabelle_Auswertung[[#This Row],[Platz]]=3,CONCATENATE(Tabelle_Auswertung[[#This Row],[Bildname]]," von ",Tabelle_Auswertung[[#This Row],[Autor(in)]]),"") ->  | AC78: =IF(Tabelle_Auswertung[[#This Row],[Platz]]=4,CONCATENATE(Tabelle_Auswertung[[#This Row],[Bildname]]," von ",Tabelle_Auswertung[[#This Row],[Autor(in)]]),"") ->  | AD78: =IF(Tabelle_Auswertung[[#This Row],[Platz]]=5,CONCATENATE(Tabelle_Auswertung[[#This Row],[Bildname]]," von ",Tabelle_Auswertung[[#This Row],[Autor(in)]]),"") ->  | AE78: =IF(Tabelle_Auswertung[[#This Row],[Platz]]=6,CONCATENATE(Tabelle_Auswertung[[#This Row],[Bildname]]," von ",Tabelle_Auswertung[[#This Row],[Autor(in)]]),"") ->  | AF78: =IF(Tabelle_Auswertung[[#This Row],[Platz]]=7,CONCATENATE(Tabelle_Auswertung[[#This Row],[Bildname]]," von ",Tabelle_Auswertung[[#This Row],[Autor(in)]]),"") ->  | AG78: =IF(Tabelle_Auswertung[[#This Row],[Platz]]=8,CONCATENATE(Tabelle_Auswertung[[#This Row],[Bildname]]," von ",Tabelle_Auswertung[[#This Row],[Autor(in)]]),"") ->  | AH78: =IF(Tabelle_Auswertung[[#This Row],[Platz]]=9,CONCATENATE(Tabelle_Auswertung[[#This Row],[Bildname]]," von ",Tabelle_Auswertung[[#This Row],[Autor(in)]]),"") ->  | AI78: =IF(Tabelle_Auswertung[[#This Row],[Platz]]=10,CONCATENATE(Tabelle_Auswertung[[#This Row],[Bildname]]," von ",Tabelle_Auswertung[[#This Row],[Autor(in)]]),"") -> 
V79: =IF(Tabelle_Auswertung[[#This Row],[Bildname]]<>"",SUM(Tabelle_Auswertung[[#This Row],[Juror 1]:[Juror 20]])," - ") -> - | W79: =IF(Tabelle_Auswertung[[#This Row],[Bildname]]<>"",IF(Tabelle_Auswertung[[#This Row],[Punkte]]>0,AVERAGE(Tabelle_Auswertung[[#This Row],[Juror 1]:[Juror 20]])," - ")," - ") -> - | X79: =IF(Tabelle_Auswertung[[#This Row],[Bildname]]<>"",IF(Tabelle_Auswertung[[#This Row],[Punkte]]>0,RANK(Tabelle_Auswertung[[#This Row],[Punkte]],[Punkte],0)," - ")," - ") -> - | Y79: - - - | Z79: =IF(Tabelle_Auswertung[[#This Row],[Platz]]=1,CONCATENATE(Tabelle_Auswertung[[#This Row],[Bildname]]," von ",Tabelle_Auswertung[[#This Row],[Autor(in)]]),"") ->  | AA79: =IF(Tabelle_Auswertung[[#This Row],[Platz]]=2,CONCATENATE(Tabelle_Auswertung[[#This Row],[Bildname]]," von ",Tabelle_Auswertung[[#This Row],[Autor(in)]]),"") ->  | AB79: =IF(Tabelle_Auswertung[[#This Row],[Platz]]=3,CONCATENATE(Tabelle_Auswertung[[#This Row],[Bildname]]," von ",Tabelle_Auswertung[[#This Row],[Autor(in)]]),"") ->  | AC79: =IF(Tabelle_Auswertung[[#This Row],[Platz]]=4,CONCATENATE(Tabelle_Auswertung[[#This Row],[Bildname]]," von ",Tabelle_Auswertung[[#This Row],[Autor(in)]]),"") ->  | AD79: =IF(Tabelle_Auswertung[[#This Row],[Platz]]=5,CONCATENATE(Tabelle_Auswertung[[#This Row],[Bildname]]," von ",Tabelle_Auswertung[[#This Row],[Autor(in)]]),"") ->  | AE79: =IF(Tabelle_Auswertung[[#This Row],[Platz]]=6,CONCATENATE(Tabelle_Auswertung[[#This Row],[Bildname]]," von ",Tabelle_Auswertung[[#This Row],[Autor(in)]]),"") ->  | AF79: =IF(Tabelle_Auswertung[[#This Row],[Platz]]=7,CONCATENATE(Tabelle_Auswertung[[#This Row],[Bildname]]," von ",Tabelle_Auswertung[[#This Row],[Autor(in)]]),"") ->  | AG79: =IF(Tabelle_Auswertung[[#This Row],[Platz]]=8,CONCATENATE(Tabelle_Auswertung[[#This Row],[Bildname]]," von ",Tabelle_Auswertung[[#This Row],[Autor(in)]]),"") ->  | AH79: =IF(Tabelle_Auswertung[[#This Row],[Platz]]=9,CONCATENATE(Tabelle_Auswertung[[#This Row],[Bildname]]," von ",Tabelle_Auswertung[[#This Row],[Autor(in)]]),"") ->  | AI79: =IF(Tabelle_Auswertung[[#This Row],[Platz]]=10,CONCATENATE(Tabelle_Auswertung[[#This Row],[Bildname]]," von ",Tabelle_Auswertung[[#This Row],[Autor(in)]]),"") -> 
V80: =IF(Tabelle_Auswertung[[#This Row],[Bildname]]<>"",SUM(Tabelle_Auswertung[[#This Row],[Juror 1]:[Juror 20]])," - ") -> - | W80: =IF(Tabelle_Auswertung[[#This Row],[Bildname]]<>"",IF(Tabelle_Auswertung[[#This Row],[Punkte]]>0,AVERAGE(Tabelle_Auswertung[[#This Row],[Juror 1]:[Juror 20]])," - ")," - ") -> - | X80: =IF(Tabelle_Auswertung[[#This Row],[Bildname]]<>"",IF(Tabelle_Auswertung[[#This Row],[Punkte]]>0,RANK(Tabelle_Auswertung[[#This Row],[Punkte]],[Punkte],0)," - ")," - ") -> - | Y80: - - - | Z80: =IF(Tabelle_Auswertung[[#This Row],[Platz]]=1,CONCATENATE(Tabelle_Auswertung[[#This Row],[Bildname]]," von ",Tabelle_Auswertung[[#This Row],[Autor(in)]]),"") ->  | AA80: =IF(Tabelle_Auswertung[[#This Row],[Platz]]=2,CONCATENATE(Tabelle_Auswertung[[#This Row],[Bildname]]," von ",Tabelle_Auswertung[[#This Row],[Autor(in)]]),"") ->  | AB80: =IF(Tabelle_Auswertung[[#This Row],[Platz]]=3,CONCATENATE(Tabelle_Auswertung[[#This Row],[Bildname]]," von ",Tabelle_Auswertung[[#This Row],[Autor(in)]]),"") ->  | AC80: =IF(Tabelle_Auswertung[[#This Row],[Platz]]=4,CONCATENATE(Tabelle_Auswertung[[#This Row],[Bildname]]," von ",Tabelle_Auswertung[[#This Row],[Autor(in)]]),"") ->  | AD80: =IF(Tabelle_Auswertung[[#This Row],[Platz]]=5,CONCATENATE(Tabelle_Auswertung[[#This Row],[Bildname]]," von ",Tabelle_Auswertung[[#This Row],[Autor(in)]]),"") ->  | AE80: =IF(Tabelle_Auswertung[[#This Row],[Platz]]=6,CONCATENATE(Tabelle_Auswertung[[#This Row],[Bildname]]," von ",Tabelle_Auswertung[[#This Row],[Autor(in)]]),"") ->  | AF80: =IF(Tabelle_Auswertung[[#This Row],[Platz]]=7,CONCATENATE(Tabelle_Auswertung[[#This Row],[Bildname]]," von ",Tabelle_Auswertung[[#This Row],[Autor(in)]]),"") ->  | AG80: =IF(Tabelle_Auswertung[[#This Row],[Platz]]=8,CONCATENATE(Tabelle_Auswertung[[#This Row],[Bildname]]," von ",Tabelle_Auswertung[[#This Row],[Autor(in)]]),"") ->  | AH80: =IF(Tabelle_Auswertung[[#This Row],[Platz]]=9,CONCATENATE(Tabelle_Auswertung[[#This Row],[Bildname]]," von ",Tabelle_Auswertung[[#This Row],[Autor(in)]]),"") ->  | AI80: =IF(Tabelle_Auswertung[[#This Row],[Platz]]=10,CONCATENATE(Tabelle_Auswertung[[#This Row],[Bildname]]," von ",Tabelle_Auswertung[[#This Row],[Autor(in)]]),"") -> 
V81: =IF(Tabelle_Auswertung[[#This Row],[Bildname]]<>"",SUM(Tabelle_Auswertung[[#This Row],[Juror 1]:[Juror 20]])," - ") -> - | W81: =IF(Tabelle_Auswertung[[#This Row],[Bildname]]<>"",IF(Tabelle_Auswertung[[#This Row],[Punkte]]>0,AVERAGE(Tabelle_Auswertung[[#This Row],[Juror 1]:[Juror 20]])," - ")," - ") -> - | X81: =IF(Tabelle_Auswertung[[#This Row],[Bildname]]<>"",IF(Tabelle_Auswertung[[#This Row],[Punkte]]>0,RANK(Tabelle_Auswertung[[#This Row],[Punkte]],[Punkte],0)," - ")," - ") -> - | Y81: - - - | Z81: =IF(Tabelle_Auswertung[[#This Row],[Platz]]=1,CONCATENATE(Tabelle_Auswertung[[#This Row],[Bildname]]," von ",Tabelle_Auswertung[[#This Row],[Autor(in)]]),"") ->  | AA81: =IF(Tabelle_Auswertung[[#This Row],[Platz]]=2,CONCATENATE(Tabelle_Auswertung[[#This Row],[Bildname]]," von ",Tabelle_Auswertung[[#This Row],[Autor(in)]]),"") ->  | AB81: =IF(Tabelle_Auswertung[[#This Row],[Platz]]=3,CONCATENATE(Tabelle_Auswertung[[#This Row],[Bildname]]," von ",Tabelle_Auswertung[[#This Row],[Autor(in)]]),"") ->  | AC81: =IF(Tabelle_Auswertung[[#This Row],[Platz]]=4,CONCATENATE(Tabelle_Auswertung[[#This Row],[Bildname]]," von ",Tabelle_Auswertung[[#This Row],[Autor(in)]]),"") ->  | AD81: =IF(Tabelle_Auswertung[[#This Row],[Platz]]=5,CONCATENATE(Tabelle_Auswertung[[#This Row],[Bildname]]," von ",Tabelle_Auswertung[[#This Row],[Autor(in)]]),"") ->  | AE81: =IF(Tabelle_Auswertung[[#This Row],[Platz]]=6,CONCATENATE(Tabelle_Auswertung[[#This Row],[Bildname]]," von ",Tabelle_Auswertung[[#This Row],[Autor(in)]]),"") ->  | AF81: =IF(Tabelle_Auswertung[[#This Row],[Platz]]=7,CONCATENATE(Tabelle_Auswertung[[#This Row],[Bildname]]," von ",Tabelle_Auswertung[[#This Row],[Autor(in)]]),"") ->  | AG81: =IF(Tabelle_Auswertung[[#This Row],[Platz]]=8,CONCATENATE(Tabelle_Auswertung[[#This Row],[Bildname]]," von ",Tabelle_Auswertung[[#This Row],[Autor(in)]]),"") ->  | AH81: =IF(Tabelle_Auswertung[[#This Row],[Platz]]=9,CONCATENATE(Tabelle_Auswertung[[#This Row],[Bildname]]," von ",Tabelle_Auswertung[[#This Row],[Autor(in)]]),"") ->  | AI81: =IF(Tabelle_Auswertung[[#This Row],[Platz]]=10,CONCATENATE(Tabelle_Auswertung[[#This Row],[Bildname]]," von ",Tabelle_Auswertung[[#This Row],[Autor(in)]]),"") -> 
V82: =IF(Tabelle_Auswertung[[#This Row],[Bildname]]<>"",SUM(Tabelle_Auswertung[[#This Row],[Juror 1]:[Juror 20]])," - ") -> - | W82: =IF(Tabelle_Auswertung[[#This Row],[Bildname]]<>"",IF(Tabelle_Auswertung[[#This Row],[Punkte]]>0,AVERAGE(Tabelle_Auswertung[[#This Row],[Juror 1]:[Juror 20]])," - ")," - ") -> - | X82: =IF(Tabelle_Auswertung[[#This Row],[Bildname]]<>"",IF(Tabelle_Auswertung[[#This Row],[Punkte]]>0,RANK(Tabelle_Auswertung[[#This Row],[Punkte]],[Punkte],0)," - ")," - ") -> - | Y82: - - - | Z82: =IF(Tabelle_Auswertung[[#This Row],[Platz]]=1,CONCATENATE(Tabelle_Auswertung[[#This Row],[Bildname]]," von ",Tabelle_Auswertung[[#This Row],[Autor(in)]]),"") ->  | AA82: =IF(Tabelle_Auswertung[[#This Row],[Platz]]=2,CONCATENATE(Tabelle_Auswertung[[#This Row],[Bildname]]," von ",Tabelle_Auswertung[[#This Row],[Autor(in)]]),"") ->  | AB82: =IF(Tabelle_Auswertung[[#This Row],[Platz]]=3,CONCATENATE(Tabelle_Auswertung[[#This Row],[Bildname]]," von ",Tabelle_Auswertung[[#This Row],[Autor(in)]]),"") ->  | AC82: =IF(Tabelle_Auswertung[[#This Row],[Platz]]=4,CONCATENATE(Tabelle_Auswertung[[#This Row],[Bildname]]," von ",Tabelle_Auswertung[[#This Row],[Autor(in)]]),"") ->  | AD82: =IF(Tabelle_Auswertung[[#This Row],[Platz]]=5,CONCATENATE(Tabelle_Auswertung[[#This Row],[Bildname]]," von ",Tabelle_Auswertung[[#This Row],[Autor(in)]]),"") ->  | AE82: =IF(Tabelle_Auswertung[[#This Row],[Platz]]=6,CONCATENATE(Tabelle_Auswertung[[#This Row],[Bildname]]," von ",Tabelle_Auswertung[[#This Row],[Autor(in)]]),"") ->  | AF82: =IF(Tabelle_Auswertung[[#This Row],[Platz]]=7,CONCATENATE(Tabelle_Auswertung[[#This Row],[Bildname]]," von ",Tabelle_Auswertung[[#This Row],[Autor(in)]]),"") ->  | AG82: =IF(Tabelle_Auswertung[[#This Row],[Platz]]=8,CONCATENATE(Tabelle_Auswertung[[#This Row],[Bildname]]," von ",Tabelle_Auswertung[[#This Row],[Autor(in)]]),"") ->  | AH82: =IF(Tabelle_Auswertung[[#This Row],[Platz]]=9,CONCATENATE(Tabelle_Auswertung[[#This Row],[Bildname]]," von ",Tabelle_Auswertung[[#This Row],[Autor(in)]]),"") ->  | AI82: =IF(Tabelle_Auswertung[[#This Row],[Platz]]=10,CONCATENATE(Tabelle_Auswertung[[#This Row],[Bildname]]," von ",Tabelle_Auswertung[[#This Row],[Autor(in)]]),"") -> 
V83: =IF(Tabelle_Auswertung[[#This Row],[Bildname]]<>"",SUM(Tabelle_Auswertung[[#This Row],[Juror 1]:[Juror 20]])," - ") -> - | W83: =IF(Tabelle_Auswertung[[#This Row],[Bildname]]<>"",IF(Tabelle_Auswertung[[#This Row],[Punkte]]>0,AVERAGE(Tabelle_Auswertung[[#This Row],[Juror 1]:[Juror 20]])," - ")," - ") -> - | X83: =IF(Tabelle_Auswertung[[#This Row],[Bildname]]<>"",IF(Tabelle_Auswertung[[#This Row],[Punkte]]>0,RANK(Tabelle_Auswertung[[#This Row],[Punkte]],[Punkte],0)," - ")," - ") -> - | Y83: - - - | Z83: =IF(Tabelle_Auswertung[[#This Row],[Platz]]=1,CONCATENATE(Tabelle_Auswertung[[#This Row],[Bildname]]," von ",Tabelle_Auswertung[[#This Row],[Autor(in)]]),"") ->  | AA83: =IF(Tabelle_Auswertung[[#This Row],[Platz]]=2,CONCATENATE(Tabelle_Auswertung[[#This Row],[Bildname]]," von ",Tabelle_Auswertung[[#This Row],[Autor(in)]]),"") ->  | AB83: =IF(Tabelle_Auswertung[[#This Row],[Platz]]=3,CONCATENATE(Tabelle_Auswertung[[#This Row],[Bildname]]," von ",Tabelle_Auswertung[[#This Row],[Autor(in)]]),"") ->  | AC83: =IF(Tabelle_Auswertung[[#This Row],[Platz]]=4,CONCATENATE(Tabelle_Auswertung[[#This Row],[Bildname]]," von ",Tabelle_Auswertung[[#This Row],[Autor(in)]]),"") ->  | AD83: =IF(Tabelle_Auswertung[[#This Row],[Platz]]=5,CONCATENATE(Tabelle_Auswertung[[#This Row],[Bildname]]," von ",Tabelle_Auswertung[[#This Row],[Autor(in)]]),"") ->  | AE83: =IF(Tabelle_Auswertung[[#This Row],[Platz]]=6,CONCATENATE(Tabelle_Auswertung[[#This Row],[Bildname]]," von ",Tabelle_Auswertung[[#This Row],[Autor(in)]]),"") ->  | AF83: =IF(Tabelle_Auswertung[[#This Row],[Platz]]=7,CONCATENATE(Tabelle_Auswertung[[#This Row],[Bildname]]," von ",Tabelle_Auswertung[[#This Row],[Autor(in)]]),"") ->  | AG83: =IF(Tabelle_Auswertung[[#This Row],[Platz]]=8,CONCATENATE(Tabelle_Auswertung[[#This Row],[Bildname]]," von ",Tabelle_Auswertung[[#This Row],[Autor(in)]]),"") ->  | AH83: =IF(Tabelle_Auswertung[[#This Row],[Platz]]=9,CONCATENATE(Tabelle_Auswertung[[#This Row],[Bildname]]," von ",Tabelle_Auswertung[[#This Row],[Autor(in)]]),"") ->  | AI83: =IF(Tabelle_Auswertung[[#This Row],[Platz]]=10,CONCATENATE(Tabelle_Auswertung[[#This Row],[Bildname]]," von ",Tabelle_Auswertung[[#This Row],[Autor(in)]]),"") -> 
V84: =IF(Tabelle_Auswertung[[#This Row],[Bildname]]<>"",SUM(Tabelle_Auswertung[[#This Row],[Juror 1]:[Juror 20]])," - ") -> - | W84: =IF(Tabelle_Auswertung[[#This Row],[Bildname]]<>"",IF(Tabelle_Auswertung[[#This Row],[Punkte]]>0,AVERAGE(Tabelle_Auswertung[[#This Row],[Juror 1]:[Juror 20]])," - ")," - ") -> - | X84: =IF(Tabelle_Auswertung[[#This Row],[Bildname]]<>"",IF(Tabelle_Auswertung[[#This Row],[Punkte]]>0,RANK(Tabelle_Auswertung[[#This Row],[Punkte]],[Punkte],0)," - ")," - ") -> - | Y84: - - - | Z84: =IF(Tabelle_Auswertung[[#This Row],[Platz]]=1,CONCATENATE(Tabelle_Auswertung[[#This Row],[Bildname]]," von ",Tabelle_Auswertung[[#This Row],[Autor(in)]]),"") ->  | AA84: =IF(Tabelle_Auswertung[[#This Row],[Platz]]=2,CONCATENATE(Tabelle_Auswertung[[#This Row],[Bildname]]," von ",Tabelle_Auswertung[[#This Row],[Autor(in)]]),"") ->  | AB84: =IF(Tabelle_Auswertung[[#This Row],[Platz]]=3,CONCATENATE(Tabelle_Auswertung[[#This Row],[Bildname]]," von ",Tabelle_Auswertung[[#This Row],[Autor(in)]]),"") ->  | AC84: =IF(Tabelle_Auswertung[[#This Row],[Platz]]=4,CONCATENATE(Tabelle_Auswertung[[#This Row],[Bildname]]," von ",Tabelle_Auswertung[[#This Row],[Autor(in)]]),"") ->  | AD84: =IF(Tabelle_Auswertung[[#This Row],[Platz]]=5,CONCATENATE(Tabelle_Auswertung[[#This Row],[Bildname]]," von ",Tabelle_Auswertung[[#This Row],[Autor(in)]]),"") ->  | AE84: =IF(Tabelle_Auswertung[[#This Row],[Platz]]=6,CONCATENATE(Tabelle_Auswertung[[#This Row],[Bildname]]," von ",Tabelle_Auswertung[[#This Row],[Autor(in)]]),"") ->  | AF84: =IF(Tabelle_Auswertung[[#This Row],[Platz]]=7,CONCATENATE(Tabelle_Auswertung[[#This Row],[Bildname]]," von ",Tabelle_Auswertung[[#This Row],[Autor(in)]]),"") ->  | AG84: =IF(Tabelle_Auswertung[[#This Row],[Platz]]=8,CONCATENATE(Tabelle_Auswertung[[#This Row],[Bildname]]," von ",Tabelle_Auswertung[[#This Row],[Autor(in)]]),"") ->  | AH84: =IF(Tabelle_Auswertung[[#This Row],[Platz]]=9,CONCATENATE(Tabelle_Auswertung[[#This Row],[Bildname]]," von ",Tabelle_Auswertung[[#This Row],[Autor(in)]]),"") ->  | AI84: =IF(Tabelle_Auswertung[[#This Row],[Platz]]=10,CONCATENATE(Tabelle_Auswertung[[#This Row],[Bildname]]," von ",Tabelle_Auswertung[[#This Row],[Autor(in)]]),"") -> 
V85: =IF(Tabelle_Auswertung[[#This Row],[Bildname]]<>"",SUM(Tabelle_Auswertung[[#This Row],[Juror 1]:[Juror 20]])," - ") -> - | W85: =IF(Tabelle_Auswertung[[#This Row],[Bildname]]<>"",IF(Tabelle_Auswertung[[#This Row],[Punkte]]>0,AVERAGE(Tabelle_Auswertung[[#This Row],[Juror 1]:[Juror 20]])," - ")," - ") -> - | X85: =IF(Tabelle_Auswertung[[#This Row],[Bildname]]<>"",IF(Tabelle_Auswertung[[#This Row],[Punkte]]>0,RANK(Tabelle_Auswertung[[#This Row],[Punkte]],[Punkte],0)," - ")," - ") -> - | Y85: - - - | Z85: =IF(Tabelle_Auswertung[[#This Row],[Platz]]=1,CONCATENATE(Tabelle_Auswertung[[#This Row],[Bildname]]," von ",Tabelle_Auswertung[[#This Row],[Autor(in)]]),"") ->  | AA85: =IF(Tabelle_Auswertung[[#This Row],[Platz]]=2,CONCATENATE(Tabelle_Auswertung[[#This Row],[Bildname]]," von ",Tabelle_Auswertung[[#This Row],[Autor(in)]]),"") ->  | AB85: =IF(Tabelle_Auswertung[[#This Row],[Platz]]=3,CONCATENATE(Tabelle_Auswertung[[#This Row],[Bildname]]," von ",Tabelle_Auswertung[[#This Row],[Autor(in)]]),"") ->  | AC85: =IF(Tabelle_Auswertung[[#This Row],[Platz]]=4,CONCATENATE(Tabelle_Auswertung[[#This Row],[Bildname]]," von ",Tabelle_Auswertung[[#This Row],[Autor(in)]]),"") ->  | AD85: =IF(Tabelle_Auswertung[[#This Row],[Platz]]=5,CONCATENATE(Tabelle_Auswertung[[#This Row],[Bildname]]," von ",Tabelle_Auswertung[[#This Row],[Autor(in)]]),"") ->  | AE85: =IF(Tabelle_Auswertung[[#This Row],[Platz]]=6,CONCATENATE(Tabelle_Auswertung[[#This Row],[Bildname]]," von ",Tabelle_Auswertung[[#This Row],[Autor(in)]]),"") ->  | AF85: =IF(Tabelle_Auswertung[[#This Row],[Platz]]=7,CONCATENATE(Tabelle_Auswertung[[#This Row],[Bildname]]," von ",Tabelle_Auswertung[[#This Row],[Autor(in)]]),"") ->  | AG85: =IF(Tabelle_Auswertung[[#This Row],[Platz]]=8,CONCATENATE(Tabelle_Auswertung[[#This Row],[Bildname]]," von ",Tabelle_Auswertung[[#This Row],[Autor(in)]]),"") ->  | AH85: =IF(Tabelle_Auswertung[[#This Row],[Platz]]=9,CONCATENATE(Tabelle_Auswertung[[#This Row],[Bildname]]," von ",Tabelle_Auswertung[[#This Row],[Autor(in)]]),"") ->  | AI85: =IF(Tabelle_Auswertung[[#This Row],[Platz]]=10,CONCATENATE(Tabelle_Auswertung[[#This Row],[Bildname]]," von ",Tabelle_Auswertung[[#This Row],[Autor(in)]]),"") -> 
V86: =IF(Tabelle_Auswertung[[#This Row],[Bildname]]<>"",SUM(Tabelle_Auswertung[[#This Row],[Juror 1]:[Juror 20]])," - ") -> - | W86: =IF(Tabelle_Auswertung[[#This Row],[Bildname]]<>"",IF(Tabelle_Auswertung[[#This Row],[Punkte]]>0,AVERAGE(Tabelle_Auswertung[[#This Row],[Juror 1]:[Juror 20]])," - ")," - ") -> - | X86: =IF(Tabelle_Auswertung[[#This Row],[Bildname]]<>"",IF(Tabelle_Auswertung[[#This Row],[Punkte]]>0,RANK(Tabelle_Auswertung[[#This Row],[Punkte]],[Punkte],0)," - ")," - ") -> - | Y86: - - - | Z86: =IF(Tabelle_Auswertung[[#This Row],[Platz]]=1,CONCATENATE(Tabelle_Auswertung[[#This Row],[Bildname]]," von ",Tabelle_Auswertung[[#This Row],[Autor(in)]]),"") ->  | AA86: =IF(Tabelle_Auswertung[[#This Row],[Platz]]=2,CONCATENATE(Tabelle_Auswertung[[#This Row],[Bildname]]," von ",Tabelle_Auswertung[[#This Row],[Autor(in)]]),"") ->  | AB86: =IF(Tabelle_Auswertung[[#This Row],[Platz]]=3,CONCATENATE(Tabelle_Auswertung[[#This Row],[Bildname]]," von ",Tabelle_Auswertung[[#This Row],[Autor(in)]]),"") ->  | AC86: =IF(Tabelle_Auswertung[[#This Row],[Platz]]=4,CONCATENATE(Tabelle_Auswertung[[#This Row],[Bildname]]," von ",Tabelle_Auswertung[[#This Row],[Autor(in)]]),"") ->  | AD86: =IF(Tabelle_Auswertung[[#This Row],[Platz]]=5,CONCATENATE(Tabelle_Auswertung[[#This Row],[Bildname]]," von ",Tabelle_Auswertung[[#This Row],[Autor(in)]]),"") ->  | AE86: =IF(Tabelle_Auswertung[[#This Row],[Platz]]=6,CONCATENATE(Tabelle_Auswertung[[#This Row],[Bildname]]," von ",Tabelle_Auswertung[[#This Row],[Autor(in)]]),"") ->  | AF86: =IF(Tabelle_Auswertung[[#This Row],[Platz]]=7,CONCATENATE(Tabelle_Auswertung[[#This Row],[Bildname]]," von ",Tabelle_Auswertung[[#This Row],[Autor(in)]]),"") ->  | AG86: =IF(Tabelle_Auswertung[[#This Row],[Platz]]=8,CONCATENATE(Tabelle_Auswertung[[#This Row],[Bildname]]," von ",Tabelle_Auswertung[[#This Row],[Autor(in)]]),"") ->  | AH86: =IF(Tabelle_Auswertung[[#This Row],[Platz]]=9,CONCATENATE(Tabelle_Auswertung[[#This Row],[Bildname]]," von ",Tabelle_Auswertung[[#This Row],[Autor(in)]]),"") ->  | AI86: =IF(Tabelle_Auswertung[[#This Row],[Platz]]=10,CONCATENATE(Tabelle_Auswertung[[#This Row],[Bildname]]," von ",Tabelle_Auswertung[[#This Row],[Autor(in)]]),"") -> 
V87: =IF(Tabelle_Auswertung[[#This Row],[Bildname]]<>"",SUM(Tabelle_Auswertung[[#This Row],[Juror 1]:[Juror 20]])," - ") -> - | W87: =IF(Tabelle_Auswertung[[#This Row],[Bildname]]<>"",IF(Tabelle_Auswertung[[#This Row],[Punkte]]>0,AVERAGE(Tabelle_Auswertung[[#This Row],[Juror 1]:[Juror 20]])," - ")," - ") -> - | X87: =IF(Tabelle_Auswertung[[#This Row],[Bildname]]<>"",IF(Tabelle_Auswertung[[#This Row],[Punkte]]>0,RANK(Tabelle_Auswertung[[#This Row],[Punkte]],[Punkte],0)," - ")," - ") -> - | Y87: - - - | Z87: =IF(Tabelle_Auswertung[[#This Row],[Platz]]=1,CONCATENATE(Tabelle_Auswertung[[#This Row],[Bildname]]," von ",Tabelle_Auswertung[[#This Row],[Autor(in)]]),"") ->  | AA87: =IF(Tabelle_Auswertung[[#This Row],[Platz]]=2,CONCATENATE(Tabelle_Auswertung[[#This Row],[Bildname]]," von ",Tabelle_Auswertung[[#This Row],[Autor(in)]]),"") ->  | AB87: =IF(Tabelle_Auswertung[[#This Row],[Platz]]=3,CONCATENATE(Tabelle_Auswertung[[#This Row],[Bildname]]," von ",Tabelle_Auswertung[[#This Row],[Autor(in)]]),"") ->  | AC87: =IF(Tabelle_Auswertung[[#This Row],[Platz]]=4,CONCATENATE(Tabelle_Auswertung[[#This Row],[Bildname]]," von ",Tabelle_Auswertung[[#This Row],[Autor(in)]]),"") ->  | AD87: =IF(Tabelle_Auswertung[[#This Row],[Platz]]=5,CONCATENATE(Tabelle_Auswertung[[#This Row],[Bildname]]," von ",Tabelle_Auswertung[[#This Row],[Autor(in)]]),"") ->  | AE87: =IF(Tabelle_Auswertung[[#This Row],[Platz]]=6,CONCATENATE(Tabelle_Auswertung[[#This Row],[Bildname]]," von ",Tabelle_Auswertung[[#This Row],[Autor(in)]]),"") ->  | AF87: =IF(Tabelle_Auswertung[[#This Row],[Platz]]=7,CONCATENATE(Tabelle_Auswertung[[#This Row],[Bildname]]," von ",Tabelle_Auswertung[[#This Row],[Autor(in)]]),"") ->  | AG87: =IF(Tabelle_Auswertung[[#This Row],[Platz]]=8,CONCATENATE(Tabelle_Auswertung[[#This Row],[Bildname]]," von ",Tabelle_Auswertung[[#This Row],[Autor(in)]]),"") ->  | AH87: =IF(Tabelle_Auswertung[[#This Row],[Platz]]=9,CONCATENATE(Tabelle_Auswertung[[#This Row],[Bildname]]," von ",Tabelle_Auswertung[[#This Row],[Autor(in)]]),"") ->  | AI87: =IF(Tabelle_Auswertung[[#This Row],[Platz]]=10,CONCATENATE(Tabelle_Auswertung[[#This Row],[Bildname]]," von ",Tabelle_Auswertung[[#This Row],[Autor(in)]]),"") -> 
V88: =IF(Tabelle_Auswertung[[#This Row],[Bildname]]<>"",SUM(Tabelle_Auswertung[[#This Row],[Juror 1]:[Juror 20]])," - ") -> - | W88: =IF(Tabelle_Auswertung[[#This Row],[Bildname]]<>"",IF(Tabelle_Auswertung[[#This Row],[Punkte]]>0,AVERAGE(Tabelle_Auswertung[[#This Row],[Juror 1]:[Juror 20]])," - ")," - ") -> - | X88: =IF(Tabelle_Auswertung[[#This Row],[Bildname]]<>"",IF(Tabelle_Auswertung[[#This Row],[Punkte]]>0,RANK(Tabelle_Auswertung[[#This Row],[Punkte]],[Punkte],0)," - ")," - ") -> - | Y88: - - - | Z88: =IF(Tabelle_Auswertung[[#This Row],[Platz]]=1,CONCATENATE(Tabelle_Auswertung[[#This Row],[Bildname]]," von ",Tabelle_Auswertung[[#This Row],[Autor(in)]]),"") ->  | AA88: =IF(Tabelle_Auswertung[[#This Row],[Platz]]=2,CONCATENATE(Tabelle_Auswertung[[#This Row],[Bildname]]," von ",Tabelle_Auswertung[[#This Row],[Autor(in)]]),"") ->  | AB88: =IF(Tabelle_Auswertung[[#This Row],[Platz]]=3,CONCATENATE(Tabelle_Auswertung[[#This Row],[Bildname]]," von ",Tabelle_Auswertung[[#This Row],[Autor(in)]]),"") ->  | AC88: =IF(Tabelle_Auswertung[[#This Row],[Platz]]=4,CONCATENATE(Tabelle_Auswertung[[#This Row],[Bildname]]," von ",Tabelle_Auswertung[[#This Row],[Autor(in)]]),"") ->  | AD88: =IF(Tabelle_Auswertung[[#This Row],[Platz]]=5,CONCATENATE(Tabelle_Auswertung[[#This Row],[Bildname]]," von ",Tabelle_Auswertung[[#This Row],[Autor(in)]]),"") ->  | AE88: =IF(Tabelle_Auswertung[[#This Row],[Platz]]=6,CONCATENATE(Tabelle_Auswertung[[#This Row],[Bildname]]," von ",Tabelle_Auswertung[[#This Row],[Autor(in)]]),"") ->  | AF88: =IF(Tabelle_Auswertung[[#This Row],[Platz]]=7,CONCATENATE(Tabelle_Auswertung[[#This Row],[Bildname]]," von ",Tabelle_Auswertung[[#This Row],[Autor(in)]]),"") ->  | AG88: =IF(Tabelle_Auswertung[[#This Row],[Platz]]=8,CONCATENATE(Tabelle_Auswertung[[#This Row],[Bildname]]," von ",Tabelle_Auswertung[[#This Row],[Autor(in)]]),"") ->  | AH88: =IF(Tabelle_Auswertung[[#This Row],[Platz]]=9,CONCATENATE(Tabelle_Auswertung[[#This Row],[Bildname]]," von ",Tabelle_Auswertung[[#This Row],[Autor(in)]]),"") ->  | AI88: =IF(Tabelle_Auswertung[[#This Row],[Platz]]=10,CONCATENATE(Tabelle_Auswertung[[#This Row],[Bildname]]," von ",Tabelle_Auswertung[[#This Row],[Autor(in)]]),"") -> 
V89: =IF(Tabelle_Auswertung[[#This Row],[Bildname]]<>"",SUM(Tabelle_Auswertung[[#This Row],[Juror 1]:[Juror 20]])," - ") -> - | W89: =IF(Tabelle_Auswertung[[#This Row],[Bildname]]<>"",IF(Tabelle_Auswertung[[#This Row],[Punkte]]>0,AVERAGE(Tabelle_Auswertung[[#This Row],[Juror 1]:[Juror 20]])," - ")," - ") -> - | X89: =IF(Tabelle_Auswertung[[#This Row],[Bildname]]<>"",IF(Tabelle_Auswertung[[#This Row],[Punkte]]>0,RANK(Tabelle_Auswertung[[#This Row],[Punkte]],[Punkte],0)," - ")," - ") -> - | Y89: - - - | Z89: =IF(Tabelle_Auswertung[[#This Row],[Platz]]=1,CONCATENATE(Tabelle_Auswertung[[#This Row],[Bildname]]," von ",Tabelle_Auswertung[[#This Row],[Autor(in)]]),"") ->  | AA89: =IF(Tabelle_Auswertung[[#This Row],[Platz]]=2,CONCATENATE(Tabelle_Auswertung[[#This Row],[Bildname]]," von ",Tabelle_Auswertung[[#This Row],[Autor(in)]]),"") ->  | AB89: =IF(Tabelle_Auswertung[[#This Row],[Platz]]=3,CONCATENATE(Tabelle_Auswertung[[#This Row],[Bildname]]," von ",Tabelle_Auswertung[[#This Row],[Autor(in)]]),"") ->  | AC89: =IF(Tabelle_Auswertung[[#This Row],[Platz]]=4,CONCATENATE(Tabelle_Auswertung[[#This Row],[Bildname]]," von ",Tabelle_Auswertung[[#This Row],[Autor(in)]]),"") ->  | AD89: =IF(Tabelle_Auswertung[[#This Row],[Platz]]=5,CONCATENATE(Tabelle_Auswertung[[#This Row],[Bildname]]," von ",Tabelle_Auswertung[[#This Row],[Autor(in)]]),"") ->  | AE89: =IF(Tabelle_Auswertung[[#This Row],[Platz]]=6,CONCATENATE(Tabelle_Auswertung[[#This Row],[Bildname]]," von ",Tabelle_Auswertung[[#This Row],[Autor(in)]]),"") ->  | AF89: =IF(Tabelle_Auswertung[[#This Row],[Platz]]=7,CONCATENATE(Tabelle_Auswertung[[#This Row],[Bildname]]," von ",Tabelle_Auswertung[[#This Row],[Autor(in)]]),"") ->  | AG89: =IF(Tabelle_Auswertung[[#This Row],[Platz]]=8,CONCATENATE(Tabelle_Auswertung[[#This Row],[Bildname]]," von ",Tabelle_Auswertung[[#This Row],[Autor(in)]]),"") ->  | AH89: =IF(Tabelle_Auswertung[[#This Row],[Platz]]=9,CONCATENATE(Tabelle_Auswertung[[#This Row],[Bildname]]," von ",Tabelle_Auswertung[[#This Row],[Autor(in)]]),"") ->  | AI89: =IF(Tabelle_Auswertung[[#This Row],[Platz]]=10,CONCATENATE(Tabelle_Auswertung[[#This Row],[Bildname]]," von ",Tabelle_Auswertung[[#This Row],[Autor(in)]]),"") -> 
V90: =IF(Tabelle_Auswertung[[#This Row],[Bildname]]<>"",SUM(Tabelle_Auswertung[[#This Row],[Juror 1]:[Juror 20]])," - ") -> - | W90: =IF(Tabelle_Auswertung[[#This Row],[Bildname]]<>"",IF(Tabelle_Auswertung[[#This Row],[Punkte]]>0,AVERAGE(Tabelle_Auswertung[[#This Row],[Juror 1]:[Juror 20]])," - ")," - ") -> - | X90: =IF(Tabelle_Auswertung[[#This Row],[Bildname]]<>"",IF(Tabelle_Auswertung[[#This Row],[Punkte]]>0,RANK(Tabelle_Auswertung[[#This Row],[Punkte]],[Punkte],0)," - ")," - ") -> - | Y90: - - - | Z90: =IF(Tabelle_Auswertung[[#This Row],[Platz]]=1,CONCATENATE(Tabelle_Auswertung[[#This Row],[Bildname]]," von ",Tabelle_Auswertung[[#This Row],[Autor(in)]]),"") ->  | AA90: =IF(Tabelle_Auswertung[[#This Row],[Platz]]=2,CONCATENATE(Tabelle_Auswertung[[#This Row],[Bildname]]," von ",Tabelle_Auswertung[[#This Row],[Autor(in)]]),"") ->  | AB90: =IF(Tabelle_Auswertung[[#This Row],[Platz]]=3,CONCATENATE(Tabelle_Auswertung[[#This Row],[Bildname]]," von ",Tabelle_Auswertung[[#This Row],[Autor(in)]]),"") ->  | AC90: =IF(Tabelle_Auswertung[[#This Row],[Platz]]=4,CONCATENATE(Tabelle_Auswertung[[#This Row],[Bildname]]," von ",Tabelle_Auswertung[[#This Row],[Autor(in)]]),"") ->  | AD90: =IF(Tabelle_Auswertung[[#This Row],[Platz]]=5,CONCATENATE(Tabelle_Auswertung[[#This Row],[Bildname]]," von ",Tabelle_Auswertung[[#This Row],[Autor(in)]]),"") ->  | AE90: =IF(Tabelle_Auswertung[[#This Row],[Platz]]=6,CONCATENATE(Tabelle_Auswertung[[#This Row],[Bildname]]," von ",Tabelle_Auswertung[[#This Row],[Autor(in)]]),"") ->  | AF90: =IF(Tabelle_Auswertung[[#This Row],[Platz]]=7,CONCATENATE(Tabelle_Auswertung[[#This Row],[Bildname]]," von ",Tabelle_Auswertung[[#This Row],[Autor(in)]]),"") ->  | AG90: =IF(Tabelle_Auswertung[[#This Row],[Platz]]=8,CONCATENATE(Tabelle_Auswertung[[#This Row],[Bildname]]," von ",Tabelle_Auswertung[[#This Row],[Autor(in)]]),"") ->  | AH90: =IF(Tabelle_Auswertung[[#This Row],[Platz]]=9,CONCATENATE(Tabelle_Auswertung[[#This Row],[Bildname]]," von ",Tabelle_Auswertung[[#This Row],[Autor(in)]]),"") ->  | AI90: =IF(Tabelle_Auswertung[[#This Row],[Platz]]=10,CONCATENATE(Tabelle_Auswertung[[#This Row],[Bildname]]," von ",Tabelle_Auswertung[[#This Row],[Autor(in)]]),"") -> 
V91: =IF(Tabelle_Auswertung[[#This Row],[Bildname]]<>"",SUM(Tabelle_Auswertung[[#This Row],[Juror 1]:[Juror 20]])," - ") -> - | W91: =IF(Tabelle_Auswertung[[#This Row],[Bildname]]<>"",IF(Tabelle_Auswertung[[#This Row],[Punkte]]>0,AVERAGE(Tabelle_Auswertung[[#This Row],[Juror 1]:[Juror 20]])," - ")," - ") -> - | X91: =IF(Tabelle_Auswertung[[#This Row],[Bildname]]<>"",IF(Tabelle_Auswertung[[#This Row],[Punkte]]>0,RANK(Tabelle_Auswertung[[#This Row],[Punkte]],[Punkte],0)," - ")," - ") -> - | Y91: - - - | Z91: =IF(Tabelle_Auswertung[[#This Row],[Platz]]=1,CONCATENATE(Tabelle_Auswertung[[#This Row],[Bildname]]," von ",Tabelle_Auswertung[[#This Row],[Autor(in)]]),"") ->  | AA91: =IF(Tabelle_Auswertung[[#This Row],[Platz]]=2,CONCATENATE(Tabelle_Auswertung[[#This Row],[Bildname]]," von ",Tabelle_Auswertung[[#This Row],[Autor(in)]]),"") ->  | AB91: =IF(Tabelle_Auswertung[[#This Row],[Platz]]=3,CONCATENATE(Tabelle_Auswertung[[#This Row],[Bildname]]," von ",Tabelle_Auswertung[[#This Row],[Autor(in)]]),"") ->  | AC91: =IF(Tabelle_Auswertung[[#This Row],[Platz]]=4,CONCATENATE(Tabelle_Auswertung[[#This Row],[Bildname]]," von ",Tabelle_Auswertung[[#This Row],[Autor(in)]]),"") ->  | AD91: =IF(Tabelle_Auswertung[[#This Row],[Platz]]=5,CONCATENATE(Tabelle_Auswertung[[#This Row],[Bildname]]," von ",Tabelle_Auswertung[[#This Row],[Autor(in)]]),"") ->  | AE91: =IF(Tabelle_Auswertung[[#This Row],[Platz]]=6,CONCATENATE(Tabelle_Auswertung[[#This Row],[Bildname]]," von ",Tabelle_Auswertung[[#This Row],[Autor(in)]]),"") ->  | AF91: =IF(Tabelle_Auswertung[[#This Row],[Platz]]=7,CONCATENATE(Tabelle_Auswertung[[#This Row],[Bildname]]," von ",Tabelle_Auswertung[[#This Row],[Autor(in)]]),"") ->  | AG91: =IF(Tabelle_Auswertung[[#This Row],[Platz]]=8,CONCATENATE(Tabelle_Auswertung[[#This Row],[Bildname]]," von ",Tabelle_Auswertung[[#This Row],[Autor(in)]]),"") ->  | AH91: =IF(Tabelle_Auswertung[[#This Row],[Platz]]=9,CONCATENATE(Tabelle_Auswertung[[#This Row],[Bildname]]," von ",Tabelle_Auswertung[[#This Row],[Autor(in)]]),"") ->  | AI91: =IF(Tabelle_Auswertung[[#This Row],[Platz]]=10,CONCATENATE(Tabelle_Auswertung[[#This Row],[Bildname]]," von ",Tabelle_Auswertung[[#This Row],[Autor(in)]]),"") -> 
V92: =IF(Tabelle_Auswertung[[#This Row],[Bildname]]<>"",SUM(Tabelle_Auswertung[[#This Row],[Juror 1]:[Juror 20]])," - ") -> - | W92: =IF(Tabelle_Auswertung[[#This Row],[Bildname]]<>"",IF(Tabelle_Auswertung[[#This Row],[Punkte]]>0,AVERAGE(Tabelle_Auswertung[[#This Row],[Juror 1]:[Juror 20]])," - ")," - ") -> - | X92: =IF(Tabelle_Auswertung[[#This Row],[Bildname]]<>"",IF(Tabelle_Auswertung[[#This Row],[Punkte]]>0,RANK(Tabelle_Auswertung[[#This Row],[Punkte]],[Punkte],0)," - ")," - ") -> - | Y92: - - - | Z92: =IF(Tabelle_Auswertung[[#This Row],[Platz]]=1,CONCATENATE(Tabelle_Auswertung[[#This Row],[Bildname]]," von ",Tabelle_Auswertung[[#This Row],[Autor(in)]]),"") ->  | AA92: =IF(Tabelle_Auswertung[[#This Row],[Platz]]=2,CONCATENATE(Tabelle_Auswertung[[#This Row],[Bildname]]," von ",Tabelle_Auswertung[[#This Row],[Autor(in)]]),"") ->  | AB92: =IF(Tabelle_Auswertung[[#This Row],[Platz]]=3,CONCATENATE(Tabelle_Auswertung[[#This Row],[Bildname]]," von ",Tabelle_Auswertung[[#This Row],[Autor(in)]]),"") ->  | AC92: =IF(Tabelle_Auswertung[[#This Row],[Platz]]=4,CONCATENATE(Tabelle_Auswertung[[#This Row],[Bildname]]," von ",Tabelle_Auswertung[[#This Row],[Autor(in)]]),"") ->  | AD92: =IF(Tabelle_Auswertung[[#This Row],[Platz]]=5,CONCATENATE(Tabelle_Auswertung[[#This Row],[Bildname]]," von ",Tabelle_Auswertung[[#This Row],[Autor(in)]]),"") ->  | AE92: =IF(Tabelle_Auswertung[[#This Row],[Platz]]=6,CONCATENATE(Tabelle_Auswertung[[#This Row],[Bildname]]," von ",Tabelle_Auswertung[[#This Row],[Autor(in)]]),"") ->  | AF92: =IF(Tabelle_Auswertung[[#This Row],[Platz]]=7,CONCATENATE(Tabelle_Auswertung[[#This Row],[Bildname]]," von ",Tabelle_Auswertung[[#This Row],[Autor(in)]]),"") ->  | AG92: =IF(Tabelle_Auswertung[[#This Row],[Platz]]=8,CONCATENATE(Tabelle_Auswertung[[#This Row],[Bildname]]," von ",Tabelle_Auswertung[[#This Row],[Autor(in)]]),"") ->  | AH92: =IF(Tabelle_Auswertung[[#This Row],[Platz]]=9,CONCATENATE(Tabelle_Auswertung[[#This Row],[Bildname]]," von ",Tabelle_Auswertung[[#This Row],[Autor(in)]]),"") ->  | AI92: =IF(Tabelle_Auswertung[[#This Row],[Platz]]=10,CONCATENATE(Tabelle_Auswertung[[#This Row],[Bildname]]," von ",Tabelle_Auswertung[[#This Row],[Autor(in)]]),"") -> 
V93: =IF(Tabelle_Auswertung[[#This Row],[Bildname]]<>"",SUM(Tabelle_Auswertung[[#This Row],[Juror 1]:[Juror 20]])," - ") -> - | W93: =IF(Tabelle_Auswertung[[#This Row],[Bildname]]<>"",IF(Tabelle_Auswertung[[#This Row],[Punkte]]>0,AVERAGE(Tabelle_Auswertung[[#This Row],[Juror 1]:[Juror 20]])," - ")," - ") -> - | X93: =IF(Tabelle_Auswertung[[#This Row],[Bildname]]<>"",IF(Tabelle_Auswertung[[#This Row],[Punkte]]>0,RANK(Tabelle_Auswertung[[#This Row],[Punkte]],[Punkte],0)," - ")," - ") -> - | Y93: - - - | Z93: =IF(Tabelle_Auswertung[[#This Row],[Platz]]=1,CONCATENATE(Tabelle_Auswertung[[#This Row],[Bildname]]," von ",Tabelle_Auswertung[[#This Row],[Autor(in)]]),"") ->  | AA93: =IF(Tabelle_Auswertung[[#This Row],[Platz]]=2,CONCATENATE(Tabelle_Auswertung[[#This Row],[Bildname]]," von ",Tabelle_Auswertung[[#This Row],[Autor(in)]]),"") ->  | AB93: =IF(Tabelle_Auswertung[[#This Row],[Platz]]=3,CONCATENATE(Tabelle_Auswertung[[#This Row],[Bildname]]," von ",Tabelle_Auswertung[[#This Row],[Autor(in)]]),"") ->  | AC93: =IF(Tabelle_Auswertung[[#This Row],[Platz]]=4,CONCATENATE(Tabelle_Auswertung[[#This Row],[Bildname]]," von ",Tabelle_Auswertung[[#This Row],[Autor(in)]]),"") ->  | AD93: =IF(Tabelle_Auswertung[[#This Row],[Platz]]=5,CONCATENATE(Tabelle_Auswertung[[#This Row],[Bildname]]," von ",Tabelle_Auswertung[[#This Row],[Autor(in)]]),"") ->  | AE93: =IF(Tabelle_Auswertung[[#This Row],[Platz]]=6,CONCATENATE(Tabelle_Auswertung[[#This Row],[Bildname]]," von ",Tabelle_Auswertung[[#This Row],[Autor(in)]]),"") ->  | AF93: =IF(Tabelle_Auswertung[[#This Row],[Platz]]=7,CONCATENATE(Tabelle_Auswertung[[#This Row],[Bildname]]," von ",Tabelle_Auswertung[[#This Row],[Autor(in)]]),"") ->  | AG93: =IF(Tabelle_Auswertung[[#This Row],[Platz]]=8,CONCATENATE(Tabelle_Auswertung[[#This Row],[Bildname]]," von ",Tabelle_Auswertung[[#This Row],[Autor(in)]]),"") ->  | AH93: =IF(Tabelle_Auswertung[[#This Row],[Platz]]=9,CONCATENATE(Tabelle_Auswertung[[#This Row],[Bildname]]," von ",Tabelle_Auswertung[[#This Row],[Autor(in)]]),"") ->  | AI93: =IF(Tabelle_Auswertung[[#This Row],[Platz]]=10,CONCATENATE(Tabelle_Auswertung[[#This Row],[Bildname]]," von ",Tabelle_Auswertung[[#This Row],[Autor(in)]]),"") -> 
V94: =IF(Tabelle_Auswertung[[#This Row],[Bildname]]<>"",SUM(Tabelle_Auswertung[[#This Row],[Juror 1]:[Juror 20]])," - ") -> - | W94: =IF(Tabelle_Auswertung[[#This Row],[Bildname]]<>"",IF(Tabelle_Auswertung[[#This Row],[Punkte]]>0,AVERAGE(Tabelle_Auswertung[[#This Row],[Juror 1]:[Juror 20]])," - ")," - ") -> - | X94: =IF(Tabelle_Auswertung[[#This Row],[Bildname]]<>"",IF(Tabelle_Auswertung[[#This Row],[Punkte]]>0,RANK(Tabelle_Auswertung[[#This Row],[Punkte]],[Punkte],0)," - ")," - ") -> - | Y94: - - - | Z94: =IF(Tabelle_Auswertung[[#This Row],[Platz]]=1,CONCATENATE(Tabelle_Auswertung[[#This Row],[Bildname]]," von ",Tabelle_Auswertung[[#This Row],[Autor(in)]]),"") ->  | AA94: =IF(Tabelle_Auswertung[[#This Row],[Platz]]=2,CONCATENATE(Tabelle_Auswertung[[#This Row],[Bildname]]," von ",Tabelle_Auswertung[[#This Row],[Autor(in)]]),"") ->  | AB94: =IF(Tabelle_Auswertung[[#This Row],[Platz]]=3,CONCATENATE(Tabelle_Auswertung[[#This Row],[Bildname]]," von ",Tabelle_Auswertung[[#This Row],[Autor(in)]]),"") ->  | AC94: =IF(Tabelle_Auswertung[[#This Row],[Platz]]=4,CONCATENATE(Tabelle_Auswertung[[#This Row],[Bildname]]," von ",Tabelle_Auswertung[[#This Row],[Autor(in)]]),"") ->  | AD94: =IF(Tabelle_Auswertung[[#This Row],[Platz]]=5,CONCATENATE(Tabelle_Auswertung[[#This Row],[Bildname]]," von ",Tabelle_Auswertung[[#This Row],[Autor(in)]]),"") ->  | AE94: =IF(Tabelle_Auswertung[[#This Row],[Platz]]=6,CONCATENATE(Tabelle_Auswertung[[#This Row],[Bildname]]," von ",Tabelle_Auswertung[[#This Row],[Autor(in)]]),"") ->  | AF94: =IF(Tabelle_Auswertung[[#This Row],[Platz]]=7,CONCATENATE(Tabelle_Auswertung[[#This Row],[Bildname]]," von ",Tabelle_Auswertung[[#This Row],[Autor(in)]]),"") ->  | AG94: =IF(Tabelle_Auswertung[[#This Row],[Platz]]=8,CONCATENATE(Tabelle_Auswertung[[#This Row],[Bildname]]," von ",Tabelle_Auswertung[[#This Row],[Autor(in)]]),"") ->  | AH94: =IF(Tabelle_Auswertung[[#This Row],[Platz]]=9,CONCATENATE(Tabelle_Auswertung[[#This Row],[Bildname]]," von ",Tabelle_Auswertung[[#This Row],[Autor(in)]]),"") ->  | AI94: =IF(Tabelle_Auswertung[[#This Row],[Platz]]=10,CONCATENATE(Tabelle_Auswertung[[#This Row],[Bildname]]," von ",Tabelle_Auswertung[[#This Row],[Autor(in)]]),"") -> 
V95: =IF(Tabelle_Auswertung[[#This Row],[Bildname]]<>"",SUM(Tabelle_Auswertung[[#This Row],[Juror 1]:[Juror 20]])," - ") -> - | W95: =IF(Tabelle_Auswertung[[#This Row],[Bildname]]<>"",IF(Tabelle_Auswertung[[#This Row],[Punkte]]>0,AVERAGE(Tabelle_Auswertung[[#This Row],[Juror 1]:[Juror 20]])," - ")," - ") -> - | X95: =IF(Tabelle_Auswertung[[#This Row],[Bildname]]<>"",IF(Tabelle_Auswertung[[#This Row],[Punkte]]>0,RANK(Tabelle_Auswertung[[#This Row],[Punkte]],[Punkte],0)," - ")," - ") -> - | Y95: - - - | Z95: =IF(Tabelle_Auswertung[[#This Row],[Platz]]=1,CONCATENATE(Tabelle_Auswertung[[#This Row],[Bildname]]," von ",Tabelle_Auswertung[[#This Row],[Autor(in)]]),"") ->  | AA95: =IF(Tabelle_Auswertung[[#This Row],[Platz]]=2,CONCATENATE(Tabelle_Auswertung[[#This Row],[Bildname]]," von ",Tabelle_Auswertung[[#This Row],[Autor(in)]]),"") ->  | AB95: =IF(Tabelle_Auswertung[[#This Row],[Platz]]=3,CONCATENATE(Tabelle_Auswertung[[#This Row],[Bildname]]," von ",Tabelle_Auswertung[[#This Row],[Autor(in)]]),"") ->  | AC95: =IF(Tabelle_Auswertung[[#This Row],[Platz]]=4,CONCATENATE(Tabelle_Auswertung[[#This Row],[Bildname]]," von ",Tabelle_Auswertung[[#This Row],[Autor(in)]]),"") ->  | AD95: =IF(Tabelle_Auswertung[[#This Row],[Platz]]=5,CONCATENATE(Tabelle_Auswertung[[#This Row],[Bildname]]," von ",Tabelle_Auswertung[[#This Row],[Autor(in)]]),"") ->  | AE95: =IF(Tabelle_Auswertung[[#This Row],[Platz]]=6,CONCATENATE(Tabelle_Auswertung[[#This Row],[Bildname]]," von ",Tabelle_Auswertung[[#This Row],[Autor(in)]]),"") ->  | AF95: =IF(Tabelle_Auswertung[[#This Row],[Platz]]=7,CONCATENATE(Tabelle_Auswertung[[#This Row],[Bildname]]," von ",Tabelle_Auswertung[[#This Row],[Autor(in)]]),"") ->  | AG95: =IF(Tabelle_Auswertung[[#This Row],[Platz]]=8,CONCATENATE(Tabelle_Auswertung[[#This Row],[Bildname]]," von ",Tabelle_Auswertung[[#This Row],[Autor(in)]]),"") ->  | AH95: =IF(Tabelle_Auswertung[[#This Row],[Platz]]=9,CONCATENATE(Tabelle_Auswertung[[#This Row],[Bildname]]," von ",Tabelle_Auswertung[[#This Row],[Autor(in)]]),"") ->  | AI95: =IF(Tabelle_Auswertung[[#This Row],[Platz]]=10,CONCATENATE(Tabelle_Auswertung[[#This Row],[Bildname]]," von ",Tabelle_Auswertung[[#This Row],[Autor(in)]]),"") -> 
V96: =IF(Tabelle_Auswertung[[#This Row],[Bildname]]<>"",SUM(Tabelle_Auswertung[[#This Row],[Juror 1]:[Juror 20]])," - ") -> - | W96: =IF(Tabelle_Auswertung[[#This Row],[Bildname]]<>"",IF(Tabelle_Auswertung[[#This Row],[Punkte]]>0,AVERAGE(Tabelle_Auswertung[[#This Row],[Juror 1]:[Juror 20]])," - ")," - ") -> - | X96: =IF(Tabelle_Auswertung[[#This Row],[Bildname]]<>"",IF(Tabelle_Auswertung[[#This Row],[Punkte]]>0,RANK(Tabelle_Auswertung[[#This Row],[Punkte]],[Punkte],0)," - ")," - ") -> - | Y96: - - - | Z96: =IF(Tabelle_Auswertung[[#This Row],[Platz]]=1,CONCATENATE(Tabelle_Auswertung[[#This Row],[Bildname]]," von ",Tabelle_Auswertung[[#This Row],[Autor(in)]]),"") ->  | AA96: =IF(Tabelle_Auswertung[[#This Row],[Platz]]=2,CONCATENATE(Tabelle_Auswertung[[#This Row],[Bildname]]," von ",Tabelle_Auswertung[[#This Row],[Autor(in)]]),"") ->  | AB96: =IF(Tabelle_Auswertung[[#This Row],[Platz]]=3,CONCATENATE(Tabelle_Auswertung[[#This Row],[Bildname]]," von ",Tabelle_Auswertung[[#This Row],[Autor(in)]]),"") ->  | AC96: =IF(Tabelle_Auswertung[[#This Row],[Platz]]=4,CONCATENATE(Tabelle_Auswertung[[#This Row],[Bildname]]," von ",Tabelle_Auswertung[[#This Row],[Autor(in)]]),"") ->  | AD96: =IF(Tabelle_Auswertung[[#This Row],[Platz]]=5,CONCATENATE(Tabelle_Auswertung[[#This Row],[Bildname]]," von ",Tabelle_Auswertung[[#This Row],[Autor(in)]]),"") ->  | AE96: =IF(Tabelle_Auswertung[[#This Row],[Platz]]=6,CONCATENATE(Tabelle_Auswertung[[#This Row],[Bildname]]," von ",Tabelle_Auswertung[[#This Row],[Autor(in)]]),"") ->  | AF96: =IF(Tabelle_Auswertung[[#This Row],[Platz]]=7,CONCATENATE(Tabelle_Auswertung[[#This Row],[Bildname]]," von ",Tabelle_Auswertung[[#This Row],[Autor(in)]]),"") ->  | AG96: =IF(Tabelle_Auswertung[[#This Row],[Platz]]=8,CONCATENATE(Tabelle_Auswertung[[#This Row],[Bildname]]," von ",Tabelle_Auswertung[[#This Row],[Autor(in)]]),"") ->  | AH96: =IF(Tabelle_Auswertung[[#This Row],[Platz]]=9,CONCATENATE(Tabelle_Auswertung[[#This Row],[Bildname]]," von ",Tabelle_Auswertung[[#This Row],[Autor(in)]]),"") ->  | AI96: =IF(Tabelle_Auswertung[[#This Row],[Platz]]=10,CONCATENATE(Tabelle_Auswertung[[#This Row],[Bildname]]," von ",Tabelle_Auswertung[[#This Row],[Autor(in)]]),"") -> 
V97: =IF(Tabelle_Auswertung[[#This Row],[Bildname]]<>"",SUM(Tabelle_Auswertung[[#This Row],[Juror 1]:[Juror 20]])," - ") -> - | W97: =IF(Tabelle_Auswertung[[#This Row],[Bildname]]<>"",IF(Tabelle_Auswertung[[#This Row],[Punkte]]>0,AVERAGE(Tabelle_Auswertung[[#This Row],[Juror 1]:[Juror 20]])," - ")," - ") -> - | X97: =IF(Tabelle_Auswertung[[#This Row],[Bildname]]<>"",IF(Tabelle_Auswertung[[#This Row],[Punkte]]>0,RANK(Tabelle_Auswertung[[#This Row],[Punkte]],[Punkte],0)," - ")," - ") -> - | Y97: - - - | Z97: =IF(Tabelle_Auswertung[[#This Row],[Platz]]=1,CONCATENATE(Tabelle_Auswertung[[#This Row],[Bildname]]," von ",Tabelle_Auswertung[[#This Row],[Autor(in)]]),"") ->  | AA97: =IF(Tabelle_Auswertung[[#This Row],[Platz]]=2,CONCATENATE(Tabelle_Auswertung[[#This Row],[Bildname]]," von ",Tabelle_Auswertung[[#This Row],[Autor(in)]]),"") ->  | AB97: =IF(Tabelle_Auswertung[[#This Row],[Platz]]=3,CONCATENATE(Tabelle_Auswertung[[#This Row],[Bildname]]," von ",Tabelle_Auswertung[[#This Row],[Autor(in)]]),"") ->  | AC97: =IF(Tabelle_Auswertung[[#This Row],[Platz]]=4,CONCATENATE(Tabelle_Auswertung[[#This Row],[Bildname]]," von ",Tabelle_Auswertung[[#This Row],[Autor(in)]]),"") ->  | AD97: =IF(Tabelle_Auswertung[[#This Row],[Platz]]=5,CONCATENATE(Tabelle_Auswertung[[#This Row],[Bildname]]," von ",Tabelle_Auswertung[[#This Row],[Autor(in)]]),"") ->  | AE97: =IF(Tabelle_Auswertung[[#This Row],[Platz]]=6,CONCATENATE(Tabelle_Auswertung[[#This Row],[Bildname]]," von ",Tabelle_Auswertung[[#This Row],[Autor(in)]]),"") ->  | AF97: =IF(Tabelle_Auswertung[[#This Row],[Platz]]=7,CONCATENATE(Tabelle_Auswertung[[#This Row],[Bildname]]," von ",Tabelle_Auswertung[[#This Row],[Autor(in)]]),"") ->  | AG97: =IF(Tabelle_Auswertung[[#This Row],[Platz]]=8,CONCATENATE(Tabelle_Auswertung[[#This Row],[Bildname]]," von ",Tabelle_Auswertung[[#This Row],[Autor(in)]]),"") ->  | AH97: =IF(Tabelle_Auswertung[[#This Row],[Platz]]=9,CONCATENATE(Tabelle_Auswertung[[#This Row],[Bildname]]," von ",Tabelle_Auswertung[[#This Row],[Autor(in)]]),"") ->  | AI97: =IF(Tabelle_Auswertung[[#This Row],[Platz]]=10,CONCATENATE(Tabelle_Auswertung[[#This Row],[Bildname]]," von ",Tabelle_Auswertung[[#This Row],[Autor(in)]]),"") -> 
V98: =IF(Tabelle_Auswertung[[#This Row],[Bildname]]<>"",SUM(Tabelle_Auswertung[[#This Row],[Juror 1]:[Juror 20]])," - ") -> - | W98: =IF(Tabelle_Auswertung[[#This Row],[Bildname]]<>"",IF(Tabelle_Auswertung[[#This Row],[Punkte]]>0,AVERAGE(Tabelle_Auswertung[[#This Row],[Juror 1]:[Juror 20]])," - ")," - ") -> - | X98: =IF(Tabelle_Auswertung[[#This Row],[Bildname]]<>"",IF(Tabelle_Auswertung[[#This Row],[Punkte]]>0,RANK(Tabelle_Auswertung[[#This Row],[Punkte]],[Punkte],0)," - ")," - ") -> - | Y98: - - - | Z98: =IF(Tabelle_Auswertung[[#This Row],[Platz]]=1,CONCATENATE(Tabelle_Auswertung[[#This Row],[Bildname]]," von ",Tabelle_Auswertung[[#This Row],[Autor(in)]]),"") ->  | AA98: =IF(Tabelle_Auswertung[[#This Row],[Platz]]=2,CONCATENATE(Tabelle_Auswertung[[#This Row],[Bildname]]," von ",Tabelle_Auswertung[[#This Row],[Autor(in)]]),"") ->  | AB98: =IF(Tabelle_Auswertung[[#This Row],[Platz]]=3,CONCATENATE(Tabelle_Auswertung[[#This Row],[Bildname]]," von ",Tabelle_Auswertung[[#This Row],[Autor(in)]]),"") ->  | AC98: =IF(Tabelle_Auswertung[[#This Row],[Platz]]=4,CONCATENATE(Tabelle_Auswertung[[#This Row],[Bildname]]," von ",Tabelle_Auswertung[[#This Row],[Autor(in)]]),"") ->  | AD98: =IF(Tabelle_Auswertung[[#This Row],[Platz]]=5,CONCATENATE(Tabelle_Auswertung[[#This Row],[Bildname]]," von ",Tabelle_Auswertung[[#This Row],[Autor(in)]]),"") ->  | AE98: =IF(Tabelle_Auswertung[[#This Row],[Platz]]=6,CONCATENATE(Tabelle_Auswertung[[#This Row],[Bildname]]," von ",Tabelle_Auswertung[[#This Row],[Autor(in)]]),"") ->  | AF98: =IF(Tabelle_Auswertung[[#This Row],[Platz]]=7,CONCATENATE(Tabelle_Auswertung[[#This Row],[Bildname]]," von ",Tabelle_Auswertung[[#This Row],[Autor(in)]]),"") ->  | AG98: =IF(Tabelle_Auswertung[[#This Row],[Platz]]=8,CONCATENATE(Tabelle_Auswertung[[#This Row],[Bildname]]," von ",Tabelle_Auswertung[[#This Row],[Autor(in)]]),"") ->  | AH98: =IF(Tabelle_Auswertung[[#This Row],[Platz]]=9,CONCATENATE(Tabelle_Auswertung[[#This Row],[Bildname]]," von ",Tabelle_Auswertung[[#This Row],[Autor(in)]]),"") ->  | AI98: =IF(Tabelle_Auswertung[[#This Row],[Platz]]=10,CONCATENATE(Tabelle_Auswertung[[#This Row],[Bildname]]," von ",Tabelle_Auswertung[[#This Row],[Autor(in)]]),"") -> 
V99: =IF(Tabelle_Auswertung[[#This Row],[Bildname]]<>"",SUM(Tabelle_Auswertung[[#This Row],[Juror 1]:[Juror 20]])," - ") -> - | W99: =IF(Tabelle_Auswertung[[#This Row],[Bildname]]<>"",IF(Tabelle_Auswertung[[#This Row],[Punkte]]>0,AVERAGE(Tabelle_Auswertung[[#This Row],[Juror 1]:[Juror 20]])," - ")," - ") -> - | X99: =IF(Tabelle_Auswertung[[#This Row],[Bildname]]<>"",IF(Tabelle_Auswertung[[#This Row],[Punkte]]>0,RANK(Tabelle_Auswertung[[#This Row],[Punkte]],[Punkte],0)," - ")," - ") -> - | Y99: - - - | Z99: =IF(Tabelle_Auswertung[[#This Row],[Platz]]=1,CONCATENATE(Tabelle_Auswertung[[#This Row],[Bildname]]," von ",Tabelle_Auswertung[[#This Row],[Autor(in)]]),"") ->  | AA99: =IF(Tabelle_Auswertung[[#This Row],[Platz]]=2,CONCATENATE(Tabelle_Auswertung[[#This Row],[Bildname]]," von ",Tabelle_Auswertung[[#This Row],[Autor(in)]]),"") ->  | AB99: =IF(Tabelle_Auswertung[[#This Row],[Platz]]=3,CONCATENATE(Tabelle_Auswertung[[#This Row],[Bildname]]," von ",Tabelle_Auswertung[[#This Row],[Autor(in)]]),"") ->  | AC99: =IF(Tabelle_Auswertung[[#This Row],[Platz]]=4,CONCATENATE(Tabelle_Auswertung[[#This Row],[Bildname]]," von ",Tabelle_Auswertung[[#This Row],[Autor(in)]]),"") ->  | AD99: =IF(Tabelle_Auswertung[[#This Row],[Platz]]=5,CONCATENATE(Tabelle_Auswertung[[#This Row],[Bildname]]," von ",Tabelle_Auswertung[[#This Row],[Autor(in)]]),"") ->  | AE99: =IF(Tabelle_Auswertung[[#This Row],[Platz]]=6,CONCATENATE(Tabelle_Auswertung[[#This Row],[Bildname]]," von ",Tabelle_Auswertung[[#This Row],[Autor(in)]]),"") ->  | AF99: =IF(Tabelle_Auswertung[[#This Row],[Platz]]=7,CONCATENATE(Tabelle_Auswertung[[#This Row],[Bildname]]," von ",Tabelle_Auswertung[[#This Row],[Autor(in)]]),"") ->  | AG99: =IF(Tabelle_Auswertung[[#This Row],[Platz]]=8,CONCATENATE(Tabelle_Auswertung[[#This Row],[Bildname]]," von ",Tabelle_Auswertung[[#This Row],[Autor(in)]]),"") ->  | AH99: =IF(Tabelle_Auswertung[[#This Row],[Platz]]=9,CONCATENATE(Tabelle_Auswertung[[#This Row],[Bildname]]," von ",Tabelle_Auswertung[[#This Row],[Autor(in)]]),"") ->  | AI99: =IF(Tabelle_Auswertung[[#This Row],[Platz]]=10,CONCATENATE(Tabelle_Auswertung[[#This Row],[Bildname]]," von ",Tabelle_Auswertung[[#This Row],[Autor(in)]]),"") -> 
V100: =IF(Tabelle_Auswertung[[#This Row],[Bildname]]<>"",SUM(Tabelle_Auswertung[[#This Row],[Juror 1]:[Juror 20]])," - ") -> - | W100: =IF(Tabelle_Auswertung[[#This Row],[Bildname]]<>"",IF(Tabelle_Auswertung[[#This Row],[Punkte]]>0,AVERAGE(Tabelle_Auswertung[[#This Row],[Juror 1]:[Juror 20]])," - ")," - ") -> - | X100: =IF(Tabelle_Auswertung[[#This Row],[Bildname]]<>"",IF(Tabelle_Auswertung[[#This Row],[Punkte]]>0,RANK(Tabelle_Auswertung[[#This Row],[Punkte]],[Punkte],0)," - ")," - ") -> - | Y100: - - - | Z100: =IF(Tabelle_Auswertung[[#This Row],[Platz]]=1,CONCATENATE(Tabelle_Auswertung[[#This Row],[Bildname]]," von ",Tabelle_Auswertung[[#This Row],[Autor(in)]]),"") ->  | AA100: =IF(Tabelle_Auswertung[[#This Row],[Platz]]=2,CONCATENATE(Tabelle_Auswertung[[#This Row],[Bildname]]," von ",Tabelle_Auswertung[[#This Row],[Autor(in)]]),"") ->  | AB100: =IF(Tabelle_Auswertung[[#This Row],[Platz]]=3,CONCATENATE(Tabelle_Auswertung[[#This Row],[Bildname]]," von ",Tabelle_Auswertung[[#This Row],[Autor(in)]]),"") ->  | AC100: =IF(Tabelle_Auswertung[[#This Row],[Platz]]=4,CONCATENATE(Tabelle_Auswertung[[#This Row],[Bildname]]," von ",Tabelle_Auswertung[[#This Row],[Autor(in)]]),"") ->  | AD100: =IF(Tabelle_Auswertung[[#This Row],[Platz]]=5,CONCATENATE(Tabelle_Auswertung[[#This Row],[Bildname]]," von ",Tabelle_Auswertung[[#This Row],[Autor(in)]]),"") ->  | AE100: =IF(Tabelle_Auswertung[[#This Row],[Platz]]=6,CONCATENATE(Tabelle_Auswertung[[#This Row],[Bildname]]," von ",Tabelle_Auswertung[[#This Row],[Autor(in)]]),"") ->  | AF100: =IF(Tabelle_Auswertung[[#This Row],[Platz]]=7,CONCATENATE(Tabelle_Auswertung[[#This Row],[Bildname]]," von ",Tabelle_Auswertung[[#This Row],[Autor(in)]]),"") ->  | AG100: =IF(Tabelle_Auswertung[[#This Row],[Platz]]=8,CONCATENATE(Tabelle_Auswertung[[#This Row],[Bildname]]," von ",Tabelle_Auswertung[[#This Row],[Autor(in)]]),"") ->  | AH100: =IF(Tabelle_Auswertung[[#This Row],[Platz]]=9,CONCATENATE(Tabelle_Auswertung[[#This Row],[Bildname]]," von ",Tabelle_Auswertung[[#This Row],[Autor(in)]]),"") ->  | AI100: =IF(Tabelle_Auswertung[[#This Row],[Platz]]=10,CONCATENATE(Tabelle_Auswertung[[#This Row],[Bildname]]," von ",Tabelle_Auswertung[[#This Row],[Autor(in)]]),"") -> 
V101: =IF(Tabelle_Auswertung[[#This Row],[Bildname]]<>"",SUM(Tabelle_Auswertung[[#This Row],[Juror 1]:[Juror 20]])," - ") -> - | W101: =IF(Tabelle_Auswertung[[#This Row],[Bildname]]<>"",IF(Tabelle_Auswertung[[#This Row],[Punkte]]>0,AVERAGE(Tabelle_Auswertung[[#This Row],[Juror 1]:[Juror 20]])," - ")," - ") -> - | X101: =IF(Tabelle_Auswertung[[#This Row],[Bildname]]<>"",IF(Tabelle_Auswertung[[#This Row],[Punkte]]>0,RANK(Tabelle_Auswertung[[#This Row],[Punkte]],[Punkte],0)," - ")," - ") -> - | Y101: - - - | Z101: =IF(Tabelle_Auswertung[[#This Row],[Platz]]=1,CONCATENATE(Tabelle_Auswertung[[#This Row],[Bildname]]," von ",Tabelle_Auswertung[[#This Row],[Autor(in)]]),"") ->  | AA101: =IF(Tabelle_Auswertung[[#This Row],[Platz]]=2,CONCATENATE(Tabelle_Auswertung[[#This Row],[Bildname]]," von ",Tabelle_Auswertung[[#This Row],[Autor(in)]]),"") ->  | AB101: =IF(Tabelle_Auswertung[[#This Row],[Platz]]=3,CONCATENATE(Tabelle_Auswertung[[#This Row],[Bildname]]," von ",Tabelle_Auswertung[[#This Row],[Autor(in)]]),"") ->  | AC101: =IF(Tabelle_Auswertung[[#This Row],[Platz]]=4,CONCATENATE(Tabelle_Auswertung[[#This Row],[Bildname]]," von ",Tabelle_Auswertung[[#This Row],[Autor(in)]]),"") ->  | AD101: =IF(Tabelle_Auswertung[[#This Row],[Platz]]=5,CONCATENATE(Tabelle_Auswertung[[#This Row],[Bildname]]," von ",Tabelle_Auswertung[[#This Row],[Autor(in)]]),"") ->  | AE101: =IF(Tabelle_Auswertung[[#This Row],[Platz]]=6,CONCATENATE(Tabelle_Auswertung[[#This Row],[Bildname]]," von ",Tabelle_Auswertung[[#This Row],[Autor(in)]]),"") ->  | AF101: =IF(Tabelle_Auswertung[[#This Row],[Platz]]=7,CONCATENATE(Tabelle_Auswertung[[#This Row],[Bildname]]," von ",Tabelle_Auswertung[[#This Row],[Autor(in)]]),"") ->  | AG101: =IF(Tabelle_Auswertung[[#This Row],[Platz]]=8,CONCATENATE(Tabelle_Auswertung[[#This Row],[Bildname]]," von ",Tabelle_Auswertung[[#This Row],[Autor(in)]]),"") ->  | AH101: =IF(Tabelle_Auswertung[[#This Row],[Platz]]=9,CONCATENATE(Tabelle_Auswertung[[#This Row],[Bildname]]," von ",Tabelle_Auswertung[[#This Row],[Autor(in)]]),"") ->  | AI101: =IF(Tabelle_Auswertung[[#This Row],[Platz]]=10,CONCATENATE(Tabelle_Auswertung[[#This Row],[Bildname]]," von ",Tabelle_Auswertung[[#This Row],[Autor(in)]]),"") -> 
V102: =IF(Tabelle_Auswertung[[#This Row],[Bildname]]<>"",SUM(Tabelle_Auswertung[[#This Row],[Juror 1]:[Juror 20]])," - ") -> - | W102: =IF(Tabelle_Auswertung[[#This Row],[Bildname]]<>"",IF(Tabelle_Auswertung[[#This Row],[Punkte]]>0,AVERAGE(Tabelle_Auswertung[[#This Row],[Juror 1]:[Juror 20]])," - ")," - ") -> - | X102: =IF(Tabelle_Auswertung[[#This Row],[Bildname]]<>"",IF(Tabelle_Auswertung[[#This Row],[Punkte]]>0,RANK(Tabelle_Auswertung[[#This Row],[Punkte]],[Punkte],0)," - ")," - ") -> - | Y102: - - - | Z102: =IF(Tabelle_Auswertung[[#This Row],[Platz]]=1,CONCATENATE(Tabelle_Auswertung[[#This Row],[Bildname]]," von ",Tabelle_Auswertung[[#This Row],[Autor(in)]]),"") ->  | AA102: =IF(Tabelle_Auswertung[[#This Row],[Platz]]=2,CONCATENATE(Tabelle_Auswertung[[#This Row],[Bildname]]," von ",Tabelle_Auswertung[[#This Row],[Autor(in)]]),"") ->  | AB102: =IF(Tabelle_Auswertung[[#This Row],[Platz]]=3,CONCATENATE(Tabelle_Auswertung[[#This Row],[Bildname]]," von ",Tabelle_Auswertung[[#This Row],[Autor(in)]]),"") ->  | AC102: =IF(Tabelle_Auswertung[[#This Row],[Platz]]=4,CONCATENATE(Tabelle_Auswertung[[#This Row],[Bildname]]," von ",Tabelle_Auswertung[[#This Row],[Autor(in)]]),"") ->  | AD102: =IF(Tabelle_Auswertung[[#This Row],[Platz]]=5,CONCATENATE(Tabelle_Auswertung[[#This Row],[Bildname]]," von ",Tabelle_Auswertung[[#This Row],[Autor(in)]]),"") ->  | AE102: =IF(Tabelle_Auswertung[[#This Row],[Platz]]=6,CONCATENATE(Tabelle_Auswertung[[#This Row],[Bildname]]," von ",Tabelle_Auswertung[[#This Row],[Autor(in)]]),"") ->  | AF102: =IF(Tabelle_Auswertung[[#This Row],[Platz]]=7,CONCATENATE(Tabelle_Auswertung[[#This Row],[Bildname]]," von ",Tabelle_Auswertung[[#This Row],[Autor(in)]]),"") ->  | AG102: =IF(Tabelle_Auswertung[[#This Row],[Platz]]=8,CONCATENATE(Tabelle_Auswertung[[#This Row],[Bildname]]," von ",Tabelle_Auswertung[[#This Row],[Autor(in)]]),"") ->  | AH102: =IF(Tabelle_Auswertung[[#This Row],[Platz]]=9,CONCATENATE(Tabelle_Auswertung[[#This Row],[Bildname]]," von ",Tabelle_Auswertung[[#This Row],[Autor(in)]]),"") ->  | AI102: =IF(Tabelle_Auswertung[[#This Row],[Platz]]=10,CONCATENATE(Tabelle_Auswertung[[#This Row],[Bildname]]," von ",Tabelle_Auswertung[[#This Row],[Autor(in)]]),"") -> 
V103: =IF(Tabelle_Auswertung[[#This Row],[Bildname]]<>"",SUM(Tabelle_Auswertung[[#This Row],[Juror 1]:[Juror 20]])," - ") -> - | W103: =IF(Tabelle_Auswertung[[#This Row],[Bildname]]<>"",IF(Tabelle_Auswertung[[#This Row],[Punkte]]>0,AVERAGE(Tabelle_Auswertung[[#This Row],[Juror 1]:[Juror 20]])," - ")," - ") -> - | X103: =IF(Tabelle_Auswertung[[#This Row],[Bildname]]<>"",IF(Tabelle_Auswertung[[#This Row],[Punkte]]>0,RANK(Tabelle_Auswertung[[#This Row],[Punkte]],[Punkte],0)," - ")," - ") -> - | Y103: - - - | Z103: =IF(Tabelle_Auswertung[[#This Row],[Platz]]=1,CONCATENATE(Tabelle_Auswertung[[#This Row],[Bildname]]," von ",Tabelle_Auswertung[[#This Row],[Autor(in)]]),"") ->  | AA103: =IF(Tabelle_Auswertung[[#This Row],[Platz]]=2,CONCATENATE(Tabelle_Auswertung[[#This Row],[Bildname]]," von ",Tabelle_Auswertung[[#This Row],[Autor(in)]]),"") ->  | AB103: =IF(Tabelle_Auswertung[[#This Row],[Platz]]=3,CONCATENATE(Tabelle_Auswertung[[#This Row],[Bildname]]," von ",Tabelle_Auswertung[[#This Row],[Autor(in)]]),"") ->  | AC103: =IF(Tabelle_Auswertung[[#This Row],[Platz]]=4,CONCATENATE(Tabelle_Auswertung[[#This Row],[Bildname]]," von ",Tabelle_Auswertung[[#This Row],[Autor(in)]]),"") ->  | AD103: =IF(Tabelle_Auswertung[[#This Row],[Platz]]=5,CONCATENATE(Tabelle_Auswertung[[#This Row],[Bildname]]," von ",Tabelle_Auswertung[[#This Row],[Autor(in)]]),"") ->  | AE103: =IF(Tabelle_Auswertung[[#This Row],[Platz]]=6,CONCATENATE(Tabelle_Auswertung[[#This Row],[Bildname]]," von ",Tabelle_Auswertung[[#This Row],[Autor(in)]]),"") ->  | AF103: =IF(Tabelle_Auswertung[[#This Row],[Platz]]=7,CONCATENATE(Tabelle_Auswertung[[#This Row],[Bildname]]," von ",Tabelle_Auswertung[[#This Row],[Autor(in)]]),"") ->  | AG103: =IF(Tabelle_Auswertung[[#This Row],[Platz]]=8,CONCATENATE(Tabelle_Auswertung[[#This Row],[Bildname]]," von ",Tabelle_Auswertung[[#This Row],[Autor(in)]]),"") ->  | AH103: =IF(Tabelle_Auswertung[[#This Row],[Platz]]=9,CONCATENATE(Tabelle_Auswertung[[#This Row],[Bildname]]," von ",Tabelle_Auswertung[[#This Row],[Autor(in)]]),"") ->  | AI103: =IF(Tabelle_Auswertung[[#This Row],[Platz]]=10,CONCATENATE(Tabelle_Auswertung[[#This Row],[Bildname]]," von ",Tabelle_Auswertung[[#This Row],[Autor(in)]]),"") -> 
V104: =IF(Tabelle_Auswertung[[#This Row],[Bildname]]<>"",SUM(Tabelle_Auswertung[[#This Row],[Juror 1]:[Juror 20]])," - ") -> - | W104: =IF(Tabelle_Auswertung[[#This Row],[Bildname]]<>"",IF(Tabelle_Auswertung[[#This Row],[Punkte]]>0,AVERAGE(Tabelle_Auswertung[[#This Row],[Juror 1]:[Juror 20]])," - ")," - ") -> - | X104: =IF(Tabelle_Auswertung[[#This Row],[Bildname]]<>"",IF(Tabelle_Auswertung[[#This Row],[Punkte]]>0,RANK(Tabelle_Auswertung[[#This Row],[Punkte]],[Punkte],0)," - ")," - ") -> - | Y104: - - - | Z104: =IF(Tabelle_Auswertung[[#This Row],[Platz]]=1,CONCATENATE(Tabelle_Auswertung[[#This Row],[Bildname]]," von ",Tabelle_Auswertung[[#This Row],[Autor(in)]]),"") ->  | AA104: =IF(Tabelle_Auswertung[[#This Row],[Platz]]=2,CONCATENATE(Tabelle_Auswertung[[#This Row],[Bildname]]," von ",Tabelle_Auswertung[[#This Row],[Autor(in)]]),"") ->  | AB104: =IF(Tabelle_Auswertung[[#This Row],[Platz]]=3,CONCATENATE(Tabelle_Auswertung[[#This Row],[Bildname]]," von ",Tabelle_Auswertung[[#This Row],[Autor(in)]]),"") ->  | AC104: =IF(Tabelle_Auswertung[[#This Row],[Platz]]=4,CONCATENATE(Tabelle_Auswertung[[#This Row],[Bildname]]," von ",Tabelle_Auswertung[[#This Row],[Autor(in)]]),"") ->  | AD104: =IF(Tabelle_Auswertung[[#This Row],[Platz]]=5,CONCATENATE(Tabelle_Auswertung[[#This Row],[Bildname]]," von ",Tabelle_Auswertung[[#This Row],[Autor(in)]]),"") ->  | AE104: =IF(Tabelle_Auswertung[[#This Row],[Platz]]=6,CONCATENATE(Tabelle_Auswertung[[#This Row],[Bildname]]," von ",Tabelle_Auswertung[[#This Row],[Autor(in)]]),"") ->  | AF104: =IF(Tabelle_Auswertung[[#This Row],[Platz]]=7,CONCATENATE(Tabelle_Auswertung[[#This Row],[Bildname]]," von ",Tabelle_Auswertung[[#This Row],[Autor(in)]]),"") ->  | AG104: =IF(Tabelle_Auswertung[[#This Row],[Platz]]=8,CONCATENATE(Tabelle_Auswertung[[#This Row],[Bildname]]," von ",Tabelle_Auswertung[[#This Row],[Autor(in)]]),"") ->  | AH104: =IF(Tabelle_Auswertung[[#This Row],[Platz]]=9,CONCATENATE(Tabelle_Auswertung[[#This Row],[Bildname]]," von ",Tabelle_Auswertung[[#This Row],[Autor(in)]]),"") ->  | AI104: =IF(Tabelle_Auswertung[[#This Row],[Platz]]=10,CONCATENATE(Tabelle_Auswertung[[#This Row],[Bildname]]," von ",Tabelle_Auswertung[[#This Row],[Autor(in)]]),"") -> 
V105: =IF(Tabelle_Auswertung[[#This Row],[Bildname]]<>"",SUM(Tabelle_Auswertung[[#This Row],[Juror 1]:[Juror 20]])," - ") -> - | W105: =IF(Tabelle_Auswertung[[#This Row],[Bildname]]<>"",IF(Tabelle_Auswertung[[#This Row],[Punkte]]>0,AVERAGE(Tabelle_Auswertung[[#This Row],[Juror 1]:[Juror 20]])," - ")," - ") -> - | X105: =IF(Tabelle_Auswertung[[#This Row],[Bildname]]<>"",IF(Tabelle_Auswertung[[#This Row],[Punkte]]>0,RANK(Tabelle_Auswertung[[#This Row],[Punkte]],[Punkte],0)," - ")," - ") -> - | Y105: - - - | Z105: =IF(Tabelle_Auswertung[[#This Row],[Platz]]=1,CONCATENATE(Tabelle_Auswertung[[#This Row],[Bildname]]," von ",Tabelle_Auswertung[[#This Row],[Autor(in)]]),"") ->  | AA105: =IF(Tabelle_Auswertung[[#This Row],[Platz]]=2,CONCATENATE(Tabelle_Auswertung[[#This Row],[Bildname]]," von ",Tabelle_Auswertung[[#This Row],[Autor(in)]]),"") ->  | AB105: =IF(Tabelle_Auswertung[[#This Row],[Platz]]=3,CONCATENATE(Tabelle_Auswertung[[#This Row],[Bildname]]," von ",Tabelle_Auswertung[[#This Row],[Autor(in)]]),"") ->  | AC105: =IF(Tabelle_Auswertung[[#This Row],[Platz]]=4,CONCATENATE(Tabelle_Auswertung[[#This Row],[Bildname]]," von ",Tabelle_Auswertung[[#This Row],[Autor(in)]]),"") ->  | AD105: =IF(Tabelle_Auswertung[[#This Row],[Platz]]=5,CONCATENATE(Tabelle_Auswertung[[#This Row],[Bildname]]," von ",Tabelle_Auswertung[[#This Row],[Autor(in)]]),"") ->  | AE105: =IF(Tabelle_Auswertung[[#This Row],[Platz]]=6,CONCATENATE(Tabelle_Auswertung[[#This Row],[Bildname]]," von ",Tabelle_Auswertung[[#This Row],[Autor(in)]]),"") ->  | AF105: =IF(Tabelle_Auswertung[[#This Row],[Platz]]=7,CONCATENATE(Tabelle_Auswertung[[#This Row],[Bildname]]," von ",Tabelle_Auswertung[[#This Row],[Autor(in)]]),"") ->  | AG105: =IF(Tabelle_Auswertung[[#This Row],[Platz]]=8,CONCATENATE(Tabelle_Auswertung[[#This Row],[Bildname]]," von ",Tabelle_Auswertung[[#This Row],[Autor(in)]]),"") ->  | AH105: =IF(Tabelle_Auswertung[[#This Row],[Platz]]=9,CONCATENATE(Tabelle_Auswertung[[#This Row],[Bildname]]," von ",Tabelle_Auswertung[[#This Row],[Autor(in)]]),"") ->  | AI105: =IF(Tabelle_Auswertung[[#This Row],[Platz]]=10,CONCATENATE(Tabelle_Auswertung[[#This Row],[Bildname]]," von ",Tabelle_Auswertung[[#This Row],[Autor(in)]]),"") -> 
V106: =IF(Tabelle_Auswertung[[#This Row],[Bildname]]<>"",SUM(Tabelle_Auswertung[[#This Row],[Juror 1]:[Juror 20]])," - ") -> - | W106: =IF(Tabelle_Auswertung[[#This Row],[Bildname]]<>"",IF(Tabelle_Auswertung[[#This Row],[Punkte]]>0,AVERAGE(Tabelle_Auswertung[[#This Row],[Juror 1]:[Juror 20]])," - ")," - ") -> - | X106: =IF(Tabelle_Auswertung[[#This Row],[Bildname]]<>"",IF(Tabelle_Auswertung[[#This Row],[Punkte]]>0,RANK(Tabelle_Auswertung[[#This Row],[Punkte]],[Punkte],0)," - ")," - ") -> - | Y106: - - - | Z106: =IF(Tabelle_Auswertung[[#This Row],[Platz]]=1,CONCATENATE(Tabelle_Auswertung[[#This Row],[Bildname]]," von ",Tabelle_Auswertung[[#This Row],[Autor(in)]]),"") ->  | AA106: =IF(Tabelle_Auswertung[[#This Row],[Platz]]=2,CONCATENATE(Tabelle_Auswertung[[#This Row],[Bildname]]," von ",Tabelle_Auswertung[[#This Row],[Autor(in)]]),"") ->  | AB106: =IF(Tabelle_Auswertung[[#This Row],[Platz]]=3,CONCATENATE(Tabelle_Auswertung[[#This Row],[Bildname]]," von ",Tabelle_Auswertung[[#This Row],[Autor(in)]]),"") ->  | AC106: =IF(Tabelle_Auswertung[[#This Row],[Platz]]=4,CONCATENATE(Tabelle_Auswertung[[#This Row],[Bildname]]," von ",Tabelle_Auswertung[[#This Row],[Autor(in)]]),"") ->  | AD106: =IF(Tabelle_Auswertung[[#This Row],[Platz]]=5,CONCATENATE(Tabelle_Auswertung[[#This Row],[Bildname]]," von ",Tabelle_Auswertung[[#This Row],[Autor(in)]]),"") ->  | AE106: =IF(Tabelle_Auswertung[[#This Row],[Platz]]=6,CONCATENATE(Tabelle_Auswertung[[#This Row],[Bildname]]," von ",Tabelle_Auswertung[[#This Row],[Autor(in)]]),"") ->  | AF106: =IF(Tabelle_Auswertung[[#This Row],[Platz]]=7,CONCATENATE(Tabelle_Auswertung[[#This Row],[Bildname]]," von ",Tabelle_Auswertung[[#This Row],[Autor(in)]]),"") ->  | AG106: =IF(Tabelle_Auswertung[[#This Row],[Platz]]=8,CONCATENATE(Tabelle_Auswertung[[#This Row],[Bildname]]," von ",Tabelle_Auswertung[[#This Row],[Autor(in)]]),"") ->  | AH106: =IF(Tabelle_Auswertung[[#This Row],[Platz]]=9,CONCATENATE(Tabelle_Auswertung[[#This Row],[Bildname]]," von ",Tabelle_Auswertung[[#This Row],[Autor(in)]]),"") ->  | AI106: =IF(Tabelle_Auswertung[[#This Row],[Platz]]=10,CONCATENATE(Tabelle_Auswertung[[#This Row],[Bildname]]," von ",Tabelle_Auswertung[[#This Row],[Autor(in)]]),"") -> 
V107: =IF(Tabelle_Auswertung[[#This Row],[Bildname]]<>"",SUM(Tabelle_Auswertung[[#This Row],[Juror 1]:[Juror 20]])," - ") -> - | W107: =IF(Tabelle_Auswertung[[#This Row],[Bildname]]<>"",IF(Tabelle_Auswertung[[#This Row],[Punkte]]>0,AVERAGE(Tabelle_Auswertung[[#This Row],[Juror 1]:[Juror 20]])," - ")," - ") -> - | X107: =IF(Tabelle_Auswertung[[#This Row],[Bildname]]<>"",IF(Tabelle_Auswertung[[#This Row],[Punkte]]>0,RANK(Tabelle_Auswertung[[#This Row],[Punkte]],[Punkte],0)," - ")," - ") -> - | Y107: - - - | Z107: =IF(Tabelle_Auswertung[[#This Row],[Platz]]=1,CONCATENATE(Tabelle_Auswertung[[#This Row],[Bildname]]," von ",Tabelle_Auswertung[[#This Row],[Autor(in)]]),"") ->  | AA107: =IF(Tabelle_Auswertung[[#This Row],[Platz]]=2,CONCATENATE(Tabelle_Auswertung[[#This Row],[Bildname]]," von ",Tabelle_Auswertung[[#This Row],[Autor(in)]]),"") ->  | AB107: =IF(Tabelle_Auswertung[[#This Row],[Platz]]=3,CONCATENATE(Tabelle_Auswertung[[#This Row],[Bildname]]," von ",Tabelle_Auswertung[[#This Row],[Autor(in)]]),"") ->  | AC107: =IF(Tabelle_Auswertung[[#This Row],[Platz]]=4,CONCATENATE(Tabelle_Auswertung[[#This Row],[Bildname]]," von ",Tabelle_Auswertung[[#This Row],[Autor(in)]]),"") ->  | AD107: =IF(Tabelle_Auswertung[[#This Row],[Platz]]=5,CONCATENATE(Tabelle_Auswertung[[#This Row],[Bildname]]," von ",Tabelle_Auswertung[[#This Row],[Autor(in)]]),"") ->  | AE107: =IF(Tabelle_Auswertung[[#This Row],[Platz]]=6,CONCATENATE(Tabelle_Auswertung[[#This Row],[Bildname]]," von ",Tabelle_Auswertung[[#This Row],[Autor(in)]]),"") ->  | AF107: =IF(Tabelle_Auswertung[[#This Row],[Platz]]=7,CONCATENATE(Tabelle_Auswertung[[#This Row],[Bildname]]," von ",Tabelle_Auswertung[[#This Row],[Autor(in)]]),"") ->  | AG107: =IF(Tabelle_Auswertung[[#This Row],[Platz]]=8,CONCATENATE(Tabelle_Auswertung[[#This Row],[Bildname]]," von ",Tabelle_Auswertung[[#This Row],[Autor(in)]]),"") ->  | AH107: =IF(Tabelle_Auswertung[[#This Row],[Platz]]=9,CONCATENATE(Tabelle_Auswertung[[#This Row],[Bildname]]," von ",Tabelle_Auswertung[[#This Row],[Autor(in)]]),"") ->  | AI107: =IF(Tabelle_Auswertung[[#This Row],[Platz]]=10,CONCATENATE(Tabelle_Auswertung[[#This Row],[Bildname]]," von ",Tabelle_Auswertung[[#This Row],[Autor(in)]]),"") -> 
V108: =IF(Tabelle_Auswertung[[#This Row],[Bildname]]<>"",SUM(Tabelle_Auswertung[[#This Row],[Juror 1]:[Juror 20]])," - ") -> - | W108: =IF(Tabelle_Auswertung[[#This Row],[Bildname]]<>"",IF(Tabelle_Auswertung[[#This Row],[Punkte]]>0,AVERAGE(Tabelle_Auswertung[[#This Row],[Juror 1]:[Juror 20]])," - ")," - ") -> - | X108: =IF(Tabelle_Auswertung[[#This Row],[Bildname]]<>"",IF(Tabelle_Auswertung[[#This Row],[Punkte]]>0,RANK(Tabelle_Auswertung[[#This Row],[Punkte]],[Punkte],0)," - ")," - ") -> - | Y108: - - - | Z108: =IF(Tabelle_Auswertung[[#This Row],[Platz]]=1,CONCATENATE(Tabelle_Auswertung[[#This Row],[Bildname]]," von ",Tabelle_Auswertung[[#This Row],[Autor(in)]]),"") ->  | AA108: =IF(Tabelle_Auswertung[[#This Row],[Platz]]=2,CONCATENATE(Tabelle_Auswertung[[#This Row],[Bildname]]," von ",Tabelle_Auswertung[[#This Row],[Autor(in)]]),"") ->  | AB108: =IF(Tabelle_Auswertung[[#This Row],[Platz]]=3,CONCATENATE(Tabelle_Auswertung[[#This Row],[Bildname]]," von ",Tabelle_Auswertung[[#This Row],[Autor(in)]]),"") ->  | AC108: =IF(Tabelle_Auswertung[[#This Row],[Platz]]=4,CONCATENATE(Tabelle_Auswertung[[#This Row],[Bildname]]," von ",Tabelle_Auswertung[[#This Row],[Autor(in)]]),"") ->  | AD108: =IF(Tabelle_Auswertung[[#This Row],[Platz]]=5,CONCATENATE(Tabelle_Auswertung[[#This Row],[Bildname]]," von ",Tabelle_Auswertung[[#This Row],[Autor(in)]]),"") ->  | AE108: =IF(Tabelle_Auswertung[[#This Row],[Platz]]=6,CONCATENATE(Tabelle_Auswertung[[#This Row],[Bildname]]," von ",Tabelle_Auswertung[[#This Row],[Autor(in)]]),"") ->  | AF108: =IF(Tabelle_Auswertung[[#This Row],[Platz]]=7,CONCATENATE(Tabelle_Auswertung[[#This Row],[Bildname]]," von ",Tabelle_Auswertung[[#This Row],[Autor(in)]]),"") ->  | AG108: =IF(Tabelle_Auswertung[[#This Row],[Platz]]=8,CONCATENATE(Tabelle_Auswertung[[#This Row],[Bildname]]," von ",Tabelle_Auswertung[[#This Row],[Autor(in)]]),"") ->  | AH108: =IF(Tabelle_Auswertung[[#This Row],[Platz]]=9,CONCATENATE(Tabelle_Auswertung[[#This Row],[Bildname]]," von ",Tabelle_Auswertung[[#This Row],[Autor(in)]]),"") ->  | AI108: =IF(Tabelle_Auswertung[[#This Row],[Platz]]=10,CONCATENATE(Tabelle_Auswertung[[#This Row],[Bildname]]," von ",Tabelle_Auswertung[[#This Row],[Autor(in)]]),"") -> 
V109: =IF(Tabelle_Auswertung[[#This Row],[Bildname]]<>"",SUM(Tabelle_Auswertung[[#This Row],[Juror 1]:[Juror 20]])," - ") -> - | W109: =IF(Tabelle_Auswertung[[#This Row],[Bildname]]<>"",IF(Tabelle_Auswertung[[#This Row],[Punkte]]>0,AVERAGE(Tabelle_Auswertung[[#This Row],[Juror 1]:[Juror 20]])," - ")," - ") -> - | X109: =IF(Tabelle_Auswertung[[#This Row],[Bildname]]<>"",IF(Tabelle_Auswertung[[#This Row],[Punkte]]>0,RANK(Tabelle_Auswertung[[#This Row],[Punkte]],[Punkte],0)," - ")," - ") -> - | Y109: - - - | Z109: =IF(Tabelle_Auswertung[[#This Row],[Platz]]=1,CONCATENATE(Tabelle_Auswertung[[#This Row],[Bildname]]," von ",Tabelle_Auswertung[[#This Row],[Autor(in)]]),"") ->  | AA109: =IF(Tabelle_Auswertung[[#This Row],[Platz]]=2,CONCATENATE(Tabelle_Auswertung[[#This Row],[Bildname]]," von ",Tabelle_Auswertung[[#This Row],[Autor(in)]]),"") ->  | AB109: =IF(Tabelle_Auswertung[[#This Row],[Platz]]=3,CONCATENATE(Tabelle_Auswertung[[#This Row],[Bildname]]," von ",Tabelle_Auswertung[[#This Row],[Autor(in)]]),"") ->  | AC109: =IF(Tabelle_Auswertung[[#This Row],[Platz]]=4,CONCATENATE(Tabelle_Auswertung[[#This Row],[Bildname]]," von ",Tabelle_Auswertung[[#This Row],[Autor(in)]]),"") ->  | AD109: =IF(Tabelle_Auswertung[[#This Row],[Platz]]=5,CONCATENATE(Tabelle_Auswertung[[#This Row],[Bildname]]," von ",Tabelle_Auswertung[[#This Row],[Autor(in)]]),"") ->  | AE109: =IF(Tabelle_Auswertung[[#This Row],[Platz]]=6,CONCATENATE(Tabelle_Auswertung[[#This Row],[Bildname]]," von ",Tabelle_Auswertung[[#This Row],[Autor(in)]]),"") ->  | AF109: =IF(Tabelle_Auswertung[[#This Row],[Platz]]=7,CONCATENATE(Tabelle_Auswertung[[#This Row],[Bildname]]," von ",Tabelle_Auswertung[[#This Row],[Autor(in)]]),"") ->  | AG109: =IF(Tabelle_Auswertung[[#This Row],[Platz]]=8,CONCATENATE(Tabelle_Auswertung[[#This Row],[Bildname]]," von ",Tabelle_Auswertung[[#This Row],[Autor(in)]]),"") ->  | AH109: =IF(Tabelle_Auswertung[[#This Row],[Platz]]=9,CONCATENATE(Tabelle_Auswertung[[#This Row],[Bildname]]," von ",Tabelle_Auswertung[[#This Row],[Autor(in)]]),"") ->  | AI109: =IF(Tabelle_Auswertung[[#This Row],[Platz]]=10,CONCATENATE(Tabelle_Auswertung[[#This Row],[Bildname]]," von ",Tabelle_Auswertung[[#This Row],[Autor(in)]]),"") -> 
V110: =IF(Tabelle_Auswertung[[#This Row],[Bildname]]<>"",SUM(Tabelle_Auswertung[[#This Row],[Juror 1]:[Juror 20]])," - ") -> - | W110: =IF(Tabelle_Auswertung[[#This Row],[Bildname]]<>"",IF(Tabelle_Auswertung[[#This Row],[Punkte]]>0,AVERAGE(Tabelle_Auswertung[[#This Row],[Juror 1]:[Juror 20]])," - ")," - ") -> - | X110: =IF(Tabelle_Auswertung[[#This Row],[Bildname]]<>"",IF(Tabelle_Auswertung[[#This Row],[Punkte]]>0,RANK(Tabelle_Auswertung[[#This Row],[Punkte]],[Punkte],0)," - ")," - ") -> - | Y110: - - - | Z110: =IF(Tabelle_Auswertung[[#This Row],[Platz]]=1,CONCATENATE(Tabelle_Auswertung[[#This Row],[Bildname]]," von ",Tabelle_Auswertung[[#This Row],[Autor(in)]]),"") ->  | AA110: =IF(Tabelle_Auswertung[[#This Row],[Platz]]=2,CONCATENATE(Tabelle_Auswertung[[#This Row],[Bildname]]," von ",Tabelle_Auswertung[[#This Row],[Autor(in)]]),"") ->  | AB110: =IF(Tabelle_Auswertung[[#This Row],[Platz]]=3,CONCATENATE(Tabelle_Auswertung[[#This Row],[Bildname]]," von ",Tabelle_Auswertung[[#This Row],[Autor(in)]]),"") ->  | AC110: =IF(Tabelle_Auswertung[[#This Row],[Platz]]=4,CONCATENATE(Tabelle_Auswertung[[#This Row],[Bildname]]," von ",Tabelle_Auswertung[[#This Row],[Autor(in)]]),"") ->  | AD110: =IF(Tabelle_Auswertung[[#This Row],[Platz]]=5,CONCATENATE(Tabelle_Auswertung[[#This Row],[Bildname]]," von ",Tabelle_Auswertung[[#This Row],[Autor(in)]]),"") ->  | AE110: =IF(Tabelle_Auswertung[[#This Row],[Platz]]=6,CONCATENATE(Tabelle_Auswertung[[#This Row],[Bildname]]," von ",Tabelle_Auswertung[[#This Row],[Autor(in)]]),"") ->  | AF110: =IF(Tabelle_Auswertung[[#This Row],[Platz]]=7,CONCATENATE(Tabelle_Auswertung[[#This Row],[Bildname]]," von ",Tabelle_Auswertung[[#This Row],[Autor(in)]]),"") ->  | AG110: =IF(Tabelle_Auswertung[[#This Row],[Platz]]=8,CONCATENATE(Tabelle_Auswertung[[#This Row],[Bildname]]," von ",Tabelle_Auswertung[[#This Row],[Autor(in)]]),"") ->  | AH110: =IF(Tabelle_Auswertung[[#This Row],[Platz]]=9,CONCATENATE(Tabelle_Auswertung[[#This Row],[Bildname]]," von ",Tabelle_Auswertung[[#This Row],[Autor(in)]]),"") ->  | AI110: =IF(Tabelle_Auswertung[[#This Row],[Platz]]=10,CONCATENATE(Tabelle_Auswertung[[#This Row],[Bildname]]," von ",Tabelle_Auswertung[[#This Row],[Autor(in)]]),"") -> 
V111: =IF(Tabelle_Auswertung[[#This Row],[Bildname]]<>"",SUM(Tabelle_Auswertung[[#This Row],[Juror 1]:[Juror 20]])," - ") -> - | W111: =IF(Tabelle_Auswertung[[#This Row],[Bildname]]<>"",IF(Tabelle_Auswertung[[#This Row],[Punkte]]>0,AVERAGE(Tabelle_Auswertung[[#This Row],[Juror 1]:[Juror 20]])," - ")," - ") -> - | X111: =IF(Tabelle_Auswertung[[#This Row],[Bildname]]<>"",IF(Tabelle_Auswertung[[#This Row],[Punkte]]>0,RANK(Tabelle_Auswertung[[#This Row],[Punkte]],[Punkte],0)," - ")," - ") -> - | Y111: - - - | Z111: =IF(Tabelle_Auswertung[[#This Row],[Platz]]=1,CONCATENATE(Tabelle_Auswertung[[#This Row],[Bildname]]," von ",Tabelle_Auswertung[[#This Row],[Autor(in)]]),"") ->  | AA111: =IF(Tabelle_Auswertung[[#This Row],[Platz]]=2,CONCATENATE(Tabelle_Auswertung[[#This Row],[Bildname]]," von ",Tabelle_Auswertung[[#This Row],[Autor(in)]]),"") ->  | AB111: =IF(Tabelle_Auswertung[[#This Row],[Platz]]=3,CONCATENATE(Tabelle_Auswertung[[#This Row],[Bildname]]," von ",Tabelle_Auswertung[[#This Row],[Autor(in)]]),"") ->  | AC111: =IF(Tabelle_Auswertung[[#This Row],[Platz]]=4,CONCATENATE(Tabelle_Auswertung[[#This Row],[Bildname]]," von ",Tabelle_Auswertung[[#This Row],[Autor(in)]]),"") ->  | AD111: =IF(Tabelle_Auswertung[[#This Row],[Platz]]=5,CONCATENATE(Tabelle_Auswertung[[#This Row],[Bildname]]," von ",Tabelle_Auswertung[[#This Row],[Autor(in)]]),"") ->  | AE111: =IF(Tabelle_Auswertung[[#This Row],[Platz]]=6,CONCATENATE(Tabelle_Auswertung[[#This Row],[Bildname]]," von ",Tabelle_Auswertung[[#This Row],[Autor(in)]]),"") ->  | AF111: =IF(Tabelle_Auswertung[[#This Row],[Platz]]=7,CONCATENATE(Tabelle_Auswertung[[#This Row],[Bildname]]," von ",Tabelle_Auswertung[[#This Row],[Autor(in)]]),"") ->  | AG111: =IF(Tabelle_Auswertung[[#This Row],[Platz]]=8,CONCATENATE(Tabelle_Auswertung[[#This Row],[Bildname]]," von ",Tabelle_Auswertung[[#This Row],[Autor(in)]]),"") ->  | AH111: =IF(Tabelle_Auswertung[[#This Row],[Platz]]=9,CONCATENATE(Tabelle_Auswertung[[#This Row],[Bildname]]," von ",Tabelle_Auswertung[[#This Row],[Autor(in)]]),"") ->  | AI111: =IF(Tabelle_Auswertung[[#This Row],[Platz]]=10,CONCATENATE(Tabelle_Auswertung[[#This Row],[Bildname]]," von ",Tabelle_Auswertung[[#This Row],[Autor(in)]]),"") -> 
V112: =IF(Tabelle_Auswertung[[#This Row],[Bildname]]<>"",SUM(Tabelle_Auswertung[[#This Row],[Juror 1]:[Juror 20]])," - ") -> - | W112: =IF(Tabelle_Auswertung[[#This Row],[Bildname]]<>"",IF(Tabelle_Auswertung[[#This Row],[Punkte]]>0,AVERAGE(Tabelle_Auswertung[[#This Row],[Juror 1]:[Juror 20]])," - ")," - ") -> - | X112: =IF(Tabelle_Auswertung[[#This Row],[Bildname]]<>"",IF(Tabelle_Auswertung[[#This Row],[Punkte]]>0,RANK(Tabelle_Auswertung[[#This Row],[Punkte]],[Punkte],0)," - ")," - ") -> - | Y112: - - - | Z112: =IF(Tabelle_Auswertung[[#This Row],[Platz]]=1,CONCATENATE(Tabelle_Auswertung[[#This Row],[Bildname]]," von ",Tabelle_Auswertung[[#This Row],[Autor(in)]]),"") ->  | AA112: =IF(Tabelle_Auswertung[[#This Row],[Platz]]=2,CONCATENATE(Tabelle_Auswertung[[#This Row],[Bildname]]," von ",Tabelle_Auswertung[[#This Row],[Autor(in)]]),"") ->  | AB112: =IF(Tabelle_Auswertung[[#This Row],[Platz]]=3,CONCATENATE(Tabelle_Auswertung[[#This Row],[Bildname]]," von ",Tabelle_Auswertung[[#This Row],[Autor(in)]]),"") ->  | AC112: =IF(Tabelle_Auswertung[[#This Row],[Platz]]=4,CONCATENATE(Tabelle_Auswertung[[#This Row],[Bildname]]," von ",Tabelle_Auswertung[[#This Row],[Autor(in)]]),"") ->  | AD112: =IF(Tabelle_Auswertung[[#This Row],[Platz]]=5,CONCATENATE(Tabelle_Auswertung[[#This Row],[Bildname]]," von ",Tabelle_Auswertung[[#This Row],[Autor(in)]]),"") ->  | AE112: =IF(Tabelle_Auswertung[[#This Row],[Platz]]=6,CONCATENATE(Tabelle_Auswertung[[#This Row],[Bildname]]," von ",Tabelle_Auswertung[[#This Row],[Autor(in)]]),"") ->  | AF112: =IF(Tabelle_Auswertung[[#This Row],[Platz]]=7,CONCATENATE(Tabelle_Auswertung[[#This Row],[Bildname]]," von ",Tabelle_Auswertung[[#This Row],[Autor(in)]]),"") ->  | AG112: =IF(Tabelle_Auswertung[[#This Row],[Platz]]=8,CONCATENATE(Tabelle_Auswertung[[#This Row],[Bildname]]," von ",Tabelle_Auswertung[[#This Row],[Autor(in)]]),"") ->  | AH112: =IF(Tabelle_Auswertung[[#This Row],[Platz]]=9,CONCATENATE(Tabelle_Auswertung[[#This Row],[Bildname]]," von ",Tabelle_Auswertung[[#This Row],[Autor(in)]]),"") ->  | AI112: =IF(Tabelle_Auswertung[[#This Row],[Platz]]=10,CONCATENATE(Tabelle_Auswertung[[#This Row],[Bildname]]," von ",Tabelle_Auswertung[[#This Row],[Autor(in)]]),"") -> 
V113: =IF(Tabelle_Auswertung[[#This Row],[Bildname]]<>"",SUM(Tabelle_Auswertung[[#This Row],[Juror 1]:[Juror 20]])," - ") -> - | W113: =IF(Tabelle_Auswertung[[#This Row],[Bildname]]<>"",IF(Tabelle_Auswertung[[#This Row],[Punkte]]>0,AVERAGE(Tabelle_Auswertung[[#This Row],[Juror 1]:[Juror 20]])," - ")," - ") -> - | X113: =IF(Tabelle_Auswertung[[#This Row],[Bildname]]<>"",IF(Tabelle_Auswertung[[#This Row],[Punkte]]>0,RANK(Tabelle_Auswertung[[#This Row],[Punkte]],[Punkte],0)," - ")," - ") -> - | Y113: - - - | Z113: =IF(Tabelle_Auswertung[[#This Row],[Platz]]=1,CONCATENATE(Tabelle_Auswertung[[#This Row],[Bildname]]," von ",Tabelle_Auswertung[[#This Row],[Autor(in)]]),"") ->  | AA113: =IF(Tabelle_Auswertung[[#This Row],[Platz]]=2,CONCATENATE(Tabelle_Auswertung[[#This Row],[Bildname]]," von ",Tabelle_Auswertung[[#This Row],[Autor(in)]]),"") ->  | AB113: =IF(Tabelle_Auswertung[[#This Row],[Platz]]=3,CONCATENATE(Tabelle_Auswertung[[#This Row],[Bildname]]," von ",Tabelle_Auswertung[[#This Row],[Autor(in)]]),"") ->  | AC113: =IF(Tabelle_Auswertung[[#This Row],[Platz]]=4,CONCATENATE(Tabelle_Auswertung[[#This Row],[Bildname]]," von ",Tabelle_Auswertung[[#This Row],[Autor(in)]]),"") ->  | AD113: =IF(Tabelle_Auswertung[[#This Row],[Platz]]=5,CONCATENATE(Tabelle_Auswertung[[#This Row],[Bildname]]," von ",Tabelle_Auswertung[[#This Row],[Autor(in)]]),"") ->  | AE113: =IF(Tabelle_Auswertung[[#This Row],[Platz]]=6,CONCATENATE(Tabelle_Auswertung[[#This Row],[Bildname]]," von ",Tabelle_Auswertung[[#This Row],[Autor(in)]]),"") ->  | AF113: =IF(Tabelle_Auswertung[[#This Row],[Platz]]=7,CONCATENATE(Tabelle_Auswertung[[#This Row],[Bildname]]," von ",Tabelle_Auswertung[[#This Row],[Autor(in)]]),"") ->  | AG113: =IF(Tabelle_Auswertung[[#This Row],[Platz]]=8,CONCATENATE(Tabelle_Auswertung[[#This Row],[Bildname]]," von ",Tabelle_Auswertung[[#This Row],[Autor(in)]]),"") ->  | AH113: =IF(Tabelle_Auswertung[[#This Row],[Platz]]=9,CONCATENATE(Tabelle_Auswertung[[#This Row],[Bildname]]," von ",Tabelle_Auswertung[[#This Row],[Autor(in)]]),"") ->  | AI113: =IF(Tabelle_Auswertung[[#This Row],[Platz]]=10,CONCATENATE(Tabelle_Auswertung[[#This Row],[Bildname]]," von ",Tabelle_Auswertung[[#This Row],[Autor(in)]]),"") -> 
V114: =IF(Tabelle_Auswertung[[#This Row],[Bildname]]<>"",SUM(Tabelle_Auswertung[[#This Row],[Juror 1]:[Juror 20]])," - ") -> - | W114: =IF(Tabelle_Auswertung[[#This Row],[Bildname]]<>"",IF(Tabelle_Auswertung[[#This Row],[Punkte]]>0,AVERAGE(Tabelle_Auswertung[[#This Row],[Juror 1]:[Juror 20]])," - ")," - ") -> - | X114: =IF(Tabelle_Auswertung[[#This Row],[Bildname]]<>"",IF(Tabelle_Auswertung[[#This Row],[Punkte]]>0,RANK(Tabelle_Auswertung[[#This Row],[Punkte]],[Punkte],0)," - ")," - ") -> - | Y114: - - - | Z114: =IF(Tabelle_Auswertung[[#This Row],[Platz]]=1,CONCATENATE(Tabelle_Auswertung[[#This Row],[Bildname]]," von ",Tabelle_Auswertung[[#This Row],[Autor(in)]]),"") ->  | AA114: =IF(Tabelle_Auswertung[[#This Row],[Platz]]=2,CONCATENATE(Tabelle_Auswertung[[#This Row],[Bildname]]," von ",Tabelle_Auswertung[[#This Row],[Autor(in)]]),"") ->  | AB114: =IF(Tabelle_Auswertung[[#This Row],[Platz]]=3,CONCATENATE(Tabelle_Auswertung[[#This Row],[Bildname]]," von ",Tabelle_Auswertung[[#This Row],[Autor(in)]]),"") ->  | AC114: =IF(Tabelle_Auswertung[[#This Row],[Platz]]=4,CONCATENATE(Tabelle_Auswertung[[#This Row],[Bildname]]," von ",Tabelle_Auswertung[[#This Row],[Autor(in)]]),"") ->  | AD114: =IF(Tabelle_Auswertung[[#This Row],[Platz]]=5,CONCATENATE(Tabelle_Auswertung[[#This Row],[Bildname]]," von ",Tabelle_Auswertung[[#This Row],[Autor(in)]]),"") ->  | AE114: =IF(Tabelle_Auswertung[[#This Row],[Platz]]=6,CONCATENATE(Tabelle_Auswertung[[#This Row],[Bildname]]," von ",Tabelle_Auswertung[[#This Row],[Autor(in)]]),"") ->  | AF114: =IF(Tabelle_Auswertung[[#This Row],[Platz]]=7,CONCATENATE(Tabelle_Auswertung[[#This Row],[Bildname]]," von ",Tabelle_Auswertung[[#This Row],[Autor(in)]]),"") ->  | AG114: =IF(Tabelle_Auswertung[[#This Row],[Platz]]=8,CONCATENATE(Tabelle_Auswertung[[#This Row],[Bildname]]," von ",Tabelle_Auswertung[[#This Row],[Autor(in)]]),"") ->  | AH114: =IF(Tabelle_Auswertung[[#This Row],[Platz]]=9,CONCATENATE(Tabelle_Auswertung[[#This Row],[Bildname]]," von ",Tabelle_Auswertung[[#This Row],[Autor(in)]]),"") ->  | AI114: =IF(Tabelle_Auswertung[[#This Row],[Platz]]=10,CONCATENATE(Tabelle_Auswertung[[#This Row],[Bildname]]," von ",Tabelle_Auswertung[[#This Row],[Autor(in)]]),"") -> 
V115: =IF(Tabelle_Auswertung[[#This Row],[Bildname]]<>"",SUM(Tabelle_Auswertung[[#This Row],[Juror 1]:[Juror 20]])," - ") -> - | W115: =IF(Tabelle_Auswertung[[#This Row],[Bildname]]<>"",IF(Tabelle_Auswertung[[#This Row],[Punkte]]>0,AVERAGE(Tabelle_Auswertung[[#This Row],[Juror 1]:[Juror 20]])," - ")," - ") -> - | X115: =IF(Tabelle_Auswertung[[#This Row],[Bildname]]<>"",IF(Tabelle_Auswertung[[#This Row],[Punkte]]>0,RANK(Tabelle_Auswertung[[#This Row],[Punkte]],[Punkte],0)," - ")," - ") -> - | Y115: - - - | Z115: =IF(Tabelle_Auswertung[[#This Row],[Platz]]=1,CONCATENATE(Tabelle_Auswertung[[#This Row],[Bildname]]," von ",Tabelle_Auswertung[[#This Row],[Autor(in)]]),"") ->  | AA115: =IF(Tabelle_Auswertung[[#This Row],[Platz]]=2,CONCATENATE(Tabelle_Auswertung[[#This Row],[Bildname]]," von ",Tabelle_Auswertung[[#This Row],[Autor(in)]]),"") ->  | AB115: =IF(Tabelle_Auswertung[[#This Row],[Platz]]=3,CONCATENATE(Tabelle_Auswertung[[#This Row],[Bildname]]," von ",Tabelle_Auswertung[[#This Row],[Autor(in)]]),"") ->  | AC115: =IF(Tabelle_Auswertung[[#This Row],[Platz]]=4,CONCATENATE(Tabelle_Auswertung[[#This Row],[Bildname]]," von ",Tabelle_Auswertung[[#This Row],[Autor(in)]]),"") ->  | AD115: =IF(Tabelle_Auswertung[[#This Row],[Platz]]=5,CONCATENATE(Tabelle_Auswertung[[#This Row],[Bildname]]," von ",Tabelle_Auswertung[[#This Row],[Autor(in)]]),"") ->  | AE115: =IF(Tabelle_Auswertung[[#This Row],[Platz]]=6,CONCATENATE(Tabelle_Auswertung[[#This Row],[Bildname]]," von ",Tabelle_Auswertung[[#This Row],[Autor(in)]]),"") ->  | AF115: =IF(Tabelle_Auswertung[[#This Row],[Platz]]=7,CONCATENATE(Tabelle_Auswertung[[#This Row],[Bildname]]," von ",Tabelle_Auswertung[[#This Row],[Autor(in)]]),"") ->  | AG115: =IF(Tabelle_Auswertung[[#This Row],[Platz]]=8,CONCATENATE(Tabelle_Auswertung[[#This Row],[Bildname]]," von ",Tabelle_Auswertung[[#This Row],[Autor(in)]]),"") ->  | AH115: =IF(Tabelle_Auswertung[[#This Row],[Platz]]=9,CONCATENATE(Tabelle_Auswertung[[#This Row],[Bildname]]," von ",Tabelle_Auswertung[[#This Row],[Autor(in)]]),"") ->  | AI115: =IF(Tabelle_Auswertung[[#This Row],[Platz]]=10,CONCATENATE(Tabelle_Auswertung[[#This Row],[Bildname]]," von ",Tabelle_Auswertung[[#This Row],[Autor(in)]]),"") -> 
V116: =IF(Tabelle_Auswertung[[#This Row],[Bildname]]<>"",SUM(Tabelle_Auswertung[[#This Row],[Juror 1]:[Juror 20]])," - ") -> - | W116: =IF(Tabelle_Auswertung[[#This Row],[Bildname]]<>"",IF(Tabelle_Auswertung[[#This Row],[Punkte]]>0,AVERAGE(Tabelle_Auswertung[[#This Row],[Juror 1]:[Juror 20]])," - ")," - ") -> - | X116: =IF(Tabelle_Auswertung[[#This Row],[Bildname]]<>"",IF(Tabelle_Auswertung[[#This Row],[Punkte]]>0,RANK(Tabelle_Auswertung[[#This Row],[Punkte]],[Punkte],0)," - ")," - ") -> - | Y116: - - - | Z116: =IF(Tabelle_Auswertung[[#This Row],[Platz]]=1,CONCATENATE(Tabelle_Auswertung[[#This Row],[Bildname]]," von ",Tabelle_Auswertung[[#This Row],[Autor(in)]]),"") ->  | AA116: =IF(Tabelle_Auswertung[[#This Row],[Platz]]=2,CONCATENATE(Tabelle_Auswertung[[#This Row],[Bildname]]," von ",Tabelle_Auswertung[[#This Row],[Autor(in)]]),"") ->  | AB116: =IF(Tabelle_Auswertung[[#This Row],[Platz]]=3,CONCATENATE(Tabelle_Auswertung[[#This Row],[Bildname]]," von ",Tabelle_Auswertung[[#This Row],[Autor(in)]]),"") ->  | AC116: =IF(Tabelle_Auswertung[[#This Row],[Platz]]=4,CONCATENATE(Tabelle_Auswertung[[#This Row],[Bildname]]," von ",Tabelle_Auswertung[[#This Row],[Autor(in)]]),"") ->  | AD116: =IF(Tabelle_Auswertung[[#This Row],[Platz]]=5,CONCATENATE(Tabelle_Auswertung[[#This Row],[Bildname]]," von ",Tabelle_Auswertung[[#This Row],[Autor(in)]]),"") ->  | AE116: =IF(Tabelle_Auswertung[[#This Row],[Platz]]=6,CONCATENATE(Tabelle_Auswertung[[#This Row],[Bildname]]," von ",Tabelle_Auswertung[[#This Row],[Autor(in)]]),"") ->  | AF116: =IF(Tabelle_Auswertung[[#This Row],[Platz]]=7,CONCATENATE(Tabelle_Auswertung[[#This Row],[Bildname]]," von ",Tabelle_Auswertung[[#This Row],[Autor(in)]]),"") ->  | AG116: =IF(Tabelle_Auswertung[[#This Row],[Platz]]=8,CONCATENATE(Tabelle_Auswertung[[#This Row],[Bildname]]," von ",Tabelle_Auswertung[[#This Row],[Autor(in)]]),"") ->  | AH116: =IF(Tabelle_Auswertung[[#This Row],[Platz]]=9,CONCATENATE(Tabelle_Auswertung[[#This Row],[Bildname]]," von ",Tabelle_Auswertung[[#This Row],[Autor(in)]]),"") ->  | AI116: =IF(Tabelle_Auswertung[[#This Row],[Platz]]=10,CONCATENATE(Tabelle_Auswertung[[#This Row],[Bildname]]," von ",Tabelle_Auswertung[[#This Row],[Autor(in)]]),"") -> 
V117: =IF(Tabelle_Auswertung[[#This Row],[Bildname]]<>"",SUM(Tabelle_Auswertung[[#This Row],[Juror 1]:[Juror 20]])," - ") -> - | W117: =IF(Tabelle_Auswertung[[#This Row],[Bildname]]<>"",IF(Tabelle_Auswertung[[#This Row],[Punkte]]>0,AVERAGE(Tabelle_Auswertung[[#This Row],[Juror 1]:[Juror 20]])," - ")," - ") -> - | X117: =IF(Tabelle_Auswertung[[#This Row],[Bildname]]<>"",IF(Tabelle_Auswertung[[#This Row],[Punkte]]>0,RANK(Tabelle_Auswertung[[#This Row],[Punkte]],[Punkte],0)," - ")," - ") -> - | Y117: - - - | Z117: =IF(Tabelle_Auswertung[[#This Row],[Platz]]=1,CONCATENATE(Tabelle_Auswertung[[#This Row],[Bildname]]," von ",Tabelle_Auswertung[[#This Row],[Autor(in)]]),"") ->  | AA117: =IF(Tabelle_Auswertung[[#This Row],[Platz]]=2,CONCATENATE(Tabelle_Auswertung[[#This Row],[Bildname]]," von ",Tabelle_Auswertung[[#This Row],[Autor(in)]]),"") ->  | AB117: =IF(Tabelle_Auswertung[[#This Row],[Platz]]=3,CONCATENATE(Tabelle_Auswertung[[#This Row],[Bildname]]," von ",Tabelle_Auswertung[[#This Row],[Autor(in)]]),"") ->  | AC117: =IF(Tabelle_Auswertung[[#This Row],[Platz]]=4,CONCATENATE(Tabelle_Auswertung[[#This Row],[Bildname]]," von ",Tabelle_Auswertung[[#This Row],[Autor(in)]]),"") ->  | AD117: =IF(Tabelle_Auswertung[[#This Row],[Platz]]=5,CONCATENATE(Tabelle_Auswertung[[#This Row],[Bildname]]," von ",Tabelle_Auswertung[[#This Row],[Autor(in)]]),"") ->  | AE117: =IF(Tabelle_Auswertung[[#This Row],[Platz]]=6,CONCATENATE(Tabelle_Auswertung[[#This Row],[Bildname]]," von ",Tabelle_Auswertung[[#This Row],[Autor(in)]]),"") ->  | AF117: =IF(Tabelle_Auswertung[[#This Row],[Platz]]=7,CONCATENATE(Tabelle_Auswertung[[#This Row],[Bildname]]," von ",Tabelle_Auswertung[[#This Row],[Autor(in)]]),"") ->  | AG117: =IF(Tabelle_Auswertung[[#This Row],[Platz]]=8,CONCATENATE(Tabelle_Auswertung[[#This Row],[Bildname]]," von ",Tabelle_Auswertung[[#This Row],[Autor(in)]]),"") ->  | AH117: =IF(Tabelle_Auswertung[[#This Row],[Platz]]=9,CONCATENATE(Tabelle_Auswertung[[#This Row],[Bildname]]," von ",Tabelle_Auswertung[[#This Row],[Autor(in)]]),"") ->  | AI117: =IF(Tabelle_Auswertung[[#This Row],[Platz]]=10,CONCATENATE(Tabelle_Auswertung[[#This Row],[Bildname]]," von ",Tabelle_Auswertung[[#This Row],[Autor(in)]]),"") -> 
V118: =IF(Tabelle_Auswertung[[#This Row],[Bildname]]<>"",SUM(Tabelle_Auswertung[[#This Row],[Juror 1]:[Juror 20]])," - ") -> - | W118: =IF(Tabelle_Auswertung[[#This Row],[Bildname]]<>"",IF(Tabelle_Auswertung[[#This Row],[Punkte]]>0,AVERAGE(Tabelle_Auswertung[[#This Row],[Juror 1]:[Juror 20]])," - ")," - ") -> - | X118: =IF(Tabelle_Auswertung[[#This Row],[Bildname]]<>"",IF(Tabelle_Auswertung[[#This Row],[Punkte]]>0,RANK(Tabelle_Auswertung[[#This Row],[Punkte]],[Punkte],0)," - ")," - ") -> - | Y118: - - - | Z118: =IF(Tabelle_Auswertung[[#This Row],[Platz]]=1,CONCATENATE(Tabelle_Auswertung[[#This Row],[Bildname]]," von ",Tabelle_Auswertung[[#This Row],[Autor(in)]]),"") ->  | AA118: =IF(Tabelle_Auswertung[[#This Row],[Platz]]=2,CONCATENATE(Tabelle_Auswertung[[#This Row],[Bildname]]," von ",Tabelle_Auswertung[[#This Row],[Autor(in)]]),"") ->  | AB118: =IF(Tabelle_Auswertung[[#This Row],[Platz]]=3,CONCATENATE(Tabelle_Auswertung[[#This Row],[Bildname]]," von ",Tabelle_Auswertung[[#This Row],[Autor(in)]]),"") ->  | AC118: =IF(Tabelle_Auswertung[[#This Row],[Platz]]=4,CONCATENATE(Tabelle_Auswertung[[#This Row],[Bildname]]," von ",Tabelle_Auswertung[[#This Row],[Autor(in)]]),"") ->  | AD118: =IF(Tabelle_Auswertung[[#This Row],[Platz]]=5,CONCATENATE(Tabelle_Auswertung[[#This Row],[Bildname]]," von ",Tabelle_Auswertung[[#This Row],[Autor(in)]]),"") ->  | AE118: =IF(Tabelle_Auswertung[[#This Row],[Platz]]=6,CONCATENATE(Tabelle_Auswertung[[#This Row],[Bildname]]," von ",Tabelle_Auswertung[[#This Row],[Autor(in)]]),"") ->  | AF118: =IF(Tabelle_Auswertung[[#This Row],[Platz]]=7,CONCATENATE(Tabelle_Auswertung[[#This Row],[Bildname]]," von ",Tabelle_Auswertung[[#This Row],[Autor(in)]]),"") ->  | AG118: =IF(Tabelle_Auswertung[[#This Row],[Platz]]=8,CONCATENATE(Tabelle_Auswertung[[#This Row],[Bildname]]," von ",Tabelle_Auswertung[[#This Row],[Autor(in)]]),"") ->  | AH118: =IF(Tabelle_Auswertung[[#This Row],[Platz]]=9,CONCATENATE(Tabelle_Auswertung[[#This Row],[Bildname]]," von ",Tabelle_Auswertung[[#This Row],[Autor(in)]]),"") ->  | AI118: =IF(Tabelle_Auswertung[[#This Row],[Platz]]=10,CONCATENATE(Tabelle_Auswertung[[#This Row],[Bildname]]," von ",Tabelle_Auswertung[[#This Row],[Autor(in)]]),"") -> 
V119: =IF(Tabelle_Auswertung[[#This Row],[Bildname]]<>"",SUM(Tabelle_Auswertung[[#This Row],[Juror 1]:[Juror 20]])," - ") -> - | W119: =IF(Tabelle_Auswertung[[#This Row],[Bildname]]<>"",IF(Tabelle_Auswertung[[#This Row],[Punkte]]>0,AVERAGE(Tabelle_Auswertung[[#This Row],[Juror 1]:[Juror 20]])," - ")," - ") -> - | X119: =IF(Tabelle_Auswertung[[#This Row],[Bildname]]<>"",IF(Tabelle_Auswertung[[#This Row],[Punkte]]>0,RANK(Tabelle_Auswertung[[#This Row],[Punkte]],[Punkte],0)," - ")," - ") -> - | Y119: - - - | Z119: =IF(Tabelle_Auswertung[[#This Row],[Platz]]=1,CONCATENATE(Tabelle_Auswertung[[#This Row],[Bildname]]," von ",Tabelle_Auswertung[[#This Row],[Autor(in)]]),"") ->  | AA119: =IF(Tabelle_Auswertung[[#This Row],[Platz]]=2,CONCATENATE(Tabelle_Auswertung[[#This Row],[Bildname]]," von ",Tabelle_Auswertung[[#This Row],[Autor(in)]]),"") ->  | AB119: =IF(Tabelle_Auswertung[[#This Row],[Platz]]=3,CONCATENATE(Tabelle_Auswertung[[#This Row],[Bildname]]," von ",Tabelle_Auswertung[[#This Row],[Autor(in)]]),"") ->  | AC119: =IF(Tabelle_Auswertung[[#This Row],[Platz]]=4,CONCATENATE(Tabelle_Auswertung[[#This Row],[Bildname]]," von ",Tabelle_Auswertung[[#This Row],[Autor(in)]]),"") ->  | AD119: =IF(Tabelle_Auswertung[[#This Row],[Platz]]=5,CONCATENATE(Tabelle_Auswertung[[#This Row],[Bildname]]," von ",Tabelle_Auswertung[[#This Row],[Autor(in)]]),"") ->  | AE119: =IF(Tabelle_Auswertung[[#This Row],[Platz]]=6,CONCATENATE(Tabelle_Auswertung[[#This Row],[Bildname]]," von ",Tabelle_Auswertung[[#This Row],[Autor(in)]]),"") ->  | AF119: =IF(Tabelle_Auswertung[[#This Row],[Platz]]=7,CONCATENATE(Tabelle_Auswertung[[#This Row],[Bildname]]," von ",Tabelle_Auswertung[[#This Row],[Autor(in)]]),"") ->  | AG119: =IF(Tabelle_Auswertung[[#This Row],[Platz]]=8,CONCATENATE(Tabelle_Auswertung[[#This Row],[Bildname]]," von ",Tabelle_Auswertung[[#This Row],[Autor(in)]]),"") ->  | AH119: =IF(Tabelle_Auswertung[[#This Row],[Platz]]=9,CONCATENATE(Tabelle_Auswertung[[#This Row],[Bildname]]," von ",Tabelle_Auswertung[[#This Row],[Autor(in)]]),"") ->  | AI119: =IF(Tabelle_Auswertung[[#This Row],[Platz]]=10,CONCATENATE(Tabelle_Auswertung[[#This Row],[Bildname]]," von ",Tabelle_Auswertung[[#This Row],[Autor(in)]]),"") -> 
V120: =IF(Tabelle_Auswertung[[#This Row],[Bildname]]<>"",SUM(Tabelle_Auswertung[[#This Row],[Juror 1]:[Juror 20]])," - ") -> - | W120: =IF(Tabelle_Auswertung[[#This Row],[Bildname]]<>"",IF(Tabelle_Auswertung[[#This Row],[Punkte]]>0,AVERAGE(Tabelle_Auswertung[[#This Row],[Juror 1]:[Juror 20]])," - ")," - ") -> - | X120: =IF(Tabelle_Auswertung[[#This Row],[Bildname]]<>"",IF(Tabelle_Auswertung[[#This Row],[Punkte]]>0,RANK(Tabelle_Auswertung[[#This Row],[Punkte]],[Punkte],0)," - ")," - ") -> - | Y120: - - - | Z120: =IF(Tabelle_Auswertung[[#This Row],[Platz]]=1,CONCATENATE(Tabelle_Auswertung[[#This Row],[Bildname]]," von ",Tabelle_Auswertung[[#This Row],[Autor(in)]]),"") ->  | AA120: =IF(Tabelle_Auswertung[[#This Row],[Platz]]=2,CONCATENATE(Tabelle_Auswertung[[#This Row],[Bildname]]," von ",Tabelle_Auswertung[[#This Row],[Autor(in)]]),"") ->  | AB120: =IF(Tabelle_Auswertung[[#This Row],[Platz]]=3,CONCATENATE(Tabelle_Auswertung[[#This Row],[Bildname]]," von ",Tabelle_Auswertung[[#This Row],[Autor(in)]]),"") ->  | AC120: =IF(Tabelle_Auswertung[[#This Row],[Platz]]=4,CONCATENATE(Tabelle_Auswertung[[#This Row],[Bildname]]," von ",Tabelle_Auswertung[[#This Row],[Autor(in)]]),"") ->  | AD120: =IF(Tabelle_Auswertung[[#This Row],[Platz]]=5,CONCATENATE(Tabelle_Auswertung[[#This Row],[Bildname]]," von ",Tabelle_Auswertung[[#This Row],[Autor(in)]]),"") ->  | AE120: =IF(Tabelle_Auswertung[[#This Row],[Platz]]=6,CONCATENATE(Tabelle_Auswertung[[#This Row],[Bildname]]," von ",Tabelle_Auswertung[[#This Row],[Autor(in)]]),"") ->  | AF120: =IF(Tabelle_Auswertung[[#This Row],[Platz]]=7,CONCATENATE(Tabelle_Auswertung[[#This Row],[Bildname]]," von ",Tabelle_Auswertung[[#This Row],[Autor(in)]]),"") ->  | AG120: =IF(Tabelle_Auswertung[[#This Row],[Platz]]=8,CONCATENATE(Tabelle_Auswertung[[#This Row],[Bildname]]," von ",Tabelle_Auswertung[[#This Row],[Autor(in)]]),"") ->  | AH120: =IF(Tabelle_Auswertung[[#This Row],[Platz]]=9,CONCATENATE(Tabelle_Auswertung[[#This Row],[Bildname]]," von ",Tabelle_Auswertung[[#This Row],[Autor(in)]]),"") ->  | AI120: =IF(Tabelle_Auswertung[[#This Row],[Platz]]=10,CONCATENATE(Tabelle_Auswertung[[#This Row],[Bildname]]," von ",Tabelle_Auswertung[[#This Row],[Autor(in)]]),"") -> 
V121: =IF(Tabelle_Auswertung[[#This Row],[Bildname]]<>"",SUM(Tabelle_Auswertung[[#This Row],[Juror 1]:[Juror 20]])," - ") -> - | W121: =IF(Tabelle_Auswertung[[#This Row],[Bildname]]<>"",IF(Tabelle_Auswertung[[#This Row],[Punkte]]>0,AVERAGE(Tabelle_Auswertung[[#This Row],[Juror 1]:[Juror 20]])," - ")," - ") -> - | X121: =IF(Tabelle_Auswertung[[#This Row],[Bildname]]<>"",IF(Tabelle_Auswertung[[#This Row],[Punkte]]>0,RANK(Tabelle_Auswertung[[#This Row],[Punkte]],[Punkte],0)," - ")," - ") -> - | Y121: - - - | Z121: =IF(Tabelle_Auswertung[[#This Row],[Platz]]=1,CONCATENATE(Tabelle_Auswertung[[#This Row],[Bildname]]," von ",Tabelle_Auswertung[[#This Row],[Autor(in)]]),"") ->  | AA121: =IF(Tabelle_Auswertung[[#This Row],[Platz]]=2,CONCATENATE(Tabelle_Auswertung[[#This Row],[Bildname]]," von ",Tabelle_Auswertung[[#This Row],[Autor(in)]]),"") ->  | AB121: =IF(Tabelle_Auswertung[[#This Row],[Platz]]=3,CONCATENATE(Tabelle_Auswertung[[#This Row],[Bildname]]," von ",Tabelle_Auswertung[[#This Row],[Autor(in)]]),"") ->  | AC121: =IF(Tabelle_Auswertung[[#This Row],[Platz]]=4,CONCATENATE(Tabelle_Auswertung[[#This Row],[Bildname]]," von ",Tabelle_Auswertung[[#This Row],[Autor(in)]]),"") ->  | AD121: =IF(Tabelle_Auswertung[[#This Row],[Platz]]=5,CONCATENATE(Tabelle_Auswertung[[#This Row],[Bildname]]," von ",Tabelle_Auswertung[[#This Row],[Autor(in)]]),"") ->  | AE121: =IF(Tabelle_Auswertung[[#This Row],[Platz]]=6,CONCATENATE(Tabelle_Auswertung[[#This Row],[Bildname]]," von ",Tabelle_Auswertung[[#This Row],[Autor(in)]]),"") ->  | AF121: =IF(Tabelle_Auswertung[[#This Row],[Platz]]=7,CONCATENATE(Tabelle_Auswertung[[#This Row],[Bildname]]," von ",Tabelle_Auswertung[[#This Row],[Autor(in)]]),"") ->  | AG121: =IF(Tabelle_Auswertung[[#This Row],[Platz]]=8,CONCATENATE(Tabelle_Auswertung[[#This Row],[Bildname]]," von ",Tabelle_Auswertung[[#This Row],[Autor(in)]]),"") ->  | AH121: =IF(Tabelle_Auswertung[[#This Row],[Platz]]=9,CONCATENATE(Tabelle_Auswertung[[#This Row],[Bildname]]," von ",Tabelle_Auswertung[[#This Row],[Autor(in)]]),"") ->  | AI121: =IF(Tabelle_Auswertung[[#This Row],[Platz]]=10,CONCATENATE(Tabelle_Auswertung[[#This Row],[Bildname]]," von ",Tabelle_Auswertung[[#This Row],[Autor(in)]]),"") -> 
V122: =IF(Tabelle_Auswertung[[#This Row],[Bildname]]<>"",SUM(Tabelle_Auswertung[[#This Row],[Juror 1]:[Juror 20]])," - ") -> - | W122: =IF(Tabelle_Auswertung[[#This Row],[Bildname]]<>"",IF(Tabelle_Auswertung[[#This Row],[Punkte]]>0,AVERAGE(Tabelle_Auswertung[[#This Row],[Juror 1]:[Juror 20]])," - ")," - ") -> - | X122: =IF(Tabelle_Auswertung[[#This Row],[Bildname]]<>"",IF(Tabelle_Auswertung[[#This Row],[Punkte]]>0,RANK(Tabelle_Auswertung[[#This Row],[Punkte]],[Punkte],0)," - ")," - ") -> - | Y122: - - - | Z122: =IF(Tabelle_Auswertung[[#This Row],[Platz]]=1,CONCATENATE(Tabelle_Auswertung[[#This Row],[Bildname]]," von ",Tabelle_Auswertung[[#This Row],[Autor(in)]]),"") ->  | AA122: =IF(Tabelle_Auswertung[[#This Row],[Platz]]=2,CONCATENATE(Tabelle_Auswertung[[#This Row],[Bildname]]," von ",Tabelle_Auswertung[[#This Row],[Autor(in)]]),"") ->  | AB122: =IF(Tabelle_Auswertung[[#This Row],[Platz]]=3,CONCATENATE(Tabelle_Auswertung[[#This Row],[Bildname]]," von ",Tabelle_Auswertung[[#This Row],[Autor(in)]]),"") ->  | AC122: =IF(Tabelle_Auswertung[[#This Row],[Platz]]=4,CONCATENATE(Tabelle_Auswertung[[#This Row],[Bildname]]," von ",Tabelle_Auswertung[[#This Row],[Autor(in)]]),"") ->  | AD122: =IF(Tabelle_Auswertung[[#This Row],[Platz]]=5,CONCATENATE(Tabelle_Auswertung[[#This Row],[Bildname]]," von ",Tabelle_Auswertung[[#This Row],[Autor(in)]]),"") ->  | AE122: =IF(Tabelle_Auswertung[[#This Row],[Platz]]=6,CONCATENATE(Tabelle_Auswertung[[#This Row],[Bildname]]," von ",Tabelle_Auswertung[[#This Row],[Autor(in)]]),"") ->  | AF122: =IF(Tabelle_Auswertung[[#This Row],[Platz]]=7,CONCATENATE(Tabelle_Auswertung[[#This Row],[Bildname]]," von ",Tabelle_Auswertung[[#This Row],[Autor(in)]]),"") ->  | AG122: =IF(Tabelle_Auswertung[[#This Row],[Platz]]=8,CONCATENATE(Tabelle_Auswertung[[#This Row],[Bildname]]," von ",Tabelle_Auswertung[[#This Row],[Autor(in)]]),"") ->  | AH122: =IF(Tabelle_Auswertung[[#This Row],[Platz]]=9,CONCATENATE(Tabelle_Auswertung[[#This Row],[Bildname]]," von ",Tabelle_Auswertung[[#This Row],[Autor(in)]]),"") ->  | AI122: =IF(Tabelle_Auswertung[[#This Row],[Platz]]=10,CONCATENATE(Tabelle_Auswertung[[#This Row],[Bildname]]," von ",Tabelle_Auswertung[[#This Row],[Autor(in)]]),"") -> 
V123: =IF(Tabelle_Auswertung[[#This Row],[Bildname]]<>"",SUM(Tabelle_Auswertung[[#This Row],[Juror 1]:[Juror 20]])," - ") -> - | W123: =IF(Tabelle_Auswertung[[#This Row],[Bildname]]<>"",IF(Tabelle_Auswertung[[#This Row],[Punkte]]>0,AVERAGE(Tabelle_Auswertung[[#This Row],[Juror 1]:[Juror 20]])," - ")," - ") -> - | X123: =IF(Tabelle_Auswertung[[#This Row],[Bildname]]<>"",IF(Tabelle_Auswertung[[#This Row],[Punkte]]>0,RANK(Tabelle_Auswertung[[#This Row],[Punkte]],[Punkte],0)," - ")," - ") -> - | Y123: - - - | Z123: =IF(Tabelle_Auswertung[[#This Row],[Platz]]=1,CONCATENATE(Tabelle_Auswertung[[#This Row],[Bildname]]," von ",Tabelle_Auswertung[[#This Row],[Autor(in)]]),"") ->  | AA123: =IF(Tabelle_Auswertung[[#This Row],[Platz]]=2,CONCATENATE(Tabelle_Auswertung[[#This Row],[Bildname]]," von ",Tabelle_Auswertung[[#This Row],[Autor(in)]]),"") ->  | AB123: =IF(Tabelle_Auswertung[[#This Row],[Platz]]=3,CONCATENATE(Tabelle_Auswertung[[#This Row],[Bildname]]," von ",Tabelle_Auswertung[[#This Row],[Autor(in)]]),"") ->  | AC123: =IF(Tabelle_Auswertung[[#This Row],[Platz]]=4,CONCATENATE(Tabelle_Auswertung[[#This Row],[Bildname]]," von ",Tabelle_Auswertung[[#This Row],[Autor(in)]]),"") ->  | AD123: =IF(Tabelle_Auswertung[[#This Row],[Platz]]=5,CONCATENATE(Tabelle_Auswertung[[#This Row],[Bildname]]," von ",Tabelle_Auswertung[[#This Row],[Autor(in)]]),"") ->  | AE123: =IF(Tabelle_Auswertung[[#This Row],[Platz]]=6,CONCATENATE(Tabelle_Auswertung[[#This Row],[Bildname]]," von ",Tabelle_Auswertung[[#This Row],[Autor(in)]]),"") ->  | AF123: =IF(Tabelle_Auswertung[[#This Row],[Platz]]=7,CONCATENATE(Tabelle_Auswertung[[#This Row],[Bildname]]," von ",Tabelle_Auswertung[[#This Row],[Autor(in)]]),"") ->  | AG123: =IF(Tabelle_Auswertung[[#This Row],[Platz]]=8,CONCATENATE(Tabelle_Auswertung[[#This Row],[Bildname]]," von ",Tabelle_Auswertung[[#This Row],[Autor(in)]]),"") ->  | AH123: =IF(Tabelle_Auswertung[[#This Row],[Platz]]=9,CONCATENATE(Tabelle_Auswertung[[#This Row],[Bildname]]," von ",Tabelle_Auswertung[[#This Row],[Autor(in)]]),"") ->  | AI123: =IF(Tabelle_Auswertung[[#This Row],[Platz]]=10,CONCATENATE(Tabelle_Auswertung[[#This Row],[Bildname]]," von ",Tabelle_Auswertung[[#This Row],[Autor(in)]]),"") -> 
V124: =IF(Tabelle_Auswertung[[#This Row],[Bildname]]<>"",SUM(Tabelle_Auswertung[[#This Row],[Juror 1]:[Juror 20]])," - ") -> - | W124: =IF(Tabelle_Auswertung[[#This Row],[Bildname]]<>"",IF(Tabelle_Auswertung[[#This Row],[Punkte]]>0,AVERAGE(Tabelle_Auswertung[[#This Row],[Juror 1]:[Juror 20]])," - ")," - ") -> - | X124: =IF(Tabelle_Auswertung[[#This Row],[Bildname]]<>"",IF(Tabelle_Auswertung[[#This Row],[Punkte]]>0,RANK(Tabelle_Auswertung[[#This Row],[Punkte]],[Punkte],0)," - ")," - ") -> - | Y124: - - - | Z124: =IF(Tabelle_Auswertung[[#This Row],[Platz]]=1,CONCATENATE(Tabelle_Auswertung[[#This Row],[Bildname]]," von ",Tabelle_Auswertung[[#This Row],[Autor(in)]]),"") ->  | AA124: =IF(Tabelle_Auswertung[[#This Row],[Platz]]=2,CONCATENATE(Tabelle_Auswertung[[#This Row],[Bildname]]," von ",Tabelle_Auswertung[[#This Row],[Autor(in)]]),"") ->  | AB124: =IF(Tabelle_Auswertung[[#This Row],[Platz]]=3,CONCATENATE(Tabelle_Auswertung[[#This Row],[Bildname]]," von ",Tabelle_Auswertung[[#This Row],[Autor(in)]]),"") ->  | AC124: =IF(Tabelle_Auswertung[[#This Row],[Platz]]=4,CONCATENATE(Tabelle_Auswertung[[#This Row],[Bildname]]," von ",Tabelle_Auswertung[[#This Row],[Autor(in)]]),"") ->  | AD124: =IF(Tabelle_Auswertung[[#This Row],[Platz]]=5,CONCATENATE(Tabelle_Auswertung[[#This Row],[Bildname]]," von ",Tabelle_Auswertung[[#This Row],[Autor(in)]]),"") ->  | AE124: =IF(Tabelle_Auswertung[[#This Row],[Platz]]=6,CONCATENATE(Tabelle_Auswertung[[#This Row],[Bildname]]," von ",Tabelle_Auswertung[[#This Row],[Autor(in)]]),"") ->  | AF124: =IF(Tabelle_Auswertung[[#This Row],[Platz]]=7,CONCATENATE(Tabelle_Auswertung[[#This Row],[Bildname]]," von ",Tabelle_Auswertung[[#This Row],[Autor(in)]]),"") ->  | AG124: =IF(Tabelle_Auswertung[[#This Row],[Platz]]=8,CONCATENATE(Tabelle_Auswertung[[#This Row],[Bildname]]," von ",Tabelle_Auswertung[[#This Row],[Autor(in)]]),"") ->  | AH124: =IF(Tabelle_Auswertung[[#This Row],[Platz]]=9,CONCATENATE(Tabelle_Auswertung[[#This Row],[Bildname]]," von ",Tabelle_Auswertung[[#This Row],[Autor(in)]]),"") ->  | AI124: =IF(Tabelle_Auswertung[[#This Row],[Platz]]=10,CONCATENATE(Tabelle_Auswertung[[#This Row],[Bildname]]," von ",Tabelle_Auswertung[[#This Row],[Autor(in)]]),"") -> 
V125: =IF(Tabelle_Auswertung[[#This Row],[Bildname]]<>"",SUM(Tabelle_Auswertung[[#This Row],[Juror 1]:[Juror 20]])," - ") -> - | W125: =IF(Tabelle_Auswertung[[#This Row],[Bildname]]<>"",IF(Tabelle_Auswertung[[#This Row],[Punkte]]>0,AVERAGE(Tabelle_Auswertung[[#This Row],[Juror 1]:[Juror 20]])," - ")," - ") -> - | X125: =IF(Tabelle_Auswertung[[#This Row],[Bildname]]<>"",IF(Tabelle_Auswertung[[#This Row],[Punkte]]>0,RANK(Tabelle_Auswertung[[#This Row],[Punkte]],[Punkte],0)," - ")," - ") -> - | Y125: - - - | Z125: =IF(Tabelle_Auswertung[[#This Row],[Platz]]=1,CONCATENATE(Tabelle_Auswertung[[#This Row],[Bildname]]," von ",Tabelle_Auswertung[[#This Row],[Autor(in)]]),"") ->  | AA125: =IF(Tabelle_Auswertung[[#This Row],[Platz]]=2,CONCATENATE(Tabelle_Auswertung[[#This Row],[Bildname]]," von ",Tabelle_Auswertung[[#This Row],[Autor(in)]]),"") ->  | AB125: =IF(Tabelle_Auswertung[[#This Row],[Platz]]=3,CONCATENATE(Tabelle_Auswertung[[#This Row],[Bildname]]," von ",Tabelle_Auswertung[[#This Row],[Autor(in)]]),"") ->  | AC125: =IF(Tabelle_Auswertung[[#This Row],[Platz]]=4,CONCATENATE(Tabelle_Auswertung[[#This Row],[Bildname]]," von ",Tabelle_Auswertung[[#This Row],[Autor(in)]]),"") ->  | AD125: =IF(Tabelle_Auswertung[[#This Row],[Platz]]=5,CONCATENATE(Tabelle_Auswertung[[#This Row],[Bildname]]," von ",Tabelle_Auswertung[[#This Row],[Autor(in)]]),"") ->  | AE125: =IF(Tabelle_Auswertung[[#This Row],[Platz]]=6,CONCATENATE(Tabelle_Auswertung[[#This Row],[Bildname]]," von ",Tabelle_Auswertung[[#This Row],[Autor(in)]]),"") ->  | AF125: =IF(Tabelle_Auswertung[[#This Row],[Platz]]=7,CONCATENATE(Tabelle_Auswertung[[#This Row],[Bildname]]," von ",Tabelle_Auswertung[[#This Row],[Autor(in)]]),"") ->  | AG125: =IF(Tabelle_Auswertung[[#This Row],[Platz]]=8,CONCATENATE(Tabelle_Auswertung[[#This Row],[Bildname]]," von ",Tabelle_Auswertung[[#This Row],[Autor(in)]]),"") ->  | AH125: =IF(Tabelle_Auswertung[[#This Row],[Platz]]=9,CONCATENATE(Tabelle_Auswertung[[#This Row],[Bildname]]," von ",Tabelle_Auswertung[[#This Row],[Autor(in)]]),"") ->  | AI125: =IF(Tabelle_Auswertung[[#This Row],[Platz]]=10,CONCATENATE(Tabelle_Auswertung[[#This Row],[Bildname]]," von ",Tabelle_Auswertung[[#This Row],[Autor(in)]]),"") -> 
V126: =IF(Tabelle_Auswertung[[#This Row],[Bildname]]<>"",SUM(Tabelle_Auswertung[[#This Row],[Juror 1]:[Juror 20]])," - ") -> - | W126: =IF(Tabelle_Auswertung[[#This Row],[Bildname]]<>"",IF(Tabelle_Auswertung[[#This Row],[Punkte]]>0,AVERAGE(Tabelle_Auswertung[[#This Row],[Juror 1]:[Juror 20]])," - ")," - ") -> - | X126: =IF(Tabelle_Auswertung[[#This Row],[Bildname]]<>"",IF(Tabelle_Auswertung[[#This Row],[Punkte]]>0,RANK(Tabelle_Auswertung[[#This Row],[Punkte]],[Punkte],0)," - ")," - ") -> - | Y126: - - - | Z126: =IF(Tabelle_Auswertung[[#This Row],[Platz]]=1,CONCATENATE(Tabelle_Auswertung[[#This Row],[Bildname]]," von ",Tabelle_Auswertung[[#This Row],[Autor(in)]]),"") ->  | AA126: =IF(Tabelle_Auswertung[[#This Row],[Platz]]=2,CONCATENATE(Tabelle_Auswertung[[#This Row],[Bildname]]," von ",Tabelle_Auswertung[[#This Row],[Autor(in)]]),"") ->  | AB126: =IF(Tabelle_Auswertung[[#This Row],[Platz]]=3,CONCATENATE(Tabelle_Auswertung[[#This Row],[Bildname]]," von ",Tabelle_Auswertung[[#This Row],[Autor(in)]]),"") ->  | AC126: =IF(Tabelle_Auswertung[[#This Row],[Platz]]=4,CONCATENATE(Tabelle_Auswertung[[#This Row],[Bildname]]," von ",Tabelle_Auswertung[[#This Row],[Autor(in)]]),"") ->  | AD126: =IF(Tabelle_Auswertung[[#This Row],[Platz]]=5,CONCATENATE(Tabelle_Auswertung[[#This Row],[Bildname]]," von ",Tabelle_Auswertung[[#This Row],[Autor(in)]]),"") ->  | AE126: =IF(Tabelle_Auswertung[[#This Row],[Platz]]=6,CONCATENATE(Tabelle_Auswertung[[#This Row],[Bildname]]," von ",Tabelle_Auswertung[[#This Row],[Autor(in)]]),"") ->  | AF126: =IF(Tabelle_Auswertung[[#This Row],[Platz]]=7,CONCATENATE(Tabelle_Auswertung[[#This Row],[Bildname]]," von ",Tabelle_Auswertung[[#This Row],[Autor(in)]]),"") ->  | AG126: =IF(Tabelle_Auswertung[[#This Row],[Platz]]=8,CONCATENATE(Tabelle_Auswertung[[#This Row],[Bildname]]," von ",Tabelle_Auswertung[[#This Row],[Autor(in)]]),"") ->  | AH126: =IF(Tabelle_Auswertung[[#This Row],[Platz]]=9,CONCATENATE(Tabelle_Auswertung[[#This Row],[Bildname]]," von ",Tabelle_Auswertung[[#This Row],[Autor(in)]]),"") ->  | AI126: =IF(Tabelle_Auswertung[[#This Row],[Platz]]=10,CONCATENATE(Tabelle_Auswertung[[#This Row],[Bildname]]," von ",Tabelle_Auswertung[[#This Row],[Autor(in)]]),"") -> 
V127: =IF(Tabelle_Auswertung[[#This Row],[Bildname]]<>"",SUM(Tabelle_Auswertung[[#This Row],[Juror 1]:[Juror 20]])," - ") -> - | W127: =IF(Tabelle_Auswertung[[#This Row],[Bildname]]<>"",IF(Tabelle_Auswertung[[#This Row],[Punkte]]>0,AVERAGE(Tabelle_Auswertung[[#This Row],[Juror 1]:[Juror 20]])," - ")," - ") -> - | X127: =IF(Tabelle_Auswertung[[#This Row],[Bildname]]<>"",IF(Tabelle_Auswertung[[#This Row],[Punkte]]>0,RANK(Tabelle_Auswertung[[#This Row],[Punkte]],[Punkte],0)," - ")," - ") -> - | Y127: - - - | Z127: =IF(Tabelle_Auswertung[[#This Row],[Platz]]=1,CONCATENATE(Tabelle_Auswertung[[#This Row],[Bildname]]," von ",Tabelle_Auswertung[[#This Row],[Autor(in)]]),"") ->  | AA127: =IF(Tabelle_Auswertung[[#This Row],[Platz]]=2,CONCATENATE(Tabelle_Auswertung[[#This Row],[Bildname]]," von ",Tabelle_Auswertung[[#This Row],[Autor(in)]]),"") ->  | AB127: =IF(Tabelle_Auswertung[[#This Row],[Platz]]=3,CONCATENATE(Tabelle_Auswertung[[#This Row],[Bildname]]," von ",Tabelle_Auswertung[[#This Row],[Autor(in)]]),"") ->  | AC127: =IF(Tabelle_Auswertung[[#This Row],[Platz]]=4,CONCATENATE(Tabelle_Auswertung[[#This Row],[Bildname]]," von ",Tabelle_Auswertung[[#This Row],[Autor(in)]]),"") ->  | AD127: =IF(Tabelle_Auswertung[[#This Row],[Platz]]=5,CONCATENATE(Tabelle_Auswertung[[#This Row],[Bildname]]," von ",Tabelle_Auswertung[[#This Row],[Autor(in)]]),"") ->  | AE127: =IF(Tabelle_Auswertung[[#This Row],[Platz]]=6,CONCATENATE(Tabelle_Auswertung[[#This Row],[Bildname]]," von ",Tabelle_Auswertung[[#This Row],[Autor(in)]]),"") ->  | AF127: =IF(Tabelle_Auswertung[[#This Row],[Platz]]=7,CONCATENATE(Tabelle_Auswertung[[#This Row],[Bildname]]," von ",Tabelle_Auswertung[[#This Row],[Autor(in)]]),"") ->  | AG127: =IF(Tabelle_Auswertung[[#This Row],[Platz]]=8,CONCATENATE(Tabelle_Auswertung[[#This Row],[Bildname]]," von ",Tabelle_Auswertung[[#This Row],[Autor(in)]]),"") ->  | AH127: =IF(Tabelle_Auswertung[[#This Row],[Platz]]=9,CONCATENATE(Tabelle_Auswertung[[#This Row],[Bildname]]," von ",Tabelle_Auswertung[[#This Row],[Autor(in)]]),"") ->  | AI127: =IF(Tabelle_Auswertung[[#This Row],[Platz]]=10,CONCATENATE(Tabelle_Auswertung[[#This Row],[Bildname]]," von ",Tabelle_Auswertung[[#This Row],[Autor(in)]]),"") -> 
V128: =IF(Tabelle_Auswertung[[#This Row],[Bildname]]<>"",SUM(Tabelle_Auswertung[[#This Row],[Juror 1]:[Juror 20]])," - ") -> - | W128: =IF(Tabelle_Auswertung[[#This Row],[Bildname]]<>"",IF(Tabelle_Auswertung[[#This Row],[Punkte]]>0,AVERAGE(Tabelle_Auswertung[[#This Row],[Juror 1]:[Juror 20]])," - ")," - ") -> - | X128: =IF(Tabelle_Auswertung[[#This Row],[Bildname]]<>"",IF(Tabelle_Auswertung[[#This Row],[Punkte]]>0,RANK(Tabelle_Auswertung[[#This Row],[Punkte]],[Punkte],0)," - ")," - ") -> - | Y128: - - - | Z128: =IF(Tabelle_Auswertung[[#This Row],[Platz]]=1,CONCATENATE(Tabelle_Auswertung[[#This Row],[Bildname]]," von ",Tabelle_Auswertung[[#This Row],[Autor(in)]]),"") ->  | AA128: =IF(Tabelle_Auswertung[[#This Row],[Platz]]=2,CONCATENATE(Tabelle_Auswertung[[#This Row],[Bildname]]," von ",Tabelle_Auswertung[[#This Row],[Autor(in)]]),"") ->  | AB128: =IF(Tabelle_Auswertung[[#This Row],[Platz]]=3,CONCATENATE(Tabelle_Auswertung[[#This Row],[Bildname]]," von ",Tabelle_Auswertung[[#This Row],[Autor(in)]]),"") ->  | AC128: =IF(Tabelle_Auswertung[[#This Row],[Platz]]=4,CONCATENATE(Tabelle_Auswertung[[#This Row],[Bildname]]," von ",Tabelle_Auswertung[[#This Row],[Autor(in)]]),"") ->  | AD128: =IF(Tabelle_Auswertung[[#This Row],[Platz]]=5,CONCATENATE(Tabelle_Auswertung[[#This Row],[Bildname]]," von ",Tabelle_Auswertung[[#This Row],[Autor(in)]]),"") ->  | AE128: =IF(Tabelle_Auswertung[[#This Row],[Platz]]=6,CONCATENATE(Tabelle_Auswertung[[#This Row],[Bildname]]," von ",Tabelle_Auswertung[[#This Row],[Autor(in)]]),"") ->  | AF128: =IF(Tabelle_Auswertung[[#This Row],[Platz]]=7,CONCATENATE(Tabelle_Auswertung[[#This Row],[Bildname]]," von ",Tabelle_Auswertung[[#This Row],[Autor(in)]]),"") ->  | AG128: =IF(Tabelle_Auswertung[[#This Row],[Platz]]=8,CONCATENATE(Tabelle_Auswertung[[#This Row],[Bildname]]," von ",Tabelle_Auswertung[[#This Row],[Autor(in)]]),"") ->  | AH128: =IF(Tabelle_Auswertung[[#This Row],[Platz]]=9,CONCATENATE(Tabelle_Auswertung[[#This Row],[Bildname]]," von ",Tabelle_Auswertung[[#This Row],[Autor(in)]]),"") ->  | AI128: =IF(Tabelle_Auswertung[[#This Row],[Platz]]=10,CONCATENATE(Tabelle_Auswertung[[#This Row],[Bildname]]," von ",Tabelle_Auswertung[[#This Row],[Autor(in)]]),"") -> 
V129: =IF(Tabelle_Auswertung[[#This Row],[Bildname]]<>"",SUM(Tabelle_Auswertung[[#This Row],[Juror 1]:[Juror 20]])," - ") -> - | W129: =IF(Tabelle_Auswertung[[#This Row],[Bildname]]<>"",IF(Tabelle_Auswertung[[#This Row],[Punkte]]>0,AVERAGE(Tabelle_Auswertung[[#This Row],[Juror 1]:[Juror 20]])," - ")," - ") -> - | X129: =IF(Tabelle_Auswertung[[#This Row],[Bildname]]<>"",IF(Tabelle_Auswertung[[#This Row],[Punkte]]>0,RANK(Tabelle_Auswertung[[#This Row],[Punkte]],[Punkte],0)," - ")," - ") -> - | Y129: - - - | Z129: =IF(Tabelle_Auswertung[[#This Row],[Platz]]=1,CONCATENATE(Tabelle_Auswertung[[#This Row],[Bildname]]," von ",Tabelle_Auswertung[[#This Row],[Autor(in)]]),"") ->  | AA129: =IF(Tabelle_Auswertung[[#This Row],[Platz]]=2,CONCATENATE(Tabelle_Auswertung[[#This Row],[Bildname]]," von ",Tabelle_Auswertung[[#This Row],[Autor(in)]]),"") ->  | AB129: =IF(Tabelle_Auswertung[[#This Row],[Platz]]=3,CONCATENATE(Tabelle_Auswertung[[#This Row],[Bildname]]," von ",Tabelle_Auswertung[[#This Row],[Autor(in)]]),"") ->  | AC129: =IF(Tabelle_Auswertung[[#This Row],[Platz]]=4,CONCATENATE(Tabelle_Auswertung[[#This Row],[Bildname]]," von ",Tabelle_Auswertung[[#This Row],[Autor(in)]]),"") ->  | AD129: =IF(Tabelle_Auswertung[[#This Row],[Platz]]=5,CONCATENATE(Tabelle_Auswertung[[#This Row],[Bildname]]," von ",Tabelle_Auswertung[[#This Row],[Autor(in)]]),"") ->  | AE129: =IF(Tabelle_Auswertung[[#This Row],[Platz]]=6,CONCATENATE(Tabelle_Auswertung[[#This Row],[Bildname]]," von ",Tabelle_Auswertung[[#This Row],[Autor(in)]]),"") ->  | AF129: =IF(Tabelle_Auswertung[[#This Row],[Platz]]=7,CONCATENATE(Tabelle_Auswertung[[#This Row],[Bildname]]," von ",Tabelle_Auswertung[[#This Row],[Autor(in)]]),"") ->  | AG129: =IF(Tabelle_Auswertung[[#This Row],[Platz]]=8,CONCATENATE(Tabelle_Auswertung[[#This Row],[Bildname]]," von ",Tabelle_Auswertung[[#This Row],[Autor(in)]]),"") ->  | AH129: =IF(Tabelle_Auswertung[[#This Row],[Platz]]=9,CONCATENATE(Tabelle_Auswertung[[#This Row],[Bildname]]," von ",Tabelle_Auswertung[[#This Row],[Autor(in)]]),"") ->  | AI129: =IF(Tabelle_Auswertung[[#This Row],[Platz]]=10,CONCATENATE(Tabelle_Auswertung[[#This Row],[Bildname]]," von ",Tabelle_Auswertung[[#This Row],[Autor(in)]]),"") -> 
V130: =IF(Tabelle_Auswertung[[#This Row],[Bildname]]<>"",SUM(Tabelle_Auswertung[[#This Row],[Juror 1]:[Juror 20]])," - ") -> - | W130: =IF(Tabelle_Auswertung[[#This Row],[Bildname]]<>"",IF(Tabelle_Auswertung[[#This Row],[Punkte]]>0,AVERAGE(Tabelle_Auswertung[[#This Row],[Juror 1]:[Juror 20]])," - ")," - ") -> - | X130: =IF(Tabelle_Auswertung[[#This Row],[Bildname]]<>"",IF(Tabelle_Auswertung[[#This Row],[Punkte]]>0,RANK(Tabelle_Auswertung[[#This Row],[Punkte]],[Punkte],0)," - ")," - ") -> - | Y130: - - - | Z130: =IF(Tabelle_Auswertung[[#This Row],[Platz]]=1,CONCATENATE(Tabelle_Auswertung[[#This Row],[Bildname]]," von ",Tabelle_Auswertung[[#This Row],[Autor(in)]]),"") ->  | AA130: =IF(Tabelle_Auswertung[[#This Row],[Platz]]=2,CONCATENATE(Tabelle_Auswertung[[#This Row],[Bildname]]," von ",Tabelle_Auswertung[[#This Row],[Autor(in)]]),"") ->  | AB130: =IF(Tabelle_Auswertung[[#This Row],[Platz]]=3,CONCATENATE(Tabelle_Auswertung[[#This Row],[Bildname]]," von ",Tabelle_Auswertung[[#This Row],[Autor(in)]]),"") ->  | AC130: =IF(Tabelle_Auswertung[[#This Row],[Platz]]=4,CONCATENATE(Tabelle_Auswertung[[#This Row],[Bildname]]," von ",Tabelle_Auswertung[[#This Row],[Autor(in)]]),"") ->  | AD130: =IF(Tabelle_Auswertung[[#This Row],[Platz]]=5,CONCATENATE(Tabelle_Auswertung[[#This Row],[Bildname]]," von ",Tabelle_Auswertung[[#This Row],[Autor(in)]]),"") ->  | AE130: =IF(Tabelle_Auswertung[[#This Row],[Platz]]=6,CONCATENATE(Tabelle_Auswertung[[#This Row],[Bildname]]," von ",Tabelle_Auswertung[[#This Row],[Autor(in)]]),"") ->  | AF130: =IF(Tabelle_Auswertung[[#This Row],[Platz]]=7,CONCATENATE(Tabelle_Auswertung[[#This Row],[Bildname]]," von ",Tabelle_Auswertung[[#This Row],[Autor(in)]]),"") ->  | AG130: =IF(Tabelle_Auswertung[[#This Row],[Platz]]=8,CONCATENATE(Tabelle_Auswertung[[#This Row],[Bildname]]," von ",Tabelle_Auswertung[[#This Row],[Autor(in)]]),"") ->  | AH130: =IF(Tabelle_Auswertung[[#This Row],[Platz]]=9,CONCATENATE(Tabelle_Auswertung[[#This Row],[Bildname]]," von ",Tabelle_Auswertung[[#This Row],[Autor(in)]]),"") ->  | AI130: =IF(Tabelle_Auswertung[[#This Row],[Platz]]=10,CONCATENATE(Tabelle_Auswertung[[#This Row],[Bildname]]," von ",Tabelle_Auswertung[[#This Row],[Autor(in)]]),"") -> 
V131: =IF(Tabelle_Auswertung[[#This Row],[Bildname]]<>"",SUM(Tabelle_Auswertung[[#This Row],[Juror 1]:[Juror 20]])," - ") -> - | W131: =IF(Tabelle_Auswertung[[#This Row],[Bildname]]<>"",IF(Tabelle_Auswertung[[#This Row],[Punkte]]>0,AVERAGE(Tabelle_Auswertung[[#This Row],[Juror 1]:[Juror 20]])," - ")," - ") -> - | X131: =IF(Tabelle_Auswertung[[#This Row],[Bildname]]<>"",IF(Tabelle_Auswertung[[#This Row],[Punkte]]>0,RANK(Tabelle_Auswertung[[#This Row],[Punkte]],[Punkte],0)," - ")," - ") -> - | Y131: - - - | Z131: =IF(Tabelle_Auswertung[[#This Row],[Platz]]=1,CONCATENATE(Tabelle_Auswertung[[#This Row],[Bildname]]," von ",Tabelle_Auswertung[[#This Row],[Autor(in)]]),"") ->  | AA131: =IF(Tabelle_Auswertung[[#This Row],[Platz]]=2,CONCATENATE(Tabelle_Auswertung[[#This Row],[Bildname]]," von ",Tabelle_Auswertung[[#This Row],[Autor(in)]]),"") ->  | AB131: =IF(Tabelle_Auswertung[[#This Row],[Platz]]=3,CONCATENATE(Tabelle_Auswertung[[#This Row],[Bildname]]," von ",Tabelle_Auswertung[[#This Row],[Autor(in)]]),"") ->  | AC131: =IF(Tabelle_Auswertung[[#This Row],[Platz]]=4,CONCATENATE(Tabelle_Auswertung[[#This Row],[Bildname]]," von ",Tabelle_Auswertung[[#This Row],[Autor(in)]]),"") ->  | AD131: =IF(Tabelle_Auswertung[[#This Row],[Platz]]=5,CONCATENATE(Tabelle_Auswertung[[#This Row],[Bildname]]," von ",Tabelle_Auswertung[[#This Row],[Autor(in)]]),"") ->  | AE131: =IF(Tabelle_Auswertung[[#This Row],[Platz]]=6,CONCATENATE(Tabelle_Auswertung[[#This Row],[Bildname]]," von ",Tabelle_Auswertung[[#This Row],[Autor(in)]]),"") ->  | AF131: =IF(Tabelle_Auswertung[[#This Row],[Platz]]=7,CONCATENATE(Tabelle_Auswertung[[#This Row],[Bildname]]," von ",Tabelle_Auswertung[[#This Row],[Autor(in)]]),"") ->  | AG131: =IF(Tabelle_Auswertung[[#This Row],[Platz]]=8,CONCATENATE(Tabelle_Auswertung[[#This Row],[Bildname]]," von ",Tabelle_Auswertung[[#This Row],[Autor(in)]]),"") ->  | AH131: =IF(Tabelle_Auswertung[[#This Row],[Platz]]=9,CONCATENATE(Tabelle_Auswertung[[#This Row],[Bildname]]," von ",Tabelle_Auswertung[[#This Row],[Autor(in)]]),"") ->  | AI131: =IF(Tabelle_Auswertung[[#This Row],[Platz]]=10,CONCATENATE(Tabelle_Auswertung[[#This Row],[Bildname]]," von ",Tabelle_Auswertung[[#This Row],[Autor(in)]]),"") -> 

Sheet Statistik nach Autor(in)
A1: Statistik | J1: 1 | K1: - Platz 1
J2: 2 | K2: - Platz 2
J3: 3 | K3: - Platz 3
J4: 4-10 | K4: - Top 10
A5: Autor(in) | B5: Punkte | C5: Platz | D5: Teilnahme | E5: 1ster | F5: 2ter | G5: 3ter | H5: TOP 10
A6: =IF(AND(Fotografen!$A25<>"",Fotografen!$A25<>" - - -"),Fotografen!$A25,"") -> Nadja Cassim | B6: =IF(Tabelle_Statistik[[#This Row],[Teilnahme]]="ja",SUMIF(Tabelle_Auswertung[Autor(in)],Tabelle_Statistik[[#This Row],[Autor(in)]],Tabelle_Auswertung[Punkte]),IF(Tabelle_Statistik[[#This Row],[Autor(in)]]<>""," - ","")) -> 171 | C6: =IF(Tabelle_Statistik[[#This Row],[Teilnahme]]="ja",RANK(Tabelle_Statistik[[#This Row],[Punkte]],[Punkte],0),IF(Tabelle_Statistik[[#This Row],[Autor(in)]]<>""," - ","")) -> 1 | D6: =IF(Tabelle_Statistik[[#This Row],[Autor(in)]]<>"",IF(COUNTIF(Tabelle_Auswertung[Autor(in)],Tabelle_Statistik[[#This Row],[Autor(in)]])>0,"ja","nein"),"") -> ja | E6: =IF(Tabelle_Statistik[[#This Row],[Platz]]=1,Tabelle_Statistik[[#This Row],[Autor(in)]],"") -> Nadja Cassim | F6: =IF(Tabelle_Statistik[[#This Row],[Platz]]=2,Tabelle_Statistik[[#This Row],[Autor(in)]],"") ->  | G6: =IF(Tabelle_Statistik[[#This Row],[Platz]]=3,Tabelle_Statistik[[#This Row],[Autor(in)]],"") ->  | H6: =IF(Tabelle_Statistik[[#This Row],[Platz]]<11,Tabelle_Statistik[[#This Row],[Autor(in)]],"") -> Nadja Cassim
A7: =IF(AND(Fotografen!$A5<>"",Fotografen!$A5<>" - - -"),Fotografen!$A5,"") -> Andreas Toltz | B7: =IF(Tabelle_Statistik[[#This Row],[Teilnahme]]="ja",SUMIF(Tabelle_Auswertung[Autor(in)],Tabelle_Statistik[[#This Row],[Autor(in)]],Tabelle_Auswertung[Punkte]),IF(Tabelle_Statistik[[#This Row],[Autor(in)]]<>""," - ","")) -> 170 | C7: =IF(Tabelle_Statistik[[#This Row],[Teilnahme]]="ja",RANK(Tabelle_Statistik[[#This Row],[Punkte]],[Punkte],0),IF(Tabelle_Statistik[[#This Row],[Autor(in)]]<>""," - ","")) -> 2 | D7: =IF(Tabelle_Statistik[[#This Row],[Autor(in)]]<>"",IF(COUNTIF(Tabelle_Auswertung[Autor(in)],Tabelle_Statistik[[#This Row],[Autor(in)]])>0,"ja","nein"),"") -> ja | E7: =IF(Tabelle_Statistik[[#This Row],[Platz]]=1,Tabelle_Statistik[[#This Row],[Autor(in)]],"") ->  | F7: =IF(Tabelle_Statistik[[#This Row],[Platz]]=2,Tabelle_Statistik[[#This Row],[Autor(in)]],"") -> Andreas Toltz | G7: =IF(Tabelle_Statistik[[#This Row],[Platz]]=3,Tabelle_Statistik[[#This Row],[Autor(in)]],"") ->  | H7: =IF(Tabelle_Statistik[[#This Row],[Platz]]<11,Tabelle_Statistik[[#This Row],[Autor(in)]],"") -> Andreas Toltz
A8: =IF(AND(Fotografen!$A12<>"",Fotografen!$A12<>" - - -"),Fotografen!$A12,"") -> Gerhard Rieß | B8: =IF(Tabelle_Statistik[[#This Row],[Teilnahme]]="ja",SUMIF(Tabelle_Auswertung[Autor(in)],Tabelle_Statistik[[#This Row],[Autor(in)]],Tabelle_Auswertung[Punkte]),IF(Tabelle_Statistik[[#This Row],[Autor(in)]]<>""," - ","")) -> 145 | C8: =IF(Tabelle_Statistik[[#This Row],[Teilnahme]]="ja",RANK(Tabelle_Statistik[[#This Row],[Punkte]],[Punkte],0),IF(Tabelle_Statistik[[#This Row],[Autor(in)]]<>""," - ","")) -> 3 | D8: =IF(Tabelle_Statistik[[#This Row],[Autor(in)]]<>"",IF(COUNTIF(Tabelle_Auswertung[Autor(in)],Tabelle_Statistik[[#This Row],[Autor(in)]])>0,"ja","nein"),"") -> ja | E8: =IF(Tabelle_Statistik[[#This Row],[Platz]]=1,Tabelle_Statistik[[#This Row],[Autor(in)]],"") ->  | F8: =IF(Tabelle_Statistik[[#This Row],[Platz]]=2,Tabelle_Statistik[[#This Row],[Autor(in)]],"") ->  | G8: =IF(Tabelle_Statistik[[#This Row],[Platz]]=3,Tabelle_Statistik[[#This Row],[Autor(in)]],"") -> Gerhard Rieß | H8: =IF(Tabelle_Statistik[[#This Row],[Platz]]<11,Tabelle_Statistik[[#This Row],[Autor(in)]],"") -> Gerhard Rieß
A9: =IF(AND(Fotografen!$A17<>"",Fotografen!$A17<>" - - -"),Fotografen!$A17,"") -> Jan Grünler | B9: =IF(Tabelle_Statistik[[#This Row],[Teilnahme]]="ja",SUMIF(Tabelle_Auswertung[Autor(in)],Tabelle_Statistik[[#This Row],[Autor(in)]],Tabelle_Auswertung[Punkte]),IF(Tabelle_Statistik[[#This Row],[Autor(in)]]<>""," - ","")) -> 143 | C9: =IF(Tabelle_Statistik[[#This Row],[Teilnahme]]="ja",RANK(Tabelle_Statistik[[#This Row],[Punkte]],[Punkte],0),IF(Tabelle_Statistik[[#This Row],[Autor(in)]]<>""," - ","")) -> 4 | D9: =IF(Tabelle_Statistik[[#This Row],[Autor(in)]]<>"",IF(COUNTIF(Tabelle_Auswertung[Autor(in)],Tabelle_Statistik[[#This Row],[Autor(in)]])>0,"ja","nein"),"") -> ja | E9: =IF(Tabelle_Statistik[[#This Row],[Platz]]=1,Tabelle_Statistik[[#This Row],[Autor(in)]],"") ->  | F9: =IF(Tabelle_Statistik[[#This Row],[Platz]]=2,Tabelle_Statistik[[#This Row],[Autor(in)]],"") ->  | G9: =IF(Tabelle_Statistik[[#This Row],[Platz]]=3,Tabelle_Statistik[[#This Row],[Autor(in)]],"") ->  | H9: =IF(Tabelle_Statistik[[#This Row],[Platz]]<11,Tabelle_Statistik[[#This Row],[Autor(in)]],"") -> Jan Grünler
A10: =IF(AND(Fotografen!$A13<>"",Fotografen!$A13<>" - - -"),Fotografen!$A13,"") -> Gert Häberlein | B10: =IF(Tabelle_Statistik[[#This Row],[Teilnahme]]="ja",SUMIF(Tabelle_Auswertung[Autor(in)],Tabelle_Statistik[[#This Row],[Autor(in)]],Tabelle_Auswertung[Punkte]),IF(Tabelle_Statistik[[#This Row],[Autor(in)]]<>""," - ","")) -> 140 | C10: =IF(Tabelle_Statistik[[#This Row],[Teilnahme]]="ja",RANK(Tabelle_Statistik[[#This Row],[Punkte]],[Punkte],0),IF(Tabelle_Statistik[[#This Row],[Autor(in)]]<>""," - ","")) -> 5 | D10: =IF(Tabelle_Statistik[[#This Row],[Autor(in)]]<>"",IF(COUNTIF(Tabelle_Auswertung[Autor(in)],Tabelle_Statistik[[#This Row],[Autor(in)]])>0,"ja","nein"),"") -> ja | E10: =IF(Tabelle_Statistik[[#This Row],[Platz]]=1,Tabelle_Statistik[[#This Row],[Autor(in)]],"") ->  | F10: =IF(Tabelle_Statistik[[#This Row],[Platz]]=2,Tabelle_Statistik[[#This Row],[Autor(in)]],"") ->  | G10: =IF(Tabelle_Statistik[[#This Row],[Platz]]=3,Tabelle_Statistik[[#This Row],[Autor(in)]],"") ->  | H10: =IF(Tabelle_Statistik[[#This Row],[Platz]]<11,Tabelle_Statistik[[#This Row],[Autor(in)]],"") -> Gert Häberlein
A11: =IF(AND(Fotografen!$A8<>"",Fotografen!$A8<>" - - -"),Fotografen!$A8,"") -> Chris Finsterer | B11: =IF(Tabelle_Statistik[[#This Row],[Teilnahme]]="ja",SUMIF(Tabelle_Auswertung[Autor(in)],Tabelle_Statistik[[#This Row],[Autor(in)]],Tabelle_Auswertung[Punkte]),IF(Tabelle_Statistik[[#This Row],[Autor(in)]]<>""," - ","")) -> 136 | C11: =IF(Tabelle_Statistik[[#This Row],[Teilnahme]]="ja",RANK(Tabelle_Statistik[[#This Row],[Punkte]],[Punkte],0),IF(Tabelle_Statistik[[#This Row],[Autor(in)]]<>""," - ","")) -> 6 | D11: =IF(Tabelle_Statistik[[#This Row],[Autor(in)]]<>"",IF(COUNTIF(Tabelle_Auswertung[Autor(in)],Tabelle_Statistik[[#This Row],[Autor(in)]])>0,"ja","nein"),"") -> ja | E11: =IF(Tabelle_Statistik[[#This Row],[Platz]]=1,Tabelle_Statistik[[#This Row],[Autor(in)]],"") ->  | F11: =IF(Tabelle_Statistik[[#This Row],[Platz]]=2,Tabelle_Statistik[[#This Row],[Autor(in)]],"") ->  | G11: =IF(Tabelle_Statistik[[#This Row],[Platz]]=3,Tabelle_Statistik[[#This Row],[Autor(in)]],"") ->  | H11: =IF(Tabelle_Statistik[[#This Row],[Platz]]<11,Tabelle_Statistik[[#This Row],[Autor(in)]],"") -> Chris Finsterer
A12: =IF(AND(Fotografen!$A9<>"",Fotografen!$A9<>" - - -"),Fotografen!$A9,"") -> Claudia Dommel | B12: =IF(Tabelle_Statistik[[#This Row],[Teilnahme]]="ja",SUMIF(Tabelle_Auswertung[Autor(in)],Tabelle_Statistik[[#This Row],[Autor(in)]],Tabelle_Auswertung[Punkte]),IF(Tabelle_Statistik[[#This Row],[Autor(in)]]<>""," - ","")) -> 133 | C12: =IF(Tabelle_Statistik[[#This Row],[Teilnahme]]="ja",RANK(Tabelle_Statistik[[#This Row],[Punkte]],[Punkte],0),IF(Tabelle_Statistik[[#This Row],[Autor(in)]]<>""," - ","")) -> 7 | D12: =IF(Tabelle_Statistik[[#This Row],[Autor(in)]]<>"",IF(COUNTIF(Tabelle_Auswertung[Autor(in)],Tabelle_Statistik[[#This Row],[Autor(in)]])>0,"ja","nein"),"") -> ja | E12: =IF(Tabelle_Statistik[[#This Row],[Platz]]=1,Tabelle_Statistik[[#This Row],[Autor(in)]],"") ->  | F12: =IF(Tabelle_Statistik[[#This Row],[Platz]]=2,Tabelle_Statistik[[#This Row],[Autor(in)]],"") ->  | G12: =IF(Tabelle_Statistik[[#This Row],[Platz]]=3,Tabelle_Statistik[[#This Row],[Autor(in)]],"") ->  | H12: =IF(Tabelle_Statistik[[#This Row],[Platz]]<11,Tabelle_Statistik[[#This Row],[Autor(in)]],"") -> Claudia Dommel
A13: =IF(AND(Fotografen!$A29<>"",Fotografen!$A29<>" - - -"),Fotografen!$A29,"") -> Susanne Deinhardt | B13: =IF(Tabelle_Statistik[[#This Row],[Teilnahme]]="ja",SUMIF(Tabelle_Auswertung[Autor(in)],Tabelle_Statistik[[#This Row],[Autor(in)]],Tabelle_Auswertung[Punkte]),IF(Tabelle_Statistik[[#This Row],[Autor(in)]]<>""," - ","")) -> 125 | C13: =IF(Tabelle_Statistik[[#This Row],[Teilnahme]]="ja",RANK(Tabelle_Statistik[[#This Row],[Punkte]],[Punkte],0),IF(Tabelle_Statistik[[#This Row],[Autor(in)]]<>""," - ","")) -> 8 | D13: =IF(Tabelle_Statistik[[#This Row],[Autor(in)]]<>"",IF(COUNTIF(Tabelle_Auswertung[Autor(in)],Tabelle_Statistik[[#This Row],[Autor(in)]])>0,"ja","nein"),"") -> ja | E13: =IF(Tabelle_Statistik[[#This Row],[Platz]]=1,Tabelle_Statistik[[#This Row],[Autor(in)]],"") ->  | F13: =IF(Tabelle_Statistik[[#This Row],[Platz]]=2,Tabelle_Statistik[[#This Row],[Autor(in)]],"") ->  | G13: =IF(Tabelle_Statistik[[#This Row],[Platz]]=3,Tabelle_Statistik[[#This Row],[Autor(in)]],"") ->  | H13: =IF(Tabelle_Statistik[[#This Row],[Platz]]<11,Tabelle_Statistik[[#This Row],[Autor(in)]],"") -> Susanne Deinhardt
A14: =IF(AND(Fotografen!$A3<>"",Fotografen!$A3<>" - - -"),Fotografen!$A3,"") -> Albrecht Flierl | B14: =IF(Tabelle_Statistik[[#This Row],[Teilnahme]]="ja",SUMIF(Tabelle_Auswertung[Autor(in)],Tabelle_Statistik[[#This Row],[Autor(in)]],Tabelle_Auswertung[Punkte]),IF(Tabelle_Statistik[[#This Row],[Autor(in)]]<>""," - ","")) -> 113 | C14: =IF(Tabelle_Statistik[[#This Row],[Teilnahme]]="ja",RANK(Tabelle_Statistik[[#This Row],[Punkte]],[Punkte],0),IF(Tabelle_Statistik[[#This Row],[Autor(in)]]<>""," - ","")) -> 9 | D14: =IF(Tabelle_Statistik[[#This Row],[Autor(in)]]<>"",IF(COUNTIF(Tabelle_Auswertung[Autor(in)],Tabelle_Statistik[[#This Row],[Autor(in)]])>0,"ja","nein"),"") -> ja | E14: =IF(Tabelle_Statistik[[#This Row],[Platz]]=1,Tabelle_Statistik[[#This Row],[Autor(in)]],"") ->  | F14: =IF(Tabelle_Statistik[[#This Row],[Platz]]=2,Tabelle_Statistik[[#This Row],[Autor(in)]],"") ->  | G14: =IF(Tabelle_Statistik[[#This Row],[Platz]]=3,Tabelle_Statistik[[#This Row],[Autor(in)]],"") ->  | H14: =IF(Tabelle_Statistik[[#This Row],[Platz]]<11,Tabelle_Statistik[[#This Row],[Autor(in)]],"") -> Albrecht Flierl
A15: =IF(AND(Fotografen!$A2<>"",Fotografen!$A2<>" - - -"),Fotografen!$A2,"") ->  | B15: =IF(Tabelle_Statistik[[#This Row],[Teilnahme]]="ja",SUMIF(Tabelle_Auswertung[Autor(in)],Tabelle_Statistik[[#This Row],[Autor(in)]],Tabelle_Auswertung[Punkte]),IF(Tabelle_Statistik[[#This Row],[Autor(in)]]<>""," - ","")) ->  | C15: =IF(Tabelle_Statistik[[#This Row],[Teilnahme]]="ja",RANK(Tabelle_Statistik[[#This Row],[Punkte]],[Punkte],0),IF(Tabelle_Statistik[[#This Row],[Autor(in)]]<>""," - ","")) ->  | D15: =IF(Tabelle_Statistik[[#This Row],[Autor(in)]]<>"",IF(COUNTIF(Tabelle_Auswertung[Autor(in)],Tabelle_Statistik[[#This Row],[Autor(in)]])>0,"ja","nein"),"") ->  | E15: =IF(Tabelle_Statistik[[#This Row],[Platz]]=1,Tabelle_Statistik[[#This Row],[Autor(in)]],"") ->  | F15: =IF(Tabelle_Statistik[[#This Row],[Platz]]=2,Tabelle_Statistik[[#This Row],[Autor(in)]],"") ->  | G15: =IF(Tabelle_Statistik[[#This Row],[Platz]]=3,Tabelle_Statistik[[#This Row],[Autor(in)]],"") ->  | H15: =IF(Tabelle_Statistik[[#This Row],[Platz]]<11,Tabelle_Statistik[[#This Row],[Autor(in)]],"") -> 
A16: =IF(AND(Fotografen!$A18<>"",Fotografen!$A18<>" - - -"),Fotografen!$A18,"") -> Jürgen Abt | B16: =IF(Tabelle_Statistik[[#This Row],[Teilnahme]]="ja",SUMIF(Tabelle_Auswertung[Autor(in)],Tabelle_Statistik[[#This Row],[Autor(in)]],Tabelle_Auswertung[Punkte]),IF(Tabelle_Statistik[[#This Row],[Autor(in)]]<>""," - ","")) -> - | C16: =IF(Tabelle_Statistik[[#This Row],[Teilnahme]]="ja",RANK(Tabelle_Statistik[[#This Row],[Punkte]],[Punkte],0),IF(Tabelle_Statistik[[#This Row],[Autor(in)]]<>""," - ","")) -> - | D16: =IF(Tabelle_Statistik[[#This Row],[Autor(in)]]<>"",IF(COUNTIF(Tabelle_Auswertung[Autor(in)],Tabelle_Statistik[[#This Row],[Autor(in)]])>0,"ja","nein"),"") -> nein | E16: =IF(Tabelle_Statistik[[#This Row],[Platz]]=1,Tabelle_Statistik[[#This Row],[Autor(in)]],"") ->  | F16: =IF(Tabelle_Statistik[[#This Row],[Platz]]=2,Tabelle_Statistik[[#This Row],[Autor(in)]],"") ->  | G16: =IF(Tabelle_Statistik[[#This Row],[Platz]]=3,Tabelle_Statistik[[#This Row],[Autor(in)]],"") ->  | H16: =IF(Tabelle_Statistik[[#This Row],[Platz]]<11,Tabelle_Statistik[[#This Row],[Autor(in)]],"") -> 
A17: =IF(AND(Fotografen!$A10<>"",Fotografen!$A10<>" - - -"),Fotografen!$A10,"") -> Georg Held | B17: =IF(Tabelle_Statistik[[#This Row],[Teilnahme]]="ja",SUMIF(Tabelle_Auswertung[Autor(in)],Tabelle_Statistik[[#This Row],[Autor(in)]],Tabelle_Auswertung[Punkte]),IF(Tabelle_Statistik[[#This Row],[Autor(in)]]<>""," - ","")) -> - | C17: =IF(Tabelle_Statistik[[#This Row],[Teilnahme]]="ja",RANK(Tabelle_Statistik[[#This Row],[Punkte]],[Punkte],0),IF(Tabelle_Statistik[[#This Row],[Autor(in)]]<>""," - ","")) -> - | D17: =IF(Tabelle_Statistik[[#This Row],[Autor(in)]]<>"",IF(COUNTIF(Tabelle_Auswertung[Autor(in)],Tabelle_Statistik[[#This Row],[Autor(in)]])>0,"ja","nein"),"") -> nein | E17: =IF(Tabelle_Statistik[[#This Row],[Platz]]=1,Tabelle_Statistik[[#This Row],[Autor(in)]],"") ->  | F17: =IF(Tabelle_Statistik[[#This Row],[Platz]]=2,Tabelle_Statistik[[#This Row],[Autor(in)]],"") ->  | G17: =IF(Tabelle_Statistik[[#This Row],[Platz]]=3,Tabelle_Statistik[[#This Row],[Autor(in)]],"") ->  | H17: =IF(Tabelle_Statistik[[#This Row],[Platz]]<11,Tabelle_Statistik[[#This Row],[Autor(in)]],"") -> 
